Workbook

Sheet Instructions
A2: Contact Us
A3: Extension Ag Economics
A4: Master Marketer
A5: Market Outlook
A6: Futures Charts and Prices
A7: Irrigation Spreadsheet Project
A9: IF THE TOOL ISN'T WORKING PROPERLY, CLOSE THE FILE AND FIND IT IN THE APPROPRIATE FOLDER. NEXT, RIGHT CLICK THE FILE AND SELECT PROPERTIES, THEN CHECK THE BOX THAT SAYS UNBLOCK. FINALLY, OPEN THE FILE BACK UP AND ENABLE EDITING IF NEEDED.
A11: Introduction
A12: This decision aid requires Excel or a similar program that reads an Excel file. Budget cost estimates are not meant to represent any specific farm. They are averages and serve as a starting point in the analysis. Due to differences in soil types and other resources that vary from farm to farm, it is important that producers enter individualized crop cost estimates to achieve realistic results. To make long run decisions and determine farm business sustainability in future years, they will need to estimate fixed costs as well.
A13: Navigating From Sheet to Sheet
A14: Each crop budget (Irr Alfalfa, Irr Corn, etc.) and analysis section (Prices, Break-Even, Comparative, Irrigation) is displayed on a separate tab/sheet. Analysis sections are tied to the budgets and will automatically update as you make changes to individual budgets. • The MENU sheet provides direct access to all crop budgets and summary pages from one location. It also allows users to select the crops and scenarios they want to analyze. • To return to the Menu sheet or navigate to the Prices, Break-even, Comparative, or Irrigation sections, use the colored navigation bars at the top of each sheet. • To move from tab to tab, click on the crop budget name at the bottom of the screen. To scroll left or right and get access to budget tabs not listed, use the four small triangles in the bottom left corner of the worksheet.
A15: Entering Your Numbers
A16: • To change BLUE entries, click on the number you want to change, type in the new entry and press the Enter key, or just use the mouse to click on the next number that needs changing. • GREEN entries can only be altered in the Universal Input Prices sheet.
A17: Printing
A18: • To print the current worksheet, click FILE, PRINT in the upper left corner. To print multiple sheets, select the ones you want by holding down the CTRL key while left clicking on each sheet/tab, then follow the same process as before.
A19: Saving Your Work
A20: • Click the SAVE icon (disk) in the upper left corner to replace the original information with new data. If the Save icon is not visible, select FILE, SAVE AS and give the file a new name.
A21: Special Thanks
A22: A special thanks goes to the project team of Steve Amosson, Thomas Marek, DeDe Jones, Jay Yates, Bridget Guerrero, and Jourdan Bell and the project advisory committee of David Ford, Harold Grall, Tom Moore, Mark Howard, Dee Vaughan, Hagen Hunt, and Braden Gruhlkey.
A23: Additional Resource
A24: The FARM Assistance Strategic Planning program is another useful tool for evaluating long term operational viability, and analyzing the financial impact of various business decisions such as acquiring more land or changing crop mixes. Contact DeDe Jones at 677-5600 or dljones@ag.tamu.edu for more information.

Sheet Menu
B3: Menu: Customize Your Analysis
C4: Include in Analysis? | E4: Instructions
B5: ='Irr Alfalfa'!$A$3 -> Irrigated Alfalfa | C5: Yes | E5: Step
B6: ='Irr Canola'!$A$3 -> Irrigated Canola | C6: Yes | E6: 1. Identify the crops you want to consider in the analysis and mark each crop as either 'Yes' or 'No'.
B7: ='Irr Corn'!$A$3 -> Irrigated Corn | C7: Yes | E7: Note: you can use the buttons provided to quickly update all entries in each section.
B8: ='Irr Corn Silage'!$A$3 -> Irrigated Corn Silage | C8: Yes
B9: ='Irr Cotton'!$A$3 -> Irrigated Cotton | C9: Yes | E9: 2. Indicate whether or not to include a Tenant and/or Landlord in the analysis.
B10: ='Irr Peanuts'!$A$3 -> Irrigated Peanuts | C10: Yes
B11: ='Irr Sorghum'!$A$3 -> Irrigated Sorghum | C11: Yes | E11: 3. Select the 'Update Workbook' button. This will update the workbook so that only the content
B12: ='Irr Sorghum Seed'!$A$3 -> Irrigated Sorghum Seed | C12: Yes | E12: you are interested in will be displayed.
B13: ='Irr Sorghum Silage'!$A$3 -> Irrigated Sorghum Silage | C13: Yes
B14: ='Irr Sorghum Sudangrass'!$A$3 -> Irrigated Sorghum Sudangrass | C14: Yes
B15: ='Irr Soybeans'!$A$3 -> Irrigated Soybeans | C15: Yes
B16: ='Irr Sunflowers-Confection'!$A$3 -> Irrigated Sunflowers-Confectionary | C16: Yes
B17: ='Irr Sunflowers-Oilseed'!$A$3 -> Irrigated Sunflowers-Oilseed | C17: Yes
B18: ='Irr Triticale Silage'!$A$3 -> Irrigated Triticale Silage | C18: Yes
B19: ='Irr Wheat'!$A$3 -> Irrigated Wheat | C19: Yes
B20: ='Irr Other Crop'!$A$3 -> Irrigated Other Crop | C20: Yes
B21: . | E21: **IF THE MENU BOTTONS DON'T WORK, CLOSE THE FILE AND FIND IT IN THE APPROPRIATE FOLDER. NEXT, RIGHT CLICK THE FILE AND SELECT PROPERTIES, THEN CHECK THE BOX THAT SAYS UNBLOCK. FINALLY, OPEN THE FILE BACK UP AND CHOOSE TO ENABLE EDITING IF NEEDED**
B22: ='Dry Canola'!$A$3 -> Dryland Canola | C22: Yes
B23: ='Dry Cotton'!$A$3 -> Dryland Cotton | C23: Yes
B24: ='Dry Sorghum'!$A$3 -> Dryland Sorghum | C24: Yes
B25: ='Dry Sorghum Sudangrass'!$A$3 -> Dryland Sorghum Sudangrass | C25: Yes
B26: ='Dry Sunflowers-Oilseed'!$A$3 -> Dryland Sunflowers-Oilseed | C26: Yes
B27: ='Dry Wheat'!$A$3 -> Dryland Wheat | C27: Yes
B28: ='Dry Other Crop'!$A$3 -> Dryland Other Crop | C28: Yes
B29: .
B30: Scenario | C30: Include in Analysis?
B31: Tenant | C31: Yes
B32: Landlord | C32: Yes

Sheet Universal Input Prices
A2: Basic Universal Input Prices
A3: Commodity | B3: Avg Price | C3: Unit
A4: Alfalfa | B4: 250 | C4: ton | E4: Instructions
A5: Canola | B5: 18 | C5: cwt | E5: Step
A6: Corn | B6: 4.8 | C6: bu | E6: 4. Review the values listed in BLUE, updating them
A7: Corn Silage | B7: 53 | C7: ton | E7: as needed. These values will drive the calculations
A8: Cotton | B8: 0.7 | C8: lb | E8: throughout the rest of the workbook.
A9: Cottonseed | B9: 215 | C9: ton
A10: Peanuts | B10: 550 | C10: ton
A11: Sorghum | B11: 7.35 | C11: cwt | E11: 5. Update the budgets for each crop included in
A12: Sorghum Seed | B12: 21.5 | C12: cwt | E12: your analysis.
A13: Sorghum Silage | B13: 46 | C13: ton
A14: Soybeans | B14: 8.9 | C14: bu | E14: 6. Complete the 'Irrigation Analysis' worksheet.
A15: Sunflower - Conf. (large) | B15: 27.5 | C15: cwt
A16: Sunflower - Oil | B16: 22.5 | C16: cwt | E16: 7. Review the results on the 'Break-Even',
A17: Triticale Silage | B17: 46 | C17: ton | E17: 'Comparative Returns', 'Irrigation Analysis',
A18: Wheat | B18: 5.2 | C18: bu | E18: and 'Graph' worksheets.
A19: Irrigated Other Crop | B19: 0 | C19: unit
A20: Dryland Other Crop | B20: 0 | C20: unit | E20: 8. Review / refine your inputs across the workbooks.
A22: Grazing | B22: 0.75 | C22: lb of gain
A24: Input Item | B24: Avg Price | C24: Unit
A25: Fertilizer | E25: Fertilizer Worksheet | G25: Avg cost per ton
A26: fert (N) - dry | B26: =G26/F26/2000 -> 0.5217391304 | C26: /lb of N | E26: % N in Primary Nitrogen Fertilizer - dry | F26: 0.46 | G26: 480
A27: fert (N) - liquid | B27: 0.578125 | C27: /lb of N | E27: % N in Primary Nitrogen Fertilizer - liquid | F27: 0.32 | G27: 370
A28: fert (N) - NH3 | B28: =G28/F28/2000 -> 0.4268292683 | C28: /lb of N | E28: % N in Primary Nitrogen Fertilizer - NH3 | F28: 0.82 | G28: 700
A29: fert (P) - dry | B29: =G29/F29/2000 -> 0.8028846154 | C29: /lb of P | E29: % P in Primary Phosphate Fertilizer - dry | F29: 0.52 | G29: 835
A30: fert (P) - liquid | B30: =G30/F30/2000 -> 0.8970588235 | C30: /lb of P | E30: % P in Primary Phosphate Fertilizer - liquid | F30: 0.34 | G30: 610
A31: Labor | B31: 18 | C31: /hour
A32: Diesel Fuel - Tractors | B32: 2.75 | C32: /gallon
A33: Gasoline - Pickup | B33: 2.4 | C33: /gallon
A34: Irrigation Fuel | B34: 4 | C34: /acre inch
A35: Interest-operating capital | B35: 0.085 | C35: APR
A36: Cotton
A37: Stripping & module | B37: 12 | C37: /cwt cotton lint
A38: Ginning | B38: 3.25 | C38: /cwt seed cotton
A39: Seed Turnout | B39: 750 | C39: lbs/500 lb bale

Sheet Irr Alfalfa
A2: Estimated Costs and Returns per Acre
A3: Irrigated Alfalfa
A4: Projected for 2025
H5: Rental Agreement
A6: Item | B6: Quantity | C6: Unit | D6: Price | E6: Landlord | F6: Total | H6: Share
E7: Share | G7: Tenant | H7: Landlord
A8: Income
A9: alfalfa hay | B9: 5.5 | C9: ton | D9: ='Universal Input Prices'!B4 -> 250 | E9: 0.33 | F9: =D9*B9 -> 1375 | G9: =F9*(1-E9) -> 921.25 | H9: =IF(H6="Cash", D59,F9*E9) -> 453.75
A10: other income | B10: 1 | C10: unit | D10: 0 | E10: 0.33 | F10: =D10*B10 -> 0 | G10: =F10*(1-E10) -> 0 | H10: =IF(H7="Cash", D59,F10*E10) -> 0
A11: other income | B11: 1 | C11: unit | D11: 0 | E11: 0.33 | F11: =D11*B11 -> 0 | G11: =F11*(1-E11) -> 0 | H11: =IF(H8="Cash", D60,F11*E11) -> 0
A12: Total Income | F12: =SUM(F8:F11) -> 1375 | G12: =SUM(G8:G11) -> 921.25 | H12: =SUM(H8:H11) -> 453.75
A14: Variable Costs
A15: Seed
A16: alfalfa | B16: 0 | C16: lb | D16: 0 | E16: 0 | F16: =D16*B16 -> 0 | G16: =F16*(1-E16) -> 0 | H16: =F16*E16 -> 0
A17: Fertilizer
A18: fert (P) - liquid | B18: 60.2 | C18: lb | D18: =IF(A18="",0,VLOOKUP(A18,'Universal Input Prices'!$A$26:$B$30, 2)) -> 0.8970588235 | E18: 0.33 | F18: =D18*B18 -> 54.00294118 | G18: =F18*(1-E18) -> 36.18197059 | H18: =F18*E18 -> 17.82097059
B19: 0 | C19: lb | D19: =IF(A19="",0,VLOOKUP(A19,'Universal Input Prices'!$A$26:$B$30, 2)) -> 0 | E19: 0 | F19: =D19*B19 -> 0 | G19: =F19*(1-E19) -> 0 | H19: =F19*E19 -> 0
B20: 0 | C20: lb | D20: =IF(A20="",0,VLOOKUP(A20,'Universal Input Prices'!$A$26:$B$30, 2)) -> 0 | E20: 0 | F20: =D20*B20 -> 0 | G20: =F20*(1-E20) -> 0 | H20: =F20*E20 -> 0
B21: 0 | C21: lb | D21: 0 | E21: 0.33 | F21: =D21*B21 -> 0 | G21: =F21*(1-E21) -> 0 | H21: =F21*E21 -> 0
A22: Field Operations
A23: herbicide & application | B23: 1 | C23: acre | D23: 57.2 | E23: 0.33 | F23: =D23*B23 -> 57.2 | G23: =F23*(1-E23) -> 38.324 | H23: =F23*E23 -> 18.876
A24: fertilizer application | B24: 1 | C24: acre | D24: 8 | E24: 0.33 | F24: =D24*B24 -> 8 | G24: =F24*(1-E24) -> 5.36 | H24: =F24*E24 -> 2.64
A25: insecticide & application | B25: 1 | C25: acre | D25: 16.08 | E25: 0.33 | F25: =D25*B25 -> 16.08 | G25: =F25*(1-E25) -> 10.7736 | H25: =F25*E25 -> 5.3064
A26: custom baling | B26: =$B$9 -> 5.5 | C26: ton | D26: 65 | E26: 0 | F26: =D26*B26 -> 357.5 | G26: =F26*(1-E26) -> 357.5 | H26: =F26*E26 -> 0
A27: crop consultant | B27: 1 | C27: acre | D27: 0 | E27: 0 | F27: =D27*B27 -> 0 | G27: =F27*(1-E27) -> 0 | H27: =F27*E27 -> 0
A28: scouting | B28: 1 | C28: acre | D28: 0 | E28: 0 | F28: 0 | G28: 0 | H28: 0
A29: other | B29: 1 | C29: acre | D29: 0 | E29: 0 | F29: 0 | G29: 0 | H29: 0
A30: other | B30: 1 | C30: acre | D30: 0 | E30: 0 | F30: 0 | G30: 0 | H30: 0
A31: other | B31: 1 | C31: acre | D31: 0 | E31: 0 | F31: 0 | G31: 0 | H31: 0
A32: Crop Insurance | B32: 1 | C32: acre | D32: 0 | E32: 0 | F32: 0 | G32: 0 | H32: 0
A33: Operator Labor & Hand Labor | B33: 0 | C33: hour | D33: ='Universal Input Prices'!$B$31 -> 18 | E33: 0 | F33: 0 | G33: 0 | H33: 0
A34: Irrigation Labor | B34: 1.554 | C34: hours | D34: ='Universal Input Prices'!$B$31 -> 18 | E34: 0 | F34: 27.972 | G34: 27.972 | H34: 0
A35: Diesel Fuel - Tractors | B35: 0 | C35: gallons | D35: ='Universal Input Prices'!$B$32 -> 2.75 | E35: 0 | F35: 0 | G35: 0 | H35: 0
A36: Gasoline - Pickup | B36: 2.05 | C36: gallons | D36: ='Universal Input Prices'!$B$33 -> 2.4 | E36: 0 | F36: 4.92 | G36: 4.92 | H36: 0
A37: Irrigation Fuel | B37: 24 | C37: acin | D37: ='Universal Input Prices'!$B$34 -> 4 | E37: 0.33 | F37: =D37*B37 -> 96 | G37: =F37*(1-E37) -> 64.32 | H37: =F37*E37 -> 31.68
A38: Pumping Days | B38: 56.57
A39: Calculated GPM capacity per acre needed | B39: =B37*18.85694/B38 -> 8.000115963
A40: Repair & Maintenance
A41: Implements | B41: 1 | C41: acre | D41: 0 | E41: 0 | F41: =D41*B41 -> 0 | G41: =F41*(1-E41) -> 0 | H41: =F41*E41 -> 0
A42: Tractors | B42: 1 | C42: acre | D42: 0 | E42: 0 | F42: =D42*B42 -> 0 | G42: =F42*(1-E42) -> 0 | H42: =F42*E42 -> 0
A43: Irrigation-Above Ground | B43: =B37 -> 24 | C43: acin | D43: 3.75 | E43: 0 | F43: =D43*B43 -> 90 | G43: =F43*(1-E43) -> 90 | H43: =F43*E43 -> 0
A44: Tractors/Self Propelled Equipment | B44: 1 | C44: acre | D44: 0 | E44: 1 | F44: =D44*B44 -> 0 | G44: =F44*(1-E44) -> 0 | H44: =F44*E44 -> 0
A45: Pickup | B45: 1 | C45: acre | D45: 2.51 | E45: 0 | F45: =D45*B45 -> 2.51 | G45: =F45*(1-E45) -> 2.51 | H45: =F45*E45 -> 0
A46: Interest-operating capital | B46: ='Universal Input Prices'!$B$35 -> 0.085 | F46: =(SUM(F16:F25,F27:F45))*$B46/2 -> 15.15911 | G46: =(SUM(G16:G25,G27:G45))*$B46/2 -> 11.91536675 | H46: =(SUM(H16:H25,H27:H45))*$B46/2 -> 3.24374325
A48: Total Variable Costs | F48: =SUM(F16:F47) -> 729.3440512 | G48: =SUM(G16:G46) -> 649.7769373 | H48: =SUM(H16:H46) -> 79.56711384
A49: Returns Above Variable Costs | F49: =F12-F48 -> 645.6559488 | G49: =G12-G48 -> 271.4730627 | H49: =H12-H48 -> 374.1828862
A51: Fixed Costs
A52: Implements | B52: 1 | C52: acre | D52: 0 | E52: 0 | F52: =D52*B52 -> 0 | G52: =F52*(1-E52) -> 0 | H52: =F52*E52 -> 0
A53: Tractors | B53: 1 | C53: acre | D53: 0 | E53: 0 | F53: 0 | G53: 0 | H53: 0
A54: Irrigation Equipment | B54: 1 | C54: acre | D54: 47.34 | E54: 0 | F54: 47.34 | G54: 47.34 | H54: 0
A55: Tractors/Self Propelled Equipment | B55: 1 | C55: acre | D55: 0 | E55: 1 | F55: 0 | G55: 0 | H55: 0
A56: Pickup | B56: 1 | C56: acre | D56: 4.18 | E56: 0 | F56: 4.18 | G56: 4.18 | H56: 0
A57: Management | B57: 1 | C57: acre | D57: 0 | E57: 0 | F57: 0 | G57: 0 | H57: 0
A58: Irrigation Investment | B58: 1 | C58: acre | D58: 48.6 | E58: 0 | F58: 48.6 | G58: 48.6 | H58: 0
A59: Land cash rent value | B59: 1 | C59: acre | D59: 200 | E59: 1 | F59: 200 | G59: =IF($H$6="Cash",D59,F59*(1-E59)) -> 0 | H59: =IF($H$6="Cash",0,F59*E59) -> 200
A60: Property Tax | B60: 1 | C60: acre | D60: 0 | E60: 1 | F60: 0 | G60: 0 | H60: 0
A61: Perenial Crop Establishment | B61: 1 | C61: acre | D61: 125 | E61: 0 | F61: =B61*D61 -> 125 | G61: =F61*(1-E61) -> 125 | H61: =F61*E61 -> 0
A62: Total Fixed Costs | F62: =SUM(F52:F61) -> 425.12 | G62: =SUM(G52:G61) -> 225.12 | H62: =SUM(H52:H61) -> 200
A63: Total Specified Costs | F63: =F48+F62 -> 1154.464051 | G63: =G48+G62 -> 874.8969373 | H63: =H48+H62 -> 279.5671138
A64: Returns Above Total Specified Costs | F64: =F12-F63 -> 220.5359488 | G64: =G12-G63 -> 46.35306266 | H64: =H12-H63 -> 174.1828862
A66: Return on Investment | F66: =(F64/F63) -> 0.1910288576 | G66: =(G64/G63) -> 0.05298116919 | H66: 0.6230449775

Sheet Irr Canola
A2: Estimated Costs and Returns per Acre
A3: Irrigated Canola
A4: Projected for 2025
H5: Rental Agreement
A6: Item | B6: Quantity | C6: Unit | D6: Price | E6: Landlord | F6: Total | H6: Share
E7: Share | G7: Tenant | H7: Landlord
A8: Income
A9: canola | B9: 22 | C9: cwt | D9: ='Universal Input Prices'!$B$5 -> 18 | E9: 0.33 | F9: =D9*B9 -> 396 | G9: =F9*(1-E9) -> 265.32 | H9: =IF(H6="Cash", D60,F9*E9) -> 130.68
A10: other income | B10: 1 | C10: unit | D10: 0 | E10: 0.33 | F10: =D10*B10 -> 0 | G10: =F10*(1-E10) -> 0 | H10: =IF(H7="Cash", D59,F10*E10) -> 0
A11: other income | B11: 1 | C11: unit | D11: 0 | E11: 0.33 | F11: =D11*B11 -> 0 | G11: =F11*(1-E11) -> 0 | H11: =IF(H8="Cash", D60,F11*E11) -> 0
A12: Total Income | F12: =SUM(F8:F11) -> 396 | G12: =SUM(G8:G11) -> 265.32 | H12: =SUM(H8:H11) -> 130.68
A14: Variable Costs
A15: Seed
A16: canola seed | B16: 5 | C16: lb | D16: 6.29 | E16: 0 | F16: =D16*B16 -> 31.45 | G16: =F16*(1-E16) -> 31.45 | H16: =F16*E16 -> 0
A17: seed treatment | B17: 1 | C17: acre | D17: 7.14 | E17: 0 | F17: =D17*B17 -> 7.14 | G17: =F17*(1-E17) -> 7.14 | H17: =F17*E17 -> 0
A18: Fertilizer
A19: fert (N) - dry | B19: 25 | C19: lb | D19: =IF(A19="",0,VLOOKUP(A19,'Universal Input Prices'!$A$26:$B$26, 2)) -> 0.5217391304 | E19: 0.33 | F19: =D19*B19 -> 13.04347826 | G19: =F19*(1-E19) -> 8.739130435 | H19: =F19*E19 -> 4.304347826
A20: fert (N) - liquid | B20: 55 | C20: lb | D20: =IF(A20="",0,VLOOKUP(A20,'Universal Input Prices'!$A$26:$B$27, 2)) -> 0.578125 | E20: 0.33 | F20: =D20*B20 -> 31.796875 | G20: =F20*(1-E20) -> 21.30390625 | H20: =F20*E20 -> 10.49296875
B21: 0 | C21: lb | D21: =IF(A21="",0,VLOOKUP(A21,'Universal Input Prices'!$A$26:$B$30, 2)) -> 0 | E21: 0 | F21: =D21*B21 -> 0 | G21: =F21*(1-E21) -> 0 | H21: =F21*E21 -> 0
A22: Field Operations
A23: herbicide & application | B23: 1 | C23: acre | D23: 35.9 | E23: 0.33 | F23: =D23*B23 -> 35.9 | G23: =F23*(1-E23) -> 24.053 | H23: =F23*E23 -> 11.847
A24: fertilizer application | B24: 1 | C24: acre | D24: 8 | E24: 0.33 | F24: 8 | G24: 5.36 | H24: 2.64
A25: insecticide & application | B25: 1 | C25: acre | D25: 36.82 | E25: 0.33 | F25: 36.82 | G25: 24.6694 | H25: 12.1506
A26: custom harvest & haul | B26: 1 | C26: acre | D26: 35 | E26: 0 | F26: 35 | G26: 35 | H26: 0
A27: custom harvest & haul | B27: =B9 -> 22 | C27: cwt | D27: 0.7 | E27: 0 | F27: 15.4 | G27: 15.4 | H27: 0
A28: hoeing | B28: 0 | C28: acre | D28: 0 | E28: 0 | F28: 0 | G28: 0 | H28: 0
A29: scouting | B29: 1 | C29: acre | D29: 0 | E29: 0 | F29: 0 | G29: 0 | H29: 0
A30: other | B30: 1 | C30: acre | D30: 0 | E30: 0 | F30: 0 | G30: 0 | H30: 0
A31: other | B31: 1 | C31: acre | D31: 0 | E31: 0 | F31: 0 | G31: 0 | H31: 0
A32: other | B32: 1 | C32: acre | D32: 0 | E32: 0 | F32: 0 | G32: 0 | H32: 0
A33: Crop Insurance | B33: 1 | C33: acre | D33: 0 | E33: 0.33 | F33: 0 | G33: 0 | H33: 0
A34: Operator Labor & Hand Labor | B34: 0.62 | C34: hours | D34: ='Universal Input Prices'!$B$31 -> 18 | E34: 0 | F34: 11.16 | G34: 11.16 | H34: 0
A35: Irrigation Labor | B35: 0.651 | C35: hours | D35: ='Universal Input Prices'!$B$31 -> 18 | E35: 0 | F35: 11.718 | G35: 11.718 | H35: 0
A36: Diesel Fuel - Tractors | B36: 1.73 | C36: gallons | D36: ='Universal Input Prices'!$B$32 -> 2.75 | E36: 0 | F36: 4.7575 | G36: 4.7575 | H36: 0
A37: Gasoline - Pickup | B37: 2.04923 | C37: gallons | D37: ='Universal Input Prices'!$B$33 -> 2.4 | E37: 0 | F37: 4.918152 | G37: 4.918152 | H37: 0
A38: Irrigation Fuel | B38: 10 | C38: acin | D38: ='Universal Input Prices'!$B$34 -> 4 | E38: 0.33 | F38: 40 | G38: 26.8 | H38: 13.2
A39: Pumping Days | B39: 94.28
A40: Calculated GPM capacity per acre needed | B40: =B38*18.85694/B39 -> 2.000099703
A41: Repair & Maintenance
A42: Implements | B42: 1 | C42: acre | D42: 3.91 | E42: 0 | F42: =D42*B42 -> 3.91 | G42: =F42*(1-E42) -> 3.91 | H42: =F42*E42 -> 0
A43: Tractors | B43: 1 | C43: acre | D43: 0 | E43: 0 | F43: =D43*B43 -> 0 | G43: =F43*(1-E43) -> 0 | H43: =F43*E43 -> 0
A44: Irrigation-Above Ground | B44: =B38 -> 10 | C44: acin | D44: 3.75 | E44: 0 | F44: =D44*B44 -> 37.5 | G44: =F44*(1-E44) -> 37.5 | H44: =F44*E44 -> 0
A45: Tractors/Self Propelled Equipment | B45: 1 | C45: acre | D45: 3.36 | E45: 1 | F45: =D45*B45 -> 3.36 | G45: =F45*(1-E45) -> 0 | H45: =F45*E45 -> 3.36
A46: Pickup | B46: 1 | C46: acre | D46: 2.51 | E46: 0 | F46: =D46*B46 -> 2.51 | G46: =F46*(1-E46) -> 2.51 | H46: =F46*E46 -> 0
A47: Interest-operating capital | B47: ='Universal Input Prices'!$B$35 -> 0.085 | F47: =(SUM(F16:F25,F28:F46))*$B47/2 -> 12.06932022 | G47: =(SUM(G16:G25,G28:G46))*$B47/2 -> 9.604536269 | H47: =(SUM(H16:H25,H28:H46))*$B47/2 -> 2.464783954
A49: Total Variable Costs | F49: =SUM(F15:F47) -> 346.4533255 | G49: =SUM(G15:G47) -> 285.993625 | H49: =SUM(H15:H47) -> 60.45970053
A50: Returns Above Variable Costs | F50: =F12-F49 -> 49.54667452 | G50: =G12-G49 -> -20.67362495 | H50: =H12-H49 -> 70.22029947
A52: Fixed Costs
A53: Implements | B53: 1 | C53: acre | D53: 6.9 | E53: 0 | F53: =D53*B53 -> 6.9 | G53: =F53*(1-E53) -> 6.9 | H53: =F53*E53 -> 0
A54: Tractors | B54: 1 | C54: acre | D54: 0 | E54: 0 | F54: 0 | G54: 0 | H54: 0
A55: Irrigation Equipment | B55: 1 | C55: acre | D55: 33.5 | E55: 0 | F55: 33.5 | G55: 33.5 | H55: 0
A56: Tractors/Self Propelled Equipment | B56: 1 | C56: acre | D56: 5.68 | E56: 1 | F56: 5.68 | G56: 0 | H56: 5.68
A57: Pickup | B57: 1 | C57: acre | D57: 4.18 | E57: 0 | F57: 4.18 | G57: 4.18 | H57: 0
A58: Management | B58: 1 | C58: acre | D58: 0 | E58: 0 | F58: 0 | G58: 0 | H58: 0
A59: Irrigation Investment | B59: 1 | C59: acre | D59: 39.97 | E59: 0 | F59: =B59*D59 -> 39.97 | G59: 39.97 | H59: 0
A60: Land cash rent value | B60: 1 | C60: acre | D60: 125 | E60: 1 | F60: =D60*B60 -> 125 | G60: =IF($H$6="Cash",D60,F60*(1-E60)) -> 0 | H60: =IF($H$6="Cash",0,F60*E60) -> 125
A61: Property Tax | B61: 1 | C61: acre | D61: 0 | E61: 1 | F61: =B61*D61 -> 0 | G61: 0 | H61: 0
A62: Total Fixed Expenses | F62: =SUM(F53:F61) -> 215.23 | G62: =SUM(G53:G61) -> 84.55 | H62: =SUM(H53:H61) -> 130.68
A63: Total Specified Expenses | F63: =F49+F62 -> 561.6833255 | G63: =G49+G62 -> 370.543625 | H63: =H49+H62 -> 191.1397005
A64: Returns Above Total Specified Expenses | F64: =F12-F63 -> -165.6833255 | G64: =G12-G63 -> -105.223625 | H64: =H12-H63 -> -60.45970053
A66: Return on Investment | F66: =(F64/F63) -> -0.2949764003 | G66: =(G64/G63) -> -0.2839709494 | H66: -0.3163115792

Sheet Irr Corn
A2: Estimated Costs and Returns per Acre
A3: Irrigated Corn
A4: Projected for 2025
H5: Rental Agreement
A6: Item | B6: Quantity | C6: Unit | D6: Price | E6: Landlord | F6: Total | H6: Share
E7: Share | G7: Tenant | H7: Landlord
A8: Income
A9: corn grain | B9: 225 | C9: bu | D9: ='Universal Input Prices'!$B$6 -> 4.8 | E9: 0.33 | F9: =D9*B9 -> 1080 | G9: =F9*(1-E9) -> 723.6 | H9: =IF(H6="Cash", D58,F9*E9) -> 356.4
A10: other income | B10: 1 | C10: unit | D10: 0 | E10: 0.33 | F10: =D10*B10 -> 0 | G10: =F10*(1-E10) -> 0 | H10: =IF(H7="Cash", D59,F10*E10) -> 0
A11: other income | B11: 1 | C11: unit | D11: 0 | E11: 0.33 | F11: =D11*B11 -> 0 | G11: =F11*(1-E11) -> 0 | H11: =IF(H8="Cash", D60,F11*E11) -> 0
A12: Total Income | F12: =SUM(F8:F11) -> 1080 | G12: =SUM(G8:G11) -> 723.6 | H12: 356.4
A14: Variable Costs
A15: Seed
A16: corn seed | B16: 0.38 | C16: bags | D16: 320 | E16: 0 | F16: =D16*B16 -> 121.6 | G16: =F16*(1-E16) -> 121.6 | H16: =F16*E16 -> 0
A17: Fertilizer
A18: fert (N) - NH3 | B18: 140 | C18: lb | D18: =IF(A18="",0,VLOOKUP(A18,'Universal Input Prices'!$A$26:$B$30, 2)) -> 0.4268292683 | E18: 0.33 | F18: =D18*B18 -> 59.75609756 | G18: =F18*(1-E18) -> 40.03658537 | H18: =F18*E18 -> 19.7195122
A19: fert (P) - liquid | B19: 89.98 | C19: lb | D19: =IF(A19="",0,VLOOKUP(A19,'Universal Input Prices'!$A$26:$B$30, 2)) -> 0.8970588235 | E19: 0.33 | F19: =D19*B19 -> 80.71735294 | G19: =F19*(1-E19) -> 54.08062647 | H19: =F19*E19 -> 26.63672647
A20: fert (N) - liquid | B20: 85 | C20: lb | D20: =IF(A20="",0,VLOOKUP(A20,'Universal Input Prices'!$A$26:$B$27, 2)) -> 0.578125 | E20: 0.33 | F20: =D20*B20 -> 49.140625 | G20: =F20*(1-E20) -> 32.92421875 | H20: =F20*E20 -> 16.21640625
A21: Field Operations
A22: herbicide preplant | B22: 1 | C22: acre | D22: 43.9 | E22: 0.33 | F22: =D22*B22 -> 43.9 | G22: =F22*(1-E22) -> 29.413 | H22: =F22*E22 -> 14.487
A23: fertilizer application | B23: 1 | C23: acre | D23: 18 | E23: 0.33 | F23: 18 | G23: 12.06 | H23: 5.94
A24: insecticide & application | B24: 1 | C24: acre | D24: 42.75 | E24: 0.33 | F24: 42.75 | G24: 28.6425 | H24: 14.1075
A25: custom harvest & haul | B25: =$B$9 -> 225 | C25: bu | D25: 0.48 | E25: 0.33 | F25: 108 | G25: 72.36 | H25: 35.64
A26: crop consultant | B26: 1 | C26: acre | D26: 12 | E26: 0 | F26: 12 | G26: 12 | H26: 0
A27: scouting | B27: 1 | C27: acre | D27: 0 | E27: 0 | F27: =D27*B27 -> 0 | G27: =F27*(1-E27) -> 0 | H27: =F27*E27 -> 0
A28: herbicide postplant | B28: 1 | C28: acre | D28: 48.5 | E28: 0 | F28: 48.5 | G28: 48.5 | H28: 0
A29: other | B29: 1 | C29: acre | D29: 0 | E29: 0 | F29: 0 | G29: 0 | H29: 0
A30: other | B30: 1 | C30: acre | D30: 0 | E30: 0 | F30: 0 | G30: 0 | H30: 0
A31: Crop Insurance | B31: 1 | C31: acre | D31: 50 | E31: 0.33 | F31: 50 | G31: 33.5 | H31: 16.5
A32: Operator Labor & Hand Labor | B32: 0.7 | C32: hour | D32: ='Universal Input Prices'!$B$31 -> 18 | E32: 0 | F32: 12.6 | G32: 12.6 | H32: 0
A33: Irrigation Labor | B33: 1.354 | C33: hours | D33: ='Universal Input Prices'!$B$31 -> 18 | E33: 0 | F33: 24.372 | G33: 24.372 | H33: 0
A34: Diesel Fuel - Tractors | B34: 2.03 | C34: gallons | D34: ='Universal Input Prices'!$B$32 -> 2.75 | E34: 0 | F34: 5.5825 | G34: 5.5825 | H34: 0
A35: Gasoline - Pickup | B35: 3.07 | C35: gallons | D35: ='Universal Input Prices'!$B$33 -> 2.4 | E35: 0 | F35: 7.368 | G35: 7.368 | H35: 0
A36: Irrigation Fuel | B36: 22 | C36: acin | D36: ='Universal Input Prices'!$B$34 -> 4 | E36: 0.33 | F36: 88 | G36: 58.96 | H36: 29.04
A37: Pumping Days | B37: 69.14
A38: Calculated GPM capacity per acre needed | B38: =B36*18.85694/B37 -> 6.000183396
A39: Repair & Maintenance
A40: Implements | B40: 1 | C40: acre | D40: 5.29 | E40: 0 | F40: =D40*B40 -> 5.29 | G40: 5.29 | H40: 0
A41: Tractors | B41: 1 | C41: acre | D41: 0 | E41: 0 | F41: =D41*B41 -> 0 | G41: 0 | H41: 0
A42: Irrigation-Above Ground | B42: =Corn_Inches -> 22 | C42: acin | D42: 3.75 | E42: 0 | F42: =D42*B42 -> 82.5 | G42: 82.5 | H42: 0
A43: Tractors/Self Propelled Equipment | B43: 1 | C43: acre | D43: 4.08 | E43: 1 | F43: =D43*B43 -> 4.08 | G43: 0 | H43: 4.08
A44: Pickup | B44: 1 | C44: acre | D44: 3.76 | E44: 0 | F44: =D44*B44 -> 3.76 | G44: 3.76 | H44: 0
A45: Interest-operating capital | B45: ='Universal Input Prices'!$B$35 -> 0.085 | F45: =(SUM(F16:F24,F26:F44))*$B45/2.5 -> 25.83716357 | G45: =(SUM(G16:G24,G26:G44))*$B45/2 -> 26.0605508 | H45: =(SUM(H16:H24,H26:H44))*$B45/2 -> 6.235903659
A47: Total Variable Costs | F47: =SUM(F16:F45) -> 893.7537391 | G47: =SUM(G16:G45) -> 711.6099814 | H47: =SUM(H16:H45) -> 188.6030486
A48: Returns Above Variable Costs | F48: =F12-F47 -> 186.2462609 | G48: =G12-G47 -> 11.99001861 | H48: =H12-H47 -> 167.7969514
A50: Fixed Costs
A51: Implements | B51: 1 | C51: acre | D51: 6.61 | E51: 0 | F51: =D51*B51 -> 6.61 | G51: =F51*(1-E51) -> 6.61 | H51: =F51*E51 -> 0
A52: Tractors | B52: 1 | C52: acre | D52: 0 | E52: 0 | F52: 0 | G52: 0 | H52: 0
A53: Irrigation Equipment | B53: 1 | C53: acre | D53: 47.34 | E53: 0 | F53: 47.34 | G53: 47.34 | H53: 0
A54: Tractors/Self Propelled Equipment | B54: 1 | C54: acre | D54: 4.17 | E54: 1 | F54: 4.17 | G54: 0 | H54: 4.17
A55: Pickup | B55: 1 | C55: acre | D55: 3.95 | E55: 0 | F55: 3.95 | G55: 3.95 | H55: 0
A56: Management | B56: 1 | C56: acre | D56: 0 | E56: 0 | F56: 0 | G56: 0 | H56: 0
A57: Irrigation Investment | B57: 1 | C57: acre | D57: 56.08 | E57: 0 | F57: 56.08 | G57: 56.08 | H57: 0
A58: Land cash rent value | B58: 1 | C58: acre | D58: 200 | E58: 1 | F58: 200 | G58: =IF($H$6="Cash",D58,F58*(1-E58)) -> 0 | H58: =IF($H$6="Cash",0,F58*E58) -> 200
A59: Property Tax | B59: 1 | C59: acre | D59: 0 | E59: 1 | F59: 0 | G59: 0 | H59: 0
A60: Total Fixed Expenses | F60: =SUM(F51:F59) -> 318.15 | G60: =SUM(G51:G59) -> 113.98 | H60: =SUM(H51:H59) -> 204.17
A61: Total Specified Expenses | F61: =F47+F60 -> 1211.903739 | G61: =G47+G60 -> 825.5899814 | H61: =H47+H60 -> 392.7730486
A62: Returns Above Total Specified Expenses | F62: =F12-F61 -> -131.9037391 | G62: =G12-G61 -> -101.9899814 | H62: =H12-H61 -> -36.37304857
A64: Return on Investment | F64: =(F62/F61) -> -0.1088401123 | G64: =(G62/G61) -> -0.1235358758 | H64: -0.09260576485

Sheet Irr Corn Silage
A2: Estimated Costs and Returns per Acre
A3: Irrigated Corn Silage
A4: Projected for 2025
H5: Rental Agreement
A6: Item | B6: Quantity | C6: Unit | D6: Price | E6: Landlord | F6: Total | H6: Share
E7: Share | G7: Tenant | H7: Landlord
A8: Income
A9: corn silage | B9: 27 | C9: ton | D9: ='Universal Input Prices'!$B$7 -> 53 | E9: 0.33 | F9: =D9*B9 -> 1431 | G9: =F9*(1-E9) -> 958.77 | H9: =IF(H6="Cash", D58,F9*E9) -> 472.23
A10: other income | B10: 1 | C10: unit | D10: 0 | E10: 0.33 | F10: =D10*B10 -> 0 | G10: =F10*(1-E10) -> 0 | H10: =IF(H7="Cash", D59,F10*E10) -> 0
A11: other income | B11: 1 | C11: unit | D11: 0 | E11: 0.33 | F11: =D11*B11 -> 0 | G11: =F11*(1-E11) -> 0 | H11: =IF(H8="Cash", D60,F11*E11) -> 0
A12: Total Income | F12: =SUM(F8:F11) -> 1431 | G12: =SUM(G8:G11) -> 958.77 | H12: 472.23
A14: Variable Costs
A15: Seed
A16: corn seed | B16: 0.44 | C16: bags | D16: 300 | E16: 0 | F16: =D16*B16 -> 132 | G16: =F16*(1-E16) -> 132 | H16: =F16*E16 -> 0
A17: Fertilizer
A18: fert (N) - NH3 | B18: 160.05 | C18: lb | D18: =IF(A18="",0,VLOOKUP(A18,'Universal Input Prices'!$A$26:$B$30, 2)) -> 0.4268292683 | E18: 0.33 | F18: =D18*B18 -> 68.31402439 | G18: =F18*(1-E18) -> 45.77039634 | H18: =F18*E18 -> 22.54362805
A19: fert (P) - liquid | B19: 90 | C19: lb | D19: =IF(A19="",0,VLOOKUP(A19,'Universal Input Prices'!$A$26:$B$30, 2)) -> 0.8970588235 | E19: 0.33 | F19: =D19*B19 -> 80.73529412 | G19: =F19*(1-E19) -> 54.09264706 | H19: =F19*E19 -> 26.64264706
A20: fert (N) - liquid | B20: 95 | C20: lb | D20: =IF(A20="",0,VLOOKUP(A20,'Universal Input Prices'!$A$26:$B$27, 2)) -> 0.578125 | E20: 0.33 | F20: =D20*B20 -> 54.921875 | G20: =F20*(1-E20) -> 36.79765625 | H20: =F20*E20 -> 18.12421875
A21: Field Operations
A22: herbicide preplant | B22: 1 | C22: acre | D22: 43.9 | E22: 0.33 | F22: =D22*B22 -> 43.9 | G22: =F22*(1-E22) -> 29.413 | H22: =F22*E22 -> 14.487
A23: fertilizer application | B23: 1 | C23: acre | D23: 18 | E23: 0.33 | F23: 18 | G23: 12.06 | H23: 5.94
A24: insecticide & application | B24: 1 | C24: appl | D24: 42.75 | E24: 0.33 | F24: 42.75 | G24: 28.6425 | H24: 14.1075
A25: custom harvest & haul | B25: =$B$9 -> 27 | C25: ton | D25: 12.5 | E25: 0 | F25: 337.5 | G25: 337.5 | H25: 0
A26: crop consultant | B26: 1 | C26: acre | D26: 0 | E26: 0 | F26: 0 | G26: 0 | H26: 0
A27: scouting | B27: 1 | C27: acre | D27: 0 | E27: 0 | F27: =D27*B27 -> 0 | G27: =F27*(1-E27) -> 0 | H27: =F27*E27 -> 0
A28: herbicide postplant | B28: 1 | C28: acre | D28: 48.5 | E28: 0 | F28: 48.5 | G28: 48.5 | H28: 0
A29: other | B29: 1 | C29: acre | D29: 0 | E29: 0 | F29: 0 | G29: 0 | H29: 0
A30: other | B30: 1 | C30: acre | D30: 0 | E30: 0 | F30: 0 | G30: 0 | H30: 0
A31: Crop Insurance | B31: 1 | C31: acre | D31: 45 | E31: 0.33 | F31: 45 | G31: 30.15 | H31: 14.85
A32: Operator Labor & Hand Labor | B32: 0.77 | C32: hour | D32: ='Universal Input Prices'!$B$31 -> 18 | E32: 0 | F32: 13.86 | G32: 13.86 | H32: 0
A33: Irrigation Labor | B33: 1.294 | C33: hours | D33: ='Universal Input Prices'!$B$31 -> 18 | E33: 0 | F33: 23.292 | G33: 23.292 | H33: 0
A34: Diesel Fuel - Tractors | B34: 2.21 | C34: gallons | D34: ='Universal Input Prices'!$B$32 -> 2.75 | E34: 0 | F34: 6.0775 | G34: 6.0775 | H34: 0
A35: Gasoline - Pickup | B35: 3.07 | C35: gallons | D35: ='Universal Input Prices'!$B$33 -> 2.4 | E35: 0 | F35: 7.368 | G35: 7.368 | H35: 0
A36: Irrigation Fuel | B36: 20 | C36: acin | D36: ='Universal Input Prices'!$B$34 -> 4 | E36: 0.33 | F36: 80 | G36: 53.6 | H36: 26.4
A37: Pumping Days | B37: 62.86
A38: Calculated GPM capacity per acre needed | B38: =B36*18.85694/B37 -> 5.999662743
A39: Repair & Maintenance | G39: 0 | H39: 0
A40: Implements | B40: 1 | C40: acre | D40: 7.28 | E40: 0 | F40: =D40*B40 -> 7.28 | G40: 7.28 | H40: 0
A41: Tractors | B41: 1 | C41: acre | D41: 0 | E41: 0 | F41: =D41*B41 -> 0 | G41: 0 | H41: 0
A42: Irrigation-Above Ground | B42: =B36 -> 20 | C42: acin | D42: 3.75 | E42: 0 | F42: =D42*B42 -> 75 | G42: 75 | H42: 0
A43: Tractors/Self Propelled Equipment | B43: 1 | C43: acre | D43: 4.38 | E43: 1 | F43: =D43*B43 -> 4.38 | G43: 0 | H43: 4.38
A44: Pickup | B44: 1 | C44: acre | D44: 3.76 | E44: 0 | F44: =D44*B44 -> 3.76 | G44: 3.76 | H44: 0
A45: Interest-operating capital | B45: ='Universal Input Prices'!$B$35 -> 0.085 | F45: =(SUM(F16:F24,F26:F44))*$B45/2 -> 32.09339447 | G45: =(SUM(G16:G24,G26:G44))*$B45/2 -> 25.82570724 | H45: =(SUM(H16:H24,H26:H44))*$B45/2 -> 6.267687239
A47: Total Variable Costs | F47: =SUM(F16:F45) -> 1124.732088 | G47: =SUM(G16:G45) -> 970.9894069 | H47: =SUM(H16:H45) -> 153.7426811
A48: Returns Above Variable Costs | F48: =F12-F47 -> 306.267912 | G48: =G12-G47 -> -12.21940689 | H48: =H12-H47 -> 318.4873189
A50: Fixed Costs
A51: Implements | B51: 1 | C51: acre | D51: 12.07 | E51: 0 | F51: =D51*B51 -> 12.07 | G51: =F51*(1-E51) -> 12.07 | H51: =F51*E51 -> 0
A52: Tractors | B52: 1 | C52: acre | D52: 0 | E52: 0 | F52: 0 | G52: 0 | H52: 0
A53: Irrigation Equipment | B53: 1 | C53: acre | D53: 47.34 | E53: 0 | F53: 47.34 | G53: 47.34 | H53: 0
A54: Tractors/Self Propelled Equipment | B54: 1 | C54: acre | D54: 7.46 | E54: 1 | F54: 7.46 | G54: 0 | H54: 7.46
A55: Pickup | B55: 1 | C55: acre | D55: 6.27 | E55: 0 | F55: 6.27 | G55: 6.27 | H55: 0
A56: Management | B56: 1 | C56: acre | D56: 0 | E56: 0 | F56: 0 | G56: 0 | H56: 0
A57: Irrigation Investment | B57: 1 | C57: acre | D57: 48.6 | E57: 0 | F57: 48.6 | G57: 48.6 | H57: 0
A58: Land cash rent value | B58: 1 | C58: acre | D58: 200 | E58: 1 | F58: 200 | G58: =IF($H$6="Cash",D58,F58*(1-E58)) -> 0 | H58: =IF($H$6="Cash",0,F58*E58) -> 200
A59: Property Tax | B59: 1 | C59: acre | D59: 0 | E59: 1 | F59: 0 | G59: 0 | H59: 0
A60: Total Fixed Expenses | F60: =SUM(F51:F59) -> 321.74 | G60: =SUM(G51:G59) -> 114.28 | H60: =SUM(H51:H59) -> 207.46
A61: Total Specified Expenses | F61: =F47+F60 -> 1446.472088 | G61: =G47+G60 -> 1085.269407 | H61: =H47+H60 -> 361.2026811
A62: Returns Above Total Specified Expenses | F62: =F12-F61 -> -15.47208798 | G62: =G12-G61 -> -126.4994069 | H62: =H12-H61 -> 111.0273189
A64: Return on Investment | F64: =(F62/F61) -> -0.01069643038 | G64: =(G62/G61) -> -0.116560373 | H64: 0.3073823222

Sheet Irr Cotton
A2: Estimated Costs and Returns per Acre
A3: Irrigated Cotton
A4: Projected for 2025
H5: Rental Agreement
A6: Item | B6: Quantity | C6: Unit | D6: Price | E6: Landlord | F6: Total | H6: Share
E7: Share | G7: Tenant | H7: Landlord
A8: Income
A9: cotton lint | B9: 1250 | C9: lb | D9: ='Universal Input Prices'!$B$8 -> 0.7 | E9: 0 | F9: =D9*B9 -> 875 | G9: =F9*(1-E9) -> 875 | H9: =IF(H6="Cash", D64,F9*E9) -> 0
A10: cotton seed | B10: =B9/500*'Universal Input Prices'!B39/2000 -> 0.9375 | C10: tons | D10: ='Universal Input Prices'!$B$9 -> 215 | E10: 0.33 | F10: =D10*B10 -> 201.5625 | G10: =F10*(1-E10) -> 135.046875 | H10: =IF(H6="Cash", 0,F10*E10) -> 66.515625
A11: Expected Turnout | B11: 0.273
A12: other income | B12: 1 | C12: unit | D12: 0 | E12: 0.33 | F12: =D12*B12 -> 0 | G12: =F12*(1-E12) -> 0 | H12: =IF(H9="Cash", D61,F12*E12) -> 0
A13: other income | B13: 1 | C13: unit | D13: 0 | E13: 0.33 | F13: =D13*B13 -> 0 | G13: =F13*(1-E13) -> 0 | H13: =IF(H10="Cash", D62,F13*E13) -> 0
A14: Total Income | F14: =SUM(F8:F13) -> 1076.5625 | G14: =SUM(G8:G13) -> 1010.046875 | H14: =SUM(H8:H13) -> 66.515625
A16: Variable Costs
A17: Seed
A18: cotton seed | B18: 0.26 | C18: bags | D18: 375 | E18: 0 | F18: =D18*B18 -> 97.5 | G18: =F18*(1-E18) -> 97.5 | H18: =+F18*E18 -> 0
A19: Boll Weevil Assess.-Irr | B19: 1 | C19: acre | D19: 9 | E19: 0.33 | F19: =D19*B19 -> 9 | G19: =F19*(1-E19) -> 6.03 | H19: =+F19*E19 -> 2.97
A20: Fertilizer
A21: fert (P) - dry | B21: 65.02 | C21: lb | D21: =IF(A21="",0,VLOOKUP(A21,'Universal Input Prices'!$A$26:$B$30, 2)) -> 0.8028846154 | E21: 0.33 | F21: =D21*B21 -> 52.20355769 | G21: =F21*(1-E21) -> 34.97638365 | H21: =+F21*E21 -> 17.22717404
A22: fert (N) - dry | B22: 120 | C22: lb | D22: =IF(A22="",0,VLOOKUP(A22,'Universal Input Prices'!$A$26:$B$30, 2)) -> 0.5217391304 | E22: 0.33 | F22: =D22*B22 -> 62.60869565 | G22: =F22*(1-E22) -> 41.94782609 | H22: =+F22*E22 -> 20.66086957
B23: 0 | C23: lb | D23: =IF(A23="",0,VLOOKUP(A23,'Universal Input Prices'!$A$26:$B$30, 2)) -> 0 | E23: 0 | F23: =D23*B23 -> 0 | G23: =F23*(1-E23) -> 0 | H23: =F23*E23 -> 0
A24: Field Operations
A25: preplant herbicide & application | B25: 1 | C25: acre | D25: 58.95 | E25: 0.33 | F25: =D25*B25 -> 58.95 | G25: =F25*(1-E25) -> 39.4965 | H25: =+F25*E25 -> 19.4535
A26: post emergence herbicide & application | B26: 1 | C26: acre | D26: 48 | E26: 0.33 | F26: =D26*B26 -> 48 | G26: 32.16 | H26: 15.84
A27: fertilizer application | B27: 1 | C27: acre | D27: 8 | E27: 0.33 | F27: 8 | G27: 5.36 | H27: 2.64
A28: insecticide & application | B28: 1 | C28: acre | D28: 15.42 | E28: 0.33 | F28: 15.42 | G28: 10.3314 | H28: 5.0886
A29: harvest aids | B29: 1 | C29: acre | D29: 34.45 | E29: 0.33 | F29: 34.45 | G29: 23.0815 | H29: 11.3685
A30: strip & module | B30: =B9/100 -> 12.5 | C30: cwt. | D30: ='Universal Input Prices'!$B$37 -> 12 | E30: 0 | F30: 150 | G30: 150 | H30: 0
A31: ginning | B31: =B9/B11/100 -> 45.78754579 | C31: cwt. | D31: ='Universal Input Prices'!$B$38 -> 3.25 | E31: 0.33 | F31: 148.8095238 | G31: 99.70238095 | H31: 49.10714286
A32: hoeing | B32: 1 | C32: acre | D32: 0 | E32: 0 | F32: 0 | G32: 0 | H32: 0
A33: scouting | B33: 1 | C33: acre | D33: 12 | E33: 0 | F33: =D33*B33 -> 12 | G33: =F33*(1-E33) -> 12 | H33: =+F33*E33 -> 0
A34: other | B34: 1 | C34: acre | D34: 0 | E34: 0 | F34: 0 | G34: 0 | H34: 0
A35: other | B35: 1 | C35: acre | D35: 0 | E35: 0 | F35: 0 | G35: 0 | H35: 0
A36: other | B36: 1 | C36: acre | D36: 0 | E36: 0 | F36: 0 | G36: 0 | H36: 0
A37: Crop Insurance | B37: 1 | C37: acre | D37: 68 | E37: 0.33 | F37: 68 | G37: 45.56 | H37: 22.44
A38: Operator Labor & Hand Labor | B38: 0.77 | C38: hours | D38: ='Universal Input Prices'!$B$31 -> 18 | E38: 0 | F38: 13.86 | G38: 13.86 | H38: 0
A39: Irrigation Labor | B39: 0.78 | C39: hours | D39: ='Universal Input Prices'!$B$31 -> 18 | E39: 0 | F39: 14.04 | G39: 14.04 | H39: 0
A40: Diesel Fuel - Tractors | B40: 1.97 | C40: gallons | D40: ='Universal Input Prices'!$B$32 -> 2.75 | E40: 0 | F40: 5.4175 | G40: 5.4175 | H40: 0
A41: Gasoline - Pickup | B41: 3.482 | C41: gallons | D41: ='Universal Input Prices'!$B$33 -> 2.4 | E41: 0 | F41: 8.3568 | G41: 8.3568 | H41: 0
A42: Irrigation Fuel | B42: 12 | C42: acin | D42: ='Universal Input Prices'!$B$34 -> 4 | E42: 0.33 | F42: 48 | G42: 32.16 | H42: 15.84
A43: Pumping Days | B43: 75.43
A44: Calculated GPM capacity per acre needed | B44: =B42*18.85694/B43 -> 2.999910911
A45: Repair & Maintenance
A46: Implements | B46: 1 | C46: acre | D46: 3.72 | E46: 0 | F46: =D46*B46 -> 3.72 | G46: =F46*(1-E46) -> 3.72 | H46: =+F46*E46 -> 0
A47: Tractors | B47: 1 | C47: acre | D47: 0 | E47: 0 | F47: =D47*B47 -> 0 | G47: =F47*(1-E47) -> 0 | H47: =+F47*E47 -> 0
A48: Irrigation-Above Ground | B48: =Cotton_Inches -> 12 | C48: acin | D48: 3.75 | E48: 0 | F48: =D48*B48 -> 45 | G48: =F48*(1-E48) -> 45 | H48: =+F48*E48 -> 0
A49: Tractors/Self Propelled Equipment | B49: 1 | C49: acre | D49: 3.64 | E49: 1 | F49: =D49*B49 -> 3.64 | G49: =F49*(1-E49) -> 0 | H49: =+F49*E49 -> 3.64
A50: Pickup | B50: 1 | C50: acre | D50: 4.26 | E50: 0 | F50: =D50*B50 -> 4.26 | G50: =F50*(1-E50) -> 4.26 | H50: =+F50*E50 -> 0
A51: Interest-operating capital | B51: ='Universal Input Prices'!$B$35 -> 0.085 | F51: =(SUM(F18:F28,F32:F50))*$B51/2 -> 24.56400352 | G51: =(SUM(G18:G28,G32:G50))*$B51/2 -> 19.21749741 | H51: =(SUM(H18:H28,H32:H50))*$B51/2 -> 5.346506103
A53: Total Variable Costs | F53: =SUM(F18:F51) -> 935.8000807 | G53: =SUM(G18:G51) -> 744.1777881 | H53: =SUM(H18:H51) -> 191.6222926
A54: Returns Above Variable Costs | F54: =F14-F53 -> 140.7624193 | G54: =G14-G53 -> 265.8690869 | H54: =H14-H53 -> -125.1066676
A56: Fixed Costs
A57: Implements | B57: 1 | C57: acre | D57: 6.1 | E57: 0 | F57: =D57*B57 -> 6.1 | G57: =F57*(1-E57) -> 6.1 | H57: =+F57*E57 -> 0
A58: Tractors | B58: 1 | C58: acre | D58: 0 | E58: 0 | F58: 0 | G58: 0 | H58: 0
A59: Irrigation Equipment | B59: 1 | C59: acre | D59: 33.5 | E59: 0 | F59: 33.5 | G59: 33.5 | H59: 0
A60: Tractors/Self Propelled Equipment | B60: 1 | C60: acre | D60: 5.8 | E60: 1 | F60: 5.8 | G60: 0 | H60: 5.8
A61: Pickup | B61: 1 | C61: acre | D61: 7.11 | E61: 0 | F61: 7.11 | G61: 7.11 | H61: 0
A62: Management | B62: 1 | C62: acre | D62: 0 | E62: 0 | F62: =D62*B62 -> 0 | G62: 0 | H62: 0
A63: Irrigation Investment | B63: 1 | C63: acre | D63: 39.978 | E63: 0 | F63: =D63*B63 -> 39.978 | G63: 39.978 | H63: 0
A64: Land cash rent value | B64: 1 | C64: acre | D64: 125 | E64: 1 | F64: 125 | G64: =IF($H$6="Cash",D64,F64*(1-E64)) -> 0 | H64: =IF($H$6="Cash",0,F64*E64) -> 125
A65: Property Tax | B65: 1 | C65: acre | D65: 0 | E65: 1 | F65: =B65*D65 -> 0 | G65: 0 | H65: 0
A66: Total Fixed Expenses | F66: =SUM(F57:F65) -> 217.488 | G66: =SUM(G57:G65) -> 86.688 | H66: =SUM(H57:H65) -> 130.8
A67: Total Specified Expenses | F67: =F53+F66 -> 1153.288081 | G67: =G53+G66 -> 830.8657881 | H67: =H53+H66 -> 322.4222926
A68: Returns Above Total Specified Expenses | F68: =F14-F67 -> -76.72558067 | G68: =G14-G67 -> 179.1810869 | H68: =H14-H67 -> -255.9066676
A70: Return on Investment | F70: =(F68/F67) -> -0.06652768025 | G70: =(G68/G67) -> 0.215655873 | H70: -0.7937002914

Sheet Irr Peanuts
A2: Estimated Costs and Returns per Acre
A3: Irrigated Peanuts
A4: Projected for 2025
H5: Rental Agreement
A6: Item | B6: Quantity | C6: Unit | D6: Price | E6: Landlord | F6: Total | H6: Share
E7: Share | G7: Tenant | H7: Landlord
A8: Income
A9: peanuts | B9: 2.25 | C9: ton | D9: ='Universal Input Prices'!$B$10 -> 550 | E9: 0.33 | F9: =D9*B9 -> 1237.5 | G9: =F9*(1-E9) -> 829.125 | H9: =IF(H6="Cash", D62,F9*E9) -> 408.375
A10: other income | B10: 1 | C10: unit | D10: 0 | E10: 0.33 | F10: =D10*B10 -> 0 | G10: =F10*(1-E10) -> 0 | H10: =IF(H7="Cash", D59,F10*E10) -> 0
A11: other income | B11: 1 | C11: unit | D11: 0 | E11: 0.33 | F11: =D11*B11 -> 0 | G11: =F11*(1-E11) -> 0 | H11: =IF(H8="Cash", D60,F11*E11) -> 0
A12: Total Income | F12: =SUM(F8:F11) -> 1237.5 | G12: =SUM(G8:G11) -> 829.125 | H12: 408.375
A14: Variable Costs
A15: Seed
A16: peanut seed | B16: 100 | C16: lb | D16: 0.95 | E16: 0 | F16: =D16*B16 -> 95 | G16: =F16*(1-E16) -> 95 | H16: =F16*E16 -> 0
A17: innoculant | B17: 1 | C17: acre | D17: 6.6 | E17: 0 | F17: =D17*B17 -> 6.6 | G17: =F17*(1-E17) -> 6.6 | H17: =F17*E17 -> 0
A18: Fertilizer
A19: fert (P) - dry | B19: 50 | C19: lb | D19: =IF(A19="",0,VLOOKUP(A19,'Universal Input Prices'!$A$26:$B$30, 2)) -> 0.8028846154 | E19: 0.33 | F19: =D19*B19 -> 40.14423077 | G19: =F19*(1-E19) -> 26.89663462 | H19: =F19*E19 -> 13.24759615
A20: fert (N) - dry | B20: 80 | C20: lb | D20: =IF(A20="",0,VLOOKUP(A20,'Universal Input Prices'!$A$26:$B$27, 2)) -> 0.5217391304 | E20: 0.33 | F20: =D20*B20 -> 41.73913043 | G20: =F20*(1-E20) -> 27.96521739 | H20: =F20*E20 -> 13.77391304
B21: 0 | C21: lb | D21: =IF(A21="",0,VLOOKUP(A21,'Universal Input Prices'!$A$26:$B$30, 2)) -> 0 | E21: 0 | F21: =D21*B21 -> 0 | G21: =F21*(1-E21) -> 0 | H21: =F21*E21 -> 0
A22: Field Operations
A23: herbicide & application | B23: 1 | C23: acre | D23: 47.65 | E23: 0.33 | F23: =D23*B23 -> 47.65 | G23: =F23*(1-E23) -> 31.9255 | H23: =F23*E23 -> 15.7245
A24: fertilizer application | B24: 1 | C24: acre | D24: 8 | E24: 0.33 | F24: 8 | G24: 5.36 | H24: 2.64
A25: fungicide & application | B25: 3 | C25: appl | D25: 25.2 | E25: 0.33 | F25: 75.6 | G25: 50.652 | H25: 24.948
A26: digging | B26: 1 | C26: acre | D26: 30 | E26: 0.33 | F26: 30 | G26: 20.1 | H26: 9.9
A27: custom harvest & haul | B27: =$B$9 -> 2.25 | C27: ton | D27: 60 | E27: 0 | F27: 135 | G27: 135 | H27: 0
A28: drying | B28: =$B$9 -> 2.25 | C28: ton | D28: 20 | E28: 0 | F28: 45 | G28: 45 | H28: 0
A29: insecticide & application | B29: 1 | C29: appl | D29: 15.42 | E29: 0.33 | F29: 15.42 | G29: 10.3314 | H29: 5.0886
A30: hoeing | B30: 1 | C30: acre | D30: 27.68 | E30: 0 | F30: 27.68 | G30: 27.68 | H30: 0
A31: scouting | B31: 1 | C31: acre | D31: 0 | E31: 0 | F31: 0 | G31: 0 | H31: 0
A32: other | B32: 1 | C32: acre | D32: 0 | E32: 0 | F32: 0 | G32: 0 | H32: =+F32*E32 -> 0
A33: other | B33: 1 | C33: acre | D33: 0 | E33: 0 | F33: 0 | G33: 0 | H33: =+F33*E33 -> 0
A34: other | B34: 1 | C34: acre | D34: 0 | E34: 0 | F34: 0 | G34: 0 | H34: =+F34*E34 -> 0
A35: Crop Insurance | B35: 1 | C35: acre | D35: 65 | E35: 0.33 | F35: 65 | G35: 43.55 | H35: 21.45
A36: Operator Labor & Hand Labor | B36: 1.12 | C36: hour | D36: ='Universal Input Prices'!$B$31 -> 18 | E36: 0 | F36: 20.16 | G36: 20.16 | H36: 0
A37: Irrigation Labor | B37: 1.354 | C37: hours | D37: ='Universal Input Prices'!$B$31 -> 18 | E37: 0 | F37: 24.372 | G37: 24.372 | H37: 0
A38: Diesel Fuel - Tractors | B38: 2.99 | C38: gallons | D38: ='Universal Input Prices'!$B$32 -> 2.75 | E38: 0 | F38: 8.2225 | G38: 8.2225 | H38: 0
A39: Gasoline - Pickup | B39: 2.049230769 | C39: gallons | D39: ='Universal Input Prices'!$B$33 -> 2.4 | E39: 0 | F39: 4.918153846 | G39: 4.918153846 | H39: 0
A40: Irrigation Fuel | B40: 21 | C40: acin | D40: ='Universal Input Prices'!$B$34 -> 4 | E40: 0.33 | F40: 84 | G40: 56.28 | H40: 27.72
A41: Pumping Days | B41: 79.2
A42: Calculated GPM capacity per acre needed | B42: =B40*18.85694/B41 -> 4.999946212
A43: Repair & Maintenance | G43: 0 | H43: 0
A44: Implements | B44: 1 | C44: acre | D44: 12.67 | E44: 0 | F44: =D44*B44 -> 12.67 | G44: 12.67 | H44: 0
A45: Tractors | B45: 1 | C45: acre | D45: 0 | E45: 0 | F45: =D45*B45 -> 0 | G45: 0 | H45: 0
A46: Irrigation-Above Ground | B46: =B40 -> 21 | C46: acin | D46: 3.75 | E46: 0 | F46: =D46*B46 -> 78.75 | G46: 78.75 | H46: 0
A47: Tractors/Self Propelled Equipment | B47: 1 | C47: acre | D47: 5.31 | E47: 1 | F47: =D47*B47 -> 5.31 | G47: 0 | H47: 5.31
A48: Pickup | B48: 1 | C48: acre | D48: 2.51 | E48: 0 | F48: =D48*B48 -> 2.51 | G48: 2.51 | H48: 0
A49: Interest-operating capital | B49: ='Universal Input Prices'!$B$35 -> 0.085 | F49: =(SUM(F16:F25,F29:F48))*$B49/2 -> 28.20920564 | G49: =(SUM(G16:G25,G29:G48))*$B49/2 -> 22.68834475 | H49: =(SUM(H16:H25,H29:H48))*$B49/2 -> 5.520860891
A51: Total Variable Costs | F51: =SUM(F16:F49) -> 901.9552207 | G51: =SUM(G16:G49) -> 756.6317506 | H51: =SUM(H16:H49) -> 145.3234701
A52: Returns Above Variable Costs | F52: =F12-F51 -> 335.5447793 | G52: =G12-G51 -> 72.4932494 | H52: =H12-H51 -> 263.0515299
A54: Fixed Costs
A55: Implements | B55: 1 | C55: acre | D55: 20.08 | E55: 0 | F55: =D55*B55 -> 20.08 | G55: =F55*(1-E55) -> 20.08 | H55: =F55*E55 -> 0
A56: Tractors | B56: 1 | C56: acre | D56: 0 | E56: 0 | F56: 0 | G56: 0 | H56: 0
A57: Irrigation Equipment | B57: 1 | C57: acre | D57: 47.34 | E57: 0 | F57: 47.34 | G57: 47.34 | H57: 0
A58: Tractors/Self Propelled Equipment | B58: 1 | C58: acre | D58: 8.94 | E58: 1 | F58: 8.94 | G58: 0 | H58: 8.94
A59: Pickup | B59: 1 | C59: acre | D59: 4.18 | E59: 0 | F59: 4.18 | G59: 4.18 | H59: 0
A60: Management | B60: 1 | C60: acre | D60: 0 | E60: 0 | F60: 0 | G60: 0 | H60: 0
A61: Irrigation Investment | B61: 1 | C61: acre | D61: 48.6 | E61: 0 | F61: =B61*D61 -> 48.6 | G61: 48.6 | H61: 0
A62: Land cash rent value | B62: 1 | C62: acre | D62: 125 | E62: 1 | F62: =D62*B62 -> 125 | G62: =IF($H$6="Cash",D62,F62*(1-E62)) -> 0 | H62: =IF($H$6="Cash",0,F62*E62) -> 125
A63: Property Tax | B63: 1 | C63: acre | D63: 0 | E63: 1 | F63: =B63*D63 -> 0 | G63: 0 | H63: 0
A64: Total Fixed Expenses | F64: =SUM(F55:F63) -> 254.14 | G64: =SUM(G55:G63) -> 120.2 | H64: =SUM(H55:H63) -> 133.94
A65: Total Specified Expenses | F65: =F51+F64 -> 1156.095221 | G65: =G51+G64 -> 876.8317506 | H65: =H51+H64 -> 279.2634701
A66: Returns Above Total Specified Expenses | F66: =F12-F65 -> 81.40477931 | G66: =G12-G65 -> -47.7067506 | H66: =H12-H65 -> 129.1115299
A68: Return on Investment | F68: =(F66/F65) -> 0.07041355924 | G68: =(G66/G65) -> -0.05440810118 | H68: 0.4623287459

Sheet Irr Sorghum
A2: Estimated Costs and Returns per Acre
A3: Irrigated Sorghum
A4: Projected for 2025
H5: Rental Agreement
A6: Item | B6: Quantity | C6: Unit | D6: Price | E6: Landlord | F6: Total | H6: Share
E7: Share | G7: Tenant | H7: Landlord
A8: Income
A9: sorghum grain | B9: 62 | C9: cwt | D9: ='Universal Input Prices'!$B$11 -> 7.35 | E9: 0.33 | F9: =D9*B9 -> 455.7 | G9: =F9*(1-E9) -> 305.319 | H9: =IF(H6="Cash", D57,F9*E9) -> 150.381
A10: other income | B10: 1 | C10: unit | D10: 0 | E10: 0.33 | F10: =D10*B10 -> 0 | G10: =F10*(1-E10) -> 0 | H10: =IF(H7="Cash", D59,F10*E10) -> 0
A11: other income | B11: 1 | C11: unit | D11: 0 | E11: 0.33 | F11: =D11*B11 -> 0 | G11: =F11*(1-E11) -> 0 | H11: =IF(H8="Cash", D60,F11*E11) -> 0
A12: Total Income | F12: =SUM(F8:F11) -> 455.7 | G12: =SUM(G8:G11) -> 305.319 | H12: =SUM(H8:H11) -> 150.381
A14: Variable Costs
A15: Seed | B15: 4 | C15: lb | D15: 3.2 | E15: 0 | F15: =D15*B15 -> 12.8 | G15: =F15*(1-E15) -> 12.8 | H15: =F15*E15 -> 0
A16: Fertilizer
A17: fert (N) - NH3 | B17: 60 | C17: lb | D17: =IF(A17="",0,VLOOKUP(A17,'Universal Input Prices'!$A$26:$B$30, 2)) -> 0.4268292683 | E17: 0.33 | F17: =D17*B17 -> 25.6097561 | G17: =F17*(1-E17) -> 17.15853659 | H17: =F17*E17 -> 8.451219512
A18: fert (P) - liquid | B18: 40.049 | C18: lb | D18: =IF(A18="",0,VLOOKUP(A18,'Universal Input Prices'!$A$26:$B$30, 2)) -> 0.8970588235 | E18: 0.33 | F18: =D18*B18 -> 35.92630882 | G18: =F18*(1-E18) -> 24.07062691 | H18: =F18*E18 -> 11.85568191
A19: fert (N) - liquid | B19: 50.01 | C19: lb | D19: =IF(A19="",0,VLOOKUP(A19,'Universal Input Prices'!$A$26:$B$27, 2)) -> 0.578125 | E19: 0.33 | F19: =D19*B19 -> 28.91203125 | G19: =F19*(1-E19) -> 19.37106094 | H19: =F19*E19 -> 9.540970313
A20: Field Operations
A21: herbicide & application | B21: 1 | C21: acre | D21: 56.6 | E21: 0.33 | F21: =D21*B21 -> 56.6 | G21: =F21*(1-E21) -> 37.922 | H21: =F21*E21 -> 18.678
A22: fertilizer application | B22: 1 | C22: acre | D22: 18 | E22: 0.33 | F22: 18 | G22: 12.06 | H22: 5.94
A23: insecticide & application - headwrm | B23: 0.67 | C23: acre | D23: 26.13 | E23: 0.33 | F23: 17.5071 | G23: 11.729757 | H23: 5.777343
A24: custom harvest & haul | B24: 60 | C24: cwt | D24: 1 | E24: 0 | F24: 60 | G24: 60 | H24: 0
A25: hoeing | B25: 1 | C25: acre | D25: 0 | E25: 0 | F25: 0 | G25: 0 | H25: 0
A26: scouting | B26: 1 | C26: acre | D26: 0 | E26: 0 | F26: =D26*B26 -> 0 | G26: =F26*(1-E26) -> 0 | H26: =F26*E26 -> 0
A27: insecticide sugar cane aphid | B27: 1 | C27: acre | D27: 19.95 | E27: 0.33 | F27: 19.95 | G27: 13.3665 | H27: 6.5835
A28: other | B28: 1 | C28: acre | D28: 0 | E28: 0 | F28: 0 | G28: 0 | H28: 0
A29: other | B29: 1 | C29: acre | D29: 0 | E29: 0 | F29: 0 | G29: 0 | H29: 0
A30: Crop Insurance | B30: 1 | C30: acre | D30: 30 | E30: 0.33 | F30: 30 | G30: 20.1 | H30: 9.9
A31: Operator Labor & Hand Labor | B31: 0.35 | C31: hours | D31: ='Universal Input Prices'!$B$31 -> 18 | E31: 0 | F31: 6.3 | G31: 6.3 | H31: 0
A32: Irrigation Labor | B32: 0.911 | C32: hours | D32: ='Universal Input Prices'!$B$31 -> 18 | E32: 0 | F32: 16.398 | G32: 16.398 | H32: 0
A33: Diesel Fuel - Tractors | B33: 1.09 | C33: gallons | D33: ='Universal Input Prices'!$B$32 -> 2.75 | E33: 0 | F33: 2.9975 | G33: 2.9975 | H33: 0
A34: Gasoline - Pickup | B34: 2.0492308 | C34: gallons | D34: ='Universal Input Prices'!$B$33 -> 2.4 | E34: 0 | F34: 4.91815392 | G34: 4.91815392 | H34: 0
A35: Irrigation Fuel | B35: 10 | C35: acin | D35: ='Universal Input Prices'!$B$34 -> 4 | E35: 0.33 | F35: 40 | G35: 26.8 | H35: 13.2
A36: Pumping Days | B36: 75.43
A37: Calculated GPM capacity per acre needed | B37: =B35*18.85694/B36 -> 2.499925759
A38: Repair & Maintenance
A39: Implements | B39: 1 | C39: acre | D39: 6.25 | E39: 0 | F39: =D39*B39 -> 6.25 | G39: =F39*(1-E39) -> 6.25 | H39: =F39*E39 -> 0
A40: Tractors | B40: 1 | C40: acre | D40: 0 | E40: 0 | F40: =D40*B40 -> 0 | G40: =F40*(1-E40) -> 0 | H40: =F40*E40 -> 0
A41: Irrigation-Above Ground | B41: =Sorghum_Inches -> 10 | C41: acin | D41: 3.75 | E41: 0 | F41: =D41*B41 -> 37.5 | G41: =F41*(1-E41) -> 37.5 | H41: =F41*E41 -> 0
A42: Tractors/Self Propelled Equipment | B42: 1 | C42: acre | D42: 2.55 | E42: 1 | F42: =D42*B42 -> 2.55 | G42: =F42*(1-E42) -> 0 | H42: =F42*E42 -> 2.55
A43: Pickup | B43: 1 | C43: acre | D43: 2.51 | E43: 0 | F43: =D43*B43 -> 2.51 | G43: =F43*(1-E43) -> 2.51 | H43: =F43*E43 -> 0
A44: Interest-operating capital | B44: ='Universal Input Prices'!$B$35 -> 0.085 | F44: =(SUM(F15:F23,F25:F43))*$B44/2 -> 15.50097613 | G44: =(SUM(G15:G23,G25:G43))*$B44/2 -> 11.57071575 | H44: =(SUM(H15:H23,H25:H43))*$B44/2 -> 3.930260376
A46: Total Variable Costs | F46: =SUM(F15:F44) -> 440.2298262 | G46: =SUM(G15:G44) -> 343.8228511 | H46: =SUM(H15:H44) -> 96.40697511
A47: Returns Above Variable Costs | F47: =F12-F46 -> 15.47017378 | G47: =G12-G46 -> -38.50385111 | H47: =H12-H46 -> 53.97402489
A49: Fixed Costs
A50: Implements | B50: 1 | C50: acre | D50: 10.53 | E50: 0 | F50: =D50*B50 -> 10.53 | G50: =F50*(1-E50) -> 10.53 | H50: =F50*E50 -> 0
A51: Tractors | B51: 1 | C51: acre | D51: 0 | E51: 0 | F51: 0 | G51: 0 | H51: 0
A52: Irrigation Equipment | B52: 1 | C52: acre | D52: 47.34 | E52: 0 | F52: 47.34 | G52: 47.34 | H52: 0
A53: Tractors/Self Propelled Equipment | B53: 1 | C53: acre | D53: 4.32 | E53: 1 | F53: 4.32 | G53: 0 | H53: 4.32
A54: Pickup | B54: 1 | C54: acre | D54: 4.18 | E54: 0 | F54: 4.18 | G54: 4.18 | H54: 0
A55: Management | B55: 1 | C55: acre | D55: 0 | E55: 0 | F55: 0 | G55: 0 | H55: 0
A56: Irrigation Investment | B56: 1 | C56: acre | D56: 48.6 | E56: 0 | F56: =B56*D56 -> 48.6 | G56: 48.6 | H56: 0
A57: Land cash rent value | B57: 1 | C57: acre | D57: 125 | E57: 1 | F57: =D57*B57 -> 125 | G57: =IF($H$6="Cash",D57,F57*(1-E57)) -> 0 | H57: =IF($H$6="Cash",0,F57*E57) -> 125
A58: Property Tax | B58: 1 | C58: acre | D58: 0 | E58: 1 | F58: =B58*D58 -> 0 | G58: 0 | H58: 0
A59: Total Fixed Expenses | F59: =SUM(F50:F58) -> 239.97 | G59: =SUM(G50:G58) -> 110.65 | H59: =SUM(H50:H58) -> 129.32
A60: Total Specified Expenses | F60: =F46+F59 -> 680.1998262 | G60: =G46+G59 -> 454.4728511 | H60: =H46+H59 -> 225.7269751
A61: Returns Above Total Specified Expenses | F61: =F12-F60 -> -224.4998262 | G61: =G12-G60 -> -149.1538511 | H61: =H12-H60 -> -75.34597511
A63: Return on Investment | F63: =(F61/F60) -> -0.3300498141 | G63: =(G61/G60) -> -0.3281908936 | H63: -0.3337925167

Sheet Irr Sorghum Seed
A2: Estimated Costs and Returns per Acre
A3: Irrigated Sorghum Seed
A4: Projected for 2025
H5: Rental Agreement
A6: Item | B6: Quantity | C6: Unit | D6: Price | E6: Landlord | F6: Total | H6: Share
E7: Share | G7: Tenant | H7: Landlord
A8: Income
A9: seed sorghum | B9: 45 | C9: cwt | D9: ='Universal Input Prices'!B12 -> 21.5 | E9: 0.33 | F9: =D9*B9 -> 967.5 | G9: =F9*(1-E9) -> 648.225 | H9: =IF(H6="Cash", D57,F9*E9) -> 319.275
A10: other income | B10: 1 | C10: unit | D10: 0 | E10: 0.33 | F10: =D10*B10 -> 0 | G10: =F10*(1-E10) -> 0 | H10: =IF(H7="Cash", D59,F10*E10) -> 0
A11: other income | B11: 1 | C11: unit | D11: 0 | E11: 0.33 | F11: =D11*B11 -> 0 | G11: =F11*(1-E11) -> 0 | H11: =IF(H8="Cash", D60,F11*E11) -> 0
A12: Total Income | F12: =SUM(F8:F11) -> 967.5 | G12: =SUM(G8:G11) -> 648.225 | H12: =SUM(H8:H11) -> 319.275
A14: Variable Costs
A15: Seed | B15: 0 | C15: lb | D15: 3.2 | E15: 0 | F15: =D15*B15 -> 0 | G15: =F15*(1-E15) -> 0 | H15: =F15*E15 -> 0
A16: Fertilizer
A17: fert (N) - NH3 | B17: 65 | C17: lb | D17: =IF(A17="",0,VLOOKUP(A17,'Universal Input Prices'!$A$26:$B$30, 2)) -> 0.4268292683 | E17: 0.33 | F17: =D17*B17 -> 27.74390244 | G17: =F17*(1-E17) -> 18.58841463 | H17: =F17*E17 -> 9.155487805
A18: fert (P) - liquid | B18: 50.16 | C18: lb | D18: =IF(A18="",0,VLOOKUP(A18,'Universal Input Prices'!$A$26:$B$30, 2)) -> 0.8970588235 | E18: 0.33 | F18: =D18*B18 -> 44.99647059 | G18: =F18*(1-E18) -> 30.14763529 | H18: =F18*E18 -> 14.84883529
A19: fert (N) - liquid | B19: 59.99 | C19: lb | D19: =IF(A19="",0,VLOOKUP(A19,'Universal Input Prices'!$A$26:$B$30, 2)) -> 0.578125 | E19: 0.33 | F19: =D19*B19 -> 34.68171875 | G19: =F19*(1-E19) -> 23.23675156 | H19: =F19*E19 -> 11.44496719
A20: Field Operations
A21: herbicide & application | B21: 1 | C21: acre | D21: 56.6 | E21: 0.33 | F21: =D21*B21 -> 56.6 | G21: =F21*(1-E21) -> 37.922 | H21: =F21*E21 -> 18.678
A22: fertilizer application | B22: 1 | C22: acre | D22: 18 | E22: 0.33 | F22: 18 | G22: 12.06 | H22: 5.94
A23: insecticide & application-headwrm | B23: 0.67 | C23: acre | D23: 26.13 | E23: 0.33 | F23: 17.5071 | G23: 11.729757 | H23: 5.777343
A24: custom harvest & haul | B24: =B9 -> 45 | C24: cwt | D24: 1 | E24: 0 | F24: 45 | G24: 45 | H24: 0
A25: hoeing | B25: 1 | C25: acre | D25: 0 | E25: 0 | F25: 0 | G25: 0 | H25: 0
A26: scouting | B26: 1 | C26: acre | D26: 0 | E26: 0 | F26: =D26*B26 -> 0 | G26: =F26*(1-E26) -> 0 | H26: =F26*E26 -> 0
A27: insecticide sugar cane aphid | B27: 1 | C27: acre | D27: 19.95 | E27: 0.33 | F27: 19.95 | G27: 13.3665 | H27: 6.5835
A28: other | B28: 1 | C28: acre | D28: 0 | E28: 0 | F28: 0 | G28: 0 | H28: 0
A29: other | B29: 1 | C29: acre | D29: 0 | E29: 0 | F29: 0 | G29: 0 | H29: 0
A30: Crop Insurance | B30: 1 | C30: acre | D30: 30 | E30: 0.33 | F30: 30 | G30: 20.1 | H30: 9.9
A31: Operator Labor & Hand Labor | B31: 0.35 | C31: hours | D31: ='Universal Input Prices'!$B$31 -> 18 | E31: 0 | F31: 6.3 | G31: 6.3 | H31: 0
A32: Irrigation Labor | B32: 1.0344 | C32: hours | D32: ='Universal Input Prices'!$B$31 -> 18 | E32: 0 | F32: 18.6192 | G32: 18.6192 | H32: 0
A33: Diesel Fuel - Tractors | B33: 1.09 | C33: gallons | D33: ='Universal Input Prices'!$B$32 -> 2.75 | E33: 0 | F33: 2.9975 | G33: 2.9975 | H33: 0
A34: Gasoline - Pickup | B34: 2.0485 | C34: gallons | D34: ='Universal Input Prices'!$B$33 -> 2.4 | E34: 0 | F34: 4.9164 | G34: 4.9164 | H34: 0
A35: Irrigation Fuel | B35: 16 | C35: acin | D35: ='Universal Input Prices'!$B$34 -> 4 | E35: 0.33 | F35: 64 | G35: 42.88 | H35: 21.12
A36: Pumping Days | B36: 98.06
A37: Calculated GPM capacity per acre needed | B37: =B35*18.85694/B36 -> 3.076800326
A38: Repair & Maintenance
A39: Implements | B39: 1 | C39: acre | D39: 6.25 | E39: 0 | F39: =D39*B39 -> 6.25 | G39: =F39*(1-E39) -> 6.25 | H39: =F39*E39 -> 0
A40: Tractors | B40: 1 | C40: acre | D40: 0 | E40: 0 | F40: =D40*B40 -> 0 | G40: =F40*(1-E40) -> 0 | H40: =F40*E40 -> 0
A41: Irrigation-Above Ground | B41: =Sorghum_Seed_Inches -> 16 | C41: acin | D41: 3.75 | E41: 0 | F41: =D41*B41 -> 60 | G41: =F41*(1-E41) -> 60 | H41: =F41*E41 -> 0
A42: Tractors/Self Propelled Equipment | B42: 1 | C42: acre | D42: 2.55 | E42: 1 | F42: =D42*B42 -> 2.55 | G42: =F42*(1-E42) -> 0 | H42: =F42*E42 -> 2.55
A43: Pickup | B43: 1 | C43: acre | D43: 2.51 | E43: 0 | F43: =D43*B43 -> 2.51 | G43: =F43*(1-E43) -> 2.51 | H43: =F43*E43 -> 0
A44: Interest-operating capital | B44: ='Universal Input Prices'!$B$35 -> 0.085 | F44: =(SUM(F15:F23,F25:F43))*$B44/2 -> 17.7489474 | G44: =(SUM(G15:G23,G25:G43))*$B44/2 -> 13.24402674 | H44: =(SUM(H15:H23,H25:H43))*$B44/2 -> 4.504920665
A46: Total Variable Costs | F46: =SUM(F15:F44) -> 480.3712392 | G46: =SUM(G15:G44) -> 369.8681852 | H46: =SUM(H15:H44) -> 110.503054
A47: Returns Above Variable Costs | F47: =F12-F46 -> 487.1287608 | G47: =G12-G46 -> 278.3568148 | H47: =H12-H46 -> 208.771946
A49: Fixed Costs
A50: Implements | B50: 1 | C50: acre | D50: 10.53 | E50: 0 | F50: =D50*B50 -> 10.53 | G50: =F50*(1-E50) -> 10.53 | H50: =F50*E50 -> 0
A51: Tractors | B51: 1 | C51: acre | D51: 0 | E51: 0 | F51: 0 | G51: 0 | H51: 0
A52: Irrigation Equipment | B52: 1 | C52: acre | D52: 40.42 | E52: 0 | F52: 40.42 | G52: 40.42 | H52: 0
A53: Tractors/Self Propelled Equipment | B53: 1 | C53: acre | D53: 4.32 | E53: 1 | F53: 4.32 | G53: 0 | H53: 4.32
A54: Pickup | B54: 1 | C54: acre | D54: 4.18 | E54: 0 | F54: 4.18 | G54: 4.18 | H54: 0
A55: Management | B55: 1 | C55: acre | D55: 0 | E55: 0 | F55: 0 | G55: 0 | H55: 0
A56: Irrigation Investment | B56: 1 | C56: acre | D56: 44.29 | E56: 0 | F56: =B56*D56 -> 44.29 | G56: 44.29 | H56: 0
A57: Land cash rent value | B57: 1 | C57: acre | D57: 125 | E57: 1 | F57: =D57*B57 -> 125 | G57: =IF($H$6="Cash",D57,F57*(1-E57)) -> 0 | H57: =IF($H$6="Cash",0,F57*E57) -> 125
A58: Property Tax | B58: 1 | C58: acre | D58: 0 | E58: 1 | F58: =B58*D58 -> 0 | G58: 0 | H58: 0
A59: Total Fixed Expenses | F59: =SUM(F50:F58) -> 228.74 | G59: =SUM(G50:G58) -> 99.42 | H59: =SUM(H50:H58) -> 129.32
A60: Total Specified Expenses | F60: =F46+F59 -> 709.1112392 | G60: =G46+G59 -> 469.2881852 | H60: =H46+H59 -> 239.823054
A61: Returns Above Total Specified Expenses | F61: =F12-F60 -> 258.3887608 | G61: =G12-G60 -> 178.9368148 | H61: =H12-H60 -> 79.45194605
A63: Return on Investment | F63: =(F61/F60) -> 0.3643839592 | G63: =(G61/G60) -> 0.3812940969 | H63: 0.3312940301

Sheet Irr Sorghum Silage
A2: Estimated Costs and Returns per Acre
A3: Irrigated Sorghum Silage
A4: Projected for 2025
H5: Rental Agreement
A6: Item | B6: Quantity | C6: Unit | D6: Price | E6: Landlord | F6: Total | H6: Share
E7: Share | G7: Tenant | H7: Landlord
A8: Income
A9: sorghum silage | B9: 20 | C9: ton | D9: ='Universal Input Prices'!$B$13 -> 46 | E9: 0.33 | F9: =D9*B9 -> 920 | G9: =F9*(1-E9) -> 616.4 | H9: =IF(H6="Cash", D57,F9*E9) -> 303.6
A10: other income | B10: 1 | C10: unit | D10: 0 | E10: 0.33 | F10: =D10*B10 -> 0 | G10: =F10*(1-E10) -> 0 | H10: =IF(H7="Cash", D59,F10*E10) -> 0
A11: other income | B11: 1 | C11: unit | D11: 0 | E11: 0.33 | F11: =D11*B11 -> 0 | G11: =F11*(1-E11) -> 0 | H11: =IF(H8="Cash", D60,F11*E11) -> 0
A12: Total Income | F12: =SUM(F6:F11) -> 920 | G12: =SUM(G7:G11) -> 616.4 | H12: =SUM(H7:H11) -> 303.6
A14: Variable Costs
A15: Seed | B15: 5 | C15: lb | D15: 3.2 | E15: 0 | F15: =D15*B15 -> 16 | G15: =F15*(1-E15) -> 16 | H15: =F15*E15 -> 0
A16: Fertilizer
A17: fert (P) - dry | B17: 50 | C17: lb | D17: =IF(A17="",0,VLOOKUP(A17,'Universal Input Prices'!$A$26:$B$30, 2)) -> 0.8028846154 | E17: 0.33 | F17: =D17*B17 -> 40.14423077 | G17: =F17*(1-E17) -> 26.89663462 | H17: =F17*E17 -> 13.24759615
A18: fert (N) - NH3 | B18: 100.04 | C18: lb | D18: =IF(A18="",0,VLOOKUP(A18,'Universal Input Prices'!$A$26:$B$30, 2)) -> 0.4268292683 | E18: 0.33 | F18: =D18*B18 -> 42.7 | G18: =F18*(1-E18) -> 28.609 | H18: =F18*E18 -> 14.091
A19: fert (N) - liquid | B19: 45 | C19: lb | D19: =IF(A19="",0,VLOOKUP(A19,'Universal Input Prices'!$A$26:$B$30, 2)) -> 0.578125 | E19: 0 | F19: =D19*B19 -> 26.015625 | G19: =F19*(1-E19) -> 26.015625 | H19: =F19*E19 -> 0
A20: Field Operations
A21: herbicide & application | B21: 1 | C21: acre | D21: 56.6 | E21: 0.33 | F21: =D21*B21 -> 56.6 | G21: =F21*(1-E21) -> 37.922 | H21: =F21*E21 -> 18.678
A22: fertilizer application - NH3 | B22: 1 | C22: acre | D22: 18 | E22: 0.33 | F22: 18 | G22: 12.06 | H22: 5.94
A23: insecticide & application - headwrm | B23: 0.33 | C23: acre | D23: 26.13 | E23: 0.33 | F23: 8.6229 | G23: 5.777343 | H23: 2.845557
A24: custom harvest & haul | B24: 20 | C24: ton | D24: 12.5 | E24: 0 | F24: 250 | G24: 250 | H24: 0
A25: crop consultant | B25: 1 | C25: acre | D25: 0 | E25: 0 | F25: 0 | G25: 0 | H25: 0
A26: insecticide sugar cane aphid | B26: 1 | C26: acre | D26: 19.95 | E26: 0.33 | F26: =D26*B26 -> 19.95 | G26: =F26*(1-E26) -> 13.3665 | H26: =F26*E26 -> 6.5835
A27: fertilizer application | B27: 1 | C27: acre | D27: 8 | E27: 0 | F27: 8 | G27: 8 | H27: 0
A28: other | B28: 1 | C28: acre | D28: 0 | E28: 0 | F28: 0 | G28: 0 | H28: 0
A29: other | B29: 1 | C29: acre | D29: 0 | E29: 0 | F29: 0 | G29: 0 | H29: 0
A30: Crop Insurance | B30: 1 | C30: acre | D30: 26 | E30: 0.33 | F30: 26 | G30: 17.42 | H30: 8.58
A31: Operator Labor & Hand Labor | B31: 0.5 | C31: hour | D31: ='Universal Input Prices'!$B$31 -> 18 | E31: 0 | F31: 9 | G31: 9 | H31: 0
A32: Irrigation Labor | B32: 0.8444 | C32: hours | D32: ='Universal Input Prices'!$B$31 -> 18 | E32: 0 | F32: 15.1992 | G32: 15.1992 | H32: 0
A33: Diesel Fuel - Tractors | B33: 1.41 | C33: gallons | D33: ='Universal Input Prices'!$B$32 -> 2.75 | E33: 0 | F33: 3.8775 | G33: 3.8775 | H33: 0
A34: Gasoline - Pickup | B34: 3.06999 | C34: gallons | D34: ='Universal Input Prices'!$B$33 -> 2.4 | E34: 0 | F34: 7.367976 | G34: 7.367976 | H34: 0
A35: Irrigation Fuel | B35: 14 | C35: acin | D35: ='Universal Input Prices'!$B$34 -> 4 | E35: 0.33 | F35: 56 | G35: 37.52 | H35: 18.48
A36: Pumping Days | B36: 70.04
A37: Calculated GPM capacity per acre needed | B37: =B35*18.85694/B36 -> 3.769234152
A38: Repair & Maintenance | G38: 0 | H38: 0
A39: Implements | B39: 1 | C39: acre | D39: 6.92 | E39: 0 | F39: =D39*B39 -> 6.92 | G39: 6.92 | H39: 0
A40: Tractors | B40: 1 | C40: acre | D40: 0 | E40: 0 | F40: =D40*B40 -> 0 | G40: 0 | H40: 0
A41: Irrigation-Above Ground | B41: =B35 -> 14 | C41: acin | D41: 3.75 | E41: 0 | F41: =D41*B41 -> 52.5 | G41: 52.5 | H41: 0
A42: Tractors/Self Propelled Equipment | B42: 1 | C42: acre | D42: 2.68 | E42: 1 | F42: =D42*B42 -> 2.68 | G42: 0 | H42: 2.68
A43: Pickup | B43: 1 | C43: acre | D43: 3.76 | E43: 0 | F43: =D43*B43 -> 3.76 | G43: 3.76 | H43: 0
A44: Interest-operating capital | B44: ='Universal Input Prices'!$B$35 -> 0.085 | F44: =(SUM(F15:F23,F25:F43))*$B44/2 -> 17.82184085 | G44: =(SUM(G15:G23,G25:G43))*$B44/2 -> 13.94900059 | H44: 3.872840259
A46: Total Variable Costs | F46: =SUM(F15:F44) -> 687.1592726 | G46: =SUM(G15:G44) -> 592.1607792 | H46: =SUM(H15:H44) -> 94.99849341
A47: Returns Above Variable Costs | F47: =F12-F46 -> 232.8407274 | G47: =G12-G46 -> 24.23922079 | H47: =H12-H46 -> 208.6015066
A49: Fixed Costs
A50: Implements | B50: 1 | C50: acre | D50: 11.25 | E50: 0 | F50: =D50*B50 -> 11.25 | G50: =F50*(1-E50) -> 11.25 | H50: =F50*E50 -> 0
A51: Tractors | B51: 1 | C51: acre | D51: 0 | E51: 0 | F51: 0 | G51: 0 | H51: 0
A52: Irrigation Equipment | B52: 1 | C52: acre | D52: 36.27 | E52: 0 | F52: 36.27 | G52: 36.27 | H52: 0
A53: Tractors/Self Propelled Equipment | B53: 1 | C53: acre | D53: 4.54 | E53: 1 | F53: 4.54 | G53: 0 | H53: 4.54
A54: Pickup | B54: 1 | C54: acre | D54: 6.27 | E54: 0 | F54: 6.27 | G54: 6.27 | H54: 0
A55: Management | B55: 1 | C55: acre | D55: 0 | E55: 0 | F55: 0 | G55: 0 | H55: 0
A56: Irrigation Investment | B56: 1 | C56: acre | D56: 41.7 | E56: 0 | F56: =B56*D56 -> 41.7 | G56: 41.7 | H56: 0
A57: Land cash rent value | B57: 1 | C57: acre | D57: 125 | E57: 1 | F57: =D57*B57 -> 125 | G57: =IF($H$6="Cash",D57,F57*(1-E57)) -> 0 | H57: =IF($H$6="Cash",0,F57*E57) -> 125
A58: Property Tax | B58: 1 | C58: acre | D58: 0 | E58: 1 | F58: =B58*D58 -> 0 | G58: 0 | H58: 0
A59: Total Fixed Expenses | F59: =SUM(F50:F58) -> 225.03 | G59: =SUM(G50:G58) -> 95.49 | H59: =SUM(H50:H58) -> 129.54
A60: Total Specified Expenses | F60: =F46+F59 -> 912.1892726 | G60: =G46+G59 -> 687.6507792 | H60: =H46+H59 -> 224.5384934
A61: Returns Above Total Specified Expenses | F61: =F12-F60 -> 7.810727381 | G61: =G12-G60 -> -71.25077921 | H61: =H12-H60 -> 79.06150659
A63: Return on Investment | F63: =(F61/F60) -> 0.008562617008 | G63: =(G61/G60) -> -0.1036147727 | H63: 0.352106694

Sheet Irr Sorghum Sudangrass
A2: Estimated Costs and Returns per Acre
A3: Irrigated Sorghum Sudangrass
A4: Projected for 2025
H5: Rental Agreement
A6: Item | B6: Quantity | C6: Unit | D6: Price | E6: Landlord | F6: Total | H6: Share
E7: Share | G7: Tenant | H7: Landlord
A8: Income
A9: grazing | B9: 800 | C9: lb | D9: =Grazing_Price -> 0.75 | E9: 0.33 | F9: =D9*B9 -> 600 | G9: =F9*(1-E9) -> 402 | H9: =IF(H6="Cash", 0,F9*E9) -> 198
A10: other income | B10: 1 | C10: unit | D10: 0 | E10: 0.33 | F10: =D10*B10 -> 0 | G10: =F10*(1-E10) -> 0 | H10: =IF(H7="Cash", D59,F10*E10) -> 0
A11: other income | B11: 1 | C11: unit | D11: 0 | E11: 0.33 | F11: =D11*B11 -> 0 | G11: =F11*(1-E11) -> 0 | H11: =IF(H8="Cash", D60,F11*E11) -> 0
A12: Total Income | F12: =SUM(F9:F11) -> 600 | G12: =SUM(G9:G11) -> 402 | H12: =SUM(H9:H11) -> 198
A14: Variable Costs
A15: Seed | B15: 22 | C15: bu | D15: 0.9 | E15: 0 | F15: =D15*B15 -> 19.8 | G15: =F15*(1-E15) -> 19.8 | H15: =F15*E15 -> 0
A16: Fertilizer
A17: fert (N) - NH3 | B17: 150.05 | C17: lb | D17: =IF(A17="",0,VLOOKUP(A17,'Universal Input Prices'!$A$26:$B$30, 2)) -> 0.4268292683 | E17: 0.33 | F17: =D17*B17 -> 64.04573171 | G17: =F17*(1-E17) -> 42.91064024 | H17: =F17*E17 -> 21.13509146
A18: fert (P) - liquid | B18: 50.16 | C18: lb | D18: =IF(A18="",0,VLOOKUP(A18,'Universal Input Prices'!$A$26:$B$30, 2)) -> 0.8970588235 | E18: 0.33 | F18: =D18*B18 -> 44.99647059 | G18: =F18*(1-E18) -> 30.14763529 | H18: =F18*E18 -> 14.84883529
B19: 0 | C19: lb | D19: =IF(A19="",0,VLOOKUP(A19,'Universal Input Prices'!$A$26:$B$30, 2)) -> 0 | E19: 0 | F19: =D19*B19 -> 0 | G19: =F19*(1-E19) -> 0 | H19: =F19*E19 -> 0
A20: Field Operations
A21: herbicide & application | B21: 1 | C21: acre | D21: 29.8 | E21: 0.33 | F21: =D21*B21 -> 29.8 | G21: =F21*(1-E21) -> 19.966 | H21: =F21*E21 -> 9.834
A22: fertilizer application | B22: 1 | C22: acre | D22: 18 | E22: 0.33 | F22: 18 | G22: 12.06 | H22: 5.94
A23: insecticide & application | B23: 1 | C23: acre | D23: 0 | E23: 0.33 | F23: 0 | G23: 0 | H23: 0
A24: custom harvest & haul | B24: 0 | C24: bu. | D24: 0 | E24: 0.33 | F24: 0 | G24: 0 | H24: 0
A25: hoeing | B25: 0 | C25: acre | D25: 0 | E25: 0 | F25: 0 | G25: 0 | H25: 0
A26: scouting | B26: 1 | C26: acre | D26: 0 | E26: 0 | F26: =D26*B26 -> 0 | G26: =F26*(1-E26) -> 0 | H26: =F26*E26 -> 0
A27: other | B27: 1 | C27: acre | D27: 0 | E27: 0 | F27: 0 | G27: 0 | H27: 0
A28: other | B28: 1 | C28: acre | D28: 0 | E28: 0 | F28: 0 | G28: 0 | H28: 0
A29: other | B29: 1 | C29: acre | D29: 0 | E29: 0 | F29: 0 | G29: 0 | H29: 0
A30: Crop Insurance | B30: 1 | C30: acre | D30: 25 | E30: 0.33 | F30: 25 | G30: 16.75 | H30: 8.25
A31: Operator Labor & Hand Labor | B31: 0.54 | C31: hours | D31: ='Universal Input Prices'!$B$31 -> 18 | E31: 0 | F31: 9.72 | G31: 9.72 | H31: 0
A32: Irrigation Labor | B32: 0.584 | C32: hours | D32: ='Universal Input Prices'!$B$31 -> 18 | E32: 0 | F32: 10.512 | G32: 10.512 | H32: 0
A33: Diesel Fuel - Tractors | B33: 1.53 | C33: gallons | D33: ='Universal Input Prices'!$B$32 -> 2.75 | E33: 0 | F33: 4.2075 | G33: 4.2075 | H33: 0
A34: Gasoline - Pickup | B34: 2.04923 | C34: gallons | D34: ='Universal Input Prices'!$B$33 -> 2.4 | E34: 0 | F34: 4.918152 | G34: 4.918152 | H34: 0
A35: Irrigation Fuel | B35: 9 | C35: acin | D35: ='Universal Input Prices'!$B$34 -> 4 | E35: 0.33 | F35: 36 | G35: 24.12 | H35: 11.88
A36: Pumping Days | B36: 48.49
A37: Calculated GPM capacity per acre needed | B37: =B35*18.85694/B36 -> 3.499947618
A38: Repair & Maintenance
A39: Implements | B39: 1 | C39: acre | D39: 5.57 | E39: 0 | F39: =D39*B39 -> 5.57 | G39: 5.57 | H39: 0
A40: Tractors | B40: 1 | C40: acre | D40: 0 | E40: 0 | F40: =D40*B40 -> 0 | G40: 0 | H40: 0
A41: Irrigation-Above Ground | B41: =B35 -> 9 | C41: acin | D41: 3.75 | E41: 0 | F41: =D41*B41 -> 33.75 | G41: 33.75 | H41: 0
A42: Tractors/Self Propelled Equipment | B42: 1 | C42: acre | D42: 3.03 | E42: 1 | F42: =D42*B42 -> 3.03 | G42: 0 | H42: 3.03
A43: Pickup | B43: 1 | C43: acre | D43: 2.51 | E43: 0 | F43: =D43*B43 -> 2.51 | G43: 2.51 | H43: 0
A44: Interest-operating capital | B44: ='Universal Input Prices'!$B$35 -> 0.085 | F44: =(SUM(F15:F23,F25:F43))*$B44/2 -> 13.25404381 | G44: =(SUM(G15:G23,G25:G43))*$B44/2 -> 10.07003192 | H44: 3.184011887
A46: Total Variable Costs | F46: =SUM(F15:F44) -> 325.1138981 | G46: =SUM(G15:G44) -> 247.0119595 | H46: =SUM(H15:H44) -> 78.10193864
A47: Returns Above Variable Costs | F47: =F12-F46 -> 274.8861019 | G47: =G12-G46 -> 154.9880405 | H47: =H12-H46 -> 119.8980614
A49: Fixed Costs
A50: Implements | B50: 1 | C50: acre | D50: 9.45 | E50: 0 | F50: =D50*B50 -> 9.45 | G50: =F50*(1-E50) -> 9.45 | H50: =F50*E50 -> 0
A51: Tractors | B51: 1 | C51: acre | D51: 0 | E51: 0 | F51: 0 | G51: 0 | H51: 0
A52: Irrigation Equipment | B52: 1 | C52: acre | D52: 30.74 | E52: 0 | F52: 30.74 | G52: 30.74 | H52: 0
A53: Tractors/Self Propelled Equipment | B53: 1 | C53: acre | D53: 5.12 | E53: 1 | F53: 5.12 | G53: 0 | H53: 5.12
A54: Pickup | B54: 1 | C54: acre | D54: 4.18 | E54: 0 | F54: 4.18 | G54: 4.18 | H54: 0
A55: Management | B55: 1 | C55: acre | D55: 0 | E55: 0 | F55: 0 | G55: 0 | H55: 0
A56: Irrigation Investment | B56: 1 | C56: acre | D56: 38.25 | E56: 0 | F56: =B56*D56 -> 38.25 | G56: 38.25 | H56: 0
A57: Land cash rent value | B57: 1 | C57: acre | D57: 125 | E57: 1 | F57: =D57*B57 -> 125 | G57: =IF($H$6="Cash",D57,F57*(1-E57)) -> 0 | H57: =IF($H$6="Cash",0,F57*E57) -> 125
A58: Property Tax | B58: 1 | C58: acre | D58: 0 | E58: 1 | F58: =B58*D58 -> 0 | G58: 0 | H58: 0
A59: Total Fixed Expenses | F59: =SUM(F50:F58) -> 212.74 | G59: =SUM(G50:G58) -> 82.62 | H59: =SUM(H50:H58) -> 130.12
A60: Total Specified Expenses | F60: =F46+F59 -> 537.8538981 | G60: =G46+G59 -> 329.6319595 | H60: =H46+H59 -> 208.2219386
A61: Returns Above Total Specified Expenses | F61: =F12-F60 -> 62.1461019 | G61: =G12-G60 -> 72.36804054 | H61: =H12-H60 -> -10.22193864
A63: Return on Investment | F63: =(F61/F60) -> 0.1155445784 | G63: =(G61/G60) -> 0.2195419421 | H63: -0.04909155448

Sheet Irr Soybeans
A2: Estimated Costs and Returns per Acre
A3: Irrigated Soybeans
A4: Projected for 2025
H5: Rental Agreement
A6: Item | B6: Quantity | C6: Unit | D6: Price | E6: Landlord | F6: Total | H6: Share
E7: Share | G7: Tenant | H7: Landlord
A8: Income
A9: soybeans | B9: 60 | C9: bu | D9: ='Universal Input Prices'!$B$14 -> 8.9 | E9: 0.33 | F9: =D9*B9 -> 534 | G9: =F9*(1-E9) -> 357.78 | H9: =IF(H6="Cash", D60,F9*E9) -> 176.22
A10: other income | B10: 1 | C10: unit | D10: 0 | E10: 0.33 | F10: =D10*B10 -> 0 | G10: =F10*(1-E10) -> 0 | H10: =IF(H7="Cash", D59,F10*E10) -> 0
A11: other income | B11: 1 | C11: unit | D11: 0 | E11: 0.33 | F11: =D11*B11 -> 0 | G11: =F11*(1-E11) -> 0 | H11: =IF(H8="Cash", D60,F11*E11) -> 0
A12: Total Income | F12: =SUM(F8:F11) -> 534 | G12: =SUM(G8:G11) -> 357.78 | H12: =SUM(H8:H11) -> 176.22
A14: Variable Costs
A15: Seed
A16: soybean seed | B16: 1 | C16: bag | D16: 76 | E16: 0 | F16: =D16*B16 -> 76 | G16: =F16*(1-E16) -> 76 | H16: =F16*E16 -> 0
A17: tech fee | B17: =B16 -> 1 | C17: lb | D17: 0 | E17: 0 | F17: =D17*B17 -> 0 | G17: =F17*(1-E17) -> 0 | H17: =+F17*E17 -> 0
A18: innoculant | B18: 1 | C18: acre | D18: 7.1 | E18: 0 | F18: =D18*B18 -> 7.1 | G18: =F18*(1-E18) -> 7.1 | H18: =F18*E18 -> 0
A19: Fertilizer
A20: fert (P) - liquid | B20: 50.0499 | C20: lb | D20: =IF(A20="",0,VLOOKUP(A20,'Universal Input Prices'!$A$26:$B$30, 2)) -> 0.8970588235 | E20: 0.33 | F20: =D20*B20 -> 44.89770441 | G20: =F20*(1-E20) -> 30.08146196 | H20: =F20*E20 -> 14.81624246
B21: 0 | C21: lb | D21: =IF(A21="",0,VLOOKUP(A21,'Universal Input Prices'!$A$26:$B$30, 2)) -> 0 | E21: 0 | F21: =D21*B21 -> 0 | G21: =F21*(1-E21) -> 0 | H21: =F21*E21 -> 0
B22: 0 | C22: lb | D22: =IF(A22="",0,VLOOKUP(A22,'Universal Input Prices'!$A$26:$B$30, 2)) -> 0 | E22: 0 | F22: =D22*B22 -> 0 | G22: =F22*(1-E22) -> 0 | H22: =F22*E22 -> 0
A23: Field Operations
A24: herbicide & application | B24: 2 | C24: acre | D24: 29.65 | E24: 0.33 | F24: =D24*B24 -> 59.3 | G24: =F24*(1-E24) -> 39.731 | H24: =F24*E24 -> 19.569
A25: fertilizer application | B25: 1 | C25: acre | D25: 0 | E25: 0.33 | F25: 0 | G25: 0 | H25: 0
A26: insecticide & application | B26: 0.5 | C26: acre | D26: 14.47 | E26: 0.33 | F26: 7.235 | G26: 4.84745 | H26: 2.38755
A27: custom harvest & haul | B27: =$B$9 -> 60 | C27: bu. | D27: 1 | E27: 0 | F27: 60 | G27: 60 | H27: 0
A28: crop consultant | B28: 1 | C28: acre | D28: 0 | E28: 0 | F28: 0 | G28: 0 | H28: 0
A29: scouting | B29: 1 | C29: acre | D29: 0 | E29: 0 | F29: =D29*B29 -> 0 | G29: =F29*(1-E29) -> 0 | H29: =F29*E29 -> 0
A30: other | B30: 1 | C30: acre | D30: 0 | E30: 0 | F30: 0 | G30: 0 | H30: 0
A31: other | B31: 1 | C31: acre | D31: 0 | E31: 0 | F31: 0 | G31: 0 | H31: 0
A32: other | B32: 1 | C32: acre | D32: 0 | E32: 0 | F32: 0 | G32: 0 | H32: 0
A33: Crop Insurance | B33: 1 | C33: acre | D33: 25 | E33: 0.33 | F33: 25 | G33: 16.75 | H33: 8.25
A34: Operator Labor & Hand Labor | B34: 0.26 | C34: hour | D34: ='Universal Input Prices'!$B$31 -> 18 | E34: 0 | F34: 4.68 | G34: 4.68 | H34: 0
A35: Irrigation Labor | B35: 0.90499 | C35: hours | D35: ='Universal Input Prices'!$B$31 -> 18 | E35: 0 | F35: 16.28982 | G35: 16.28982 | H35: 0
A36: Diesel Fuel - Tractors | B36: 0.78 | C36: gallons | D36: ='Universal Input Prices'!$B$32 -> 2.75 | E36: 0 | F36: 2.145 | G36: 2.145 | H36: 0
A37: Gasoline - Pickup | B37: 2.049 | C37: gallons | D37: ='Universal Input Prices'!$B$33 -> 2.4 | E37: 0 | F37: 4.9176 | G37: 4.9176 | H37: 0
A38: Irrigation Fuel | B38: 14 | C38: acin | D38: ='Universal Input Prices'!$B$34 -> 4 | E38: 0.33 | F38: 56 | G38: 37.52 | H38: 18.48
A39: Pumping Days | B39: 67.88
A40: Calculated GPM capacity per acre needed | B40: =B38*18.85694/B39 -> 3.889174425
A41: Repair & Maintenance | G41: 0 | H41: 0
A42: Implements | B42: 1 | C42: acre | D42: 5.53 | E42: 0 | F42: =D42*B42 -> 5.53 | G42: 5.53 | H42: 0
A43: Tractors | B43: 1 | C43: acre | D43: 0 | E43: 0 | F43: =D43*B43 -> 0 | G43: 0 | H43: 0
A44: Irrigation-Above Ground | B44: 16 | C44: acin | D44: 3.75 | E44: 0 | F44: =D44*B44 -> 60 | G44: 60 | H44: 0
A45: Tractors/Self Propelled Equipment | B45: 1 | C45: acre | D45: 1.74 | E45: 1 | F45: =D45*B45 -> 1.74 | G45: 0 | H45: 1.74
A46: Pickup | B46: 1 | C46: acre | D46: 2.51 | E46: 0 | F46: =D46*B46 -> 2.51 | G46: 2.51 | H46: 0
A47: Interest-operating capital | B47: ='Universal Input Prices'!$B$35 -> 0.085 | F47: =(SUM(F16:F26,F28:F46))*$B47/2 -> 15.86716779 | G47: =(SUM(G16:G26,G28:G46))*$B47/2 -> 13.09434911 | H47: 2.772818679
A49: Total Variable Costs | F49: =SUM(F16:F47) -> 449.2122922 | G49: =SUM(G16:G47) -> 381.1966811 | H49: =SUM(H16:H47) -> 68.01561114
A50: Returns Above Variable Costs | F50: =F12-F49 -> 84.7877078 | G50: =G12-G49 -> -23.41668106 | H50: =H12-H49 -> 108.2043889
A52: Fixed Costs
A53: Implements | B53: 1 | C53: acre | D53: 9.49 | E53: 0 | F53: =D53*B53 -> 9.49 | G53: =F53*(1-E53) -> 9.49 | H53: =F53*E53 -> 0
A54: Tractors | B54: 1 | C54: acre | D54: 0 | E54: 0 | F54: 0 | G54: 0 | H54: 0
A55: Irrigation Equipment | B55: 1 | C55: acre | D55: 40.42 | E55: 0 | F55: 40.42 | G55: 40.42 | H55: 0
A56: Tractors/Self Propelled Equipment | B56: 1 | C56: acre | D56: 2.92 | E56: 1 | F56: 2.92 | G56: 0 | H56: 2.92
A57: Pickup | B57: 1 | C57: acre | D57: 4.18 | E57: 0 | F57: 4.18 | G57: 4.18 | H57: 0
A58: Management | B58: 1 | C58: acre | D58: 0 | E58: 0 | F58: 0 | G58: 0 | H58: 0
A59: Irrigation Investment | B59: 1 | C59: acre | D59: 44.29 | E59: 0 | F59: 44.29 | G59: 44.29 | H59: 0
A60: Land cash rent value | B60: 1 | C60: acre | D60: 125 | E60: 1 | F60: 125 | G60: =IF($H$6="Cash",D60,F60*(1-E60)) -> 0 | H60: =IF($H$6="Cash",0,F60*E60) -> 125
A61: Property Tax | B61: 1 | C61: acre | D61: 0 | E61: 1 | F61: 0 | G61: 0 | H61: 0
A62: Total Fixed Expenses | F62: =SUM(F53:F61) -> 226.3 | G62: =SUM(G53:G61) -> 98.38 | H62: =SUM(H53:H61) -> 127.92
A63: Total Specified Expenses | F63: =F49+F62 -> 675.5122922 | G63: =G49+G62 -> 479.5766811 | H63: =H49+H62 -> 195.9356111
A64: Returns Above Total Specified Expenses | F64: =F12-F63 -> -141.5122922 | G64: =G12-G63 -> -121.7966811 | H64: =H12-H63 -> -19.71561114
A66: Return on Investment | F66: =(F64/F63) -> -0.2094888484 | G66: =(G64/G63) -> -0.2539670628 | H66: -0.1006229088

Sheet Irr Sunflowers-Confection
A2: Estimated Costs and Returns per Acre
A3: Irrigated Sunflowers-Confectionary
A4: Projected for 2025
H5: Rental Agreement
A6: Item | B6: Quantity | C6: Unit | D6: Price | E6: Landlord | F6: Total | H6: Share
E7: Share | G7: Tenant | H7: Landlord
A8: Income
A9: Confectionary sunflower | B9: 18 | C9: cwt | D9: ='Universal Input Prices'!$B$15 -> 27.5 | E9: 0.33 | F9: =D9*B9 -> 495 | G9: =F9*(1-E9) -> 331.65 | H9: =IF(H6="Cash", D60,F9*E9) -> 163.35
A10: Expected % Large | B10: 0.667
A11: other income | B11: 1 | C11: unit | D11: 0 | E11: 0.33 | F11: =D11*B11 -> 0 | G11: =F11*(1-E11) -> 0 | H11: =IF(H8="Cash", D60,F11*E11) -> 0
A12: other income | B12: 1 | C12: unit | D12: 0 | E12: 0.33 | F12: =D12*B12 -> 0 | G12: =F12*(1-E12) -> 0 | H12: =IF(H9="Cash", D61,F12*E12) -> 0
A13: Total Income | F13: =SUM(F8:F12) -> 495 | G13: =SUM(G8:G12) -> 331.65 | H13: =SUM(H8:H12) -> 163.35
A15: Variable Costs
A16: Seed | B16: 1 | C16: acre | D16: 34 | E16: 0 | F16: =D16*B16 -> 34 | G16: =F16*(1-E16) -> 34 | H16: =F16*E16 -> 0
A17: Fertilizer
A18: fert (P) - liquid | B18: 25 | C18: lb | D18: =IF(A18="",0,VLOOKUP(A18,'Universal Input Prices'!$A$26:$B$30, 2)) -> 0.8970588235 | E18: 0.33 | F18: =D18*B18 -> 22.42647059 | G18: =F18*(1-E18) -> 15.02573529 | H18: =F18*E18 -> 7.400735294
A19: fert (N) - liquid | B19: 70.01 | C19: lb | D19: =IF(A19="",0,VLOOKUP(A19,'Universal Input Prices'!$A$26:$B$27, 2)) -> 0.578125 | E19: 0.33 | F19: =D19*B19 -> 40.47453125 | G19: =F19*(1-E19) -> 27.11793594 | H19: =F19*E19 -> 13.35659531
B20: 0 | C20: lb | D20: =IF(A20="",0,VLOOKUP(A20,'Universal Input Prices'!$A$26:$B$30, 2)) -> 0 | E20: 0 | F20: =D20*B20 -> 0 | G20: =F20*(1-E20) -> 0 | H20: =F20*E20 -> 0
A21: Field Operations
A22: herbicide (2-4D/Prowl H2O) | B22: 1 | C22: acre | D22: 16.6 | E22: 0.33 | F22: =D22*B22 -> 16.6 | G22: =F22*(1-E22) -> 11.122 | H22: =F22*E22 -> 5.478
A23: herbicide (glyphosphate) | B23: 3 | C23: acre | D23: 11.4 | E23: 0.33 | F23: 34.2 | G23: 22.914 | H23: 11.286
A24: seed insecticide | B24: 1 | C24: acre | D24: 12.5 | E24: 0.33 | F24: 12.5 | G24: 8.375 | H24: 4.125
A25: custom harvest | B25: 1 | C25: acre | D25: 45 | E25: 0 | F25: 45 | G25: 45 | H25: 0
A26: custom haul | B26: =B9 -> 18 | C26: cwt | D26: 0.7 | E26: 0 | F26: 12.6 | G26: 12.6 | H26: 0
A27: insecticide (ammo) | B27: 1 | C27: acre | D27: 3.8 | E27: 0.33 | F27: 3.8 | G27: 2.546 | H27: 1.254
A28: herbicide application | B28: 3 | C28: acre | D28: 8 | E28: 0 | F28: 24 | G28: 24 | H28: 0
A29: pesticide application | B29: 1 | C29: acre | D29: 8 | E29: 0 | F29: 8 | G29: 8 | H29: 0
A30: other | B30: 1 | C30: acre | D30: 0 | E30: 0 | F30: 0 | G30: 0 | H30: 0
A31: other | B31: 1 | C31: acre | D31: 0 | E31: 0 | F31: 0 | G31: 0 | H31: 0
A32: other | B32: 1 | C32: acre | D32: 0 | E32: 0 | F32: 0 | G32: 0 | H32: 0
A33: Crop Insurance | B33: 1 | C33: acre | D33: 25 | E33: 0.33 | F33: 25 | G33: 16.75 | H33: 8.25
A34: Operator Labor & Hand Labor | B34: 0.18 | C34: hours | D34: ='Universal Input Prices'!$B$31 -> 18 | E34: 0 | F34: 3.24 | G34: 3.24 | H34: 0
A35: Irrigation Labor | B35: 0.4545 | C35: hours | D35: ='Universal Input Prices'!$B$31 -> 18 | E35: 0 | F35: 8.181 | G35: 8.181 | H35: 0
A36: Diesel Fuel - Tractors | B36: 0.64 | C36: gallons | D36: ='Universal Input Prices'!$B$32 -> 2.75 | E36: 0 | F36: 1.76 | G36: 1.76 | H36: 0
A37: Gasoline - Pickup | B37: 4.504 | C37: gallons | D37: ='Universal Input Prices'!$B$33 -> 2.4 | E37: 0 | F37: 10.8096 | G37: 10.8096 | H37: 0
A38: Irrigation Fuel | B38: 7 | C38: acin | D38: ='Universal Input Prices'!$B$34 -> 4 | E38: 0.33 | F38: 28 | G38: 18.76 | H38: 9.24
A39: Pumping Days | B39: 66
A40: Calculated GPM capacity per acre needed | B40: =B38*18.85694/B39 -> 1.999978485
A41: Repair & Maintenance
A42: Implements | B42: 1 | C42: acre | D42: 3.06 | E42: 0 | F42: =D42*B42 -> 3.06 | G42: =F42*(1-E42) -> 3.06 | H42: =F42*E42 -> 0
A43: Tractors | B43: 1 | C43: acre | D43: 0 | E43: 0 | F43: =D43*B43 -> 0 | G43: =F43*(1-E43) -> 0 | H43: =F43*E43 -> 0
A44: Irrigation-Above Ground | B44: =B38 -> 7 | C44: acin | D44: 3.75 | E44: 0 | F44: =D44*B44 -> 26.25 | G44: =F44*(1-E44) -> 26.25 | H44: =F44*E44 -> 0
A45: Tractors/Self Propelled Equipment | B45: 1 | C45: acre | D45: 1.64 | E45: 1 | F45: =D45*B45 -> 1.64 | G45: =F45*(1-E45) -> 0 | H45: =F45*E45 -> 1.64
A46: Pickup | B46: 1 | C46: acre | D46: 5.52 | E46: 0 | F46: =D46*B46 -> 5.52 | G46: =F46*(1-E46) -> 5.52 | H46: =F46*E46 -> 0
A47: Interest-operating capital | B47: ='Universal Input Prices'!$B$35 -> 0.085 | F47: =(SUM(F16:F24,F27:F46))*$B47/2 -> 13.15211808 | G47: =(SUM(G16:G24,G27:G46))*$B47/2 -> 10.51582903 | H47: 2.636289051
A49: Total Variable Costs | F49: =SUM(F16:F47) -> 380.2137199 | G49: =SUM(G16:G47) -> 315.5471003 | H49: =SUM(H16:H47) -> 64.66661966
A50: Returns Above Variable Costs | F50: =F13-F49 -> 114.7862801 | G50: =G13-G49 -> 16.10289974 | H50: =H13-H49 -> 98.68338034
A52: Fixed Costs
A53: Implements | B53: 1 | C53: acre | D53: 5.36 | E53: 0 | F53: =D53*B53 -> 5.36 | G53: =F53*(1-E53) -> 5.36 | H53: =F53*E53 -> 0
A54: Tractors | B54: 1 | C54: acre | D54: 0 | E54: 0 | F54: 0 | G54: 0 | H54: 0
A55: Irrigation Equipment | B55: 1 | C55: acre | D55: 28.8 | E55: 0 | F55: 28.8 | G55: 28.8 | H55: 0
A56: Tractors/Self Propelled Equipment | B56: 1 | C56: acre | D56: 2.81 | E56: 1 | F56: 2.81 | G56: 0 | H56: 2.81
A57: Pickup | B57: 1 | C57: acre | D57: 9.19 | E57: 0 | F57: 9.19 | G57: 9.19 | H57: 0
A58: Management | B58: 1 | C58: acre | D58: 0 | E58: 0 | F58: 0 | G58: 0 | H58: 0
A59: Irrigation Investment | B59: 1 | C59: acre | D59: 37.04 | E59: 0 | F59: =B59*D59 -> 37.04 | G59: 37.04 | H59: 0
A60: Land cash rent value | B60: 1 | C60: acre | D60: 125 | E60: 1 | F60: =D60*B60 -> 125 | G60: =IF($H$6="Cash",D60,F60*(1-E60)) -> 0 | H60: =IF($H$6="Cash",0,F60*E60) -> 125
A61: Property Tax | B61: 1 | C61: acre | D61: 0 | E61: 1 | F61: =B61*D61 -> 0 | G61: 0 | H61: 0
A62: Total Fixed Expenses | F62: =SUM(F53:F61) -> 208.2 | G62: =SUM(G53:G61) -> 80.39 | H62: =SUM(H53:H61) -> 127.81
A63: Total Specified Expenses | F63: =F49+F62 -> 588.4137199 | G63: =G49+G62 -> 395.9371003 | H63: =H49+H62 -> 192.4766197
A64: Returns Above Total Specified Expenses | F64: =F13-F63 -> -93.41371992 | G64: =G13-G63 -> -64.28710026 | H64: =H13-H63 -> -29.12661966
A66: Return on Investment | F66: =(F64/F63) -> -0.1587551696 | G66: =(G64/G63) -> -0.1623669523 | H66: -0.1513254945

Sheet Irr Sunflowers-Oilseed
A2: Estimated Costs and Returns per Acre
A3: Irrigated Sunflowers-Oilseed
A4: Projected for 2025
H5: Rental Agreement
A6: Item | B6: Quantity | C6: Unit | D6: Price | E6: Landlord | F6: Total | H6: Share
E7: Share | G7: Tenant | H7: Landlord
A8: Income
A9: oilseed sunflower | B9: 20 | C9: cwt | D9: ='Universal Input Prices'!$B$16 -> 22.5 | E9: 0.33 | F9: =D9*B9 -> 450 | G9: =F9*(1-E9) -> 301.5 | H9: =IF(H6="Cash", D59,F9*E9) -> 148.5
A10: other income | B10: 1 | C10: unit | D10: 0 | E10: 0.33 | F10: =D10*B10 -> 0 | G10: =F10*(1-E10) -> 0 | H10: =IF(H7="Cash", D59,F10*E10) -> 0
A11: other income | B11: 1 | C11: unit | D11: 0 | E11: 0.33 | F11: =D11*B11 -> 0 | G11: =F11*(1-E11) -> 0 | H11: =IF(H8="Cash", D60,F11*E11) -> 0
A12: Total Income | F12: =SUM(F8:F11) -> 450 | G12: =SUM(G8:G11) -> 301.5 | H12: =SUM(H8:H11) -> 148.5
A14: Variable Costs
A15: Seed | B15: 1 | C15: acre | D15: 34 | E15: 0 | F15: =D15*B15 -> 34 | G15: =F15*(1-E15) -> 34 | H15: =F15*E15 -> 0
A16: Fertilizer
A17: fert (P) - liquid | B17: 25 | C17: lb | D17: =IF(A17="",0,VLOOKUP(A17,'Universal Input Prices'!$A$26:$B$30, 2)) -> 0.8970588235 | E17: 0.33 | F17: =D17*B17 -> 22.42647059 | G17: =F17*(1-E17) -> 15.02573529 | H17: =F17*E17 -> 7.400735294
A18: fert (N) - liquid | B18: 70.01 | C18: lb | D18: =IF(A18="",0,VLOOKUP(A18,'Universal Input Prices'!$A$26:$B$27, 2)) -> 0.578125 | E18: 0.33 | F18: =D18*B18 -> 40.47453125 | G18: =F18*(1-E18) -> 27.11793594 | H18: =F18*E18 -> 13.35659531
B19: 0 | C19: lb | D19: =IF(A19="",0,VLOOKUP(A19,'Universal Input Prices'!$A$26:$B$30, 2)) -> 0 | E19: 0 | F19: =D19*B19 -> 0 | G19: =F19*(1-E19) -> 0 | H19: =F19*E19 -> 0
A20: Field Operations
A21: herbicide (glyphosphate) | B21: 3 | C21: acre | D21: 11.4 | E21: 0.33 | F21: =D21*B21 -> 34.2 | G21: =F21*(1-E21) -> 22.914 | H21: =F21*E21 -> 11.286
A22: herbicide (2-4D/Prowl H2O) | B22: 1 | D22: 16.6 | E22: 0.33 | F22: 16.6 | G22: 11.122 | H22: 5.478
A23: seed insecticide | B23: 1 | C23: acre | D23: 12 | E23: 0.33 | F23: 12 | G23: 8.04 | H23: 3.96
A24: custom harvest | B24: 1 | C24: acre | D24: 45 | E24: 0.33 | F24: 45 | G24: 30.15 | H24: 14.85
A25: custom haul | B25: =B9 -> 20 | C25: cwt | D25: 0.7 | E25: 0.33 | F25: 14 | G25: 9.38 | H25: 4.62
A26: insecticide (ammo) | B26: 1 | C26: acre | D26: 3.8 | E26: 0.33 | F26: =D26*B26 -> 3.8 | G26: =F26*(1-E26) -> 2.546 | H26: =F26*E26 -> 1.254
A27: herbicide application | B27: 3 | C27: acre | D27: 8 | E27: 0 | F27: =D27*B27 -> 24 | G27: =F27*(1-E27) -> 24 | H27: =F27*E27 -> 0
A28: pesticide application | B28: 1 | C28: acre | D28: 8 | E28: 0 | F28: =D28*B28 -> 8 | G28: =F28*(1-E28) -> 8 | H28: =F28*E28 -> 0
A29: other | B29: 1 | C29: acre | D29: 0 | E29: 0 | F29: 0 | G29: 0 | H29: 0
A30: other | B30: 1 | C30: acre | D30: 0 | E30: 0 | F30: 0 | G30: 0 | H30: 0
A31: other | B31: 1 | C31: acre | D31: 0 | E31: 0 | F31: 0 | G31: 0 | H31: 0
A32: Crop Insurance | B32: 1 | C32: acre | D32: 25 | E32: 0.33 | F32: 25 | G32: 16.75 | H32: 8.25
A33: Operator Labor & Hand Labor | B33: 0.18 | C33: hours | D33: ='Universal Input Prices'!$B$31 -> 18 | E33: 0 | F33: 3.24 | G33: 3.24 | H33: 0
A34: Irrigation Labor | B34: 0.4544 | C34: hours | D34: ='Universal Input Prices'!$B$31 -> 18 | E34: 0 | F34: 8.1792 | G34: 8.1792 | H34: 0
A35: Diesel Fuel - Tractors | B35: 0.64 | C35: gallons | D35: ='Universal Input Prices'!$B$32 -> 2.75 | E35: 0 | F35: 1.76 | G35: 1.76 | H35: 0
A36: Gasoline - Pickup | B36: 4.51 | C36: gallons | D36: ='Universal Input Prices'!$B$33 -> 2.4 | E36: 0 | F36: 10.824 | G36: 10.824 | H36: 0
A37: Irrigation Fuel | B37: 7 | C37: acin | D37: ='Universal Input Prices'!$B$34 -> 4 | E37: 0.33 | F37: 28 | G37: 18.76 | H37: 9.24
A38: Pumping Days | B38: 66
A39: Calculated GPM capacity per acre needed | B39: =B37*18.85694/B38 -> 1.999978485
A40: Repair & Maintenance
A41: Implements | B41: 1 | C41: acre | D41: 3.06 | E41: 0 | F41: =D41*B41 -> 3.06 | G41: =F41*(1-E41) -> 3.06 | H41: =F41*E41 -> 0
A42: Tractors | B42: 1 | C42: acre | D42: 0 | E42: 0 | F42: =D42*B42 -> 0 | G42: =F42*(1-E42) -> 0 | H42: =F42*E42 -> 0
A43: Irrigation-Above Ground | B43: =B37 -> 7 | C43: acin | D43: 3.75 | E43: 0 | F43: =D43*B43 -> 26.25 | G43: =F43*(1-E43) -> 26.25 | H43: =F43*E43 -> 0
A44: Tractors/Self Propelled Equipment | B44: 1 | C44: acre | D44: 1.64 | E44: 1 | F44: =D44*B44 -> 1.64 | G44: =F44*(1-E44) -> 0 | H44: =F44*E44 -> 1.64
A45: Pickup | B45: 1 | C45: acre | D45: 5.52 | E45: 0 | F45: =D45*B45 -> 5.52 | G45: =F45*(1-E45) -> 5.52 | H45: =F45*E45 -> 0
A46: Interest-operating capital | B46: ='Universal Input Prices'!$B$35 -> 0.085 | F46: =(SUM(F15:F23,F26:F45))*$B46/2 -> 13.13140358 | G46: =(SUM(G15:G23,G26:G45))*$B46/2 -> 10.50212703 | H46: 2.629276551
A48: Total Variable Costs | F48: =SUM(F15:F46) -> 381.1056054 | G48: =SUM(G15:G46) -> 297.1409983 | H48: =SUM(H15:H46) -> 83.96460716
A49: Returns Above Variable Costs | F49: =F12-F48 -> 68.89439458 | G49: =G12-G48 -> 4.359001741 | H49: =H12-H48 -> 64.53539284
A51: Fixed Costs
A52: Implements | B52: 1 | C52: acre | D52: 5.36 | E52: 0 | F52: =D52*B52 -> 5.36 | G52: =F52*(1-E52) -> 5.36 | H52: =F52*E52 -> 0
A53: Tractors | B53: 1 | C53: acre | D53: 0 | E53: 0 | F53: 0 | G53: 0 | H53: 0
A54: Irrigation Equipment | B54: 1 | C54: acre | D54: 28.8 | E54: 0 | F54: 28.8 | G54: 28.8 | H54: 0
A55: Tractors/Self Propelled Equipment | B55: 1 | C55: acre | D55: 2.81 | E55: 1 | F55: 2.81 | G55: 0 | H55: 2.81
A56: Pickup | B56: 1 | C56: acre | D56: 9.19 | E56: 0 | F56: 9.19 | G56: 9.19 | H56: 0
A57: Management | B57: 1 | C57: acre | D57: 0 | E57: 0 | F57: 0 | G57: 0 | H57: 0
A58: Irrigation Investment | B58: 1 | C58: acre | D58: 37.04 | E58: 0 | F58: =B58*D58 -> 37.04 | G58: 37.04 | H58: 0
A59: Land cash rent value | B59: 1 | C59: acre | D59: 125 | E59: 1 | F59: =D59*B59 -> 125 | G59: =IF($H$6="Cash",D59,F59*(1-E59)) -> 0 | H59: =IF($H$6="Cash",0,F59*E59) -> 125
A60: Property Tax | B60: 1 | C60: acre | D60: 0 | E60: 1 | F60: =B60*D60 -> 0 | G60: 0 | H60: 0
A61: Total Fixed Expenses | F61: =SUM(F52:F60) -> 208.2 | G61: =SUM(G52:G60) -> 80.39 | H61: =SUM(H52:H60) -> 127.81
A62: Total Specified Expenses | F62: =F48+F61 -> 589.3056054 | G62: =G48+G61 -> 377.5309983 | H62: =H48+H61 -> 211.7746072
A63: Returns Above Total Specified Expenses | F63: =F12-F62 -> -139.3056054 | G63: =G12-G62 -> -76.03099826 | H63: =H12-H62 -> -63.27460716
A65: Return on Investment | F65: =(F63/F62) -> -0.2363894118 | G65: =(G63/G62) -> -0.2013900808 | H65: -0.2987827861

Sheet Irr Triticale Silage
A2: Estimated Costs and Returns per Acre
A3: Irrigated Triticale Silage
A4: Projected for 2025
H5: Rental Agreement
A6: Item | B6: Quantity | C6: Unit | D6: Price | E6: Landlord | F6: Total | H6: Share
E7: Share | G7: Tenant | H7: Landlord
A8: Income
A9: triticale silage | B9: 10 | C9: ton | D9: ='Universal Input Prices'!$B$17 -> 46 | E9: 0.33 | F9: =D9*B9 -> 460 | G9: =F9*(1-E9) -> 308.2 | H9: =IF(H6="Cash", D57,F9*E9) -> 151.8
A10: other income | B10: 1 | C10: unit | D10: 0 | E10: 0.33 | F10: =D10*B10 -> 0 | G10: =F10*(1-E10) -> 0 | H10: =IF(H7="Cash", D59,F10*E10) -> 0
A11: other income | B11: 1 | C11: unit | D11: 0 | E11: 0.33 | F11: =D11*B11 -> 0 | G11: =F11*(1-E11) -> 0 | H11: =IF(H8="Cash", D60,F11*E11) -> 0
A12: Total Income | F12: =SUM(F6:F11) -> 460 | G12: =SUM(G7:G11) -> 308.2 | H12: =SUM(H7:H11) -> 151.8
A14: Variable Costs
A15: Seed | B15: 0.6 | C15: cwt | D15: 25 | E15: 0 | F15: =D15*B15 -> 15 | G15: =F15*(1-E15) -> 15 | H15: =F15*E15 -> 0
A16: Fertilizer
A17: fert (N) - NH3 | B17: 55 | C17: lb | D17: =IF(A17="",0,VLOOKUP(A17,'Universal Input Prices'!$A$26:$B$30, 2)) -> 0.4268292683 | E17: 0.33 | F17: =D17*B17 -> 23.47560976 | G17: =F17*(1-E17) -> 15.72865854 | H17: =F17*E17 -> 7.74695122
A18: fert (P) - liquid | B18: 35 | C18: lb | D18: =IF(A18="",0,VLOOKUP(A18,'Universal Input Prices'!$A$26:$B$30, 2)) -> 0.8970588235 | E18: 0.33 | F18: =D18*B18 -> 31.39705882 | G18: =F18*(1-E18) -> 21.03602941 | H18: =F18*E18 -> 10.36102941
A19: fert (N) - liquid | B19: 25 | C19: lb | D19: =IF(A19="",0,VLOOKUP(A19,'Universal Input Prices'!$A$26:$B$30, 2)) -> 0.578125 | E19: 0 | F19: =D19*B19 -> 14.453125 | G19: =F19*(1-E19) -> 14.453125 | H19: =F19*E19 -> 0
A20: Field Operations
A21: herbicide & application | B21: 1 | C21: acre | D21: 0 | E21: 0.33 | F21: =D21*B21 -> 0 | G21: =F21*(1-E21) -> 0 | H21: =F21*E21 -> 0
A22: fertilizer application | B22: 1 | C22: acre | D22: 18 | E22: 0.33 | F22: 18 | G22: 12.06 | H22: 5.94
A23: insecticide & application | B23: 1 | C23: acre | D23: 14.32 | E23: 0.33 | F23: 14.32 | G23: 9.5944 | H23: 4.7256
A24: custom harvest & haul | B24: =$B$9 -> 10 | C24: ton | D24: 12.5 | E24: 0 | F24: 125 | G24: 125 | H24: 0
A25: crop consultant | B25: 1 | C25: acre | D25: 0 | E25: 0 | F25: 0 | G25: 0 | H25: 0
A26: scouting | B26: 1 | C26: acre | D26: 0 | E26: 0 | F26: =D26*B26 -> 0 | G26: =F26*(1-E26) -> 0 | H26: =F26*E26 -> 0
A27: other | B27: 1 | C27: acre | D27: 0 | E27: 0 | F27: 0 | G27: 0 | H27: 0
A28: other | B28: 1 | C28: acre | D28: 0 | E28: 0 | F28: 0 | G28: 0 | H28: 0
A29: other | B29: 1 | C29: acre | D29: 0 | E29: 0 | F29: 0 | G29: 0 | H29: 0
A30: Crop Insurance | B30: 1 | C30: acre | D30: 0 | E30: 0.33 | F30: 0 | G30: 0 | H30: 0
A31: Operator Labor & Hand Labor | B31: 0.54 | C31: hour | D31: ='Universal Input Prices'!$B$31 -> 18 | E31: 0 | F31: 9.72 | G31: 9.72 | H31: 0
A32: Irrigation Labor | B32: 0.9644 | C32: hours | D32: ='Universal Input Prices'!$B$31 -> 18 | E32: 0 | F32: 17.3592 | G32: 17.3592 | H32: 0
A33: Diesel Fuel - Tractors | B33: 1.53 | C33: gallons | D33: ='Universal Input Prices'!$B$32 -> 2.75 | E33: 0 | F33: 4.2075 | G33: 4.2075 | H33: 0
A34: Gasoline - Pickup | B34: 2.0485 | C34: gallons | D34: ='Universal Input Prices'!$B$33 -> 2.4 | E34: 0 | F34: 4.9164 | G34: 4.9164 | H34: 0
A35: Irrigation Fuel | B35: 12 | C35: acin | D35: ='Universal Input Prices'!$B$34 -> 4 | E35: 0.33 | F35: 48 | G35: 32.16 | H35: 15.84
A36: Pumping Days | B36: 70.04
A37: Calculated GPM capacity per acre needed | B37: =B35*18.85694/B36 -> 3.23077213
A38: Repair & Maintenance | G38: 0 | H38: 0
A39: Implements | B39: 1 | C39: acre | D39: 5.57 | E39: 0 | F39: =D39*B39 -> 5.57 | G39: 5.57 | H39: 0
A40: Tractors | B40: 1 | C40: acre | D40: 0 | E40: 0 | F40: =D40*B40 -> 0 | G40: 0 | H40: 0
A41: Irrigation-Above Ground | B41: =B35 -> 12 | C41: acin | D41: 3.75 | E41: 0 | F41: =D41*B41 -> 45 | G41: 45 | H41: 0
A42: Tractors/Self Propelled Equipment | B42: 1 | C42: acre | D42: 3.03 | E42: 1 | F42: =D42*B42 -> 3.03 | G42: 0 | H42: 3.03
A43: Pickup | B43: 1 | C43: acre | D43: 2.51 | E43: 0 | F43: =D43*B43 -> 2.51 | G43: 2.51 | H43: 0
A44: Interest-operating capital | B44: ='Universal Input Prices'!$B$35 -> 0.085 | F44: =(SUM(F15:F23,F25:F43))*$B44/2 -> 10.92075298 | G44: =(SUM(G15:G23,G25:G43))*$B44/2 -> 8.8959008 | H44: 2.024852177
A46: Total Variable Costs | F46: =SUM(F15:F44) -> 392.8796466 | G46: =SUM(G15:G44) -> 343.2112137 | H46: =SUM(H15:H44) -> 49.66843281
A47: Returns Above Variable Costs | F47: =F12-F46 -> 67.12035344 | G47: =G12-G46 -> -35.01121375 | H47: =H12-H46 -> 102.1315672
A49: Fixed Costs
A50: Implements | B50: 1 | C50: acre | D50: 9.45 | E50: 0 | F50: =D50*B50 -> 9.45 | G50: =F50*(1-E50) -> 9.45 | H50: =F50*E50 -> 0
A51: Tractors | B51: 1 | C51: acre | D51: 0 | E51: 0 | F51: 0 | G51: 0 | H51: 0
A52: Irrigation Equipment | B52: 1 | C52: acre | D52: 33.5 | E52: 0 | F52: 33.5 | G52: 33.5 | H52: 0
A53: Tractors/Self Propelled Equipment | B53: 1 | C53: acre | D53: 5.12 | E53: 1 | F53: 5.12 | G53: 0 | H53: 5.12
A54: Pickup | B54: 1 | C54: acre | D54: 4.18 | E54: 0 | F54: 4.18 | G54: 4.18 | H54: 0
A55: Management | B55: 1 | C55: acre | D55: 0 | E55: 0 | F55: 0 | G55: 0 | H55: 0
A56: Irrigation Investment | B56: 1 | C56: acre | D56: 39.97 | E56: 0 | F56: =B56*D56 -> 39.97 | G56: 39.97 | H56: 0
A57: Land cash rent value | B57: 1 | C57: acre | D57: 125 | E57: 1 | F57: =D57*B57 -> 125 | G57: =IF($H$6="Cash",D57,F57*(1-E57)) -> 0 | H57: =IF($H$6="Cash",0,F57*E57) -> 125
A58: Property Tax | B58: 1 | C58: acre | D58: 0 | E58: 1 | F58: =B58*D58 -> 0 | G58: 0 | H58: 0
A59: Total Fixed Expenses | F59: =SUM(F50:F58) -> 217.22 | G59: =SUM(G50:G58) -> 87.1 | H59: =SUM(H50:H58) -> 130.12
A60: Total Specified Expenses | F60: =F46+F59 -> 610.0996466 | G60: =G46+G59 -> 430.3112137 | H60: =H46+H59 -> 179.7884328
A61: Returns Above Total Specified Expenses | F61: =F12-F60 -> -150.0996466 | G61: =G12-G60 -> -122.1112137 | H61: =H12-H60 -> -27.98843281
A63: Return on Investment | F63: =(F61/F60) -> -0.246024805 | G63: =(G61/G60) -> -0.2837741845 | H63: -0.1556742688

Sheet Irr Wheat
A2: Estimated Costs and Returns per Acre
A3: Irrigated Wheat
A4: Projected for 2025
H5: Rental Agreement
A6: Item | B6: Quantity | C6: Unit | D6: Price | E6: Landlord | F6: Total | H6: Share
E7: Share | G7: Tenant | H7: Landlord
A8: Income
A9: wheat | B9: 50 | C9: bu | D9: ='Universal Input Prices'!$B$18 -> 5.2 | E9: 0.33 | F9: =D9*B9 -> 260 | G9: =F9*(1-E9) -> 174.2 | H9: =IF(H6="Cash", D58,F9*E9) -> 85.8
A10: grazing | B10: 136 | C10: lb | D10: =Grazing_Price -> 0.75 | E10: 0.33 | F10: =D10*B10 -> 102 | G10: =F10*(1-E10) -> 68.34 | H10: =IF(H6="Cash", 0,F10*E10) -> 33.66
A11: other income | B11: 1 | C11: unit | D11: 0 | E11: 0.33 | F11: =D11*B11 -> 0 | G11: =F11*(1-E11) -> 0 | H11: =IF(H8="Cash", D60,F11*E11) -> 0
A12: other income | B12: 1 | C12: unit | D12: 0 | E12: 0.33 | F12: =D12*B12 -> 0 | G12: =F12*(1-E12) -> 0 | H12: =IF(H9="Cash", D61,F12*E12) -> 0
A13: Total Income | F13: =SUM(F8:F12) -> 362 | G13: =SUM(G8:G12) -> 242.54 | H13: =SUM(H8:H12) -> 119.46
A15: Variable Costs
A16: Seed | B16: 1.2 | C16: bu | D16: 12.5 | E16: 0 | F16: =D16*B16 -> 15 | G16: =F16*(1-E16) -> 15 | H16: =F16*E16 -> 0
A17: Fertilizer
A18: fert (N) - NH3 | B18: 45 | C18: lb | D18: =IF(A18="",0,VLOOKUP(A18,'Universal Input Prices'!$A$26:$B$30, 2)) -> 0.4268292683 | E18: 0.33 | F18: =D18*B18 -> 19.20731707 | G18: =F18*(1-E18) -> 12.86890244 | H18: =F18*E18 -> 6.338414634
A19: fert (P) - liquid | B19: 25.1 | C19: lb | D19: =IF(A19="",0,VLOOKUP(A19,'Universal Input Prices'!$A$26:$B$30, 2)) -> 0.8970588235 | E19: 0.33 | F19: =D19*B19 -> 22.51617647 | G19: =F19*(1-E19) -> 15.08583824 | H19: =F19*E19 -> 7.430338235
A20: fert (N) - liquid | B20: 20 | C20: lb | D20: =IF(A20="",0,VLOOKUP(A20,'Universal Input Prices'!$A$26:$B$27, 2)) -> 0.578125 | E20: 0.33 | F20: =D20*B20 -> 11.5625 | G20: =F20*(1-E20) -> 7.746875 | H20: =F20*E20 -> 3.815625
A21: Field Operations
A22: herbicide & application | B22: 1 | C22: acre | D22: 0 | E22: 0.33 | F22: =D22*B22 -> 0 | G22: =F22*(1-E22) -> 0 | H22: =F22*E22 -> 0
A23: fertilizer application | B23: 1 | C23: acre | D23: 18 | E23: 0.33 | F23: 18 | G23: 12.06 | H23: 5.94
A24: insecticide & application | B24: 1 | C24: acre | D24: 14.32 | E24: 0.33 | F24: 14.32 | G24: 9.5944 | H24: 4.7256
A25: custom harvest & haul | B25: =B9 -> 50 | C25: bu. | D25: 1.14 | E25: 0 | F25: 57 | G25: 57 | H25: 0
A26: hoeing | B26: 0 | C26: acre | D26: 0 | E26: 0 | F26: 0 | G26: 0 | H26: 0
A27: scouting | B27: 1 | C27: acre | D27: 0 | E27: 0 | F27: =D27*B27 -> 0 | G27: =F27*(1-E27) -> 0 | H27: =F27*E27 -> 0
A28: other | B28: 1 | C28: acre | D28: 0 | E28: 0 | F28: 0 | G28: 0 | H28: 0
A29: other | B29: 1 | C29: acre | D29: 0 | E29: 0 | F29: 0 | G29: 0 | H29: 0
A30: other | B30: 1 | C30: acre | D30: 0 | E30: 0 | F30: 0 | G30: 0 | H30: 0
A31: Crop Insurance | B31: 1 | C31: acre | D31: 36 | E31: 0.33 | F31: 36 | G31: 24.12 | H31: 11.88
A32: Operator Labor & Hand Labor | B32: 0.54 | C32: hours | D32: ='Universal Input Prices'!$B$31 -> 18 | E32: 0 | F32: 9.72 | G32: 9.72 | H32: 0
A33: Irrigation Labor | B33: 0.974 | C33: hours | D33: ='Universal Input Prices'!$B$31 -> 18 | E33: 0 | F33: 17.532 | G33: 17.532 | H33: 0
A34: Diesel Fuel - Tractors | B34: 1.53 | C34: gallons | D34: ='Universal Input Prices'!$B$32 -> 2.75 | E34: 0 | F34: 4.2075 | G34: 4.2075 | H34: 0
A35: Gasoline - Pickup | B35: 2.04923 | C35: gallons | D35: ='Universal Input Prices'!$B$33 -> 2.4 | E35: 0 | F35: 4.918152 | G35: 4.918152 | H35: 0
A36: Irrigation Fuel | B36: 10 | C36: acin | D36: ='Universal Input Prices'!$B$34 -> 4 | E36: 0.33 | F36: 40 | G36: 26.8 | H36: 13.2
A37: Pumping Days | B37: 70.71
A38: Calculated GPM capacity per acre needed | B38: =B36*18.85694/B37 -> 2.666799604
A39: Repair & Maintenance
A40: Implements | B40: 1 | C40: acre | D40: 5.57 | E40: 0 | F40: =D40*B40 -> 5.57 | G40: 5.57 | H40: 0
A41: Tractors | B41: 1 | C41: acre | D41: 0 | E41: 0 | F41: =D41*B41 -> 0 | G41: 0 | H41: 0
A42: Irrigation-Above Ground | B42: =B36 -> 10 | C42: acin | D42: 3.75 | E42: 0 | F42: =D42*B42 -> 37.5 | G42: 37.5 | H42: 0
A43: Tractors/Self Propelled Equipment | B43: 1 | C43: acre | D43: 3.03 | E43: 1 | F43: =D43*B43 -> 3.03 | G43: 0 | H43: 3.03
A44: Pickup | B44: 1 | C44: acre | D44: 2.51 | E44: 0 | F44: =D44*B44 -> 2.51 | G44: 2.51 | H44: 0
A45: Interest-operating capital | B45: ='Universal Input Prices'!$B$35 -> 0.085 | F45: =(SUM(F16:F24,F26:F44))*$B45/2 -> 11.11772994 | G45: =(SUM(G16:G24,G26:G44))*$B45/2 -> 8.722430876 | H45: 2.395299059
A47: Total Variable Costs | F47: =SUM(F16:F45) -> 329.7113755 | G47: =SUM(G16:G45) -> 270.9560986 | H47: =SUM(H16:H45) -> 58.75527693
A48: Returns Above Variable Costs | F48: =F13-F47 -> 32.28862452 | G48: =G13-G47 -> -28.41609855 | H48: =H13-H47 -> 60.70472307
A50: Fixed Costs
A51: Implements | B51: 1 | C51: acre | D51: 9.45 | E51: 0 | F51: =D51*B51 -> 9.45 | G51: =F51*(1-E51) -> 9.45 | H51: =F51*E51 -> 0
A52: Tractors | B52: 1 | C52: acre | D52: 0 | E52: 0 | F52: 0 | G52: 0 | H52: 0
A53: Irrigation Equipment | B53: 1 | C53: acre | D53: 33.5 | E53: 0 | F53: 33.5 | G53: 33.5 | H53: 0
A54: Tractors/Self Propelled Equipment | B54: 1 | C54: acre | D54: 5.12 | E54: 1 | F54: 5.12 | G54: 0 | H54: 5.12
A55: Pickup | B55: 1 | C55: acre | D55: 4.18 | E55: 0 | F55: 4.18 | G55: 4.18 | H55: 0
A56: Management | B56: 1 | C56: acre | D56: 0 | E56: 0 | F56: 0 | G56: 0 | H56: 0
A57: Irrigation Investment | B57: 1 | C57: acre | D57: 39.97 | E57: 0 | F57: =B57*D57 -> 39.97 | G57: 39.97 | H57: 0
A58: Land cash rent value | B58: 1 | C58: acre | D58: 125 | E58: 1 | F58: =D58*B58 -> 125 | G58: =IF($H$6="Cash",D58,F58*(1-E58)) -> 0 | H58: =IF($H$6="Cash",0,F58*E58) -> 125
A59: Property Tax | B59: 1 | C59: acre | D59: 0 | E59: 1 | F59: =B59*D59 -> 0 | G59: 0 | H59: 0
A60: Total Fixed Expenses | F60: =SUM(F51:F59) -> 217.22 | G60: =SUM(G51:G59) -> 87.1 | H60: =SUM(H51:H59) -> 130.12
A61: Total Specified Expenses | F61: =F47+F60 -> 546.9313755 | G61: =G47+G60 -> 358.0560986 | H61: =H47+H60 -> 188.8752769
A62: Returns Above Total Specified Expenses | F62: =F13-F61 -> -184.9313755 | G62: =G13-G61 -> -115.5160986 | H62: =H13-H61 -> -69.41527693
A64: Return on Investment | F64: =(F62/F61) -> -0.3381253733 | G64: =(G62/G61) -> -0.3226201118 | H64: -0.3675191272

Sheet Irr Other Crop
A2: Estimated Costs and Returns per Acre
A3: ='Universal Input Prices'!A19 -> Irrigated Other Crop
A4: Projected for 2025
H5: Rental Agreement
A6: Item | B6: Quantity | C6: Unit | D6: Price | E6: Landlord | F6: Total | H6: Share
E7: Share | G7: Tenant | H7: Landlord
A8: Income
A9: other irrigated crop | B9: 0 | C9: ='Universal Input Prices'!C19 -> unit | D9: ='Universal Input Prices'!B19 -> 0 | E9: 0.33 | F9: =D9*B9 -> 0 | G9: =F9*(1-E9) -> 0 | H9: =IF(H6="Cash", D59,F9*E9) -> 0
A10: other income | B10: 1 | C10: unit | D10: 0 | E10: 0.33 | F10: =D10*B10 -> 0 | G10: =F10*(1-E10) -> 0 | H10: =IF(H7="Cash", D59,F10*E10) -> 0
A11: other income | B11: 1 | C11: unit | D11: 0 | E11: 0.33 | F11: =D11*B11 -> 0 | G11: =F11*(1-E11) -> 0 | H11: =IF(H8="Cash", D60,F11*E11) -> 0
A12: Total Income | F12: =F9+F10 -> 0 | G12: =G9+G10 -> 0 | H12: =H9+H10 -> 0
A14: Variable Costs
A15: Seed | B15: 0 | C15: unit | D15: 0 | E15: 0 | F15: =D15*B15 -> 0 | G15: =F15*(1-E15) -> 0 | H15: =F15*E15 -> 0
A16: Fertilizer
A17: fert (N) - NH3 | B17: 0 | C17: lb | D17: =IF(A17="",0,VLOOKUP(A17,'Universal Input Prices'!$A$26:$B$30, 2)) -> 0.4268292683 | E17: 0.33 | F17: =D17*B17 -> 0 | G17: =F17*(1-E17) -> 0 | H17: =F17*E17 -> 0
A18: fert (N) - dry | B18: 0 | C18: lb | D18: =IF(A18="",0,VLOOKUP(A18,'Universal Input Prices'!$A$26:$B$30, 2)) -> 0.5217391304 | E18: 0.33 | F18: 0 | G18: 0 | H18: 0
A19: fert (N) - liquid | B19: 0 | C19: lb | D19: =IF(A19="",0,VLOOKUP(A19,'Universal Input Prices'!$A$26:$B$30, 2)) -> 0.578125 | E19: 0.33 | F19: =D19*B19 -> 0 | G19: =F19*(1-E19) -> 0 | H19: =F19*E19 -> 0
A20: fert (P) - dry | B20: 0 | C20: lb | D20: =IF(A20="",0,VLOOKUP(A20,'Universal Input Prices'!$A$26:$B$30, 2)) -> 0.8028846154 | E20: 0.33 | F20: =D20*B20 -> 0 | G20: =F20*(1-E20) -> 0 | H20: =F20*E20 -> 0
A21: fert (P) - liquid | B21: 0 | C21: lb | D21: =IF(A21="",0,VLOOKUP(A21,'Universal Input Prices'!$A$26:$B$30, 2)) -> 0.8970588235 | E21: 0.33 | F21: =D21*B21 -> 0 | G21: =F21*(1-E21) -> 0 | H21: =F21*E21 -> 0
A22: Field Operations
A23: herbicide & application | B23: 1 | C23: acre | D23: 0 | E23: 0.33 | F23: =D23*B23 -> 0 | G23: =F23*(1-E23) -> 0 | H23: =F23*E23 -> 0
A24: fertilizer application | B24: 0 | C24: acre | D24: 11.75 | E24: 0.33 | F24: 0 | G24: 0 | H24: 0
A25: insecticide & application | B25: 0 | C25: acre | D25: 0 | E25: 0.33 | F25: 0 | G25: 0 | H25: 0
A26: custom harvest & haul | B26: =B9 -> 0 | C26: =C9 -> unit | D26: 0 | E26: 0 | F26: 0 | G26: 0 | H26: 0
A27: crop consulting | B27: 1 | C27: acre | D27: 0 | E27: 0 | F27: 0 | G27: 0 | H27: 0
A28: scouting | B28: 1 | C28: acre | D28: 0 | E28: 0 | F28: =D28*B28 -> 0 | G28: =F28*(1-E28) -> 0 | H28: =F28*E28 -> 0
A29: other | B29: 1 | C29: acre | D29: 0 | E29: 0 | F29: 0 | G29: 0 | H29: 0
A30: other | B30: 1 | C30: acre | D30: 0 | E30: 0 | F30: 0 | G30: 0 | H30: 0
A31: other | B31: 1 | C31: acre | D31: 0 | E31: 0 | F31: 0 | G31: 0 | H31: 0
A32: Crop Insurance | B32: 1 | C32: acre | D32: 0 | E32: 0.33 | F32: 0 | G32: 0 | H32: 0
A33: Operator Labor & Hand Labor | B33: 0 | C33: hours | D33: ='Universal Input Prices'!$B$31 -> 18 | E33: 0 | F33: 0 | G33: 0 | H33: 0
A34: Irrigation Labor | B34: 0 | C34: hours | D34: ='Universal Input Prices'!$B$31 -> 18 | E34: 0 | F34: 0 | G34: 0 | H34: 0
A35: Diesel Fuel - Tractors | B35: 0 | C35: gallons | D35: ='Universal Input Prices'!$B$32 -> 2.75 | E35: 0 | F35: 0 | G35: 0 | H35: 0
A36: Gasoline - Pickup | B36: 0 | C36: gallons | D36: ='Universal Input Prices'!$B$33 -> 2.4 | E36: 0 | F36: 0 | G36: 0 | H36: 0
A37: Irrigation Fuel | B37: 0 | C37: acin | D37: ='Universal Input Prices'!$B$34 -> 4 | E37: 0.33 | F37: 0 | G37: 0 | H37: 0
A38: Pumping Days | B38: 70.71
A39: Calculated GPM capacity per acre needed | B39: =B37*18.85694/B38 -> 0
A40: Repair & Maintenance
A41: Implements | B41: 0 | C41: acre | D41: 4.47 | E41: 0 | F41: =D41*B41 -> 0 | G41: 0 | H41: 0
A42: Tractors | B42: 0 | C42: acre | D42: 5.55 | E42: 0 | F42: =D42*B42 -> 0 | G42: 0 | H42: 0
A43: Irrigation-Above Ground | B43: =Other_Inches -> 0 | C43: acin | D43: 3.75 | E43: 0 | F43: =D43*B43 -> 0 | G43: 0 | H43: 0
A44: Self Propelled Equipment | B44: 0 | C44: acre | D44: 0.16 | E44: 1 | F44: =D44*B44 -> 0 | G44: 0 | H44: 0
A45: Pickup | B45: 1 | C45: acre | D45: 0 | E45: 0 | F45: =D45*B45 -> 0 | G45: 0 | H45: 0
A46: Interest-operating capital | B46: ='Universal Input Prices'!$B$35 -> 0.085 | F46: =(SUM(F15:F25,F27:F45))*$B46/2 -> 0 | G46: =(SUM(G15:G25,G27:G45))*$B46/2 -> 0 | H46: 0
A48: Total Variable Costs | F48: =SUM(F15:F46) -> 0 | G48: =SUM(G15:G46) -> 0 | H48: =SUM(H15:H46) -> 0
A49: Returns Above Variable Costs | F49: =F12-F48 -> 0 | G49: =G12-G48 -> 0 | H49: =H12-H48 -> 0
A51: Fixed Costs
A52: Implements | B52: 0 | C52: acre | D52: 7.04 | E52: 0 | F52: =D52*B52 -> 0 | G52: =F52*(1-E52) -> 0 | H52: =F52*E52 -> 0
A53: Tractors | B53: 0 | C53: acre | D53: 7.89 | E53: 0 | F53: 0 | G53: 0 | H53: 0
A54: Irrigation-Above Ground | B54: 0 | C54: acre | D54: 35.56 | E54: 0 | F54: 0 | G54: 0 | H54: 0
A55: Self Propelled Equipment | B55: 0 | C55: acre | D55: 0.24 | E55: 1 | F55: 0 | G55: 0 | H55: 0
A56: Pickup | B56: 1 | C56: acre | D56: 0 | E56: 0 | F56: 0 | G56: 0 | H56: 0
A57: Management | B57: 1 | C57: acre | D57: 0 | E57: 0 | F57: 0 | G57: 0 | H57: 0
A58: Whole Farm Insurance | B58: 1 | C58: acre | D58: 0 | E58: 0 | F58: =B58*D58 -> 0 | G58: 0 | H58: 0
A59: Land cash rent value | B59: 0 | C59: acre | D59: 85 | E59: 1 | F59: =D59*B59 -> 0 | G59: =IF($H$6="Cash",D59,F59*(1-E59)) -> 0 | H59: =IF($H$6="Cash",0,F59*E59) -> 0
A60: Property Tax | B60: 1 | C60: acre | D60: 0 | E60: 1 | F60: =B60*D60 -> 0 | G60: 0 | H60: 0
A61: Total Fixed Expenses | F61: =SUM(F52:F60) -> 0 | G61: =SUM(G52:G60) -> 0 | H61: =SUM(H52:H60) -> 0
A62: Total Specified Expenses | F62: =F48+F61 -> 0 | G62: =G48+G61 -> 0 | H62: =H48+H61 -> 0
A63: Returns Above Total Specified Expenses | F63: =F12-F62 -> 0 | G63: =G12-G62 -> 0 | H63: =H12-H62 -> 0
A65: Return on Investment | F65: =IF(F62=0,"-",(F63/F62)) -> - | G65: =IF(G62=0,"-",(G63/G62)) -> - | H65: -

Sheet Dry Cotton
A2: Estimated Costs and Returns per Acre
A3: Dryland Cotton
A4: Projected for 2025
H5: Rental Agreement
A6: Item | B6: Quantity | C6: Unit | D6: Price | E6: Landlord | F6: Total | H6: Share
E7: Share | G7: Tenant | H7: Landlord
A8: Income
A9: cotton lint | B9: 400 | C9: lb | D9: ='Universal Input Prices'!$B$8 -> 0.7 | E9: 0.33 | F9: =D9*B9 -> 280 | G9: =F9*(1-E9) -> 187.6 | H9: =IF(H6="Cash", D61,F9*E9) -> 92.4
A10: cotton seed | B10: =B9/500*'Universal Input Prices'!B39/2000 -> 0.3 | C10: tons | D10: ='Universal Input Prices'!$B$9 -> 215 | E10: 0.33 | F10: =D10*B10 -> 64.5 | G10: =F10*(1-E10) -> 43.215 | H10: =IF(H6="Cash", 0,F10*E10) -> 21.285
A11: Expected Turnout | B11: 0.2222
A12: other income | B12: 1 | C12: unit | D12: 0 | E12: 0.33 | F12: =D12*B12 -> 0 | G12: =F12*(1-E12) -> 0 | H12: =IF(H9="Cash", D61,F12*E12) -> 0
A13: other income | B13: 1 | C13: unit | D13: 0 | E13: 0.33 | F13: =D13*B13 -> 0 | G13: =F13*(1-E13) -> 0 | H13: =IF(H10="Cash", D62,F13*E13) -> 0
A14: Total Income | F14: =SUM(F9:F13) -> 344.5 | G14: =SUM(G9:G13) -> 230.815 | H14: =SUM(H9:H13) -> 113.685
A16: Variable Costs
A17: Seed
A18: cotton seed | B18: 0.18 | C18: bag | D18: 335 | E18: 0 | F18: =D18*B18 -> 60.3 | G18: =F18*(1-E18) -> 60.3 | H18: =F18*E18 -> 0
A19: Boll Weevil Assess.-Dry | B19: 1 | C19: acre | D19: 4 | E19: 0.33 | F19: =D19 -> 4 | G19: =F19*(1-E19) -> 2.68 | H19: =F19*E19 -> 1.32
A20: Fertilizer
A21: fert (P) - dry | B21: 20.01 | C21: lb | D21: =IF(A21="",0,VLOOKUP(A21,'Universal Input Prices'!$A$26:$B$30, 2)) -> 0.8028846154 | E21: 0.33 | F21: =D21*B21 -> 16.06572115 | G21: =F21*(1-E21) -> 10.76403317 | H21: =F21*E21 -> 5.301687981
A22: fert (N) - dry | B22: 30 | C22: lb | D22: =IF(A22="",0,VLOOKUP(A22,'Universal Input Prices'!$A$26:$B$30, 2)) -> 0.5217391304 | E22: 0.33 | F22: =D22*B22 -> 15.65217391 | G22: =F22*(1-E22) -> 10.48695652 | H22: =F22*E22 -> 5.165217391
B23: 0 | C23: lb | D23: =IF(A23="",0,VLOOKUP(A23,'Universal Input Prices'!$A$26:$B$30, 2)) -> 0 | E23: 0 | F23: =D23*B23 -> 0 | G23: =F23*(1-E23) -> 0 | H23: =F23*E23 -> 0
A24: Field Operations
A25: preplant herbicide & application | B25: 1 | C25: acre | D25: 58.95 | E25: 0.33 | F25: =D25*B25 -> 58.95 | G25: =F25*(1-E25) -> 39.4965 | H25: =F25*E25 -> 19.4535
A26: post emergence herbicide & application | B26: 1 | C26: acre | D26: 32.82 | E26: 0.33 | F26: 32.82 | G26: 21.9894 | H26: 10.8306
A27: clean-up herbicide & application | B27: 1 | C27: acre | D27: 0 | E27: 0.33 | F27: 0 | G27: 0 | H27: 0
A28: fertilizer application | B28: 1 | C28: acre | D28: 8 | E28: 0.33 | F28: 8 | G28: 5.36 | H28: 2.64
A29: insecticide & application | B29: 0.5 | C29: acre | D29: 15.42 | E29: 0.33 | F29: 7.71 | G29: 5.1657 | H29: 2.5443
A30: harvest aids | B30: 0.5 | C30: acre | D30: 34.45 | E30: 0.33 | F30: 17.225 | G30: 11.54075 | H30: 5.68425
A31: strip (field cleaner) | B31: =B9/100 -> 4 | C31: cwt. | D31: ='Universal Input Prices'!$B$37 -> 12 | E31: 0 | F31: 48 | G31: 48 | H31: 0
A32: ginning | B32: =B9/B11/100 -> 18.00180018 | C32: cwt. | D32: ='Universal Input Prices'!$B$38 -> 3.25 | E32: 0.33 | F32: 58.50585059 | G32: 39.19891989 | H32: 19.30693069
A33: hoeing | B33: 1 | C33: acre | D33: 0 | E33: 0 | F33: 0 | G33: 0 | H33: 0
A34: scouting | B34: 1 | C34: acre | D34: 0 | E34: 0 | F34: =D34*B34 -> 0 | G34: =F34*(1-E34) -> 0 | H34: =F34*E34 -> 0
A35: other | B35: 1 | C35: acre | D35: 0 | E35: 0 | F35: 0 | G35: 0 | H35: 0
A36: other | B36: 1 | C36: acre | D36: 0 | E36: 0 | F36: 0 | G36: 0 | H36: 0
A37: other | B37: 1 | C37: acre | D37: 0 | E37: 0 | F37: 0 | G37: 0 | H37: 0
A38: Crop Insurance | B38: 1 | C38: acre | D38: 29 | E38: 0.33 | F38: 29 | G38: 19.43 | H38: 9.57
A39: Operator Labor & Hand Labor | B39: 0.65 | C39: hours | D39: ='Universal Input Prices'!$B$31 -> 18 | E39: 0 | F39: 11.7 | G39: 11.7 | H39: 0
A40: Diesel Fuel - Tractors | B40: 1.74 | C40: gallons | D40: ='Universal Input Prices'!$B$32 -> 2.75 | E40: 0 | F40: 4.785 | G40: 4.785 | H40: 0
A41: Gasoline - Pickup | B41: 2.034 | C41: gallons | D41: ='Universal Input Prices'!$B$33 -> 2.4 | E41: 0 | F41: 4.8816 | G41: 4.8816 | H41: 0
A42: Repair & Maintenance
A43: Implements | B43: 1 | C43: acre | D43: 5.62 | E43: 0 | F43: =D43*B43 -> 5.62 | G43: =F43*(1-E43) -> 5.62 | H43: =F43*E43 -> 0
A44: Tractors | B44: 1 | C44: acre | D44: 0 | E44: 0 | F44: =D44*B44 -> 0 | G44: =F44*(1-E44) -> 0 | H44: =F44*E44 -> 0
A45: Other Fixed Expenses | B45: 1 | C45: acre | D45: 0 | E45: 0 | F45: =D45*B45 -> 0 | G45: =F45*(1-E45) -> 0 | H45: =F45*E45 -> 0
A46: Tractors/Self Propelled Equipment | B46: 1 | C46: acre | D46: 3.29 | E46: 1 | F46: =D46*B46 -> 3.29 | G46: =F46*(1-E46) -> 0 | H46: =F46*E46 -> 3.29
A47: Pickup | B47: 1 | C47: acre | D47: 2.49 | E47: 0 | F47: =D47*B47 -> 2.49 | G47: =F47*(1-E47) -> 2.49 | H47: =F47*E47 -> 0
A48: Interest-operating capital | B48: ='Universal Input Prices'!$B$35 -> 0.085 | F48: =(SUM(F18:F29,F33:F47))*$B48/2 -> 11.27374104 | G48: =(SUM(G18:G29,G33:G47))*$B48/2 -> 8.718840562 | H48: =(SUM(H18:H29,H33:H47))*$B48/2 -> 2.554900478
A50: Total Variable Costs | F50: =SUM(F18:F48) -> 400.2690867 | G50: =SUM(G18:G48) -> 312.6077001 | H50: =SUM(H18:H48) -> 87.66138654
A51: Returns Above Variable Costs | F51: =F14-F50 -> -55.76908669 | G51: =G14-G50 -> -81.79270015 | H51: =H14-H50 -> 26.02361346
A53: Fixed Costs
A54: Implements | B54: 1 | C54: acre | D54: 9.42 | E54: 0 | F54: =D54*B54 -> 9.42 | G54: =F54*(1-E54) -> 9.42 | H54: =F54*E54 -> 0
A55: Tractors | B55: 1 | C55: acre | D55: 0 | E55: 0 | F55: 0 | G55: 0 | H55: 0
A56: Other Fixed Expenses | B56: 1 | C56: acre | D56: 0 | E56: 1 | F56: 0 | G56: 0 | H56: 0
A57: Tractors/Self Propelled Equipment | B57: 1 | C57: acre | D57: 5.4 | E57: 1 | F57: 5.4 | G57: 0 | H57: 5.4
A58: Pickup | B58: 1 | C58: acre | D58: 4.14 | E58: 0 | F58: 4.14 | G58: 4.14 | H58: 0
A59: Management | B59: 1 | C59: acre | D59: 0 | E59: 0 | F59: 0 | G59: 0 | H59: 0
A60: Whole Farm Insurance | B60: 1 | C60: acre | D60: 0 | E60: 0 | F60: 0 | G60: 0 | H60: 0
A61: Land cash rent value | B61: 1 | C61: acre | D61: 30 | E61: 1 | F61: 30 | G61: =IF($H$6="Cash",D61,F61*(1-E61)) -> 0 | H61: =IF($H$6="Cash",0,F61*E61) -> 30
A62: Property Tax | B62: 1 | C62: acre | D62: 0 | E62: 1 | F62: 0 | G62: 0 | H62: 0
A63: Total Fixed Expenses | F63: =SUM(F54:F62) -> 48.96 | G63: =SUM(G54:G62) -> 13.56 | H63: =SUM(H54:H62) -> 35.4
A64: Total Specified Expenses | F64: =F50+F63 -> 449.2290867 | G64: =G50+G63 -> 326.1677001 | H64: =H50+H63 -> 123.0613865
A65: Returns Above Total Specified Expenses | F65: =F14-F64 -> -104.7290867 | G65: =G14-G64 -> -95.35270015 | H65: =H14-H64 -> -9.376386543
A67: Return on Investment | F67: =(F65/F64) -> -0.2331306894 | G67: =(G65/G64) -> -0.2923425591 | H67: -0.07619275881

Sheet Dry Sorghum
A2: Estimated Costs and Returns per Acre
A3: Dryland Sorghum
A4: Projected for 2025
H5: Rental Agreement
A6: Item | B6: Quantity | C6: Unit | D6: Price | E6: Landlord | F6: Total | H6: Share
E7: Share | G7: Tenant | H7: Landlord
A8: Income
A9: sorghum grain | B9: 25 | C9: cwt | D9: ='Universal Input Prices'!$B$11 -> 7.35 | E9: 0.33 | F9: =B9*D9 -> 183.75 | G9: =F9*(1-E9) -> 123.1125 | H9: =IF(H6="Cash", D54,F9*E9) -> 60.6375
A10: other income | B10: 1 | C10: unit | D10: 0 | E10: 0.33 | F10: =D10*B10 -> 0 | G10: =F10*(1-E10) -> 0 | H10: =IF(H7="Cash", D59,F10*E10) -> 0
A11: other income | B11: 1 | C11: unit | D11: 0 | E11: 0.33 | F11: =D11*B11 -> 0 | G11: =F11*(1-E11) -> 0 | H11: =IF(H8="Cash", D60,F11*E11) -> 0
A12: Total Income | F12: =SUM(F9:F11) -> 183.75 | G12: =SUM(G9:G11) -> 123.1125 | H12: =SUM(H9:H11) -> 60.6375
A14: Variable Costs
A15: Seed | B15: 2.25 | C15: lb | D15: 3.2 | E15: 0 | F15: =D15*B15 -> 7.2 | G15: =F15*(1-E15) -> 7.2 | H15: =F15*E15 -> 0
A16: Fertilizer
A17: fert (N) - NH3 | B17: 40 | C17: lb | D17: =IF(A17="",0,VLOOKUP(A17,'Universal Input Prices'!$A$26:$B$30, 2)) -> 0.4268292683 | E17: 0.33 | F17: =D17*B17 -> 17.07317073 | G17: =F17*(1-E17) -> 11.43902439 | H17: =F17*E17 -> 5.634146341
B18: 0 | C18: lb | D18: =IF(A18="",0,VLOOKUP(A18,'Universal Input Prices'!$A$26:$B$30, 2)) -> 0 | E18: 0 | F18: =D18*B18 -> 0 | G18: =F18*(1-E18) -> 0 | H18: =F18*E18 -> 0
B19: 0 | C19: lb | D19: =IF(A19="",0,VLOOKUP(A19,'Universal Input Prices'!$A$26:$B$30, 2)) -> 0 | E19: 0 | F19: =D19*B19 -> 0 | G19: =F19*(1-E19) -> 0 | H19: =F19*E19 -> 0
A20: Field Operations
A21: herbicide & application | B21: 1 | C21: acre | D21: 48.5 | E21: 0.33 | F21: =D21*B21 -> 48.5 | G21: =F21*(1-E21) -> 32.495 | H21: =F21*E21 -> 16.005
A22: fertilizer application | B22: 1 | C22: acre | D22: 18 | E22: 0.33 | F22: 18 | G22: 12.06 | H22: 5.94
A23: insecticide headworm | B23: 0.67 | C23: acre | D23: 26.13 | E23: 0.33 | F23: 17.5071 | G23: 11.729757 | H23: 5.777343
A24: custom harvest & haul | B24: 1 | C24: acre | D24: 35 | E24: 0 | F24: 35 | G24: 35 | H24: 0
A25: custom harvest & haul | B25: =B9 -> 25 | C25: cwt | D25: 0.35 | E25: 0 | F25: =D25*B25 -> 8.75 | G25: 8.75 | H25: 0
A26: hoeing | B26: 1 | C26: acre | D26: 0 | E26: 0 | F26: 0 | G26: 0 | H26: 0
A27: scouting | B27: 1 | C27: acre | D27: 0 | E27: 0 | F27: =D27*B27 -> 0 | G27: =F27*(1-E27) -> 0 | H27: =F27*E27 -> 0
A28: insecticide sugar cane aphid | B28: 1 | C28: acre | D28: 19.95 | E28: 0.33 | F28: 19.95 | G28: 13.3665 | H28: 6.5835
A29: other | B29: 1 | C29: acre | D29: 0 | E29: 0 | F29: 0 | G29: 0 | H29: 0
A30: other | B30: 1 | C30: acre | D30: 0 | E30: 0 | F30: 0 | G30: 0 | H30: 0
A31: Crop Insurance | B31: 1 | C31: acre | D31: 20 | E31: 0.33 | F31: 20 | G31: 13.4 | H31: 6.6
A32: Operator Labor & Hand Labor | B32: 0.28 | C32: hours | D32: ='Universal Input Prices'!$B$31 -> 18 | E32: 0 | F32: 5.04 | G32: 5.04 | H32: 0
A33: Diesel Fuel - Tractors | B33: 0.88 | C33: gallons | D33: ='Universal Input Prices'!$B$32 -> 2.75 | E33: 0 | F33: 2.42 | G33: 2.42 | H33: 0
A34: Gasoline - Pickup | B34: 2.032 | C34: gallons | D34: ='Universal Input Prices'!$B$33 -> 2.4 | E34: 0 | F34: 4.8768 | G34: 4.8768 | H34: 0
A35: Repair & Maintenance
A36: Implements | B36: 1 | C36: acre | D36: 3.94 | E36: 0 | F36: =D36*B36 -> 3.94 | G36: =F36*(1-E36) -> 3.94 | H36: =F36*E36 -> 0
A37: Tractors | B37: 1 | C37: acre | D37: 0 | E37: 0 | F37: =D37*B37 -> 0 | G37: =F37*(1-E37) -> 0 | H37: =F37*E37 -> 0
A38: Other Fixed Expenses | B38: 1 | C38: acre | D38: 0 | E38: 0 | F38: =D38*B38 -> 0 | G38: =F38*(1-E38) -> 0 | H38: =F38*E38 -> 0
A39: Tractors/Self Propelled Equipment | B39: 1 | C39: acre | D39: 2.06 | E39: 1 | F39: =D39*B39 -> 2.06 | G39: =F39*(1-E39) -> 0 | H39: =F39*E39 -> 2.06
A40: Pickup | B40: 1 | C40: acre | D40: 2.49 | E40: 0 | F40: =D40*B40 -> 2.49 | G40: =F40*(1-E40) -> 2.49 | H40: =F40*E40 -> 0
A41: Interest-operating capital | B41: ='Universal Input Prices'!$B$35 -> 0.085 | F41: =(SUM(F15:F23,F26:F40))*$B41/2 -> 7.184925506 | G41: =(SUM(G15:G23,G26:G40))*$B41/2 -> 5.119425959 | H41: =(SUM(H15:H23,H26:H40))*$B41/2 -> 2.065499547
A43: Total Variable Costs | F43: =SUM(F15:F41) -> 219.9919962 | G43: =SUM(G15:G41) -> 169.3265073 | H43: =SUM(H15:H41) -> 50.66548889
A44: Returns Above Variable Costs | F44: =F12-F43 -> -36.24199624 | G44: =G12-G43 -> -46.21400735 | H44: =H12-H43 -> 9.972011112
A46: Fixed Costs
A47: Implements | B47: 1 | C47: acre | D47: 7.01 | E47: 0 | F47: =D47*B47 -> 7.01 | G47: =F47*(1-E47) -> 7.01 | H47: =F47*E47 -> 0
A48: Tractors | B48: 1 | C48: acre | D48: 0 | E48: 0 | F48: 0 | G48: 0 | H48: 0
A49: Other Fixed Expenses | B49: 1 | C49: acre | D49: 0 | E49: 1 | F49: 0 | G49: 0 | H49: 0
A50: Tractors/Self Propelled Equipment | B50: 1 | C50: acre | D50: 3.47 | E50: 1 | F50: 3.47 | G50: 0 | H50: 3.47
A51: Pickup | B51: 1 | C51: acre | D51: 4.14 | E51: 0 | F51: 4.14 | G51: 4.14 | H51: 0
A52: Management | B52: 1 | C52: acre | D52: 0 | E52: 0 | F52: 0 | G52: 0 | H52: 0
A53: Whole Farm Insurance | B53: 1 | C53: acre | D53: 0 | E53: 0 | F53: =B53*D53 -> 0 | G53: 0 | H53: 0
A54: Land cash rent value | B54: 1 | C54: acre | D54: 30 | E54: 1 | F54: =D54*B54 -> 30 | G54: =IF($H$6="Cash",D54,F54*(1-E54)) -> 0 | H54: =IF($H$6="Cash",0,F54*E54) -> 30
A55: Property Tax | B55: 1 | C55: acre | D55: 0 | E55: 1 | F55: =B55*D55 -> 0 | G55: 0 | H55: 0
A56: Total Fixed Expenses | F56: =SUM(F47:F55) -> 44.62 | G56: =SUM(G47:G55) -> 11.15 | H56: =SUM(H47:H55) -> 33.47
A57: Total Specified Expenses | F57: =F43+F56 -> 264.6119962 | G57: =G43+G56 -> 180.4765073 | H57: =H43+H56 -> 84.13548889
A58: Returns Above Total Specified Expenses | F58: =F12-F57 -> -80.86199624 | G58: =G12-G57 -> -57.36400735 | H58: =H12-H57 -> -23.49798889
A60: Return on Investment | F60: =(F58/F57) -> -0.3055870383 | G60: =(G58/G57) -> -0.3178475038 | H60: -0.2792874826

Sheet Dry Canola
A2: Estimated Costs and Returns per Acre
A3: Dryland Canola
A4: Projected for 2025
H5: Rental Agreement
A6: Item | B6: Quantity | C6: Unit | D6: Price | E6: Landlord | F6: Total | H6: Share
E7: Share | G7: Tenant | H7: Landlord
A8: Income
A9: canola | B9: 11 | C9: cwt | D9: ='Universal Input Prices'!$B$5 -> 18 | E9: 0.33 | F9: =D9*B9 -> 198 | G9: =F9*(1-E9) -> 132.66 | H9: =IF(H6="Cash", D56,F9*E9) -> 65.34
A10: other income | B10: 1 | C10: unit | D10: 0 | E10: 0.33 | F10: =D10*B10 -> 0 | G10: =F10*(1-E10) -> 0 | H10: =IF(H7="Cash", D59,F10*E10) -> 0
A11: other income | B11: 1 | C11: unit | D11: 0 | E11: 0.33 | F11: =D11*B11 -> 0 | G11: =F11*(1-E11) -> 0 | H11: =IF(H8="Cash", D60,F11*E11) -> 0
A12: Total Income | F12: =SUM(F8:F11) -> 198 | G12: =SUM(G8:G11) -> 132.66 | H12: =SUM(H8:H11) -> 65.34
A14: Variable Costs
A15: Seed
A16: canola seed | B16: 5 | C16: lb | D16: 6.29 | E16: 0 | F16: =D16*B16 -> 31.45 | G16: =F16*(1-E16) -> 31.45 | H16: =F16*E16 -> 0
A17: seed treatment | B17: 1 | C17: acre | D17: 7.14 | E17: 0 | F17: =D17*B17 -> 7.14 | G17: =F17*(1-E17) -> 7.14 | H17: =F17*E17 -> 0
A18: Fertilizer
A19: fert (N) - dry | B19: 35.009 | C19: lb | D19: =IF(A19="",0,VLOOKUP(A19,'Universal Input Prices'!$A$26:$B$26, 2)) -> 0.5217391304 | E19: 0.33 | F19: =D19*B19 -> 18.26556522 | G19: =F19*(1-E19) -> 12.2379287 | H19: =F19*E19 -> 6.027636522
B20: 0 | C20: lb | D20: =IF(A20="",0,VLOOKUP(A20,'Universal Input Prices'!$A$26:$B$30, 2)) -> 0 | E20: 0 | F20: =D20*B20 -> 0 | G20: =F20*(1-E20) -> 0 | H20: =F20*E20 -> 0
B21: 0 | C21: lb | D21: =IF(A21="",0,VLOOKUP(A21,'Universal Input Prices'!$A$26:$B$30, 2)) -> 0 | E21: 0 | F21: =D21*B21 -> 0 | G21: =F21*(1-E21) -> 0 | H21: =F21*E21 -> 0
A22: Field Operations
A23: herbicide & application | B23: 1 | C23: acre | D23: 36.63 | E23: 0.33 | F23: =D23*B23 -> 36.63 | G23: =F23*(1-E23) -> 24.5421 | H23: =F23*E23 -> 12.0879
A24: fertilizer application | B24: 1 | C24: acre | D24: 7.5 | E24: 0.33 | F24: 7.5 | G24: 5.025 | H24: 2.475
A25: insecticide & application | B25: 1 | C25: acre | D25: 15.65 | E25: 0.33 | F25: 15.65 | G25: 10.4855 | H25: 5.1645
A26: custom harvest & haul | B26: 1 | C26: acre | D26: 35 | E26: 0 | F26: 35 | G26: 35 | H26: 0
A27: custom harvest & haul | B27: =B9 -> 11 | C27: cwt | D27: 0.7 | E27: 0 | F27: 7.7 | G27: 7.7 | H27: 0
A28: hoeing | B28: 0 | C28: acre | D28: 0 | E28: 0 | F28: 0 | G28: 0 | H28: 0
A29: scouting | B29: 1 | C29: acre | D29: 0 | E29: 0 | F29: 0 | G29: 0 | H29: 0
A30: other | B30: 1 | C30: acre | D30: 0 | E30: 0 | F30: 0 | G30: 0 | H30: 0
A31: other | B31: 1 | C31: acre | D31: 0 | E31: 0 | F31: 0 | G31: 0 | H31: 0
A32: other | B32: 1 | C32: acre | D32: 0 | E32: 0 | F32: 0 | G32: 0 | H32: 0
A33: Crop Insurance | B33: 1 | C33: acre | D33: 0 | E33: 0.33 | F33: 0 | G33: 0 | H33: 0
A34: Operator Labor & Hand Labor | B34: 0.58 | C34: hours | D34: ='Universal Input Prices'!$B$31 -> 18 | E34: 0 | F34: 10.44 | G34: 10.44 | H34: 0
A35: Diesel Fuel - Tractors | B35: 1.73 | C35: gallons | D35: ='Universal Input Prices'!$B$32 -> 2.75 | E35: 0 | F35: 4.7575 | G35: 4.7575 | H35: 0
A36: Gasoline - Pickup | B36: 2.034 | C36: gallons | D36: ='Universal Input Prices'!$B$33 -> 2.4 | E36: 0 | F36: 4.8816 | G36: 4.8816 | H36: 0
A37: Repair & Maintenance
A38: Implements | B38: 1 | C38: acre | D38: 4.79 | E38: 0 | F38: =D38*B38 -> 4.79 | G38: =F38*(1-E38) -> 4.79 | H38: =F38*E38 -> 0
A39: Tractors | B39: 1 | C39: acre | D39: 0 | E39: 0 | F39: =D39*B39 -> 0 | G39: =F39*(1-E39) -> 0 | H39: =F39*E39 -> 0
A40: Other Fixed Expenses | B40: 1 | C40: acre | D40: 0 | E40: 0 | F40: 0 | G40: =F40*(1-E40) -> 0 | H40: =F40*E40 -> 0
A41: Tractors/Self Propelled Equipment | B41: 1 | C41: acre | D41: 3.75 | E41: 1 | F41: =D41*B41 -> 3.75 | G41: =F41*(1-E41) -> 0 | H41: =F41*E41 -> 3.75
A42: Pickup | B42: 1 | C42: acre | D42: 2.49 | E42: 0 | F42: =D42*B42 -> 2.49 | G42: =F42*(1-E42) -> 2.49 | H42: =F42*E42 -> 0
A43: Interest-operating capital | B43: ='Universal Input Prices'!$B$35 -> 0.085 | F43: =(SUM(F16:F25,F28:F42))*$B43/2 -> 6.279148272 | G43: =(SUM(G16:G25,G28:G42))*$B43/2 -> 5.02518422 | H43: =(SUM(H16:H25,H28:H42))*$B43/2 -> 1.253964052
A45: Total Variable Costs | F45: =SUM(F15:F43) -> 196.7238135 | G45: =SUM(G15:G43) -> 165.9648129 | H45: =SUM(H15:H43) -> 30.75900057
A46: Returns Above Variable Costs | F46: =F12-F45 -> 1.276186511 | G46: =G12-G45 -> -33.30481292 | H46: =H12-H45 -> 34.58099943
A48: Fixed Costs
A49: Implements | B49: 1 | C49: acre | D49: 8.51 | E49: 0 | F49: =D49*B49 -> 8.51 | G49: =F49*(1-E49) -> 8.51 | H49: =F49*E49 -> 0
A50: Tractors | B50: 1 | C50: acre | D50: 0 | E50: 0 | F50: 0 | G50: 0 | H50: 0
A51: Other Fixed Expenses | B51: 1 | C51: acre | D51: 0 | E51: 1 | F51: 0 | G51: 0 | H51: 0
A52: Tractors/Self Propelled Equipment | B52: 1 | C52: acre | D52: 6.35 | E52: 1 | F52: 6.35 | G52: 0 | H52: 6.35
A53: Pickup | B53: 1 | C53: acre | D53: 4.14 | E53: 0 | F53: 4.14 | G53: 4.14 | H53: 0
A54: Management | B54: 1 | C54: acre | D54: 0 | E54: 0 | F54: 0 | G54: 0 | H54: 0
A55: Whole Farm Insurance | B55: 1 | C55: acre | D55: 0 | E55: 0 | F55: =B55*D55 -> 0 | G55: 0 | H55: 0
A56: Land cash rent value | B56: 1 | C56: acre | D56: 30 | E56: 1 | F56: =D56*B56 -> 30 | G56: =IF($H$6="Cash",D56,F56*(1-E56)) -> 0 | H56: =IF($H$6="Cash",0,F56*E56) -> 30
A57: Property Tax | B57: 1 | C57: acre | D57: 0 | E57: 1 | F57: =B57*D57 -> 0 | G57: 0 | H57: 0
A58: Total Fixed Expenses | F58: =SUM(F49:F57) -> 49 | G58: =SUM(G49:G57) -> 12.65 | H58: =SUM(H49:H57) -> 36.35
A59: Total Specified Expenses | F59: =F45+F58 -> 245.7238135 | G59: =G45+G58 -> 178.6148129 | H59: =H45+H58 -> 67.10900057
A60: Returns Above Total Specified Expenses | F60: =F12-F59 -> -47.72381349 | G60: =G12-G59 -> -45.95481292 | H60: =H12-H59 -> -1.769000574
A62: Return on Investment | F62: =(F60/F59) -> -0.1942172914 | G62: =(G60/G59) -> -0.2572844445 | H62: -0.02636010906

Sheet Dry Sorghum Sudangrass
A2: Estimated Costs and Returns per Acre
A3: Dryland Sorghum Sudangrass
A4: Projected for 2025
H5: Rental Agreement
A6: Item | B6: Quantity | C6: Unit | D6: Price | E6: Landlord | F6: Total | H6: Share
E7: Share | G7: Tenant | H7: Landlord
A8: Income
A9: grazing | B9: 336 | C9: lb | D9: =Grazing_Price -> 0.75 | E9: 0.33 | F9: =D9*B9 -> 252 | G9: =F9*(1-E9) -> 168.84 | H9: =IF(H6="Cash", 0,F9*E9) -> 83.16
A10: other income | B10: 1 | C10: unit | D10: 0 | E10: 0.33 | F10: =D10*B10 -> 0 | G10: =F10*(1-E10) -> 0 | H10: =IF(H7="Cash", D59,F10*E10) -> 0
A11: other income | B11: 1 | C11: unit | D11: 0 | E11: 0.33 | F11: =D11*B11 -> 0 | G11: =F11*(1-E11) -> 0 | H11: =IF(H8="Cash", D60,F11*E11) -> 0
A12: Total Income | F12: =SUM(F9:F11) -> 252 | G12: =SUM(G9:G11) -> 168.84 | H12: =SUM(H9:H11) -> 83.16
A14: Variable Costs
A15: Seed | B15: 15 | C15: bu | D15: 0.9 | E15: 0 | F15: =D15*B15 -> 13.5 | G15: =F15*(1-E15) -> 13.5 | H15: =F15*E15 -> 0
A16: Fertilizer
A17: fert (N) - NH3 | B17: 50.03 | C17: lb | D17: =IF(A17="",0,VLOOKUP(A17,'Universal Input Prices'!$A$26:$B$30, 2)) -> 0.4268292683 | E17: 0.33 | F17: =D17*B17 -> 21.35426829 | G17: =F17*(1-E17) -> 14.30735976 | H17: =F17*E17 -> 7.046908537
B18: 0 | C18: lb | D18: =IF(A18="",0,VLOOKUP(A18,'Universal Input Prices'!$A$26:$B$30, 2)) -> 0 | E18: 0 | F18: =D18*B18 -> 0 | G18: =F18*(1-E18) -> 0 | H18: =F18*E18 -> 0
B19: 0 | C19: lb | D19: =IF(A19="",0,VLOOKUP(A19,'Universal Input Prices'!$A$26:$B$30, 2)) -> 0 | E19: 0 | F19: =D19*B19 -> 0 | G19: =F19*(1-E19) -> 0 | H19: =F19*E19 -> 0
A20: Field Operations
A21: herbicide & application | B21: 1 | C21: lb | D21: 29.8 | E21: 0.33 | F21: =D21*B21 -> 29.8 | G21: =F21*(1-E21) -> 19.966 | H21: =F21*E21 -> 9.834
A22: fertilizer application | B22: 1 | C22: acre | D22: 18 | E22: 0.33 | F22: 18 | G22: 12.06 | H22: 5.94
A23: insecticide & application | B23: 1 | C23: acre | D23: 0 | E23: 0.33 | F23: 0 | G23: 0 | H23: 0
A24: custom harvest and haul | B24: 0 | C24: bu | D24: 0 | E24: 0 | F24: 0 | G24: 0 | H24: 0
A25: hoeing | B25: 0 | C25: acre | D25: 0 | E25: 0 | F25: 0 | G25: 0 | H25: 0
A26: scouting | B26: 1 | C26: acre | D26: 0 | E26: 0 | F26: =D26*B26 -> 0 | G26: =F26*(1-E26) -> 0 | H26: =F26*E26 -> 0
A27: other | B27: 1 | C27: acre | D27: 0 | E27: 0 | F27: 0 | G27: 0 | H27: 0
A28: other | B28: 1 | C28: acre | D28: 0 | E28: 0 | F28: 0 | G28: 0 | H28: 0
A29: other | B29: 1 | C29: acre | D29: 0 | E29: 0 | F29: 0 | G29: 0 | H29: 0
A30: Crop Insurance | B30: 1 | C30: acre | D30: 20 | E30: 0.33 | F30: 20 | G30: 13.4 | H30: 6.6
A31: Operator Labor & Hand Labor | B31: 0.56 | C31: hours | D31: ='Universal Input Prices'!$B$31 -> 18 | E31: 0 | F31: 10.08 | G31: 10.08 | H31: 0
A32: Diesel Fuel - Tractors | B32: 1.5 | C32: gallons | D32: ='Universal Input Prices'!$B$32 -> 2.75 | E32: 0 | F32: 4.125 | G32: 4.125 | H32: 0
A33: Gasoline - Pickup | B33: 2.034 | C33: gallons | D33: ='Universal Input Prices'!$B$33 -> 2.4 | E33: 0 | F33: 4.8816 | G33: 4.8816 | H33: 0
A34: Repair & Maintenance
A35: Implements | B35: 1 | C35: acre | D35: 3.07 | E35: 0 | F35: =D35*B35 -> 3.07 | G35: 3.07 | H35: 0
A36: Tractors | B36: 1 | C36: acre | D36: 0 | E36: 0 | F36: =D36*B36 -> 0 | G36: 0 | H36: 0
A37: Other Fixed Expenses | B37: 15 | C37: acre | D37: 0 | E37: 0 | F37: =D37*B37 -> 0 | G37: 0 | H37: 0
A38: Tractors/Self Propelled Equipment | B38: 1 | C38: acre | D38: 2.74 | E38: 1 | F38: =D38*B38 -> 2.74 | G38: 0 | H38: 2.74
A39: Pickup | B39: 1 | C39: acre | D39: 2.49 | E39: 0 | F39: =D39*B39 -> 2.49 | G39: 2.49 | H39: 0
A40: Interest-operating capital | B40: ='Universal Input Prices'!$B$35 -> 0.085 | F40: =(SUM(F15:F23,F25:F39))*$B40/2 -> 5.526736902 | G40: =(SUM(G15:G23,G25:G39))*$B40/2 -> 4.15989829 | H40: =(SUM(H15:H23,H25:H39))*$B40/2 -> 1.366838613
A42: Total Variable Costs | F42: =SUM(F15:F40) -> 135.5676052 | G42: =SUM(G15:G40) -> 102.039858 | H42: =SUM(H15:H40) -> 33.52774715
A43: Returns Above Variable Costs | F43: =F12-F42 -> 116.4323948 | G43: =G12-G42 -> 66.80014195 | H43: =H12-H42 -> 49.63225285
A45: Fixed Costs
A46: Implements | B46: 1 | C46: acre | D46: 5.31 | E46: 0 | F46: =D46*B46 -> 5.31 | G46: =F46*(1-E46) -> 5.31 | H46: =F46*E46 -> 0
A47: Tractors | B47: 1 | C47: acre | D47: 0 | E47: 0 | F47: 0 | G47: 0 | H47: 0
A48: Other Fixed Expenses | B48: 1 | C48: acre | D48: 0 | E48: 1 | F48: 0 | G48: 0 | H48: 0
A49: Tractors/Self Propelled Equipment | B49: 1 | C49: acre | D49: 4.62 | E49: 1 | F49: 4.62 | G49: 0 | H49: 4.62
A50: Pickup | B50: 1 | C50: acre | D50: 4.14 | E50: 0 | F50: 4.14 | G50: 4.14 | H50: 0
A51: Management | B51: 1 | C51: acre | D51: 0 | E51: 0 | F51: 0 | G51: 0 | H51: 0
A52: Whole Farm Insurance | B52: 1 | C52: acre | D52: 0 | E52: 0 | F52: =B52*D52 -> 0 | G52: 0 | H52: 0
A53: Land cash rent value | B53: 1 | C53: acre | D53: 30 | E53: 1 | F53: =D53*B53 -> 30 | G53: =IF($H$6="Cash",D53,F53*(1-E53)) -> 0 | H53: =IF($H$6="Cash",0,F53*E53) -> 30
A54: Property Tax | B54: 1 | C54: acre | D54: 0 | E54: 1 | F54: =B54*D54 -> 0 | G54: 0 | H54: 0
A55: Total Fixed Expenses | F55: =SUM(F46:F54) -> 44.07 | G55: =SUM(G46:G54) -> 9.45 | H55: =SUM(H46:H54) -> 34.62
A56: Total Specified Expenses | F56: =F42+F55 -> 179.6376052 | G56: =G42+G55 -> 111.489858 | H56: =H42+H55 -> 68.14774715
A57: Returns Above Total Specified Expenses | F57: =F12-F56 -> 72.3623948 | G57: =G12-G56 -> 57.35014195 | H57: =H12-H56 -> 15.01225285
A59: Return on Investment | F59: =(F57/F56) -> 0.4028243125 | G59: =(G57/G56) -> 0.5143978381 | H59: 0.2202897892

Sheet Dry Sunflowers-Oilseed
A2: Estimated Costs and Returns per Acre
A3: Dryland Sunflowers-Oilseed
A4: Projected for 2025
H5: Rental Agreement
A6: Item | B6: Quantity | C6: Unit | D6: Price | E6: Landlord | F6: Total | H6: Share
E7: Share | G7: Tenant | H7: Landlord
A8: Income
A9: oilseed sunflowers | B9: 10 | C9: cwt | D9: ='Universal Input Prices'!$B$16 -> 22.5 | E9: 0.33 | F9: =D9*B9 -> 225 | G9: =F9*(1-E9) -> 150.75 | H9: =IF(H6="Cash", D55,F9*E9) -> 74.25
A10: other income | B10: 1 | C10: unit | D10: 0 | E10: 0.33 | F10: =D10*B10 -> 0 | G10: =F10*(1-E10) -> 0 | H10: =IF(H7="Cash", D59,F10*E10) -> 0
A11: other income | B11: 1 | C11: unit | D11: 0 | E11: 0.33 | F11: =D11*B11 -> 0 | G11: =F11*(1-E11) -> 0 | H11: =IF(H8="Cash", D60,F11*E11) -> 0
A12: Total Income | F12: =SUM(F8:F11) -> 225 | G12: =SUM(G8:G11) -> 150.75 | H12: =SUM(H8:H11) -> 74.25
A14: Variable Costs
A15: Seed | B15: 1 | C15: acre | D15: 20 | E15: 0 | F15: =D15*B15 -> 20 | G15: =F15*(1-E15) -> 20 | H15: =F15*E15 -> 0
A16: Fertilizer
A17: fert (N) - liquid | B17: 40.01 | C17: lb | D17: =IF(A17="",0,VLOOKUP(A17,'Universal Input Prices'!$A$26:$B$27, 2)) -> 0.578125 | E17: 0.33 | F17: =D17*B17 -> 23.13078125 | G17: =F17*(1-E17) -> 15.49762344 | H17: =F17*E17 -> 7.633157812
B18: 0 | C18: lb | D18: =IF(A18="",0,VLOOKUP(A18,'Universal Input Prices'!$A$26:$B$30, 2)) -> 0 | E18: 0 | F18: =D18*B18 -> 0 | G18: =F18*(1-E18) -> 0 | H18: =F18*E18 -> 0
B19: 0 | C19: lb | D19: =IF(A19="",0,VLOOKUP(A19,'Universal Input Prices'!$A$26:$B$30, 2)) -> 0 | E19: 0 | F19: =D19*B19 -> 0 | G19: =F19*(1-E19) -> 0 | H19: =F19*E19 -> 0
A20: Field Operations
A21: herbicide (glyphosphate) | B21: 3 | C21: acre | D21: 11.4 | E21: 0.33 | F21: =D21*B21 -> 34.2 | G21: =F21*(1-E21) -> 22.914 | H21: =F21*E21 -> 11.286
A22: herbicide (2-4D/Prowl H2O) | B22: 1 | C22: acre | D22: 16.6 | E22: 0.33 | F22: =D22 -> 16.6 | G22: =F22*(1-E22) -> 11.122 | H22: =F22*E22 -> 5.478
A23: seed insecticide | B23: 1 | C23: acre | D23: 9.8 | E23: 0.33 | F23: =D23*B23 -> 9.8 | G23: 6.566 | H23: 3.234
A24: custom harvest | B24: 1 | C24: acre | D24: 35 | E24: 0 | F24: 35 | G24: 35 | H24: 0
A25: custom haul | B25: =B9 -> 10 | C25: cwt | D25: 0.7 | E25: 0 | F25: 7 | G25: 7 | H25: 0
A26: insecticide (ammo) | B26: 1 | C26: acre | D26: 3.8 | E26: 0 | F26: =D26*B26 -> 3.8 | G26: =F26*(1-E26) -> 3.8 | H26: =F26*E26 -> 0
A27: pesticide application | B27: 1 | C27: acre | D27: 8 | E27: 0 | F27: =D27*B27 -> 8 | G27: =F27*(1-E27) -> 8 | H27: =F27*E27 -> 0
A28: herbicide application | B28: 3 | C28: acre | D28: 8 | E28: 0 | F28: =D28*B28 -> 24 | G28: =F28*(1-E28) -> 24 | H28: =F28*E28 -> 0
A29: other | B29: 1 | C29: acre | D29: 0 | E29: 0 | F29: 0 | G29: 0 | H29: 0
A30: other | B30: 1 | C30: acre | D30: 0 | E30: 0 | F30: 0 | G30: 0 | H30: 0
A31: other | B31: 1 | C31: acre | D31: 0 | E31: 0 | F31: 0 | G31: 0 | H31: 0
A32: Crop Insurance | B32: 1 | C32: acre | D32: 15 | E32: 0.33 | F32: 15 | G32: 10.05 | H32: 4.95
A33: Operator Labor & Hand Labor | B33: 0.18 | C33: hours | D33: ='Universal Input Prices'!$B$31 -> 18 | E33: 0 | F33: =B33*D33 -> 3.24 | G33: 3.24 | H33: 0
A34: Diesel Fuel - Tractors | B34: 0.64 | C34: gallons | D34: ='Universal Input Prices'!$B$32 -> 2.75 | E34: 0 | F34: 1.76 | G34: 1.76 | H34: 0
A35: Gasoline - Pickup | B35: 2.034 | C35: gallons | D35: ='Universal Input Prices'!$B$33 -> 2.4 | E35: 0 | F35: 4.8816 | G35: 4.8816 | H35: 0
A36: Repair & Maintenance
A37: Implements | B37: 1 | C37: acre | D37: 3.06 | E37: 0 | F37: =D37*B37 -> 3.06 | G37: =F37*(1-E37) -> 3.06 | H37: =F37*E37 -> 0
A38: Tractors | B38: 1 | C38: acre | D38: 0 | E38: 0 | F38: =D38*B38 -> 0 | G38: =F38*(1-E38) -> 0 | H38: =F38*E38 -> 0
A39: Other Fixed Expenses | B39: 1 | C39: acre | D39: 0 | E39: 0 | F39: 0 | G39: =F39*(1-E39) -> 0 | H39: =F39*E39 -> 0
A40: Tractors/Self Propelled Equipment | B40: 1 | C40: acre | D40: 1.64 | E40: 1 | F40: =D40*B40 -> 1.64 | G40: =F40*(1-E40) -> 0 | H40: =F40*E40 -> 1.64
A41: Pickup | B41: 1 | C41: acre | D41: 2.49 | E41: 0 | F41: =D41*B41 -> 2.49 | G41: =F41*(1-E41) -> 2.49 | H41: =F41*E41 -> 0
A42: Interest-operating capital | B42: ='Universal Input Prices'!$B$35 -> 0.085 | F42: =(SUM(F15:F23,F26:F41))*$B42/2 -> 7.293101203 | G42: =(SUM(G15:G23,G26:G41))*$B42/2 -> 5.838701996 | H42: =(SUM(H15:H23,H26:H41))*$B42/2 -> 1.454399207
A44: Total Variable Costs | F44: =SUM(F15:F42) -> 220.8954825 | G44: =SUM(G15:G42) -> 185.2199254 | H44: =SUM(H15:H42) -> 35.67555702
A45: Returns Above Variable Costs | F45: =F12-F44 -> 4.104517547 | G45: =G12-G44 -> -34.46992543 | H45: =H12-H44 -> 38.57444298
A47: Fixed Costs
A48: Implements | B48: 1 | C48: acre | D48: 5.36 | E48: 0 | F48: =D48*B48 -> 5.36 | G48: =F48*(1-E48) -> 5.36 | H48: =F48*E48 -> 0
A49: Tractors | B49: 1 | C49: acre | D49: 0 | E49: 0 | F49: 0 | G49: 0 | H49: 0
A50: Other Fixed Expenses | B50: 1 | C50: acre | D50: 0 | E50: 1 | F50: 0 | G50: 0 | H50: 0
A51: Tractors/Self Propelled Equipment | B51: 1 | C51: acre | D51: 2.81 | E51: 1 | F51: 2.81 | G51: 0 | H51: 2.81
A52: Pickup | B52: 1 | C52: acre | D52: 4.14 | E52: 0 | F52: 4.14 | G52: 4.14 | H52: 0
A53: Management | B53: 1 | C53: acre | D53: 0 | E53: 0 | F53: 0 | G53: 0 | H53: 0
A54: Whole Farm Insurance | B54: 1 | C54: acre | D54: 0 | E54: 0 | F54: =B54*D54 -> 0 | G54: 0 | H54: 0
A55: Land cash rent value | B55: 1 | C55: acre | D55: 30 | E55: 1 | F55: =D55*B55 -> 30 | G55: =IF($H$6="Cash",D55,F55*(1-E55)) -> 0 | H55: =IF($H$6="Cash",0,F55*E55) -> 30
A56: Property Tax | B56: 1 | C56: acre | D56: 0 | E56: 1 | F56: =B56*D56 -> 0 | G56: 0 | H56: 0
A57: Total Fixed Expenses | F57: =SUM(F48:F56) -> 42.31 | G57: =SUM(G48:G56) -> 9.5 | H57: =SUM(H48:H56) -> 32.81
A58: Total Specified Expenses | F58: =F44+F57 -> 263.2054825 | G58: =G44+G57 -> 194.7199254 | H58: =H44+H57 -> 68.48555702
A59: Returns Above Total Specified Expenses | F59: =F12-F58 -> -38.20548245 | G59: =G12-G58 -> -43.96992543 | H59: =H12-H58 -> 5.76444298
A61: Return on Investment | F61: =(F59/F58) -> -0.1451545845 | G61: =(G59/G58) -> -0.2258111251 | H61: 0.08417019926

Sheet Dry Wheat
A2: Estimated Costs and Returns per Acre
A3: Dryland Wheat
A4: Projected for 2025
H5: Rental Agreement
A6: Item | B6: Quantity | C6: Unit | D6: Price | E6: Landlord | F6: Total | H6: Share
E7: Share | G7: Tenant | H7: Landlord
A8: Income
A9: wheat | B9: 20 | C9: bu | D9: ='Universal Input Prices'!$B$18 -> 5.2 | E9: 0.33 | F9: =D9*B9 -> 104 | G9: =F9*(1-E9) -> 69.68 | H9: =IF(H6="Cash", D55,F9*E9) -> 34.32
A10: grazing | B10: 73 | C10: lb | D10: =Grazing_Price -> 0.75 | E10: 0.33 | F10: =D10*B10 -> 54.75 | G10: =F10*(1-E10) -> 36.6825 | H10: =IF(H6="Cash", 0,F10*E10) -> 18.0675
A11: other income | B11: 1 | C11: unit | D11: 0 | E11: 0.33 | F11: =D11*B11 -> 0 | G11: =F11*(1-E11) -> 0 | H11: =IF(H8="Cash", D60,F11*E11) -> 0
A12: other income | B12: 1 | C12: unit | D12: 0 | E12: 0.33 | F12: =D12*B12 -> 0 | G12: =F12*(1-E12) -> 0 | H12: =IF(H9="Cash", D61,F12*E12) -> 0
A13: Total Income | F13: =SUM(F8:F12) -> 158.75 | G13: =SUM(G8:G12) -> 106.3625 | H13: 52.3875
A15: Variable Costs
A16: Seed | B16: 1 | C16: bu | D16: 12.5 | E16: 0 | F16: =D16*B16 -> 12.5 | G16: =F16*(1-E16) -> 12.5 | H16: =F16*E16 -> 0
A17: Fertilizer
A18: fert (N) - NH3 | B18: 30 | C18: lb | D18: =IF(A18="",0,VLOOKUP(A18,'Universal Input Prices'!$A$26:$B$30, 2)) -> 0.4268292683 | E18: 0.33 | F18: =D18*B18 -> 12.80487805 | G18: =F18*(1-E18) -> 8.579268293 | H18: =F18*E18 -> 4.225609756
B19: 0 | C19: lb | D19: =IF(A19="",0,VLOOKUP(A19,'Universal Input Prices'!$A$26:$B$30, 2)) -> 0 | E19: 0 | F19: =D19*B19 -> 0 | G19: =F19*(1-E19) -> 0 | H19: =F19*E19 -> 0
B20: 0 | C20: lb | D20: =IF(A20="",0,VLOOKUP(A20,'Universal Input Prices'!$A$26:$B$30, 2)) -> 0 | E20: 0 | F20: =D20*B20 -> 0 | G20: =F20*(1-E20) -> 0 | H20: =F20*E20 -> 0
A21: Field Operations
A22: herbicide & application | B22: 1 | C22: acre | D22: 0 | E22: 0.33 | F22: =D22*B22 -> 0 | G22: =F22*(1-E22) -> 0 | H22: =F22*E22 -> 0
A23: fertilizer application | B23: 1 | C23: acre | D23: 18 | E23: 0.33 | F23: 18 | G23: 12.06 | H23: 5.94
A24: insecticide & application | B24: 1 | C24: acre | D24: 0 | E24: 0.33 | F24: 0 | G24: 0 | H24: 0
A25: custom harvest & haul | B25: 1 | C25: acre | D25: 35 | E25: 0 | F25: 35 | G25: 35 | H25: 0
A26: custom harvest & haul | B26: =B9 -> 20 | C26: bu | D26: 0.35 | E26: 0 | F26: =D26*B26 -> 7 | G26: 7 | H26: 0
A27: hoeing | B27: 0 | C27: acre | D27: 0 | E27: 0 | F27: 0 | G27: 0 | H27: 0
A28: scouting | B28: 1 | C28: acre | D28: 0 | E28: 0 | F28: =D28*B28 -> 0 | G28: =F28*(1-E28) -> 0 | H28: =F28*E28 -> 0
A29: other | B29: 1 | C29: acre | D29: 0 | E29: 0 | F29: 0 | G29: 0 | H29: 0
A30: other | B30: 1 | C30: acre | D30: 0 | E30: 0 | F30: 0 | G30: 0 | H30: 0
A31: other | B31: 1 | C31: acre | D31: 0 | E31: 0 | F31: 0 | G31: 0 | H31: 0
A32: Crop Insurance | B32: 1 | C32: acre | D32: 25 | E32: 0.33 | F32: 25 | G32: 16.75 | H32: 8.25
A33: Operator Labor & Hand Labor | B33: 0.58 | C33: hours | D33: ='Universal Input Prices'!$B$31 -> 18 | E33: 0 | F33: 10.44 | G33: 10.44 | H33: 0
A34: Diesel Fuel - Tractors | B34: 1.73 | C34: gallons | D34: ='Universal Input Prices'!$B$32 -> 2.75 | E34: 0 | F34: 4.7575 | G34: 4.7575 | H34: 0
A35: Gasoline - Pickup | B35: 2.03 | C35: gallons | D35: ='Universal Input Prices'!$B$33 -> 2.4 | E35: 0 | F35: 4.872 | G35: 4.872 | H35: 0
A36: Repair & Maintenance
A37: Implements | B37: 1 | C37: acre | D37: 4.79 | E37: 0 | F37: =D37*B37 -> 4.79 | G37: =F37*(1-E37) -> 4.79 | H37: =F37*E37 -> 0
A38: Tractors | B38: 1 | C38: acre | D38: 0 | E38: 0 | F38: =D38*B38 -> 0 | G38: =F38*(1-E38) -> 0 | H38: =F38*E38 -> 0
A39: Other Fixed Expenses | B39: 1 | C39: acre | D39: 0 | E39: 0 | F39: 0 | G39: =F39*(1-E39) -> 0 | H39: =F39*E39 -> 0
A40: Tractors/Self Propelled Equipment | B40: 1 | C40: acre | D40: 3.75 | E40: 1 | F40: =D40*B40 -> 3.75 | G40: =F40*(1-E40) -> 0 | H40: =F40*E40 -> 3.75
A41: Pickup | B41: 1 | C41: acre | D41: 2.49 | E41: 0 | F41: =D41*B41 -> 2.49 | G41: =F41*(1-E41) -> 2.49 | H41: =F41*E41 -> 0
A42: Interest-operating capital | B42: ='Universal Input Prices'!$B$35 -> 0.085 | F42: =(SUM(F16:F24,F27:F41))*$B42/2 -> 4.224686067 | G42: =(SUM(G16:G24,G27:G41))*$B42/2 -> 3.282647652 | H42: =(SUM(H16:H24,H27:H41))*$B42/2 -> 0.9420384146
A44: Total Variable Costs | F44: =SUM(F16:F42) -> 145.6290641 | G44: =SUM(G16:G42) -> 122.5214159 | H44: =SUM(H16:H42) -> 23.10764817
A45: Returns Above Variable Costs | F45: =F13-F44 -> 13.12093588 | G45: =G13-G44 -> -16.15891595 | H45: =H13-H44 -> 29.27985183
A47: Fixed Costs
A48: Implements | B48: 1 | C48: acre | D48: 8.51 | E48: 0 | F48: =B48*D48 -> 8.51 | G48: =F48*(1-E48) -> 8.51 | H48: =F48*E48 -> 0
A49: Tractors | B49: 1 | C49: acre | D49: 0 | E49: 0 | F49: =B49*-D49 -> 0 | G49: 0 | H49: 0
A50: Other Fixed Expenses | B50: 1 | C50: acre | D50: 0 | E50: 1 | F50: =D50*B50 -> 0 | G50: 0 | H50: 0
A51: Tractors/Self Propelled Equipment | B51: 1 | C51: acre | D51: 6.35 | E51: 1 | F51: 6.35 | G51: 0 | H51: 6.35
A52: Pickup | B52: 1 | C52: acre | D52: 4.14 | E52: 0 | F52: =B52*D52 -> 4.14 | G52: 4.14 | H52: 0
A53: Management | B53: 1 | C53: acre | D53: 0 | E53: 0 | F53: 0 | G53: 0 | H53: 0
A54: Whole Farm Insurance | B54: 1 | C54: acre | D54: 0 | E54: 0 | F54: =B54*D54 -> 0 | G54: 0 | H54: 0
A55: Land cash rent value | B55: 1 | C55: acre | D55: 30 | E55: 1 | F55: =B55*D55 -> 30 | G55: =IF($H$6="Cash",D55,F55*(1-E55)) -> 0 | H55: =IF($H$6="Cash",0,F55*E55) -> 30
A56: Property Tax | B56: 1 | C56: acre | D56: 0 | E56: 1 | F56: =B56*D56 -> 0 | G56: 0 | H56: 0
A57: Total Fixed Expenses | F57: =SUM(F48:F56) -> 49 | G57: =SUM(G48:G56) -> 12.65 | H57: =SUM(H48:H56) -> 36.35
A58: Total Specified Expenses | F58: =F44+F57 -> 194.6290641 | G58: =G44+G57 -> 135.1714159 | H58: =H44+H57 -> 59.45764817
A59: Returns Above Total Specified Expenses | F59: =F13-F58 -> -35.87906412 | G59: =G13-G58 -> -28.80891595 | H59: =H13-H58 -> -7.070148171
A61: Return on Investment | F61: =(F59/F58) -> -0.1843458698 | G61: =(G59/G58) -> -0.2131287576 | H61: -0.1189106597

Sheet Dry Other Crop
A2: Estimated Costs and Returns per Acre
A3: ='Universal Input Prices'!A20 -> Dryland Other Crop
A4: Projected for 2025
H5: Rental Agreement
A6: Item | B6: Quantity | C6: Unit | D6: Price | E6: Landlord | F6: Total | H6: Share
E7: Share | G7: Tenant | H7: Landlord
A8: Income
A9: other dryland crop | B9: 0 | C9: ='Universal Input Prices'!C20 -> unit | D9: ='Universal Input Prices'!B20 -> 0 | E9: 0.33 | F9: =D9*B9 -> 0 | G9: =F9*(1-E9) -> 0 | H9: =IF(H6="Cash", D55,F9*E9) -> 0
A10: other income | B10: 1 | C10: unit | D10: 0 | E10: 0.33 | F10: =D10*B10 -> 0 | G10: =F10*(1-E10) -> 0 | H10: =IF(H7="Cash", D59,F10*E10) -> 0
A11: other income | B11: 1 | C11: unit | D11: 0 | E11: 0.33 | F11: =D11*B11 -> 0 | G11: =F11*(1-E11) -> 0 | H11: =IF(H8="Cash", D60,F11*E11) -> 0
A12: Total Income | F12: =F9+F10 -> 0 | G12: =G9+G10 -> 0 | H12: =H9+H10 -> 0
A14: Variable Costs
A15: Seed | B15: 0 | C15: unit | D15: 0 | E15: 0 | F15: =D15*B15 -> 0 | G15: =F15*(1-E15) -> 0 | H15: =F15*E15 -> 0
A16: Fertilizer
A17: fert (N) - NH3 | B17: 0 | C17: lb | D17: =IF(A17="",0,VLOOKUP(A17,'Universal Input Prices'!$A$26:$B$30, 2)) -> 0.4268292683 | E17: 0.33 | F17: =D17*B17 -> 0 | G17: =F17*(1-E17) -> 0 | H17: =F17*E17 -> 0
A18: fert (N) - dry | B18: 0 | C18: lb | D18: =IF(A18="",0,VLOOKUP(A18,'Universal Input Prices'!$A$26:$B$30, 2)) -> 0.5217391304 | E18: 0.33 | F18: 0 | G18: 0 | H18: 0
A19: fert (N) - liquid | B19: 0 | C19: lb | D19: =IF(A19="",0,VLOOKUP(A19,'Universal Input Prices'!$A$26:$B$30, 2)) -> 0.578125 | E19: 0.33 | F19: =D19*B19 -> 0 | G19: =F19*(1-E19) -> 0 | H19: =F19*E19 -> 0
A20: fert (P) - dry | B20: 0 | C20: lb | D20: =IF(A20="",0,VLOOKUP(A20,'Universal Input Prices'!$A$26:$B$30, 2)) -> 0.8028846154 | E20: 0.33 | F20: =D20*B20 -> 0 | G20: =F20*(1-E20) -> 0 | H20: =F20*E20 -> 0
A21: fert (P) - liquid | B21: 0 | C21: lb | D21: =IF(A21="",0,VLOOKUP(A21,'Universal Input Prices'!$A$26:$B$30, 2)) -> 0.8970588235 | E21: 0.33 | F21: =D21*B21 -> 0 | G21: =F21*(1-E21) -> 0 | H21: =F21*E21 -> 0
A22: Field Operations
A23: herbicide & application | B23: 1 | C23: acre | D23: 0 | E23: 0.33 | F23: =D23*B23 -> 0 | G23: =F23*(1-E23) -> 0 | H23: =F23*E23 -> 0
A24: fertilizer application | B24: 0 | C24: acre | D24: 11.75 | E24: 0.33 | F24: 0 | G24: 0 | H24: 0
A25: insecticide & application | B25: 0 | C25: acre | D25: 0 | E25: 0.33 | F25: 0 | G25: 0 | H25: 0
A26: custom harvest & haul | B26: =B9 -> 0 | C26: =C9 -> unit | D26: 0 | E26: 0 | F26: 0 | G26: 0 | H26: 0
A27: crop consulting | B27: 1 | C27: acre | D27: 0 | E27: 0 | F27: 0 | G27: 0 | H27: 0
A28: scouting | B28: 1 | C28: acre | D28: 0 | E28: 0 | F28: =D28*B28 -> 0 | G28: =F28*(1-E28) -> 0 | H28: =F28*E28 -> 0
A29: other | B29: 1 | C29: acre | D29: 0 | E29: 0 | F29: 0 | G29: 0 | H29: 0
A30: other | B30: 1 | C30: acre | D30: 0 | E30: 0 | F30: 0 | G30: 0 | H30: 0
A31: other | B31: 1 | C31: acre | D31: 0 | E31: 0 | F31: 0 | G31: 0 | H31: 0
A32: Crop Insurance | B32: 1 | C32: acre | D32: 0 | E32: 0.33 | F32: 0 | G32: 0 | H32: 0
A33: Operator Labor & Hand Labor | B33: 0 | C33: hours | D33: ='Universal Input Prices'!$B$31 -> 18 | E33: 0 | F33: 0 | G33: 0 | H33: 0
A34: Diesel Fuel - Tractors | B34: 0 | C34: gallons | D34: ='Universal Input Prices'!$B$32 -> 2.75 | E34: 0 | F34: 0 | G34: 0 | H34: 0
A35: Gasoline - Pickup | B35: 0 | C35: gallons | D35: ='Universal Input Prices'!$B$33 -> 2.4 | E35: 0 | F35: 0 | G35: 0 | H35: 0
A36: Repair & Maintenance
A37: Implements | B37: 0 | C37: acre | D37: 4.47 | E37: 0 | F37: =D37*B37 -> 0 | G37: 0 | H37: 0
A38: Tractors | B38: 0 | C38: acre | D38: 5.55 | E38: 0 | F38: =D38*B38 -> 0 | G38: 0 | H38: 0
A39: Other Fixed Expenses | B39: =0 -> 0 | C39: acre | D39: 4.04 | E39: 0 | F39: =D39*B39 -> 0 | G39: 0 | H39: 0
A40: Self Propelled Equipment | B40: 0 | C40: acre | D40: 0.16 | E40: 1 | F40: =D40*B40 -> 0 | G40: 0 | H40: 0
A41: Pickup | B41: 1 | C41: acre | D41: 0 | E41: 0 | F41: =D41*B41 -> 0 | G41: 0 | H41: 0
A42: Interest-operating capital | B42: ='Universal Input Prices'!$B$35 -> 0.085 | F42: =(SUM(F15:F25,F27:F41))*$B42/2 -> 0 | G42: =(SUM(G15:G25,G27:G41))*$B42/2 -> 0 | H42: =(SUM(H15:H25,H27:H41))*$B42/2 -> 0
A44: Total Variable Costs | F44: =SUM(F15:F42) -> 0 | G44: =SUM(G15:G42) -> 0 | H44: =SUM(H15:H42) -> 0
A45: Returns Above Variable Costs | F45: =F12-F44 -> 0 | G45: =G12-G44 -> 0 | H45: =H12-H44 -> 0
A47: Fixed Costs
A48: Implements | B48: 0 | C48: acre | D48: 7.04 | E48: 0 | F48: =D48*B48 -> 0 | G48: =F48*(1-E48) -> 0 | H48: =F48*E48 -> 0
A49: Tractors | B49: 0 | C49: acre | D49: 7.89 | E49: 0 | F49: 0 | G49: 0 | H49: 0
A50: Other Fixed Expenses | B50: 1 | C50: acre | D50: 0 | E50: 0 | F50: 0 | G50: 0 | H50: 0
A51: Self Propelled Equipment | B51: 1 | C51: acre | D51: 0 | E51: 1 | F51: 0 | G51: 0 | H51: 0
A52: Pickup | B52: 1 | C52: acre | D52: 0 | E52: 0 | F52: 0 | G52: 0 | H52: 0
A53: Management | B53: 1 | C53: acre | D53: 0 | E53: 0 | F53: 0 | G53: 0 | H53: 0
A54: Whole Farm Insurance | B54: 1 | C54: acre | D54: 0 | E54: 0 | F54: =B54*D54 -> 0 | G54: 0 | H54: 0
A55: Land cash rent value | B55: 0 | C55: acre | D55: 30 | E55: 1 | F55: =D55*B55 -> 0 | G55: =IF($H$6="Cash",D55,F55*(1-E55)) -> 0 | H55: =IF($H$6="Cash",0,F55*E55) -> 0
A56: Property Tax | B56: 1 | C56: acre | D56: 0 | E56: 1 | F56: =B56*D56 -> 0 | G56: 0 | H56: 0
A57: Total Fixed Expenses | F57: =SUM(F48:F56) -> 0 | G57: =SUM(G48:G56) -> 0 | H57: =SUM(H48:H56) -> 0
A58: Total Specified Expenses | F58: =F44+F57 -> 0 | G58: =G44+G57 -> 0 | H58: =H44+H57 -> 0
A59: Returns Above Total Specified Expenses | F59: =F12-F58 -> 0 | G59: =G12-G58 -> 0 | H59: =H12-H58 -> 0
A61: Return on Investment | F61: =IF(F58=0,"-",(F59/F58)) -> - | G61: =IF(G58=0,"-",(G59/G58)) -> - | H61: -

Sheet Break-Even Comparison
A2: HIDE IF | F2: Tenant | H2: Tenant | I2: Landlord
F3: =_xlfn.XLOOKUP(F2,PGM_ShowHide_Lookup,PGM_ShowHide_Return,"") -> Yes | H3: =_xlfn.XLOOKUP(H2,PGM_ShowHide_Lookup,PGM_ShowHide_Return,"") -> Yes | I3: =_xlfn.XLOOKUP(I2,PGM_ShowHide_Lookup,PGM_ShowHide_Return,"") -> Yes
A6: PARAMETER | B6: DISPLAY?
A7: Irrigated Alfalfa | B7: =_xlfn.XLOOKUP(A7,PGM_ShowHide_Lookup,PGM_ShowHide_Return,"") -> Yes | C7: ='Irr Alfalfa'!$A$3 -> Irrigated Alfalfa
A8: Irrigated Alfalfa | B8: Yes | E8: BE Price to Cover Variable Costs | G8: BE Price to Cover Total Costs
A9: Irrigated Alfalfa | B9: Yes | C9: Yield | D9: TON | E9: Total | F9: Tenant | G9: Total | H9: Tenant | I9: Landlord
A10: Irrigated Alfalfa | B10: Yes | C10: 0.75 | D10: ='Irr Alfalfa'!$B$9*$C10 -> 4.125 | E10: =('Irr Alfalfa'!F$48+(D10-D$12)*('Irr Alfalfa'!$D$26))/D10 -> 155.1440124 | F10: =('Irr Alfalfa'!G$48+(J10-J$12)*('Irr Alfalfa'!$D$26))/J10 -> 213.4403211 | G10: =('Irr Alfalfa'!F$63+(D10-D$12)*('Irr Alfalfa'!$D$26))/D10 -> 258.2034063 | H10: =('Irr Alfalfa'!G$63+(J10-J$12)*('Irr Alfalfa'!$D$26))/J10 -> 294.8948665 | I10: =IF($K10=0,"N/A",('Irr Alfalfa'!H$63+(K10-K$12)*('Irr Alfalfa'!$D$26))/K10) -> 183.7086236 | J10: ='Irr Alfalfa'!$B$9*(1-'Irr Alfalfa'!$E$9)*$C10 -> 2.76375 | K10: ='Irr Alfalfa'!$B$9*'Irr Alfalfa'!$E$9*$C10 -> 1.36125
A11: Irrigated Alfalfa | B11: Yes | C11: 0.9 | D11: ='Irr Alfalfa'!$B$9*$C11 -> 4.95 | E11: =('Irr Alfalfa'!F$48+(D11-D$12)*('Irr Alfalfa'!$D$26))/D11 -> 140.1200103 | F11: =('Irr Alfalfa'!G$48+(J11-J$12)*('Irr Alfalfa'!$D$26))/J11 -> 188.7002676 | G11: =('Irr Alfalfa'!F$63+(D11-D$12)*('Irr Alfalfa'!$D$26))/D11 -> 226.0028386 | H11: =('Irr Alfalfa'!G$63+(J11-J$12)*('Irr Alfalfa'!$D$26))/J11 -> 256.5790554 | I11: =IF($K11=0,"N/A",('Irr Alfalfa'!H$63+(K11-K$12)*('Irr Alfalfa'!$D$26))/K11) -> 163.923853 | J11: ='Irr Alfalfa'!$B$9*(1-'Irr Alfalfa'!$E$9)*$C11 -> 3.3165 | K11: ='Irr Alfalfa'!$B$9*'Irr Alfalfa'!$E$9*$C11 -> 1.6335
A12: Irrigated Alfalfa | B12: Yes | C12: 1 | D12: ='Irr Alfalfa'!$B$9*$C12 -> 5.5 | E12: =('Irr Alfalfa'!F$48+(D12-D$12)*('Irr Alfalfa'!$D$26))/D12 -> 132.6080093 | F12: =('Irr Alfalfa'!G$48+(J12-J$12)*('Irr Alfalfa'!$D$26))/J12 -> 176.3302408 | G12: =('Irr Alfalfa'!F$63+(D12-D$12)*('Irr Alfalfa'!$D$26))/D12 -> 209.9025548 | H12: =('Irr Alfalfa'!G$63+(J12-J$12)*('Irr Alfalfa'!$D$26))/J12 -> 237.4211499 | I12: =IF($K12=0,"N/A",('Irr Alfalfa'!H$63+(K12-K$12)*('Irr Alfalfa'!$D$26))/K12) -> 154.0314677 | J12: ='Irr Alfalfa'!$B$9*(1-'Irr Alfalfa'!$E$9)*$C12 -> 3.685 | K12: ='Irr Alfalfa'!$B$9*'Irr Alfalfa'!$E$9*$C12 -> 1.815
A13: Irrigated Alfalfa | B13: Yes | C13: 1.1 | D13: ='Irr Alfalfa'!$B$9*$C13 -> 6.05 | E13: =('Irr Alfalfa'!F$48+(D13-D$12)*('Irr Alfalfa'!$D$26))/D13 -> 126.4618266 | F13: =('Irr Alfalfa'!G$48+(J13-J$12)*('Irr Alfalfa'!$D$26))/J13 -> 166.2093098 | G13: =('Irr Alfalfa'!F$63+(D13-D$12)*('Irr Alfalfa'!$D$26))/D13 -> 196.7295952 | H13: =('Irr Alfalfa'!G$63+(J13-J$12)*('Irr Alfalfa'!$D$26))/J13 -> 221.7464999 | I13: =IF($K13=0,"N/A",('Irr Alfalfa'!H$63+(K13-K$12)*('Irr Alfalfa'!$D$26))/K13) -> 145.9376979 | J13: ='Irr Alfalfa'!$B$9*(1-'Irr Alfalfa'!$E$9)*$C13 -> 4.0535 | K13: ='Irr Alfalfa'!$B$9*'Irr Alfalfa'!$E$9*$C13 -> 1.9965
A14: Irrigated Alfalfa | B14: Yes | C14: 1.25 | D14: ='Irr Alfalfa'!$B$9*$C14 -> 6.875 | E14: =('Irr Alfalfa'!F$48+(D14-D$12)*('Irr Alfalfa'!$D$26))/D14 -> 119.0864074 | F14: =('Irr Alfalfa'!G$48+(J14-J$12)*('Irr Alfalfa'!$D$26))/J14 -> 154.0641926 | G14: =('Irr Alfalfa'!F$63+(D14-D$12)*('Irr Alfalfa'!$D$26))/D14 -> 180.9220438 | H14: =('Irr Alfalfa'!G$63+(J14-J$12)*('Irr Alfalfa'!$D$26))/J14 -> 202.9369199 | I14: =IF($K14=0,"N/A",('Irr Alfalfa'!H$63+(K14-K$12)*('Irr Alfalfa'!$D$26))/K14) -> 136.2251741 | J14: ='Irr Alfalfa'!$B$9*(1-'Irr Alfalfa'!$E$9)*$C14 -> 4.60625 | K14: ='Irr Alfalfa'!$B$9*'Irr Alfalfa'!$E$9*$C14 -> 2.26875
A15: Irrigated Alfalfa | B15: Yes
A16: Irrigated Canola | B16: Yes | C16: ='Irr Canola'!$A$3 -> Irrigated Canola
A17: Irrigated Canola | B17: Yes | E17: BE Price to Cover Variable Costs | G17: BE Price to Cover Total Costs
A18: Irrigated Canola | B18: Yes | C18: Yield | D18: CWT | E18: Total | F18: Tenant | G18: Total | H18: Tenant | I18: Landlord
A19: Irrigated Canola | B19: Yes | C19: 0.75 | D19: ='Irr Canola'!$B$9*$C19 -> 16.5 | E19: =('Irr Canola'!F$49+(D19-D$21)*('Irr Canola'!$D$27))/D19 -> 20.76383791 | F19: =('Irr Canola'!G$49+(J19-J$21)*('Irr Canola'!$D$27))/J19 -> 25.63673677 | G19: =('Irr Canola'!F$63+(D19-D$21)*('Irr Canola'!$D$27))/D19 -> 33.80808033 | H19: =('Irr Canola'!G$63+(J19-J$21)*('Irr Canola'!$D$27))/J19 -> 33.28485979 | I19: =IF($K19=0,"N/A",('Irr Canola'!H$63+(K19-K$21)*('Irr Canola'!$D$27))/K19) -> 34.87037659 | J19: ='Irr Canola'!$B$9*(1-'Irr Canola'!$E$9)*$C19 -> 11.055 | K19: ='Irr Canola'!$B$9*'Irr Canola'!$E$9*$C19 -> 5.445
A20: Irrigated Canola | B20: Yes | C20: 0.9 | D20: ='Irr Canola'!$B$9*$C20 -> 19.8 | E20: =('Irr Canola'!F$49+(D20-D$21)*('Irr Canola'!$D$27))/D20 -> 17.41986492 | F20: =('Irr Canola'!G$49+(J20-J$21)*('Irr Canola'!$D$27))/J20 -> 21.48061397 | G20: =('Irr Canola'!F$63+(D20-D$21)*('Irr Canola'!$D$27))/D20 -> 28.29006694 | H20: =('Irr Canola'!G$63+(J20-J$21)*('Irr Canola'!$D$27))/J20 -> 27.85404982 | I20: =IF($K20=0,"N/A",('Irr Canola'!H$63+(K20-K$21)*('Irr Canola'!$D$27))/K20) -> 29.17531382 | J20: ='Irr Canola'!$B$9*(1-'Irr Canola'!$E$9)*$C20 -> 13.266 | K20: ='Irr Canola'!$B$9*'Irr Canola'!$E$9*$C20 -> 6.534
A21: Irrigated Canola | B21: Yes | C21: 1 | D21: ='Irr Canola'!$B$9*$C21 -> 22 | E21: =('Irr Canola'!F$49+(D21-D$21)*('Irr Canola'!$D$27))/D21 -> 15.74787843 | F21: =('Irr Canola'!G$49+(J21-J$21)*('Irr Canola'!$D$27))/J21 -> 19.40255257 | G21: =('Irr Canola'!F$63+(D21-D$21)*('Irr Canola'!$D$27))/D21 -> 25.53106025 | H21: =('Irr Canola'!G$63+(J21-J$21)*('Irr Canola'!$D$27))/J21 -> 25.13864484 | I21: =IF($K21=0,"N/A",('Irr Canola'!H$63+(K21-K$21)*('Irr Canola'!$D$27))/K21) -> 26.32778244 | J21: ='Irr Canola'!$B$9*(1-'Irr Canola'!$E$9)*$C21 -> 14.74 | K21: ='Irr Canola'!$B$9*'Irr Canola'!$E$9*$C21 -> 7.26
A22: Irrigated Canola | B22: Yes | C22: 1.1 | D22: ='Irr Canola'!$B$9*$C22 -> 24.2 | E22: =('Irr Canola'!F$49+(D22-D$21)*('Irr Canola'!$D$27))/D22 -> 14.37988948 | F22: =('Irr Canola'!G$49+(J22-J$21)*('Irr Canola'!$D$27))/J22 -> 17.70232052 | G22: =('Irr Canola'!F$63+(D22-D$21)*('Irr Canola'!$D$27))/D22 -> 23.27369114 | H22: =('Irr Canola'!G$63+(J22-J$21)*('Irr Canola'!$D$27))/J22 -> 22.91694986 | I22: =IF($K22=0,"N/A",('Irr Canola'!H$63+(K22-K$21)*('Irr Canola'!$D$27))/K22) -> 23.99798404 | J22: ='Irr Canola'!$B$9*(1-'Irr Canola'!$E$9)*$C22 -> 16.214 | K22: ='Irr Canola'!$B$9*'Irr Canola'!$E$9*$C22 -> 7.986
A23: Irrigated Canola | B23: Yes | C23: 1.25 | D23: ='Irr Canola'!$B$9*$C23 -> 27.5 | E23: =('Irr Canola'!F$49+(D23-D$21)*('Irr Canola'!$D$27))/D23 -> 12.73830274 | F23: =('Irr Canola'!G$49+(J23-J$21)*('Irr Canola'!$D$27))/J23 -> 15.66204206 | G23: =('Irr Canola'!F$63+(D23-D$21)*('Irr Canola'!$D$27))/D23 -> 20.5648482 | H23: =('Irr Canola'!G$63+(J23-J$21)*('Irr Canola'!$D$27))/J23 -> 20.25091587 | I23: =IF($K23=0,"N/A",('Irr Canola'!H$63+(K23-K$21)*('Irr Canola'!$D$27))/K23) -> 21.20222595 | J23: ='Irr Canola'!$B$9*(1-'Irr Canola'!$E$9)*$C23 -> 18.425 | K23: ='Irr Canola'!$B$9*'Irr Canola'!$E$9*$C23 -> 9.075
A24: Irrigated Canola | B24: Yes
A25: Irrigated Corn | B25: Yes | C25: ='Irr Corn'!$A$3 -> Irrigated Corn
A26: Irrigated Corn | B26: Yes | E26: BE Price to Cover Variable Costs | G26: BE Price to Cover Total Costs
A27: Irrigated Corn | B27: Yes | C27: Yield | D27: BU | E27: Total | F27: Tenant | G27: Total | H27: Tenant | I27: Landlord
A28: Irrigated Corn | B28: Yes | C28: 0.75 | D28: ='Irr Corn'!$B$9*$C28 -> 168.75 | E28: =('Irr Corn'!F$47+(D28-D$30)*('Irr Corn'!$D$25))/D28 -> 5.136318454 | F28: =('Irr Corn'!G$47+(J28-J$30)*('Irr Corn'!$D$25))/J28 -> 6.133952295 | G28: =('Irr Corn'!F$61+(D28-D$30)*('Irr Corn'!$D$25))/D28 -> 7.021651787 | H28: =('Irr Corn'!G$61+(J28-J$30)*('Irr Corn'!$D$25))/J28 -> 7.142067276 | I28: =IF($K28=0,"N/A",('Irr Corn'!H$61+(K28-K$30)*('Irr Corn'!$D$25))/K28) -> 6.893163611 | J28: ='Irr Corn'!$B$9*(1-'Irr Corn'!$E$9)*$C28 -> 113.0625 | K28: ='Irr Corn'!$B$9*'Irr Corn'!$E$9*$C28 -> 55.6875
A29: Irrigated Corn | B29: Yes | C29: 0.9 | D29: ='Irr Corn'!$B$9*$C29 -> 202.5 | E29: =('Irr Corn'!F$47+(D29-D$30)*('Irr Corn'!$D$25))/D29 -> 4.360265378 | F29: =('Irr Corn'!G$47+(J29-J$30)*('Irr Corn'!$D$25))/J29 -> 5.191626913 | G29: =('Irr Corn'!F$61+(D29-D$30)*('Irr Corn'!$D$25))/D29 -> 5.931376489 | H29: =('Irr Corn'!G$61+(J29-J$30)*('Irr Corn'!$D$25))/J29 -> 6.03172273 | I29: =IF($K29=0,"N/A",('Irr Corn'!H$61+(K29-K$30)*('Irr Corn'!$D$25))/K29) -> 5.824303009 | J29: ='Irr Corn'!$B$9*(1-'Irr Corn'!$E$9)*$C29 -> 135.675 | K29: ='Irr Corn'!$B$9*'Irr Corn'!$E$9*$C29 -> 66.825
A30: Irrigated Corn | B30: Yes | C30: 1 | D30: ='Irr Corn'!$B$9*$C30 -> 225 | E30: =('Irr Corn'!F$47+(D30-D$30)*('Irr Corn'!$D$25))/D30 -> 3.97223884 | F30: =('Irr Corn'!G$47+(J30-J$30)*('Irr Corn'!$D$25))/J30 -> 4.720464221 | G30: =('Irr Corn'!F$61+(D30-D$30)*('Irr Corn'!$D$25))/D30 -> 5.38623884 | H30: =('Irr Corn'!G$61+(J30-J$30)*('Irr Corn'!$D$25))/J30 -> 5.476550457 | I30: =IF($K30=0,"N/A",('Irr Corn'!H$61+(K30-K$30)*('Irr Corn'!$D$25))/K30) -> 5.289872708 | J30: ='Irr Corn'!$B$9*(1-'Irr Corn'!$E$9)*$C30 -> 150.75 | K30: ='Irr Corn'!$B$9*'Irr Corn'!$E$9*$C30 -> 74.25
A31: Irrigated Corn | B31: Yes | C31: 1.1 | D31: ='Irr Corn'!$B$9*$C31 -> 247.5 | E31: =('Irr Corn'!F$47+(D31-D$30)*('Irr Corn'!$D$25))/D31 -> 3.654762582 | F31: =('Irr Corn'!G$47+(J31-J$30)*('Irr Corn'!$D$25))/J31 -> 4.334967474 | G31: =('Irr Corn'!F$61+(D31-D$30)*('Irr Corn'!$D$25))/D31 -> 4.940217128 | H31: =('Irr Corn'!G$61+(J31-J$30)*('Irr Corn'!$D$25))/J31 -> 5.022318597 | I31: =IF($K31=0,"N/A",('Irr Corn'!H$61+(K31-K$30)*('Irr Corn'!$D$25))/K31) -> 4.852611553 | J31: ='Irr Corn'!$B$9*(1-'Irr Corn'!$E$9)*$C31 -> 165.825 | K31: ='Irr Corn'!$B$9*'Irr Corn'!$E$9*$C31 -> 81.675
A32: Irrigated Corn | B32: Yes | C32: 1.25 | D32: ='Irr Corn'!$B$9*$C32 -> 281.25 | E32: =('Irr Corn'!F$47+(D32-D$30)*('Irr Corn'!$D$25))/D32 -> 3.273791072 | F32: =('Irr Corn'!G$47+(J32-J$30)*('Irr Corn'!$D$25))/J32 -> 3.872371377 | G32: =('Irr Corn'!F$61+(D32-D$30)*('Irr Corn'!$D$25))/D32 -> 4.404991072 | H32: =('Irr Corn'!G$61+(J32-J$30)*('Irr Corn'!$D$25))/J32 -> 4.477240366 | I32: =IF($K32=0,"N/A",('Irr Corn'!H$61+(K32-K$30)*('Irr Corn'!$D$25))/K32) -> 4.327898166 | J32: ='Irr Corn'!$B$9*(1-'Irr Corn'!$E$9)*$C32 -> 188.4375 | K32: ='Irr Corn'!$B$9*'Irr Corn'!$E$9*$C32 -> 92.8125
A33: Irrigated Corn | B33: Yes
A34: Irrigated Corn Silage | B34: Yes | C34: ='Irr Corn Silage'!$A$3 -> Irrigated Corn Silage
A35: Irrigated Corn Silage | B35: Yes | E35: BE Price to Cover Variable Costs | G35: BE Price to Cover Total Costs
A36: Irrigated Corn Silage | B36: Yes | C36: Yield | D36: TON | E36: Total | F36: Tenant | G36: Total | H36: Tenant | I36: Landlord
A37: Irrigated Corn Silage | B37: Yes | C37: 0.75 | D37: ='Irr Corn Silage'!$B$9*$C37 -> 20.25 | E37: =('Irr Corn Silage'!F$47+(D37-D$39)*('Irr Corn Silage'!$D$25))/D37 -> 51.37565867 | F37: =('Irr Corn Silage'!G$47+(J37-J$39)*('Irr Corn Silage'!$D$25))/J37 -> 67.40063806 | G37: =('Irr Corn Silage'!F$61+(D37-D$39)*('Irr Corn Silage'!$D$25))/D37 -> 67.26405373 | H37: =('Irr Corn Silage'!G$61+(J37-J$39)*('Irr Corn Silage'!$D$25))/J37 -> 75.8237079 | I37: =IF($K37=0,"N/A",('Irr Corn Silage'!H$61+(K37-K$39)*('Irr Corn Silage'!$D$25))/K37) -> 49.88536193 | J37: ='Irr Corn Silage'!$B$9*(1-'Irr Corn Silage'!$E$9)*$C37 -> 13.5675 | K37: ='Irr Corn Silage'!$B$9*'Irr Corn Silage'!$E$9*$C37 -> 6.6825
A38: Irrigated Corn Silage | B38: Yes | C38: 0.9 | D38: ='Irr Corn Silage'!$B$9*$C38 -> 24.3 | E38: =('Irr Corn Silage'!F$47+(D38-D$39)*('Irr Corn Silage'!$D$25))/D38 -> 44.89638222 | F38: =('Irr Corn Silage'!G$47+(J38-J$39)*('Irr Corn Silage'!$D$25))/J38 -> 58.25053172 | G38: =('Irr Corn Silage'!F$61+(D38-D$39)*('Irr Corn Silage'!$D$25))/D38 -> 58.13671144 | H38: =('Irr Corn Silage'!G$61+(J38-J$39)*('Irr Corn Silage'!$D$25))/J38 -> 65.26975658 | I38: =IF($K38=0,"N/A",('Irr Corn Silage'!H$61+(K38-K$39)*('Irr Corn Silage'!$D$25))/K38) -> 43.65446827 | J38: ='Irr Corn Silage'!$B$9*(1-'Irr Corn Silage'!$E$9)*$C38 -> 16.281 | K38: ='Irr Corn Silage'!$B$9*'Irr Corn Silage'!$E$9*$C38 -> 8.019
A39: Irrigated Corn Silage | B39: =_xlfn.XLOOKUP(A39,PGM_ShowHide_Lookup,PGM_ShowHide_Return,"") -> Yes | C39: 1 | D39: ='Irr Corn Silage'!$B$9*$C39 -> 27 | E39: =('Irr Corn Silage'!F$47+(D39-D$39)*('Irr Corn Silage'!$D$25))/D39 -> 41.656744 | F39: =('Irr Corn Silage'!G$47+(J39-J$39)*('Irr Corn Silage'!$D$25))/J39 -> 53.67547855 | G39: =('Irr Corn Silage'!F$61+(D39-D$39)*('Irr Corn Silage'!$D$25))/D39 -> 53.5730403 | H39: =('Irr Corn Silage'!G$61+(J39-J$39)*('Irr Corn Silage'!$D$25))/J39 -> 59.99278092 | I39: =IF($K39=0,"N/A",('Irr Corn Silage'!H$61+(K39-K$39)*('Irr Corn Silage'!$D$25))/K39) -> 40.53902145 | J39: ='Irr Corn Silage'!$B$9*(1-'Irr Corn Silage'!$E$9)*$C39 -> 18.09 | K39: ='Irr Corn Silage'!$B$9*'Irr Corn Silage'!$E$9*$C39 -> 8.91
A40: Irrigated Corn Silage | B40: Yes | C40: 1.1 | D40: ='Irr Corn Silage'!$B$9*$C40 -> 29.7 | E40: =('Irr Corn Silage'!F$47+(D40-D$39)*('Irr Corn Silage'!$D$25))/D40 -> 39.00613091 | F40: =('Irr Corn Silage'!G$47+(J40-J$39)*('Irr Corn Silage'!$D$25))/J40 -> 49.93225322 | G40: =('Irr Corn Silage'!F$61+(D40-D$39)*('Irr Corn Silage'!$D$25))/D40 -> 49.83912754 | H40: =('Irr Corn Silage'!G$61+(J40-J$39)*('Irr Corn Silage'!$D$25))/J40 -> 55.67525538 | I40: =IF($K40=0,"N/A",('Irr Corn Silage'!H$61+(K40-K$39)*('Irr Corn Silage'!$D$25))/K40) -> 37.9900195 | J40: ='Irr Corn Silage'!$B$9*(1-'Irr Corn Silage'!$E$9)*$C40 -> 19.899 | K40: ='Irr Corn Silage'!$B$9*'Irr Corn Silage'!$E$9*$C40 -> 9.801
A41: Irrigated Corn Silage | B41: Yes | C41: 1.25 | D41: ='Irr Corn Silage'!$B$9*$C41 -> 33.75 | E41: =('Irr Corn Silage'!F$47+(D41-D$39)*('Irr Corn Silage'!$D$25))/D41 -> 35.8253952 | F41: =('Irr Corn Silage'!G$47+(J41-J$39)*('Irr Corn Silage'!$D$25))/J41 -> 45.44038284 | G41: =('Irr Corn Silage'!F$61+(D41-D$39)*('Irr Corn Silage'!$D$25))/D41 -> 45.35843224 | H41: =('Irr Corn Silage'!G$61+(J41-J$39)*('Irr Corn Silage'!$D$25))/J41 -> 50.49422474 | I41: =IF($K41=0,"N/A",('Irr Corn Silage'!H$61+(K41-K$39)*('Irr Corn Silage'!$D$25))/K41) -> 34.93121716 | J41: ='Irr Corn Silage'!$B$9*(1-'Irr Corn Silage'!$E$9)*$C41 -> 22.6125 | K41: ='Irr Corn Silage'!$B$9*'Irr Corn Silage'!$E$9*$C41 -> 11.1375
A42: Irrigated Corn Silage | B42: Yes
A43: Irrigated Cotton | B43: Yes | C43: ='Irr Cotton'!$A$3 -> Irrigated Cotton
A44: Irrigated Cotton | B44: Yes | E44: BE Price to Cover Variable Costs | G44: BE Price to Cover Total Costs
A45: Irrigated Cotton | B45: Yes | C45: Yield | D45: LB | E45: Total | F45: Tenant | G45: Total | H45: Tenant | I45: Landlord
A46: Irrigated Cotton | B46: Yes | C46: 0.75 | D46: ='Irr Cotton'!$B$9*$C46 -> 937.5 | E46: =('Irr Cotton'!F$53-D46/500*'Universal Input Prices'!$B$39/2000*Cottonseed_Price+(D46-D$48)/100*'Irr Cotton'!$D$30+(D46-D$48)/'Irr Cotton'!$B$11/100*'Irr Cotton'!D$31)/D46 -> 0.757254213 | F46: =('Irr Cotton'!G$53-J46/500*'Universal Input Prices'!$B$39/2000*Cottonseed_Price+(J46-J$48)/100*'Irr Cotton'!$D$30+(J46-J$48)/'Irr Cotton'!$B$11/100*'Irr Cotton'!$D$31)/J46 -> 0.552857101 | G46: =('Irr Cotton'!F$67-D46/500*'Universal Input Prices'!$B$39/2000*Cottonseed_Price+(D46-D$48)/100*'Irr Cotton'!$D$30+(D46-D$48)/'Irr Cotton'!$B$11/100*'Irr Cotton'!$D$31)/D46 -> 0.989241413 | H46: =('Irr Cotton'!G$67-J46/500*'Universal Input Prices'!$B$39/2000*Cottonseed_Price+(J46-J$48)/100*'Irr Cotton'!$D$30+(J46-J$48)/100*'Irr Cotton'!$B$11*'Irr Cotton'!$D$31)/J46 -> 0.6820493406 | I46: =IF($K46=0,"N/A",('Irr Cotton'!H$67-K46/500*'Universal Input Prices'!$B$39/2000*Cottonseed_Price+(K46-K$48)/100*'Irr Cotton'!$D$30+(K46-K$48)/100*'Irr Cotton'!$B$11*'Irr Cotton'!$D$31)/K46) -> N/A | J46: ='Irr Cotton'!$B$9*(1-'Irr Cotton'!$E$9)*$C46 -> 937.5 | K46: ='Irr Cotton'!$B$9*'Irr Cotton'!$E$9*$C46 -> 0
A47: Irrigated Cotton | B47: Yes | C47: 0.9 | D47: ='Irr Cotton'!$B$9*$C47 -> 1125 | E47: =('Irr Cotton'!F$53-D47/500*'Universal Input Prices'!$B$39/2000*Cottonseed_Price+(D47-D$48)/100*'Irr Cotton'!$D$30+(D47-D$48)/'Irr Cotton'!$B$11/100*'Irr Cotton'!D$31)/D47 -> 0.6440114474 | F47: =('Irr Cotton'!G$53-J47/500*'Universal Input Prices'!$B$39/2000*Cottonseed_Price+(J47-J$48)/100*'Irr Cotton'!$D$30+(J47-J$48)/'Irr Cotton'!$B$11/100*'Irr Cotton'!$D$31)/J47 -> 0.4736805206 | G47: =('Irr Cotton'!F$67-D47/500*'Universal Input Prices'!$B$39/2000*Cottonseed_Price+(D47-D$48)/100*'Irr Cotton'!$D$30+(D47-D$48)/'Irr Cotton'!$B$11/100*'Irr Cotton'!$D$31)/D47 -> 0.837334114 | H47: =('Irr Cotton'!G$67-J47/500*'Universal Input Prices'!$B$39/2000*Cottonseed_Price+(J47-J$48)/100*'Irr Cotton'!$D$30+(J47-J$48)/100*'Irr Cotton'!$B$11*'Irr Cotton'!$D$31)/J47 -> 0.5629782005 | I47: =IF($K47=0,"N/A",('Irr Cotton'!H$67-K47/500*'Universal Input Prices'!$B$39/2000*Cottonseed_Price+(K47-K$48)/100*'Irr Cotton'!$D$30+(K47-K$48)/100*'Irr Cotton'!$B$11*'Irr Cotton'!$D$31)/K47) -> N/A | J47: ='Irr Cotton'!$B$9*(1-'Irr Cotton'!$E$9)*$C47 -> 1125 | K47: ='Irr Cotton'!$B$9*'Irr Cotton'!$E$9*$C47 -> 0
A48: Irrigated Cotton | B48: Yes | C48: 1 | D48: ='Irr Cotton'!$B$9*$C48 -> 1250 | E48: =('Irr Cotton'!F$53-D48/500*'Universal Input Prices'!$B$39/2000*Cottonseed_Price+(D48-D$48)/100*'Irr Cotton'!$D$30+(D48-D$48)/'Irr Cotton'!$B$11/100*'Irr Cotton'!D$31)/D48 -> 0.5873900645 | F48: =('Irr Cotton'!G$53-J48/500*'Universal Input Prices'!$B$39/2000*Cottonseed_Price+(J48-J$48)/100*'Irr Cotton'!$D$30+(J48-J$48)/'Irr Cotton'!$B$11/100*'Irr Cotton'!$D$31)/J48 -> 0.4340922305 | G48: =('Irr Cotton'!F$67-D48/500*'Universal Input Prices'!$B$39/2000*Cottonseed_Price+(D48-D$48)/100*'Irr Cotton'!$D$30+(D48-D$48)/'Irr Cotton'!$B$11/100*'Irr Cotton'!$D$31)/D48 -> 0.7613804645 | H48: =('Irr Cotton'!G$67-J48/500*'Universal Input Prices'!$B$39/2000*Cottonseed_Price+(J48-J$48)/100*'Irr Cotton'!$D$30+(J48-J$48)/100*'Irr Cotton'!$B$11*'Irr Cotton'!$D$31)/J48 -> 0.5034426305 | I48: =IF($K48=0,"N/A",('Irr Cotton'!H$67-K48/500*'Universal Input Prices'!$B$39/2000*Cottonseed_Price+(K48-K$48)/100*'Irr Cotton'!$D$30+(K48-K$48)/100*'Irr Cotton'!$B$11*'Irr Cotton'!$D$31)/K48) -> N/A | J48: ='Irr Cotton'!$B$9*(1-'Irr Cotton'!$E$9)*$C48 -> 1250 | K48: ='Irr Cotton'!$B$9*'Irr Cotton'!$E$9*$C48 -> 0
A49: Irrigated Cotton | B49: Yes | C49: 1.1 | D49: ='Irr Cotton'!$B$9*$C49 -> 1375 | E49: =('Irr Cotton'!F$53-D49/500*'Universal Input Prices'!$B$39/2000*Cottonseed_Price+(D49-D$48)/100*'Irr Cotton'!$D$30+(D49-D$48)/'Irr Cotton'!$B$11/100*'Irr Cotton'!D$31)/D49 -> 0.5410634786 | F49: =('Irr Cotton'!G$53-J49/500*'Universal Input Prices'!$B$39/2000*Cottonseed_Price+(J49-J$48)/100*'Irr Cotton'!$D$30+(J49-J$48)/'Irr Cotton'!$B$11/100*'Irr Cotton'!$D$31)/J49 -> 0.4017018113 | G49: =('Irr Cotton'!F$67-D49/500*'Universal Input Prices'!$B$39/2000*Cottonseed_Price+(D49-D$48)/100*'Irr Cotton'!$D$30+(D49-D$48)/'Irr Cotton'!$B$11/100*'Irr Cotton'!$D$31)/D49 -> 0.6992365695 | H49: =('Irr Cotton'!G$67-J49/500*'Universal Input Prices'!$B$39/2000*Cottonseed_Price+(J49-J$48)/100*'Irr Cotton'!$D$30+(J49-J$48)/100*'Irr Cotton'!$B$11*'Irr Cotton'!$D$31)/J49 -> 0.4547317095 | I49: =IF($K49=0,"N/A",('Irr Cotton'!H$67-K49/500*'Universal Input Prices'!$B$39/2000*Cottonseed_Price+(K49-K$48)/100*'Irr Cotton'!$D$30+(K49-K$48)/100*'Irr Cotton'!$B$11*'Irr Cotton'!$D$31)/K49) -> N/A | J49: ='Irr Cotton'!$B$9*(1-'Irr Cotton'!$E$9)*$C49 -> 1375 | K49: ='Irr Cotton'!$B$9*'Irr Cotton'!$E$9*$C49 -> 0
A50: Irrigated Cotton | B50: Yes | C50: 1.25 | D50: ='Irr Cotton'!$B$9*$C50 -> 1562.5 | E50: =('Irr Cotton'!F$53-D50/500*'Universal Input Prices'!$B$39/2000*Cottonseed_Price+(D50-D$48)/100*'Irr Cotton'!$D$30+(D50-D$48)/'Irr Cotton'!$B$11/100*'Irr Cotton'!D$31)/D50 -> 0.4854715754 | F50: =('Irr Cotton'!G$53-J50/500*'Universal Input Prices'!$B$39/2000*Cottonseed_Price+(J50-J$48)/100*'Irr Cotton'!$D$30+(J50-J$48)/'Irr Cotton'!$B$11/100*'Irr Cotton'!$D$31)/J50 -> 0.3628333082 | G50: =('Irr Cotton'!F$67-D50/500*'Universal Input Prices'!$B$39/2000*Cottonseed_Price+(D50-D$48)/100*'Irr Cotton'!$D$30+(D50-D$48)/'Irr Cotton'!$B$11/100*'Irr Cotton'!$D$31)/D50 -> 0.6246638954 | H50: =('Irr Cotton'!G$67-J50/500*'Universal Input Prices'!$B$39/2000*Cottonseed_Price+(J50-J$48)/100*'Irr Cotton'!$D$30+(J50-J$48)/100*'Irr Cotton'!$B$11*'Irr Cotton'!$D$31)/J50 -> 0.3962786044 | I50: =IF($K50=0,"N/A",('Irr Cotton'!H$67-K50/500*'Universal Input Prices'!$B$39/2000*Cottonseed_Price+(K50-K$48)/100*'Irr Cotton'!$D$30+(K50-K$48)/100*'Irr Cotton'!$B$11*'Irr Cotton'!$D$31)/K50) -> N/A | J50: ='Irr Cotton'!$B$9*(1-'Irr Cotton'!$E$9)*$C50 -> 1562.5 | K50: ='Irr Cotton'!$B$9*'Irr Cotton'!$E$9*$C50 -> 0
A51: Irrigated Cotton | B51: Yes
A52: Irrigated Peanuts | B52: Yes | C52: ='Irr Peanuts'!$A$3 -> Irrigated Peanuts
A53: Irrigated Peanuts | B53: Yes | E53: BE Price to Cover Variable Costs | G53: BE Price to Cover Total Costs
A54: Irrigated Peanuts | B54: Yes | C54: Yield | D54: TON | E54: Total | F54: Tenant | G54: Total | H54: Tenant | I54: Landlord
A55: Irrigated Peanuts | B55: Yes | C55: 0.75 | D55: ='Irr Peanuts'!$B$9*$C55 -> 1.6875 | E55: =('Irr Peanuts'!$F$51+($D55-$D$57)*(SUM('Irr Peanuts'!$D$27:$D$28)))/$D55 -> 507.825316 | F55: =('Irr Peanuts'!$G$51+($J55-$J$57)*(SUM('Irr Peanuts'!$D$27:$D$28)))/$J55 -> 642.548812 | G55: =('Irr Peanuts'!$F$65+($D55-$D$57)*(SUM('Irr Peanuts'!$D$27:$D$28)))/$D55 -> 658.4267974 | H55: =('Irr Peanuts'!$G$65+($J55-$J$57)*(SUM('Irr Peanuts'!$D$27:$D$28)))/$J55 -> 748.8616921 | I55: =IF($K55=0, "N/A", ('Irr Peanuts'!$H$65+($K55-$K$57)*(SUM('Irr Peanuts'!$D$27:$D$28)))/$K55) -> 474.8165568 | J55: ='Irr Peanuts'!$B$9*(1-'Irr Peanuts'!$E$9)*$C55 -> 1.130625 | K55: ='Irr Peanuts'!$B$9*'Irr Peanuts'!$E$9*$C55 -> 0.556875
A56: Irrigated Peanuts | B56: Yes | C56: 0.9 | D56: ='Irr Peanuts'!$B$9*$C56 -> 2.025 | E56: =('Irr Peanuts'!$F$51+($D56-$D$57)*(SUM('Irr Peanuts'!$D$27:$D$28)))/$D56 -> 436.5210966 | F56: =('Irr Peanuts'!$G$51+($J56-$J$57)*(SUM('Irr Peanuts'!$D$27:$D$28)))/$J56 -> 548.7906767 | G56: =('Irr Peanuts'!$F$65+($D56-$D$57)*(SUM('Irr Peanuts'!$D$27:$D$28)))/$D56 -> 562.0223312 | H56: =('Irr Peanuts'!$G$65+($J56-$J$57)*(SUM('Irr Peanuts'!$D$27:$D$28)))/$J56 -> 637.3847434 | I56: =IF($K56=0, "N/A", ('Irr Peanuts'!$H$65+($K56-$K$57)*(SUM('Irr Peanuts'!$D$27:$D$28)))/$K56) -> 409.0137974 | J56: ='Irr Peanuts'!$B$9*(1-'Irr Peanuts'!$E$9)*$C56 -> 1.35675 | K56: ='Irr Peanuts'!$B$9*'Irr Peanuts'!$E$9*$C56 -> 0.66825
A57: Irrigated Peanuts | B57: Yes | C57: 1 | D57: ='Irr Peanuts'!$B$9*$C57 -> 2.25 | E57: =('Irr Peanuts'!$F$51+($D57-$D$57)*(SUM('Irr Peanuts'!$D$27:$D$28)))/$D57 -> 400.868987 | F57: =('Irr Peanuts'!$G$51+($J57-$J$57)*(SUM('Irr Peanuts'!$D$27:$D$28)))/$J57 -> 501.911609 | G57: =('Irr Peanuts'!$F$65+($D57-$D$57)*(SUM('Irr Peanuts'!$D$27:$D$28)))/$D57 -> 513.8200981 | H57: =('Irr Peanuts'!$G$65+($J57-$J$57)*(SUM('Irr Peanuts'!$D$27:$D$28)))/$J57 -> 581.6462691 | I57: =IF($K57=0, "N/A", ('Irr Peanuts'!$H$65+($K57-$K$57)*(SUM('Irr Peanuts'!$D$27:$D$28)))/$K57) -> 376.1124176 | J57: ='Irr Peanuts'!$B$9*(1-'Irr Peanuts'!$E$9)*$C57 -> 1.5075 | K57: ='Irr Peanuts'!$B$9*'Irr Peanuts'!$E$9*$C57 -> 0.7425
A58: Irrigated Peanuts | B58: Yes | C58: 1.1 | D58: ='Irr Peanuts'!$B$9*$C58 -> 2.475 | E58: =('Irr Peanuts'!$F$51+($D58-$D$57)*(SUM('Irr Peanuts'!$D$27:$D$28)))/$D58 -> 371.6990791 | F58: =('Irr Peanuts'!$G$51+($J58-$J$57)*(SUM('Irr Peanuts'!$D$27:$D$28)))/$J58 -> 463.5560082 | G58: =('Irr Peanuts'!$F$65+($D58-$D$57)*(SUM('Irr Peanuts'!$D$27:$D$28)))/$D58 -> 474.3819073 | H58: =('Irr Peanuts'!$G$65+($J58-$J$57)*(SUM('Irr Peanuts'!$D$27:$D$28)))/$J58 -> 536.0420628 | I58: =IF($K58=0, "N/A", ('Irr Peanuts'!$H$65+($K58-$K$57)*(SUM('Irr Peanuts'!$D$27:$D$28)))/$K58) -> 349.1931069 | J58: ='Irr Peanuts'!$B$9*(1-'Irr Peanuts'!$E$9)*$C58 -> 1.65825 | K58: ='Irr Peanuts'!$B$9*'Irr Peanuts'!$E$9*$C58 -> 0.81675
A59: Irrigated Peanuts | B59: Yes | C59: 1.25 | D59: ='Irr Peanuts'!$B$9*$C59 -> 2.8125 | E59: =('Irr Peanuts'!$F$51+($D59-$D$57)*(SUM('Irr Peanuts'!$D$27:$D$28)))/$D59 -> 336.6951896 | F59: =('Irr Peanuts'!$G$51+($J59-$J$57)*(SUM('Irr Peanuts'!$D$27:$D$28)))/$J59 -> 417.5292872 | G59: =('Irr Peanuts'!$F$65+($D59-$D$57)*(SUM('Irr Peanuts'!$D$27:$D$28)))/$D59 -> 427.0560785 | H59: =('Irr Peanuts'!$G$65+($J59-$J$57)*(SUM('Irr Peanuts'!$D$27:$D$28)))/$J59 -> 481.3170152 | I59: =IF($K59=0, "N/A", ('Irr Peanuts'!$H$65+($K59-$K$57)*(SUM('Irr Peanuts'!$D$27:$D$28)))/$K59) -> 316.8899341 | J59: ='Irr Peanuts'!$B$9*(1-'Irr Peanuts'!$E$9)*$C59 -> 1.884375 | K59: ='Irr Peanuts'!$B$9*'Irr Peanuts'!$E$9*$C59 -> 0.928125
A60: Irrigated Peanuts | B60: Yes
A61: Irrigated Sorghum | B61: Yes | C61: ='Irr Sorghum'!$A$3 -> Irrigated Sorghum
A62: Irrigated Sorghum | B62: Yes | E62: BE Price to Cover Variable Costs | G62: BE Price to Cover Total Costs
A63: Irrigated Sorghum | B63: Yes | C63: Yield | D63: CWT | E63: Total | F63: Tenant | G63: Total | H63: Tenant | I63: Landlord
A64: Irrigated Sorghum | B64: Yes | C64: 0.75 | D64: ='Irr Sorghum'!$B$9*$C64 -> 46.5 | E64: =('Irr Sorghum'!$F$46-'Irr Sorghum'!$F$10+($D64-$D$66)*'Irr Sorghum'!$D$24)/$D64 -> 9.133974757 | F64: =('Irr Sorghum'!$G$46-'Irr Sorghum'!$F$10+($J64-$J$66)*'Irr Sorghum'!$D$24)/$J64 -> 10.70254698 | G64: =('Irr Sorghum'!$F$60-'Irr Sorghum'!$F$10+($D64-$D$66)*'Irr Sorghum'!$D$24)/$D64 -> 14.29461992 | H64: =('Irr Sorghum'!$G$60-'Irr Sorghum'!$F$10+($J64-$J$66)*'Irr Sorghum'!$D$24)/$J64 -> 14.25414383 | I64: =IF($K64=0, "N/A", ('Irr Sorghum'!$H$60-'Irr Sorghum'!$F$10+($K64-$K$66)*'Irr Sorghum'!$D$24)/$K64) -> 14.37679864 | J64: ='Irr Sorghum'!$B$9*(1-'Irr Sorghum'!$E$9)*$C64 -> 31.155 | K64: ='Irr Sorghum'!$B$9*'Irr Sorghum'!$E$9*$C64 -> 15.345
A65: Irrigated Sorghum | B65: Yes | C65: 0.9 | D65: ='Irr Sorghum'!$B$9*$C65 -> 55.8 | E65: =('Irr Sorghum'!$F$46-'Irr Sorghum'!$F$10+($D65-$D$66)*'Irr Sorghum'!$D$24)/$D65 -> 7.778312298 | F65: =('Irr Sorghum'!$G$46-'Irr Sorghum'!$F$10+($J65-$J$66)*'Irr Sorghum'!$D$24)/$J65 -> 9.085455815 | G65: =('Irr Sorghum'!$F$60-'Irr Sorghum'!$F$10+($D65-$D$66)*'Irr Sorghum'!$D$24)/$D65 -> 12.07884993 | H65: =('Irr Sorghum'!$G$60-'Irr Sorghum'!$F$10+($J65-$J$66)*'Irr Sorghum'!$D$24)/$J65 -> 12.04511986 | I65: =IF($K65=0, "N/A", ('Irr Sorghum'!$H$60-'Irr Sorghum'!$F$10+($K65-$K$66)*'Irr Sorghum'!$D$24)/$K65) -> 12.1473322 | J65: ='Irr Sorghum'!$B$9*(1-'Irr Sorghum'!$E$9)*$C65 -> 37.386 | K65: ='Irr Sorghum'!$B$9*'Irr Sorghum'!$E$9*$C65 -> 18.414
A66: Irrigated Sorghum | B66: Yes | C66: 1 | D66: ='Irr Sorghum'!$B$9*$C66 -> 62 | E66: =('Irr Sorghum'!$F$46-'Irr Sorghum'!$F$10+($D66-$D$66)*'Irr Sorghum'!$D$24)/$D66 -> 7.100481068 | F66: =('Irr Sorghum'!$G$46-'Irr Sorghum'!$F$10+($J66-$J$66)*'Irr Sorghum'!$D$24)/$J66 -> 8.276910234 | G66: =('Irr Sorghum'!$F$60-'Irr Sorghum'!$F$10+($D66-$D$66)*'Irr Sorghum'!$D$24)/$D66 -> 10.97096494 | H66: =('Irr Sorghum'!$G$60-'Irr Sorghum'!$F$10+($J66-$J$66)*'Irr Sorghum'!$D$24)/$J66 -> 10.94060787 | I66: =IF($K66=0, "N/A", ('Irr Sorghum'!$H$60-'Irr Sorghum'!$F$10+($K66-$K$66)*'Irr Sorghum'!$D$24)/$K66) -> 11.03259898 | J66: ='Irr Sorghum'!$B$9*(1-'Irr Sorghum'!$E$9)*$C66 -> 41.54 | K66: ='Irr Sorghum'!$B$9*'Irr Sorghum'!$E$9*$C66 -> 20.46
A67: Irrigated Sorghum | B67: Yes | C67: 1.1 | D67: ='Irr Sorghum'!$B$9*$C67 -> 68.2 | E67: =('Irr Sorghum'!$F$46-'Irr Sorghum'!$F$10+($D67-$D$66)*'Irr Sorghum'!$D$24)/$D67 -> 6.54589188 | F67: =('Irr Sorghum'!$G$46-'Irr Sorghum'!$F$10+($J67-$J$66)*'Irr Sorghum'!$D$24)/$J67 -> 7.61537294 | G67: =('Irr Sorghum'!$F$60-'Irr Sorghum'!$F$10+($D67-$D$66)*'Irr Sorghum'!$D$24)/$D67 -> 10.06451358 | H67: =('Irr Sorghum'!$G$60-'Irr Sorghum'!$F$10+($J67-$J$66)*'Irr Sorghum'!$D$24)/$J67 -> 10.03691625 | I67: =IF($K67=0, "N/A", ('Irr Sorghum'!$H$60-'Irr Sorghum'!$F$10+($K67-$K$66)*'Irr Sorghum'!$D$24)/$K67) -> 10.12054453 | J67: ='Irr Sorghum'!$B$9*(1-'Irr Sorghum'!$E$9)*$C67 -> 45.694 | K67: ='Irr Sorghum'!$B$9*'Irr Sorghum'!$E$9*$C67 -> 22.506
A68: Irrigated Sorghum | B68: Yes | C68: 1.25 | D68: ='Irr Sorghum'!$B$9*$C68 -> 77.5 | E68: =('Irr Sorghum'!$F$46-'Irr Sorghum'!$F$10+($D68-$D$66)*'Irr Sorghum'!$D$24)/$D68 -> 5.880384854 | F68: =('Irr Sorghum'!$G$46-'Irr Sorghum'!$F$10+($J68-$J$66)*'Irr Sorghum'!$D$24)/$J68 -> 6.821528187 | G68: =('Irr Sorghum'!$F$60-'Irr Sorghum'!$F$10+($D68-$D$66)*'Irr Sorghum'!$D$24)/$D68 -> 8.976771951 | H68: =('Irr Sorghum'!$G$60-'Irr Sorghum'!$F$10+($J68-$J$66)*'Irr Sorghum'!$D$24)/$J68 -> 8.9524863 | I68: =IF($K68=0, "N/A", ('Irr Sorghum'!$H$60-'Irr Sorghum'!$F$10+($K68-$K$66)*'Irr Sorghum'!$D$24)/$K68) -> 9.026079183 | J68: ='Irr Sorghum'!$B$9*(1-'Irr Sorghum'!$E$9)*$C68 -> 51.925 | K68: ='Irr Sorghum'!$B$9*'Irr Sorghum'!$E$9*$C68 -> 25.575
A69: Irrigated Sorghum | B69: Yes
A70: Irrigated Sorghum Seed | B70: Yes | C70: ='Irr Sorghum Seed'!$A$3 -> Irrigated Sorghum Seed
A71: Irrigated Sorghum Seed | B71: =_xlfn.XLOOKUP(A71,PGM_ShowHide_Lookup,PGM_ShowHide_Return,"") -> Yes | E71: BE Price to Cover Variable Costs | G71: BE Price to Cover Total Costs
A72: Irrigated Sorghum Seed | B72: Yes | C72: Yield | D72: CWT | E72: Total | F72: Tenant | G72: Total | H72: Tenant | I72: Landlord
A73: Irrigated Sorghum Seed | B73: Yes | C73: 0.75 | D73: ='Irr Sorghum Seed'!$B$9*$C73 -> 33.75 | E73: =('Irr Sorghum Seed'!$F$46-'Irr Sorghum'!$F$10+($D73-$D$75)*'Irr Sorghum Seed'!$D$24)/$D73 -> 13.89988857 | F73: =('Irr Sorghum Seed'!$G$46-'Irr Sorghum'!$F$10+($J73-$J$75)*'Irr Sorghum Seed'!$D$24)/$J73 -> 16.02346867 | G73: =('Irr Sorghum Seed'!$F$60-'Irr Sorghum'!$F$10+($D73-$D$75)*'Irr Sorghum Seed'!$D$24)/$D73 -> 20.67737005 | H73: =('Irr Sorghum Seed'!$G$60-'Irr Sorghum'!$F$10+($J73-$J$75)*'Irr Sorghum Seed'!$D$24)/$J73 -> 20.42015192 | I73: =IF($K73=0, "N/A", ('Irr Sorghum Seed'!$H$60-'Irr Sorghum'!$F$10+($K73-$K$75)*'Irr Sorghum Seed'!$D$24)/$K73) -> 21.1996008 | J73: ='Irr Sorghum Seed'!$B$9*(1-'Irr Sorghum Seed'!$E$9)*$C73 -> 22.6125 | K73: ='Irr Sorghum Seed'!$B$9*'Irr Sorghum Seed'!$E$9*$C73 -> 11.1375
A74: Irrigated Sorghum Seed | B74: Yes | C74: 0.9 | D74: ='Irr Sorghum Seed'!$B$9*$C74 -> 40.5 | E74: =('Irr Sorghum Seed'!$F$46-'Irr Sorghum'!$F$10+($D74-$D$75)*'Irr Sorghum Seed'!$D$24)/$D74 -> 11.74990714 | F74: =('Irr Sorghum Seed'!$G$46-'Irr Sorghum'!$F$10+($J74-$J$75)*'Irr Sorghum Seed'!$D$24)/$J74 -> 13.51955722 | G74: =('Irr Sorghum Seed'!$F$60-'Irr Sorghum'!$F$10+($D74-$D$75)*'Irr Sorghum Seed'!$D$24)/$D74 -> 17.39780837 | H74: =('Irr Sorghum Seed'!$G$60-'Irr Sorghum'!$F$10+($J74-$J$75)*'Irr Sorghum Seed'!$D$24)/$J74 -> 17.18345993 | I74: =IF($K74=0, "N/A", ('Irr Sorghum Seed'!$H$60-'Irr Sorghum'!$F$10+($K74-$K$75)*'Irr Sorghum Seed'!$D$24)/$K74) -> 17.83300067 | J74: ='Irr Sorghum Seed'!$B$9*(1-'Irr Sorghum Seed'!$E$9)*$C74 -> 27.135 | K74: ='Irr Sorghum Seed'!$B$9*'Irr Sorghum Seed'!$E$9*$C74 -> 13.365
A75: Irrigated Sorghum Seed | B75: Yes | C75: 1 | D75: ='Irr Sorghum Seed'!$B$9*$C75 -> 45 | E75: =('Irr Sorghum Seed'!$F$46-'Irr Sorghum'!$F$10+($D75-$D$75)*'Irr Sorghum Seed'!$D$24)/$D75 -> 10.67491643 | F75: =('Irr Sorghum Seed'!$G$46-'Irr Sorghum'!$F$10+($J75-$J$75)*'Irr Sorghum Seed'!$D$24)/$J75 -> 12.2676015 | G75: =('Irr Sorghum Seed'!$F$60-'Irr Sorghum'!$F$10+($D75-$D$75)*'Irr Sorghum Seed'!$D$24)/$D75 -> 15.75802754 | H75: =('Irr Sorghum Seed'!$G$60-'Irr Sorghum'!$F$10+($J75-$J$75)*'Irr Sorghum Seed'!$D$24)/$J75 -> 15.56511394 | I75: =IF($K75=0, "N/A", ('Irr Sorghum Seed'!$H$60-'Irr Sorghum'!$F$10+($K75-$K$75)*'Irr Sorghum Seed'!$D$24)/$K75) -> 16.1497006 | J75: ='Irr Sorghum Seed'!$B$9*(1-'Irr Sorghum Seed'!$E$9)*$C75 -> 30.15 | K75: ='Irr Sorghum Seed'!$B$9*'Irr Sorghum Seed'!$E$9*$C75 -> 14.85
A76: Irrigated Sorghum Seed | B76: Yes | C76: 1.1 | D76: ='Irr Sorghum Seed'!$B$9*$C76 -> 49.5 | E76: =('Irr Sorghum Seed'!$F$46-'Irr Sorghum'!$F$10+($D76-$D$75)*'Irr Sorghum Seed'!$D$24)/$D76 -> 9.795378569 | F76: =('Irr Sorghum Seed'!$G$46-'Irr Sorghum'!$F$10+($J76-$J$75)*'Irr Sorghum Seed'!$D$24)/$J76 -> 11.24327409 | G76: =('Irr Sorghum Seed'!$F$60-'Irr Sorghum'!$F$10+($D76-$D$75)*'Irr Sorghum Seed'!$D$24)/$D76 -> 14.41638867 | H76: =('Irr Sorghum Seed'!$G$60-'Irr Sorghum'!$F$10+($J76-$J$75)*'Irr Sorghum Seed'!$D$24)/$J76 -> 14.24101267 | I76: =IF($K76=0, "N/A", ('Irr Sorghum Seed'!$H$60-'Irr Sorghum'!$F$10+($K76-$K$75)*'Irr Sorghum Seed'!$D$24)/$K76) -> 14.77245509 | J76: ='Irr Sorghum Seed'!$B$9*(1-'Irr Sorghum Seed'!$E$9)*$C76 -> 33.165 | K76: ='Irr Sorghum Seed'!$B$9*'Irr Sorghum Seed'!$E$9*$C76 -> 16.335
A77: Irrigated Sorghum Seed | B77: Yes | C77: 1.25 | D77: ='Irr Sorghum Seed'!$B$9*$C77 -> 56.25 | E77: =('Irr Sorghum Seed'!$F$46-'Irr Sorghum'!$F$10+($D77-$D$75)*'Irr Sorghum Seed'!$D$24)/$D77 -> 8.739933141 | F77: =('Irr Sorghum Seed'!$G$46-'Irr Sorghum'!$F$10+($J77-$J$75)*'Irr Sorghum Seed'!$D$24)/$J77 -> 10.0140812 | G77: =('Irr Sorghum Seed'!$F$60-'Irr Sorghum'!$F$10+($D77-$D$75)*'Irr Sorghum Seed'!$D$24)/$D77 -> 12.80642203 | H77: =('Irr Sorghum Seed'!$G$60-'Irr Sorghum'!$F$10+($J77-$J$75)*'Irr Sorghum Seed'!$D$24)/$J77 -> 12.65209115 | I77: =IF($K77=0, "N/A", ('Irr Sorghum Seed'!$H$60-'Irr Sorghum'!$F$10+($K77-$K$75)*'Irr Sorghum Seed'!$D$24)/$K77) -> 13.11976048 | J77: ='Irr Sorghum Seed'!$B$9*(1-'Irr Sorghum Seed'!$E$9)*$C77 -> 37.6875 | K77: ='Irr Sorghum Seed'!$B$9*'Irr Sorghum Seed'!$E$9*$C77 -> 18.5625
A78: Irrigated Sorghum Seed | B78: Yes
A79: Irrigated Sorghum Silage | B79: Yes | C79: ='Irr Sorghum Silage'!$A$3 -> Irrigated Sorghum Silage
A80: Irrigated Sorghum Silage | B80: Yes | E80: BE Price to Cover Variable Costs | G80: BE Price to Cover Total Costs
A81: Irrigated Sorghum Silage | B81: Yes | C81: Yield | D81: TON | E81: Total | F81: Tenant | G81: Total | H81: Tenant | I81: Landlord
A82: Irrigated Sorghum Silage | B82: Yes | C82: 0.75 | D82: ='Irr Sorghum Silage'!$B$9*$C82 -> 15 | E82: =('Irr Sorghum Silage'!F$46+(D82-D$84)*('Irr Sorghum Silage'!$D$24))/D82 -> 41.64395151 | F82: =('Irr Sorghum Silage'!G$46+(J82-J$84)*('Irr Sorghum Silage'!$D$24))/J82 -> 54.7548039 | G82: =('Irr Sorghum Silage'!F$60+(D82-D$84)*('Irr Sorghum Silage'!$D$24))/D82 -> 56.64595151 | H82: =('Irr Sorghum Silage'!G$60+(J82-J$84)*('Irr Sorghum Silage'!$D$24))/J82 -> 64.25629644 | I82: =IF($K82=0,"N/A",('Irr Sorghum Silage'!H$60+(K82-K$84)*('Irr Sorghum Silage'!$D$24))/K82) -> 41.19464513 | J82: ='Irr Sorghum Silage'!$B$9*(1-'Irr Sorghum Silage'!$E$9)*$C82 -> 10.05 | K82: ='Irr Sorghum Silage'!$B$9*'Irr Sorghum Silage'!$E$9*$C82 -> 4.95
A83: Irrigated Sorghum Silage | B83: Yes | C83: 0.9 | D83: ='Irr Sorghum Silage'!$B$9*$C83 -> 18 | E83: =('Irr Sorghum Silage'!F$46+(D83-D$84)*('Irr Sorghum Silage'!$D$24))/D83 -> 36.78662626 | F83: =('Irr Sorghum Silage'!G$46+(J83-J$84)*('Irr Sorghum Silage'!$D$24))/J83 -> 47.71233658 | G83: =('Irr Sorghum Silage'!F$60+(D83-D$84)*('Irr Sorghum Silage'!$D$24))/D83 -> 49.28829292 | H83: =('Irr Sorghum Silage'!G$60+(J83-J$84)*('Irr Sorghum Silage'!$D$24))/J83 -> 55.63024703 | I83: =IF($K83=0,"N/A",('Irr Sorghum Silage'!H$60+(K83-K$84)*('Irr Sorghum Silage'!$D$24))/K83) -> 36.41220428 | J83: ='Irr Sorghum Silage'!$B$9*(1-'Irr Sorghum Silage'!$E$9)*$C83 -> 12.06 | K83: ='Irr Sorghum Silage'!$B$9*'Irr Sorghum Silage'!$E$9*$C83 -> 5.94
A84: Irrigated Sorghum Silage | B84: Yes | C84: 1 | D84: ='Irr Sorghum Silage'!$B$9*$C84 -> 20 | E84: =('Irr Sorghum Silage'!F$46+(D84-D$84)*('Irr Sorghum Silage'!$D$24))/D84 -> 34.35796363 | F84: =('Irr Sorghum Silage'!G$46+(J84-J$84)*('Irr Sorghum Silage'!$D$24))/J84 -> 44.19110293 | G84: =('Irr Sorghum Silage'!F$60+(D84-D$84)*('Irr Sorghum Silage'!$D$24))/D84 -> 45.60946363 | H84: =('Irr Sorghum Silage'!G$60+(J84-J$84)*('Irr Sorghum Silage'!$D$24))/J84 -> 51.31722233 | I84: =IF($K84=0,"N/A",('Irr Sorghum Silage'!H$60+(K84-K$84)*('Irr Sorghum Silage'!$D$24))/K84) -> 34.02098385 | J84: ='Irr Sorghum Silage'!$B$9*(1-'Irr Sorghum Silage'!$E$9)*$C84 -> 13.4 | K84: ='Irr Sorghum Silage'!$B$9*'Irr Sorghum Silage'!$E$9*$C84 -> 6.6
A85: Irrigated Sorghum Silage | B85: Yes | C85: 1.1 | D85: ='Irr Sorghum Silage'!$B$9*$C85 -> 22 | E85: =('Irr Sorghum Silage'!F$46+(D85-D$84)*('Irr Sorghum Silage'!$D$24))/D85 -> 32.37087603 | F85: =('Irr Sorghum Silage'!G$46+(J85-J$84)*('Irr Sorghum Silage'!$D$24))/J85 -> 41.31009357 | G85: =('Irr Sorghum Silage'!F$60+(D85-D$84)*('Irr Sorghum Silage'!$D$24))/D85 -> 42.59951239 | H85: =('Irr Sorghum Silage'!G$60+(J85-J$84)*('Irr Sorghum Silage'!$D$24))/J85 -> 47.78838394 | I85: =IF($K85=0,"N/A",('Irr Sorghum Silage'!H$60+(K85-K$84)*('Irr Sorghum Silage'!$D$24))/K85) -> 32.06453077 | J85: ='Irr Sorghum Silage'!$B$9*(1-'Irr Sorghum Silage'!$E$9)*$C85 -> 14.74 | K85: ='Irr Sorghum Silage'!$B$9*'Irr Sorghum Silage'!$E$9*$C85 -> 7.26
A86: Irrigated Sorghum Silage | B86: Yes | C86: 1.25 | D86: ='Irr Sorghum Silage'!$B$9*$C86 -> 25 | E86: =('Irr Sorghum Silage'!F$46+(D86-D$84)*('Irr Sorghum Silage'!$D$24))/D86 -> 29.9863709 | F86: =('Irr Sorghum Silage'!G$46+(J86-J$84)*('Irr Sorghum Silage'!$D$24))/J86 -> 37.85288234 | G86: =('Irr Sorghum Silage'!F$60+(D86-D$84)*('Irr Sorghum Silage'!$D$24))/D86 -> 38.9875709 | H86: =('Irr Sorghum Silage'!G$60+(J86-J$84)*('Irr Sorghum Silage'!$D$24))/J86 -> 43.55377786 | I86: =IF($K86=0,"N/A",('Irr Sorghum Silage'!H$60+(K86-K$84)*('Irr Sorghum Silage'!$D$24))/K86) -> 29.71678708 | J86: ='Irr Sorghum Silage'!$B$9*(1-'Irr Sorghum Silage'!$E$9)*$C86 -> 16.75 | K86: ='Irr Sorghum Silage'!$B$9*'Irr Sorghum Silage'!$E$9*$C86 -> 8.25
A87: Irrigated Sorghum Silage | B87: Yes
A88: Irrigated Sorghum Sudangrass | B88: Yes | C88: ='Irr Sorghum Sudangrass'!$A$3 -> Irrigated Sorghum Sudangrass
A89: Irrigated Sorghum Sudangrass | B89: Yes | E89: BE Price to Cover Variable Costs | G89: BE Price to Cover Total Costs
A90: Irrigated Sorghum Sudangrass | B90: Yes | C90: Yield | D90: LB | E90: Total | F90: Tenant | G90: Total | H90: Tenant | I90: Landlord
A91: Irrigated Sorghum Sudangrass | B91: Yes | C91: 0.75 | D91: ='Irr Sorghum Sudangrass'!$B$9*$C91 -> 600 | E91: =('Irr Sorghum Sudangrass'!F$46+(D91-D$93)*('Irr Sorghum Sudangrass'!$D$24))/D91 -> 0.5418564968 | F91: =('Irr Sorghum Sudangrass'!G$46+(J91-J$93)*('Irr Sorghum Sudangrass'!$D$24))/J91 -> 0.6144576106 | G91: =('Irr Sorghum Sudangrass'!F$60+(D91-D$93)*('Irr Sorghum Sudangrass'!$D$24))/D91 -> 0.8964231635 | H91: =('Irr Sorghum Sudangrass'!G$60+(J91-J$93)*('Irr Sorghum Sudangrass'!$D$24))/J91 -> 0.8199799987 | I91: =IF($K91=0,"N/A",('Irr Sorghum Sudangrass'!H$60+(K91-K$93)*('Irr Sorghum Sudangrass'!$D$24))/K91) -> 1.051625953 | J91: ='Irr Sorghum Sudangrass'!$B$9*(1-'Irr Sorghum Sudangrass'!$E$9)*$C91 -> 402 | K91: ='Irr Sorghum Sudangrass'!$B$9*'Irr Sorghum Sudangrass'!$E$9*$C91 -> 198
A92: Irrigated Sorghum Sudangrass | B92: Yes | C92: 0.9 | D92: ='Irr Sorghum Sudangrass'!$B$9*$C92 -> 720 | E92: =('Irr Sorghum Sudangrass'!F$46+(D92-D$93)*('Irr Sorghum Sudangrass'!$D$24))/D92 -> 0.4515470807 | F92: =('Irr Sorghum Sudangrass'!G$46+(J92-J$93)*('Irr Sorghum Sudangrass'!$D$24))/J92 -> 0.5120480088 | G92: =('Irr Sorghum Sudangrass'!F$60+(D92-D$93)*('Irr Sorghum Sudangrass'!$D$24))/D92 -> 0.7470193029 | H92: =('Irr Sorghum Sudangrass'!G$60+(J92-J$93)*('Irr Sorghum Sudangrass'!$D$24))/J92 -> 0.6833166655 | I92: =IF($K92=0,"N/A",('Irr Sorghum Sudangrass'!H$60+(K92-K$93)*('Irr Sorghum Sudangrass'!$D$24))/K92) -> 0.8763549606 | J92: ='Irr Sorghum Sudangrass'!$B$9*(1-'Irr Sorghum Sudangrass'!$E$9)*$C92 -> 482.4 | K92: ='Irr Sorghum Sudangrass'!$B$9*'Irr Sorghum Sudangrass'!$E$9*$C92 -> 237.6
A93: Irrigated Sorghum Sudangrass | B93: Yes | C93: 1 | D93: ='Irr Sorghum Sudangrass'!$B$9*$C93 -> 800 | E93: =('Irr Sorghum Sudangrass'!F$46+(D93-D$93)*('Irr Sorghum Sudangrass'!$D$24))/D93 -> 0.4063923726 | F93: =('Irr Sorghum Sudangrass'!G$46+(J93-J$93)*('Irr Sorghum Sudangrass'!$D$24))/J93 -> 0.4608432079 | G93: =('Irr Sorghum Sudangrass'!F$60+(D93-D$93)*('Irr Sorghum Sudangrass'!$D$24))/D93 -> 0.6723173726 | H93: =('Irr Sorghum Sudangrass'!G$60+(J93-J$93)*('Irr Sorghum Sudangrass'!$D$24))/J93 -> 0.614984999 | I93: =IF($K93=0,"N/A",('Irr Sorghum Sudangrass'!H$60+(K93-K$93)*('Irr Sorghum Sudangrass'!$D$24))/K93) -> 0.7887194646 | J93: ='Irr Sorghum Sudangrass'!$B$9*(1-'Irr Sorghum Sudangrass'!$E$9)*$C93 -> 536 | K93: ='Irr Sorghum Sudangrass'!$B$9*'Irr Sorghum Sudangrass'!$E$9*$C93 -> 264
A94: Irrigated Sorghum Sudangrass | B94: Yes | C94: 1.1 | D94: ='Irr Sorghum Sudangrass'!$B$9*$C94 -> 880 | E94: =('Irr Sorghum Sudangrass'!F$46+(D94-D$93)*('Irr Sorghum Sudangrass'!$D$24))/D94 -> 0.3694476115 | F94: =('Irr Sorghum Sudangrass'!G$46+(J94-J$93)*('Irr Sorghum Sudangrass'!$D$24))/J94 -> 0.4189483709 | G94: =('Irr Sorghum Sudangrass'!F$60+(D94-D$93)*('Irr Sorghum Sudangrass'!$D$24))/D94 -> 0.6111976115 | H94: =('Irr Sorghum Sudangrass'!G$60+(J94-J$93)*('Irr Sorghum Sudangrass'!$D$24))/J94 -> 0.5590772718 | I94: =IF($K94=0,"N/A",('Irr Sorghum Sudangrass'!H$60+(K94-K$93)*('Irr Sorghum Sudangrass'!$D$24))/K94) -> 0.7170176951 | J94: ='Irr Sorghum Sudangrass'!$B$9*(1-'Irr Sorghum Sudangrass'!$E$9)*$C94 -> 589.6 | K94: ='Irr Sorghum Sudangrass'!$B$9*'Irr Sorghum Sudangrass'!$E$9*$C94 -> 290.4
A95: Irrigated Sorghum Sudangrass | B95: Yes | C95: 1.25 | D95: ='Irr Sorghum Sudangrass'!$B$9*$C95 -> 1000 | E95: =('Irr Sorghum Sudangrass'!F$46+(D95-D$93)*('Irr Sorghum Sudangrass'!$D$24))/D95 -> 0.3251138981 | F95: =('Irr Sorghum Sudangrass'!G$46+(J95-J$93)*('Irr Sorghum Sudangrass'!$D$24))/J95 -> 0.3686745664 | G95: =('Irr Sorghum Sudangrass'!F$60+(D95-D$93)*('Irr Sorghum Sudangrass'!$D$24))/D95 -> 0.5378538981 | H95: =('Irr Sorghum Sudangrass'!G$60+(J95-J$93)*('Irr Sorghum Sudangrass'!$D$24))/J95 -> 0.4919879992 | I95: =IF($K95=0,"N/A",('Irr Sorghum Sudangrass'!H$60+(K95-K$93)*('Irr Sorghum Sudangrass'!$D$24))/K95) -> 0.6309755717 | J95: ='Irr Sorghum Sudangrass'!$B$9*(1-'Irr Sorghum Sudangrass'!$E$9)*$C95 -> 670 | K95: ='Irr Sorghum Sudangrass'!$B$9*'Irr Sorghum Sudangrass'!$E$9*$C95 -> 330
A96: Irrigated Sorghum Sudangrass | B96: Yes
A97: Irrigated Soybeans | B97: Yes | C97: ='Irr Soybeans'!$A$3 -> Irrigated Soybeans
A98: Irrigated Soybeans | B98: Yes | E98: BE Price to Cover Variable Costs | G98: BE Price to Cover Total Costs
A99: Irrigated Soybeans | B99: Yes | C99: Yield | D99: BU | E99: Total | F99: Tenant | G99: Total | H99: Tenant | I99: Landlord
A100: Irrigated Soybeans | B100: Yes | C100: 0.75 | D100: ='Irr Soybeans'!$B$9*$C100 -> 45 | E100: =('Irr Soybeans'!F$49+(D100-D$102)*('Irr Soybeans'!$D$27))/D100 -> 9.649162049 | F100: =('Irr Soybeans'!G$49+(J100-J$102)*('Irr Soybeans'!$D$27))/J100 -> 12.31000601 | G100: =('Irr Soybeans'!F$63+(D100-D$102)*('Irr Soybeans'!$D$27))/D100 -> 14.67805094 | H100: =('Irr Soybeans'!G$63+(J100-J$102)*('Irr Soybeans'!$D$27))/J100 -> 15.57302425 | I100: =IF($K100=0,"N/A",('Irr Soybeans'!H$63+(K100-K$102)*('Irr Soybeans'!$D$27))/K100) -> 12.86098391 | J100: ='Irr Soybeans'!$B$9*(1-'Irr Soybeans'!$E$9)*$C100 -> 30.15 | K100: ='Irr Soybeans'!$B$9*'Irr Soybeans'!$E$9*$C100 -> 14.85
A101: Irrigated Soybeans | B101: Yes | C101: 0.9 | D101: ='Irr Soybeans'!$B$9*$C101 -> 54 | E101: =('Irr Soybeans'!F$49+(D101-D$102)*('Irr Soybeans'!$D$27))/D101 -> 8.207635041 | F101: =('Irr Soybeans'!G$49+(J101-J$102)*('Irr Soybeans'!$D$27))/J101 -> 10.425005 | G101: =('Irr Soybeans'!F$63+(D101-D$102)*('Irr Soybeans'!$D$27))/D101 -> 12.39837578 | H101: =('Irr Soybeans'!G$63+(J101-J$102)*('Irr Soybeans'!$D$27))/J101 -> 13.14418687 | I101: =IF($K101=0,"N/A",('Irr Soybeans'!H$63+(K101-K$102)*('Irr Soybeans'!$D$27))/K101) -> 10.88415326 | J101: ='Irr Soybeans'!$B$9*(1-'Irr Soybeans'!$E$9)*$C101 -> 36.18 | K101: ='Irr Soybeans'!$B$9*'Irr Soybeans'!$E$9*$C101 -> 17.82
A102: Irrigated Soybeans | B102: Yes | C102: 1 | D102: ='Irr Soybeans'!$B$9*$C102 -> 60 | E102: =('Irr Soybeans'!F$49+(D102-D$102)*('Irr Soybeans'!$D$27))/D102 -> 7.486871537 | F102: =('Irr Soybeans'!G$49+(J102-J$102)*('Irr Soybeans'!$D$27))/J102 -> 9.482504504 | G102: =('Irr Soybeans'!F$63+(D102-D$102)*('Irr Soybeans'!$D$27))/D102 -> 11.2585382 | H102: =('Irr Soybeans'!G$63+(J102-J$102)*('Irr Soybeans'!$D$27))/J102 -> 11.92976819 | I102: =IF($K102=0,"N/A",('Irr Soybeans'!H$63+(K102-K$102)*('Irr Soybeans'!$D$27))/K102) -> 9.895737936 | J102: ='Irr Soybeans'!$B$9*(1-'Irr Soybeans'!$E$9)*$C102 -> 40.2 | K102: ='Irr Soybeans'!$B$9*'Irr Soybeans'!$E$9*$C102 -> 19.8
A103: Irrigated Soybeans | B103: =_xlfn.XLOOKUP(A103,PGM_ShowHide_Lookup,PGM_ShowHide_Return,"") -> Yes | C103: 1.1 | D103: ='Irr Soybeans'!$B$9*$C103 -> 66 | E103: =('Irr Soybeans'!F$49+(D103-D$102)*('Irr Soybeans'!$D$27))/D103 -> 6.897155942 | F103: =('Irr Soybeans'!G$49+(J103-J$102)*('Irr Soybeans'!$D$27))/J103 -> 8.711367731 | G103: =('Irr Soybeans'!F$63+(D103-D$102)*('Irr Soybeans'!$D$27))/D103 -> 10.32594382 | H103: =('Irr Soybeans'!G$63+(J103-J$102)*('Irr Soybeans'!$D$27))/J103 -> 10.9361529 | I103: =IF($K103=0,"N/A",('Irr Soybeans'!H$63+(K103-K$102)*('Irr Soybeans'!$D$27))/K103) -> 9.087034487 | J103: ='Irr Soybeans'!$B$9*(1-'Irr Soybeans'!$E$9)*$C103 -> 44.22 | K103: ='Irr Soybeans'!$B$9*'Irr Soybeans'!$E$9*$C103 -> 21.78
A104: Irrigated Soybeans | B104: Yes | C104: 1.25 | D104: ='Irr Soybeans'!$B$9*$C104 -> 75 | E104: =('Irr Soybeans'!F$49+(D104-D$102)*('Irr Soybeans'!$D$27))/D104 -> 6.189497229 | F104: =('Irr Soybeans'!G$49+(J104-J$102)*('Irr Soybeans'!$D$27))/J104 -> 7.786003603 | G104: =('Irr Soybeans'!F$63+(D104-D$102)*('Irr Soybeans'!$D$27))/D104 -> 9.206830563 | H104: =('Irr Soybeans'!G$63+(J104-J$102)*('Irr Soybeans'!$D$27))/J104 -> 9.743814549 | I104: =IF($K104=0,"N/A",('Irr Soybeans'!H$63+(K104-K$102)*('Irr Soybeans'!$D$27))/K104) -> 8.116590349 | J104: ='Irr Soybeans'!$B$9*(1-'Irr Soybeans'!$E$9)*$C104 -> 50.25 | K104: ='Irr Soybeans'!$B$9*'Irr Soybeans'!$E$9*$C104 -> 24.75
A105: Irrigated Soybeans | B105: Yes
A106: Irrigated Sunflowers-Confectionary | B106: Yes | C106: ='Irr Sunflowers-Confection'!$A$3 -> Irrigated Sunflowers-Confectionary
A107: Irrigated Sunflowers-Confectionary | B107: Yes | E107: BE Price to Cover Variable Costs | G107: BE Price to Cover Total Costs
A108: Irrigated Sunflowers-Confectionary | B108: Yes | C108: Yield | D108: CWT | E108: Total | F108: Tenant | G108: Total | H108: Tenant | I108: Landlord
A109: Irrigated Sunflowers-Confectionary | B109: Yes | C109: 0.75 | D109: ='Irr Sunflowers-Confection'!$B$9*$C109 -> 13.5 | E109: =('Irr Sunflowers-Confection'!F$49+(D109-D$111)*('Irr Sunflowers-Confection'!$D$26))/D109 -> 27.93064592 | F109: =('Irr Sunflowers-Confection'!G$49+(J109-J$111)*('Irr Sunflowers-Confection'!$D$26))/J109 -> 34.6530238 | G109: =('Irr Sunflowers-Confection'!F$63+(D109-D$111)*('Irr Sunflowers-Confection'!$D$26))/D109 -> 43.35286814 | H109: =('Irr Sunflowers-Confection'!G$63+(J109-J$111)*('Irr Sunflowers-Confection'!$D$26))/J109 -> 43.5408071 | I109: =IF($K109=0, "N/A", ('Irr Sunflowers-Confection'!H$63+(K109-K$111)*('Irr Sunflowers-Confection'!$D$26))/K109) -> 42.9712951 | J109: ='Irr Sunflowers-Confection'!$B$9*(1-'Irr Sunflowers-Confection'!$E$9)*$C109 -> 9.045 | K109: ='Irr Sunflowers-Confection'!$B$9*'Irr Sunflowers-Confection'!$E$9*$C109 -> 4.455
A110: Irrigated Sunflowers-Confectionary | B110: Yes | C110: 0.9 | D110: ='Irr Sunflowers-Confection'!$B$9*$C110 -> 16.2 | E110: =('Irr Sunflowers-Confection'!F$49+(D110-D$111)*('Irr Sunflowers-Confection'!$D$26))/D110 -> 23.39220493 | F110: =('Irr Sunflowers-Confection'!G$49+(J110-J$111)*('Irr Sunflowers-Confection'!$D$26))/J110 -> 28.9941865 | G110: =('Irr Sunflowers-Confection'!F$63+(D110-D$111)*('Irr Sunflowers-Confection'!$D$26))/D110 -> 36.24405678 | H110: =('Irr Sunflowers-Confection'!G$63+(J110-J$111)*('Irr Sunflowers-Confection'!$D$26))/J110 -> 36.40067259 | I110: =IF($K110=0, "N/A", ('Irr Sunflowers-Confection'!H$63+(K110-K$111)*('Irr Sunflowers-Confection'!$D$26))/K110) -> 35.92607925 | J110: ='Irr Sunflowers-Confection'!$B$9*(1-'Irr Sunflowers-Confection'!$E$9)*$C110 -> 10.854 | K110: ='Irr Sunflowers-Confection'!$B$9*'Irr Sunflowers-Confection'!$E$9*$C110 -> 5.346
A111: Irrigated Sunflowers-Confectionary | B111: Yes | C111: 1 | D111: ='Irr Sunflowers-Confection'!$B$9*$C111 -> 18 | E111: =('Irr Sunflowers-Confection'!F$49+(D111-D$111)*('Irr Sunflowers-Confection'!$D$26))/D111 -> 21.12298444 | F111: =('Irr Sunflowers-Confection'!G$49+(J111-J$111)*('Irr Sunflowers-Confection'!$D$26))/J111 -> 26.16476785 | G111: =('Irr Sunflowers-Confection'!F$63+(D111-D$111)*('Irr Sunflowers-Confection'!$D$26))/D111 -> 32.68965111 | H111: =('Irr Sunflowers-Confection'!G$63+(J111-J$111)*('Irr Sunflowers-Confection'!$D$26))/J111 -> 32.83060533 | I111: =IF($K111=0, "N/A", ('Irr Sunflowers-Confection'!H$63+(K111-K$111)*('Irr Sunflowers-Confection'!$D$26))/K111) -> 32.40347132 | J111: ='Irr Sunflowers-Confection'!$B$9*(1-'Irr Sunflowers-Confection'!$E$9)*$C111 -> 12.06 | K111: ='Irr Sunflowers-Confection'!$B$9*'Irr Sunflowers-Confection'!$E$9*$C111 -> 5.94
A112: Irrigated Sunflowers-Confectionary | B112: Yes | C112: 1.1 | D112: ='Irr Sunflowers-Confection'!$B$9*$C112 -> 19.8 | E112: =('Irr Sunflowers-Confection'!F$49+(D112-D$111)*('Irr Sunflowers-Confection'!$D$26))/D112 -> 19.26634949 | F112: =('Irr Sunflowers-Confection'!G$49+(J112-J$111)*('Irr Sunflowers-Confection'!$D$26))/J112 -> 23.84978895 | G112: =('Irr Sunflowers-Confection'!F$63+(D112-D$111)*('Irr Sunflowers-Confection'!$D$26))/D112 -> 29.78150101 | H112: =('Irr Sunflowers-Confection'!G$63+(J112-J$111)*('Irr Sunflowers-Confection'!$D$26))/J112 -> 29.90964121 | I112: =IF($K112=0, "N/A", ('Irr Sunflowers-Confection'!H$63+(K112-K$111)*('Irr Sunflowers-Confection'!$D$26))/K112) -> 29.52133757 | J112: ='Irr Sunflowers-Confection'!$B$9*(1-'Irr Sunflowers-Confection'!$E$9)*$C112 -> 13.266 | K112: ='Irr Sunflowers-Confection'!$B$9*'Irr Sunflowers-Confection'!$E$9*$C112 -> 6.534
A113: Irrigated Sunflowers-Confectionary | B113: Yes | C113: 1.25 | D113: ='Irr Sunflowers-Confection'!$B$9*$C113 -> 22.5 | E113: =('Irr Sunflowers-Confection'!F$49+(D113-D$111)*('Irr Sunflowers-Confection'!$D$26))/D113 -> 17.03838755 | F113: =('Irr Sunflowers-Confection'!G$49+(J113-J$111)*('Irr Sunflowers-Confection'!$D$26))/J113 -> 21.07181428 | G113: =('Irr Sunflowers-Confection'!F$63+(D113-D$111)*('Irr Sunflowers-Confection'!$D$26))/D113 -> 26.29172089 | H113: =('Irr Sunflowers-Confection'!G$63+(J113-J$111)*('Irr Sunflowers-Confection'!$D$26))/J113 -> 26.40448426 | I113: =IF($K113=0, "N/A", ('Irr Sunflowers-Confection'!H$63+(K113-K$111)*('Irr Sunflowers-Confection'!$D$26))/K113) -> 26.06277706 | J113: ='Irr Sunflowers-Confection'!$B$9*(1-'Irr Sunflowers-Confection'!$E$9)*$C113 -> 15.075 | K113: ='Irr Sunflowers-Confection'!$B$9*'Irr Sunflowers-Confection'!$E$9*$C113 -> 7.425
A114: Irrigated Sunflowers-Confectionary | B114: Yes
A115: Irrigated Sunflowers-Oilseed | B115: Yes | C115: ='Irr Sunflowers-Oilseed'!$A$3 -> Irrigated Sunflowers-Oilseed
A116: Irrigated Sunflowers-Oilseed | B116: Yes | E116: BE Price to Cover Variable Costs | G116: BE Price to Cover Total Costs
A117: Irrigated Sunflowers-Oilseed | B117: Yes | C117: Yield | D117: CWT | E117: Total | F117: Tenant | G117: Total | H117: Tenant | I117: Landlord
A118: Irrigated Sunflowers-Oilseed | B118: Yes | C118: 0.75 | D118: ='Irr Sunflowers-Oilseed'!$B$9*$C118 -> 15 | E118: =('Irr Sunflowers-Oilseed'!F$48+(D118-D$120)*('Irr Sunflowers-Oilseed'!$D$25))/D118 -> 25.17370703 | F118: =('Irr Sunflowers-Oilseed'!G$48+(J118-J$120)*('Irr Sunflowers-Oilseed'!$D$25))/J118 -> 29.33293515 | G118: =('Irr Sunflowers-Oilseed'!F$62+(D118-D$120)*('Irr Sunflowers-Oilseed'!$D$25))/D118 -> 39.05370703 | H118: =('Irr Sunflowers-Oilseed'!G$62+(J118-J$120)*('Irr Sunflowers-Oilseed'!$D$25))/J118 -> 37.33194013 | I118: =IF($K118=0, "N/A", ('Irr Sunflowers-Oilseed'!H$62+(K118-K$120)*('Irr Sunflowers-Oilseed'!$D$25))/K118) -> 42.54941559 | J118: ='Irr Sunflowers-Oilseed'!$B$9*(1-'Irr Sunflowers-Oilseed'!$E$9)*$C118 -> 10.05 | K118: ='Irr Sunflowers-Oilseed'!$B$9*'Irr Sunflowers-Oilseed'!$E$9*$C118 -> 4.95
A119: Irrigated Sunflowers-Oilseed | B119: Yes | C119: 0.9 | D119: ='Irr Sunflowers-Oilseed'!$B$9*$C119 -> 18 | E119: =('Irr Sunflowers-Oilseed'!F$48+(D119-D$120)*('Irr Sunflowers-Oilseed'!$D$25))/D119 -> 21.09475586 | F119: =('Irr Sunflowers-Oilseed'!G$48+(J119-J$120)*('Irr Sunflowers-Oilseed'!$D$25))/J119 -> 24.56077929 | G119: =('Irr Sunflowers-Oilseed'!F$62+(D119-D$120)*('Irr Sunflowers-Oilseed'!$D$25))/D119 -> 32.66142252 | H119: =('Irr Sunflowers-Oilseed'!G$62+(J119-J$120)*('Irr Sunflowers-Oilseed'!$D$25))/J119 -> 31.22661677 | I119: =IF($K119=0, "N/A", ('Irr Sunflowers-Oilseed'!H$62+(K119-K$120)*('Irr Sunflowers-Oilseed'!$D$25))/K119) -> 35.57451299 | J119: ='Irr Sunflowers-Oilseed'!$B$9*(1-'Irr Sunflowers-Oilseed'!$E$9)*$C119 -> 12.06 | K119: ='Irr Sunflowers-Oilseed'!$B$9*'Irr Sunflowers-Oilseed'!$E$9*$C119 -> 5.94
A120: Irrigated Sunflowers-Oilseed | B120: Yes | C120: 1 | D120: ='Irr Sunflowers-Oilseed'!$B$9*$C120 -> 20 | E120: =('Irr Sunflowers-Oilseed'!F$48+(D120-D$120)*('Irr Sunflowers-Oilseed'!$D$25))/D120 -> 19.05528027 | F120: =('Irr Sunflowers-Oilseed'!G$48+(J120-J$120)*('Irr Sunflowers-Oilseed'!$D$25))/J120 -> 22.17470136 | G120: =('Irr Sunflowers-Oilseed'!F$62+(D120-D$120)*('Irr Sunflowers-Oilseed'!$D$25))/D120 -> 29.46528027 | H120: =('Irr Sunflowers-Oilseed'!G$62+(J120-J$120)*('Irr Sunflowers-Oilseed'!$D$25))/J120 -> 28.17395509 | I120: =IF($K120=0, "N/A", ('Irr Sunflowers-Oilseed'!H$62+(K120-K$120)*('Irr Sunflowers-Oilseed'!$D$25))/K120) -> 32.08706169 | J120: ='Irr Sunflowers-Oilseed'!$B$9*(1-'Irr Sunflowers-Oilseed'!$E$9)*$C120 -> 13.4 | K120: ='Irr Sunflowers-Oilseed'!$B$9*'Irr Sunflowers-Oilseed'!$E$9*$C120 -> 6.6
A121: Irrigated Sunflowers-Oilseed | B121: Yes | C121: 1.1 | D121: ='Irr Sunflowers-Oilseed'!$B$9*$C121 -> 22 | E121: =('Irr Sunflowers-Oilseed'!F$48+(D121-D$120)*('Irr Sunflowers-Oilseed'!$D$25))/D121 -> 17.38661843 | F121: =('Irr Sunflowers-Oilseed'!G$48+(J121-J$120)*('Irr Sunflowers-Oilseed'!$D$25))/J121 -> 20.22245578 | G121: =('Irr Sunflowers-Oilseed'!F$62+(D121-D$120)*('Irr Sunflowers-Oilseed'!$D$25))/D121 -> 26.85025479 | H121: =('Irr Sunflowers-Oilseed'!G$62+(J121-J$120)*('Irr Sunflowers-Oilseed'!$D$25))/J121 -> 25.67632281 | I121: =IF($K121=0, "N/A", ('Irr Sunflowers-Oilseed'!H$62+(K121-K$120)*('Irr Sunflowers-Oilseed'!$D$25))/K121) -> 29.23369245 | J121: ='Irr Sunflowers-Oilseed'!$B$9*(1-'Irr Sunflowers-Oilseed'!$E$9)*$C121 -> 14.74 | K121: ='Irr Sunflowers-Oilseed'!$B$9*'Irr Sunflowers-Oilseed'!$E$9*$C121 -> 7.26
A122: Irrigated Sunflowers-Oilseed | B122: Yes | C122: 1.25 | D122: ='Irr Sunflowers-Oilseed'!$B$9*$C122 -> 25 | E122: =('Irr Sunflowers-Oilseed'!F$48+(D122-D$120)*('Irr Sunflowers-Oilseed'!$D$25))/D122 -> 15.38422422 | F122: =('Irr Sunflowers-Oilseed'!G$48+(J122-J$120)*('Irr Sunflowers-Oilseed'!$D$25))/J122 -> 17.87976109 | G122: =('Irr Sunflowers-Oilseed'!F$62+(D122-D$120)*('Irr Sunflowers-Oilseed'!$D$25))/D122 -> 23.71222422 | H122: =('Irr Sunflowers-Oilseed'!G$62+(J122-J$120)*('Irr Sunflowers-Oilseed'!$D$25))/J122 -> 22.67916408 | I122: =IF($K122=0, "N/A", ('Irr Sunflowers-Oilseed'!H$62+(K122-K$120)*('Irr Sunflowers-Oilseed'!$D$25))/K122) -> 25.80964935 | J122: ='Irr Sunflowers-Oilseed'!$B$9*(1-'Irr Sunflowers-Oilseed'!$E$9)*$C122 -> 16.75 | K122: ='Irr Sunflowers-Oilseed'!$B$9*'Irr Sunflowers-Oilseed'!$E$9*$C122 -> 8.25
A123: Irrigated Sunflowers-Oilseed | B123: Yes
A124: Irrigated Triticale Silage | B124: Yes | C124: ='Irr Triticale Silage'!$A$3 -> Irrigated Triticale Silage
A125: Irrigated Triticale Silage | B125: Yes | E125: BE Price to Cover Variable Costs | G125: BE Price to Cover Total Costs
A126: Irrigated Triticale Silage | B126: Yes | C126: Yield | D126: TONS | E126: Total | F126: Tenant | G126: Total | H126: Tenant | I126: Landlord
A127: Irrigated Triticale Silage | B127: Yes | C127: 0.75 | D127: ='Irr Triticale Silage'!$B$9*$C127 -> 7.5 | E127: =('Irr Triticale Silage'!F$46+(D127-D$129)*('Irr Triticale Silage'!$D$24))/D127 -> 48.21728621 | F127: =('Irr Triticale Silage'!G$46+(J127-J$129)*('Irr Triticale Silage'!$D$24))/J127 -> 64.13407239 | G127: =('Irr Triticale Silage'!F$60+(D127-D$129)*('Irr Triticale Silage'!$D$24))/D127 -> 77.17995287 | H127: =('Irr Triticale Silage'!G$60+(J127-J$129)*('Irr Triticale Silage'!$D$24))/J127 -> 81.46740572 | I127: =IF($K127=0,"N/A",('Irr Triticale Silage'!H$60+(K127-K$129)*('Irr Triticale Silage'!$D$24))/K127) -> 68.47512437 | J127: ='Irr Triticale Silage'!$B$9*(1-'Irr Triticale Silage'!$E$9)*$C127 -> 5.025 | K127: ='Irr Triticale Silage'!$B$9*'Irr Triticale Silage'!$E$9*$C127 -> 2.475
A128: Irrigated Triticale Silage | B128: Yes | C128: 0.9 | D128: ='Irr Triticale Silage'!$B$9*$C128 -> 9 | E128: =('Irr Triticale Silage'!F$46+(D128-D$129)*('Irr Triticale Silage'!$D$24))/D128 -> 42.26440517 | F128: =('Irr Triticale Silage'!G$46+(J128-J$129)*('Irr Triticale Silage'!$D$24))/J128 -> 55.52839366 | G128: =('Irr Triticale Silage'!F$60+(D128-D$129)*('Irr Triticale Silage'!$D$24))/D128 -> 66.39996073 | H128: =('Irr Triticale Silage'!G$60+(J128-J$129)*('Irr Triticale Silage'!$D$24))/J128 -> 69.9728381 | I128: =IF($K128=0,"N/A",('Irr Triticale Silage'!H$60+(K128-K$129)*('Irr Triticale Silage'!$D$24))/K128) -> 59.14593697 | J128: ='Irr Triticale Silage'!$B$9*(1-'Irr Triticale Silage'!$E$9)*$C128 -> 6.03 | K128: ='Irr Triticale Silage'!$B$9*'Irr Triticale Silage'!$E$9*$C128 -> 2.97
A129: Irrigated Triticale Silage | B129: Yes | C129: 1 | D129: ='Irr Triticale Silage'!$B$9*$C129 -> 10 | E129: =('Irr Triticale Silage'!F$46+(D129-D$129)*('Irr Triticale Silage'!$D$24))/D129 -> 39.28796466 | F129: =('Irr Triticale Silage'!G$46+(J129-J$129)*('Irr Triticale Silage'!$D$24))/J129 -> 51.22555429 | G129: =('Irr Triticale Silage'!F$60+(D129-D$129)*('Irr Triticale Silage'!$D$24))/D129 -> 61.00996466 | H129: =('Irr Triticale Silage'!G$60+(J129-J$129)*('Irr Triticale Silage'!$D$24))/J129 -> 64.22555429 | I129: =IF($K129=0,"N/A",('Irr Triticale Silage'!H$60+(K129-K$129)*('Irr Triticale Silage'!$D$24))/K129) -> 54.48134328 | J129: ='Irr Triticale Silage'!$B$9*(1-'Irr Triticale Silage'!$E$9)*$C129 -> 6.7 | K129: ='Irr Triticale Silage'!$B$9*'Irr Triticale Silage'!$E$9*$C129 -> 3.3
A130: Irrigated Triticale Silage | B130: Yes | C130: 1.1 | D130: ='Irr Triticale Silage'!$B$9*$C130 -> 11 | E130: =('Irr Triticale Silage'!F$46+(D130-D$129)*('Irr Triticale Silage'!$D$24))/D130 -> 36.85269514 | F130: =('Irr Triticale Silage'!G$46+(J130-J$129)*('Irr Triticale Silage'!$D$24))/J130 -> 47.70504936 | G130: =('Irr Triticale Silage'!F$60+(D130-D$129)*('Irr Triticale Silage'!$D$24))/D130 -> 56.59996787 | H130: =('Irr Triticale Silage'!G$60+(J130-J$129)*('Irr Triticale Silage'!$D$24))/J130 -> 59.52323117 | I130: =IF($K130=0,"N/A",('Irr Triticale Silage'!H$60+(K130-K$129)*('Irr Triticale Silage'!$D$24))/K130) -> 50.66485752 | J130: ='Irr Triticale Silage'!$B$9*(1-'Irr Triticale Silage'!$E$9)*$C130 -> 7.37 | K130: ='Irr Triticale Silage'!$B$9*'Irr Triticale Silage'!$E$9*$C130 -> 3.63
A131: Irrigated Triticale Silage | B131: Yes | C131: 1.25 | D131: ='Irr Triticale Silage'!$B$9*$C131 -> 12.5 | E131: =('Irr Triticale Silage'!F$46+(D131-D$129)*('Irr Triticale Silage'!$D$24))/D131 -> 33.93037172 | F131: =('Irr Triticale Silage'!G$46+(J131-J$129)*('Irr Triticale Silage'!$D$24))/J131 -> 43.48044343 | G131: =('Irr Triticale Silage'!F$60+(D131-D$129)*('Irr Triticale Silage'!$D$24))/D131 -> 51.30797172 | H131: =('Irr Triticale Silage'!G$60+(J131-J$129)*('Irr Triticale Silage'!$D$24))/J131 -> 53.88044343 | I131: =IF($K131=0,"N/A",('Irr Triticale Silage'!H$60+(K131-K$129)*('Irr Triticale Silage'!$D$24))/K131) -> 46.08507462 | J131: ='Irr Triticale Silage'!$B$9*(1-'Irr Triticale Silage'!$E$9)*$C131 -> 8.375 | K131: ='Irr Triticale Silage'!$B$9*'Irr Triticale Silage'!$E$9*$C131 -> 4.125
A132: Irrigated Triticale Silage | B132: Yes
A133: Irrigated Wheat | B133: Yes | C133: ='Irr Wheat'!$A$3 -> Irrigated Wheat
A134: Irrigated Wheat | B134: Yes | E134: BE Price to Cover Variable Costs | G134: BE Price to Cover Total Costs
A135: Irrigated Wheat | B135: =_xlfn.XLOOKUP(A135,PGM_ShowHide_Lookup,PGM_ShowHide_Return,"") -> Yes | C135: Yield | D135: BU | E135: Total | F135: Tenant | G135: Total | H135: Tenant | I135: Landlord
A136: Irrigated Wheat | B136: Yes | C136: 0.75 | D136: ='Irr Wheat'!$B$9*$C136 -> 37.5 | E136: =('Irr Wheat'!$F$47-'Irr Wheat'!$F$10+($D136-$D$138)*'Irr Wheat'!$D$25)/$D136 -> 5.692303346 | F136: =('Irr Wheat'!$G$47-'Irr Wheat'!$G$10+($J136-$J$138)*'Irr Wheat'!$D$25)/$J136 -> 7.68432233 | G136: =('Irr Wheat'!$F$61-'Irr Wheat'!$F$10+($D136-$D$138)*'Irr Wheat'!$D$25)/$D136 -> 11.48483668 | H136: =('Irr Wheat'!$G$61-'Irr Wheat'!$G$10+($J136-$J$138)*'Irr Wheat'!$D$25)/$J136 -> 11.150989 | I136: =IF($K136=0, "N/A", ('Irr Wheat'!$H$61-'Irr Wheat'!$H$10+($K136-$K$138)*'Irr Wheat'!$D$25)/$K136) -> 12.16264864 | J136: ='Irr Wheat'!$B$9*(1-'Irr Wheat'!$E$9)*$C136 -> 25.125 | K136: ='Irr Wheat'!$B$9*'Irr Wheat'!$E$9*$C136 -> 12.375
A137: Irrigated Wheat | B137: Yes | C137: 0.9 | D137: ='Irr Wheat'!$B$9*$C137 -> 45 | E137: =('Irr Wheat'!$F$47-'Irr Wheat'!$F$10+($D137-$D$138)*'Irr Wheat'!$D$25)/$D137 -> 4.933586122 | F137: =('Irr Wheat'!$G$47-'Irr Wheat'!$G$10+($J137-$J$138)*'Irr Wheat'!$D$25)/$J137 -> 6.593601942 | G137: =('Irr Wheat'!$F$61-'Irr Wheat'!$F$10+($D137-$D$138)*'Irr Wheat'!$D$25)/$D137 -> 9.760697233 | H137: =('Irr Wheat'!$G$61-'Irr Wheat'!$G$10+($J137-$J$138)*'Irr Wheat'!$D$25)/$J137 -> 9.482490831 | I137: =IF($K137=0, "N/A", ('Irr Wheat'!$H$61-'Irr Wheat'!$H$10+($K137-$K$138)*'Irr Wheat'!$D$25)/$K137) -> 10.32554053 | J137: ='Irr Wheat'!$B$9*(1-'Irr Wheat'!$E$9)*$C137 -> 30.15 | K137: ='Irr Wheat'!$B$9*'Irr Wheat'!$E$9*$C137 -> 14.85
A138: Irrigated Wheat | B138: Yes | C138: 1 | D138: ='Irr Wheat'!$B$9*$C138 -> 50 | E138: =('Irr Wheat'!$F$47-'Irr Wheat'!$F$10+($D138-$D$138)*'Irr Wheat'!$D$25)/$D138 -> 4.55422751 | F138: =('Irr Wheat'!$G$47-'Irr Wheat'!$G$10+($J138-$J$138)*'Irr Wheat'!$D$25)/$J138 -> 6.048241748 | G138: =('Irr Wheat'!$F$61-'Irr Wheat'!$F$10+($D138-$D$138)*'Irr Wheat'!$D$25)/$D138 -> 8.89862751 | H138: =('Irr Wheat'!$G$61-'Irr Wheat'!$G$10+($J138-$J$138)*'Irr Wheat'!$D$25)/$J138 -> 8.648241748 | I138: =IF($K138=0, "N/A", ('Irr Wheat'!$H$61-'Irr Wheat'!$H$10+($K138-$K$138)*'Irr Wheat'!$D$25)/$K138) -> 9.406986481 | J138: ='Irr Wheat'!$B$9*(1-'Irr Wheat'!$E$9)*$C138 -> 33.5 | K138: ='Irr Wheat'!$B$9*'Irr Wheat'!$E$9*$C138 -> 16.5
A139: Irrigated Wheat | B139: Yes | C139: 1.1 | D139: ='Irr Wheat'!$B$9*$C139 -> 55 | E139: =('Irr Wheat'!$F$47-'Irr Wheat'!$F$10+($D139-$D$138)*'Irr Wheat'!$D$25)/$D139 -> 4.243843191 | F139: =('Irr Wheat'!$G$47-'Irr Wheat'!$G$10+($J139-$J$138)*'Irr Wheat'!$D$25)/$J139 -> 5.602037953 | G139: =('Irr Wheat'!$F$61-'Irr Wheat'!$F$10+($D139-$D$138)*'Irr Wheat'!$D$25)/$D139 -> 8.193297736 | H139: =('Irr Wheat'!$G$61-'Irr Wheat'!$G$10+($J139-$J$138)*'Irr Wheat'!$D$25)/$J139 -> 7.965674316 | I139: =IF($K139=0, "N/A", ('Irr Wheat'!$H$61-'Irr Wheat'!$H$10+($K139-$K$138)*'Irr Wheat'!$D$25)/$K139) -> 8.655442255 | J139: ='Irr Wheat'!$B$9*(1-'Irr Wheat'!$E$9)*$C139 -> 36.85 | K139: ='Irr Wheat'!$B$9*'Irr Wheat'!$E$9*$C139 -> 18.15
A140: Irrigated Wheat | B140: Yes | C140: 1.25 | D140: ='Irr Wheat'!$B$9*$C140 -> 62.5 | E140: =('Irr Wheat'!$F$47-'Irr Wheat'!$F$10+($D140-$D$138)*'Irr Wheat'!$D$25)/$D140 -> 3.871382008 | F140: =('Irr Wheat'!$G$47-'Irr Wheat'!$G$10+($J140-$J$138)*'Irr Wheat'!$D$25)/$J140 -> 5.066593398 | G140: =('Irr Wheat'!$F$61-'Irr Wheat'!$F$10+($D140-$D$138)*'Irr Wheat'!$D$25)/$D140 -> 7.346902008 | H140: =('Irr Wheat'!$G$61-'Irr Wheat'!$G$10+($J140-$J$138)*'Irr Wheat'!$D$25)/$J140 -> 7.146593398 | I140: =IF($K140=0, "N/A", ('Irr Wheat'!$H$61-'Irr Wheat'!$H$10+($K140-$K$138)*'Irr Wheat'!$D$25)/$K140) -> 7.753589184 | J140: ='Irr Wheat'!$B$9*(1-'Irr Wheat'!$E$9)*$C140 -> 41.875 | K140: ='Irr Wheat'!$B$9*'Irr Wheat'!$E$9*$C140 -> 20.625
A141: Irrigated Wheat | B141: Yes
A142: Irrigated Other Crop | B142: Yes | C142: ='Irr Other Crop'!$A$3 -> Irrigated Other Crop
A143: Irrigated Other Crop | B143: Yes | E143: BE Price to Cover Variable Costs | G143: BE Price to Cover Total Costs
A144: Irrigated Other Crop | B144: Yes | C144: Yield | D144: LB | E144: Total | F144: Tenant | G144: Total | H144: Tenant | I144: Landlord
A145: Irrigated Other Crop | B145: Yes | C145: 0.75 | D145: ='Irr Other Crop'!$B$9*$C145 -> 0 | E145: =IF($D145=0, "N/A", ('Irr Other Crop'!$F$48-'Irr Other Crop'!$F$10+($D145-$D$147)*'Irr Other Crop'!$D$26)/$D145) -> N/A | F145: =IF($D145=0, "N/A",('Irr Other Crop'!$G$48-'Irr Other Crop'!$G$10+($J145-$J$147)*'Irr Other Crop'!$D$26)/$J145) -> N/A | G145: =IF($D145=0, "N/A",('Irr Other Crop'!$F$62-'Irr Other Crop'!$F$10+($D145-$D$147)*'Irr Other Crop'!$D$26)/$D145) -> N/A | H145: =IF($D145=0, "N/A",('Irr Other Crop'!$G$62-'Irr Other Crop'!$G$10+($J145-$J$147)*'Irr Other Crop'!$D$26)/$J145) -> N/A | I145: =IF($K145=0, "N/A", ('Irr Other Crop'!$H$62-'Irr Other Crop'!$H$10+($K145-$K$147)*'Irr Other Crop'!$D$26)/$K145) -> N/A | J145: ='Irr Other Crop'!$B$9*(1-'Irr Other Crop'!$E$9)*$C145 -> 0 | K145: ='Irr Other Crop'!$B$9*'Irr Other Crop'!$E$9*$C145 -> 0
A146: Irrigated Other Crop | B146: Yes | C146: 0.9 | D146: ='Irr Other Crop'!$B$9*$C146 -> 0 | E146: =IF($D146=0, "N/A", ('Irr Other Crop'!$F$48-'Irr Other Crop'!$F$10+($D146-$D$147)*'Irr Other Crop'!$D$26)/$D146) -> N/A | F146: =IF($D146=0, "N/A",('Irr Other Crop'!$G$48-'Irr Other Crop'!$G$10+($J146-$J$147)*'Irr Other Crop'!$D$26)/$J146) -> N/A | G146: =IF($D146=0, "N/A",('Irr Other Crop'!$F$62-'Irr Other Crop'!$F$10+($D146-$D$147)*'Irr Other Crop'!$D$26)/$D146) -> N/A | H146: =IF($D146=0, "N/A",('Irr Other Crop'!$G$62-'Irr Other Crop'!$G$10+($J146-$J$147)*'Irr Other Crop'!$D$26)/$J146) -> N/A | I146: =IF($K146=0, "N/A", ('Irr Other Crop'!$H$62-'Irr Other Crop'!$H$10+($K146-$K$147)*'Irr Other Crop'!$D$26)/$K146) -> N/A | J146: ='Irr Other Crop'!$B$9*(1-'Irr Other Crop'!$E$9)*$C146 -> 0 | K146: ='Irr Other Crop'!$B$9*'Irr Other Crop'!$E$9*$C146 -> 0
A147: Irrigated Other Crop | B147: Yes | C147: 1 | D147: ='Irr Other Crop'!$B$9*$C147 -> 0 | E147: =IF($D147=0, "N/A", ('Irr Other Crop'!$F$48-'Irr Other Crop'!$F$10+($D147-$D$147)*'Irr Other Crop'!$D$26)/$D147) -> N/A | F147: =IF($D147=0, "N/A",('Irr Other Crop'!$G$48-'Irr Other Crop'!$G$10+($J147-$J$147)*'Irr Other Crop'!$D$26)/$J147) -> N/A | G147: =IF($D147=0, "N/A",('Irr Other Crop'!$F$62-'Irr Other Crop'!$F$10+($D147-$D$147)*'Irr Other Crop'!$D$26)/$D147) -> N/A | H147: =IF($D147=0, "N/A",('Irr Other Crop'!$G$62-'Irr Other Crop'!$G$10+($J147-$J$147)*'Irr Other Crop'!$D$26)/$J147) -> N/A | I147: =IF($K147=0, "N/A", ('Irr Other Crop'!$H$62-'Irr Other Crop'!$H$10+($K147-$K$147)*'Irr Other Crop'!$D$26)/$K147) -> N/A | J147: ='Irr Other Crop'!$B$9*(1-'Irr Other Crop'!$E$9)*$C147 -> 0 | K147: ='Irr Other Crop'!$B$9*'Irr Other Crop'!$E$9*$C147 -> 0
A148: Irrigated Other Crop | B148: Yes | C148: 1.1 | D148: ='Irr Other Crop'!$B$9*$C148 -> 0 | E148: =IF($D148=0, "N/A", ('Irr Other Crop'!$F$48-'Irr Other Crop'!$F$10+($D148-$D$147)*'Irr Other Crop'!$D$26)/$D148) -> N/A | F148: =IF($D148=0, "N/A",('Irr Other Crop'!$G$48-'Irr Other Crop'!$G$10+($J148-$J$147)*'Irr Other Crop'!$D$26)/$J148) -> N/A | G148: =IF($D148=0, "N/A",('Irr Other Crop'!$F$62-'Irr Other Crop'!$F$10+($D148-$D$147)*'Irr Other Crop'!$D$26)/$D148) -> N/A | H148: =IF($D148=0, "N/A",('Irr Other Crop'!$G$62-'Irr Other Crop'!$G$10+($J148-$J$147)*'Irr Other Crop'!$D$26)/$J148) -> N/A | I148: =IF($K148=0, "N/A", ('Irr Other Crop'!$H$62-'Irr Other Crop'!$H$10+($K148-$K$147)*'Irr Other Crop'!$D$26)/$K148) -> N/A | J148: ='Irr Other Crop'!$B$9*(1-'Irr Other Crop'!$E$9)*$C148 -> 0 | K148: ='Irr Other Crop'!$B$9*'Irr Other Crop'!$E$9*$C148 -> 0
A149: Irrigated Other Crop | B149: Yes | C149: 1.25 | D149: ='Irr Other Crop'!$B$9*$C149 -> 0 | E149: =IF($D149=0, "N/A", ('Irr Other Crop'!$F$48-'Irr Other Crop'!$F$10+($D149-$D$147)*'Irr Other Crop'!$D$26)/$D149) -> N/A | F149: =IF($D149=0, "N/A",('Irr Other Crop'!$G$48-'Irr Other Crop'!$G$10+($J149-$J$147)*'Irr Other Crop'!$D$26)/$J149) -> N/A | G149: =IF($D149=0, "N/A",('Irr Other Crop'!$F$62-'Irr Other Crop'!$F$10+($D149-$D$147)*'Irr Other Crop'!$D$26)/$D149) -> N/A | H149: =IF($D149=0, "N/A",('Irr Other Crop'!$G$62-'Irr Other Crop'!$G$10+($J149-$J$147)*'Irr Other Crop'!$D$26)/$J149) -> N/A | I149: =IF($K149=0, "N/A", ('Irr Other Crop'!$H$62-'Irr Other Crop'!$H$10+($K149-$K$147)*'Irr Other Crop'!$D$26)/$K149) -> N/A | J149: ='Irr Other Crop'!$B$9*(1-'Irr Other Crop'!$E$9)*$C149 -> 0 | K149: ='Irr Other Crop'!$B$9*'Irr Other Crop'!$E$9*$C149 -> 0
A150: Irrigated Other Crop | B150: Yes
A151: Dryland Canola | B151: Yes | C151: ='Dry Canola'!$A$3 -> Dryland Canola
A152: Dryland Canola | B152: Yes | E152: BE Price to Cover Variable Costs | G152: BE Price to Cover Total Costs
A153: Dryland Canola | B153: Yes | C153: Yield | D153: CWT | E153: Total | F153: Tenant | G153: Total | H153: Tenant | I153: Landlord
A154: Dryland Canola | B154: Yes | C154: 0.75 | D154: ='Dry Canola'!$B$9*$C154 -> 8.25 | E154: =('Dry Canola'!$F$45+($D154-D$156)*'Dry Canola'!$D$27)/$D154 -> 23.61197739 | F154: =('Dry Canola'!$G$45+($J154-J$156)*'Dry Canola'!$D$27)/$J154 -> 29.79196073 | G154: =('Dry Canola'!$F$59+($D154-D$156)*'Dry Canola'!$D$27)/$D154 -> 29.55137133 | H154: =('Dry Canola'!$G$59+($J154-J$156)*'Dry Canola'!$D$27)/$J154 -> 32.08051794 | I154: =IF($K154=0, "N/A", ('Dry Canola'!$H$59+($K154-K$156)*'Dry Canola'!$D$27)/$K154) -> 24.41643731 | J154: ='Dry Canola'!$B$9*(1-'Dry Canola'!$E$9)*$C154 -> 5.5275 | K154: ='Dry Canola'!$B$9*'Dry Canola'!$E$9*$C154 -> 2.7225
A155: Dryland Canola | B155: Yes | C155: 0.9 | D155: ='Dry Canola'!$B$9*$C155 -> 9.9 | E155: =('Dry Canola'!$F$45+($D155-D$156)*'Dry Canola'!$D$27)/$D155 -> 19.79331449 | F155: =('Dry Canola'!$G$45+($J155-J$156)*'Dry Canola'!$D$27)/$J155 -> 24.94330061 | G155: =('Dry Canola'!$F$59+($D155-D$156)*'Dry Canola'!$D$27)/$D155 -> 24.74280944 | H155: =('Dry Canola'!$G$59+($J155-J$156)*'Dry Canola'!$D$27)/$J155 -> 26.85043162 | I155: =IF($K155=0, "N/A", ('Dry Canola'!$H$59+($K155-K$156)*'Dry Canola'!$D$27)/$K155) -> 20.46369776 | J155: ='Dry Canola'!$B$9*(1-'Dry Canola'!$E$9)*$C155 -> 6.633 | K155: ='Dry Canola'!$B$9*'Dry Canola'!$E$9*$C155 -> 3.267
A156: Dryland Canola | B156: Yes | C156: 1 | D156: ='Dry Canola'!$B$9*$C156 -> 11 | E156: =('Dry Canola'!$F$45+($D156-D$156)*'Dry Canola'!$D$27)/$D156 -> 17.88398304 | F156: =('Dry Canola'!$G$45+($J156-J$156)*'Dry Canola'!$D$27)/$J156 -> 22.51897054 | G156: =('Dry Canola'!$F$59+($D156-D$156)*'Dry Canola'!$D$27)/$D156 -> 22.3385285 | H156: =('Dry Canola'!$G$59+($J156-J$156)*'Dry Canola'!$D$27)/$J156 -> 24.23538846 | I156: =IF($K156=0, "N/A", ('Dry Canola'!$H$59+($K156-K$156)*'Dry Canola'!$D$27)/$K156) -> 18.48732798 | J156: ='Dry Canola'!$B$9*(1-'Dry Canola'!$E$9)*$C156 -> 7.37 | K156: ='Dry Canola'!$B$9*'Dry Canola'!$E$9*$C156 -> 3.63
A157: Dryland Canola | B157: Yes | C157: 1.1 | D157: ='Dry Canola'!$B$9*$C157 -> 12.1 | E157: =('Dry Canola'!$F$45+($D157-D$156)*'Dry Canola'!$D$27)/$D157 -> 16.32180277 | F157: =('Dry Canola'!$G$45+($J157-J$156)*'Dry Canola'!$D$27)/$J157 -> 20.53542777 | G157: =('Dry Canola'!$F$59+($D157-D$156)*'Dry Canola'!$D$27)/$D157 -> 20.37138954 | H157: =('Dry Canola'!$G$59+($J157-J$156)*'Dry Canola'!$D$27)/$J157 -> 22.09580769 | I157: =IF($K157=0, "N/A", ('Dry Canola'!$H$59+($K157-K$156)*'Dry Canola'!$D$27)/$K157) -> 16.87029817 | J157: ='Dry Canola'!$B$9*(1-'Dry Canola'!$E$9)*$C157 -> 8.107 | K157: ='Dry Canola'!$B$9*'Dry Canola'!$E$9*$C157 -> 3.993
A158: Dryland Canola | B158: Yes | C158: 1.25 | D158: ='Dry Canola'!$B$9*$C158 -> 13.75 | E158: =('Dry Canola'!$F$45+($D158-D$156)*'Dry Canola'!$D$27)/$D158 -> 14.44718644 | F158: =('Dry Canola'!$G$45+($J158-J$156)*'Dry Canola'!$D$27)/$J158 -> 18.15517644 | G158: =('Dry Canola'!$F$59+($D158-D$156)*'Dry Canola'!$D$27)/$D158 -> 18.0108228 | H158: =('Dry Canola'!$G$59+($J158-J$156)*'Dry Canola'!$D$27)/$J158 -> 19.52831076 | I158: =IF($K158=0, "N/A", ('Dry Canola'!$H$59+($K158-K$156)*'Dry Canola'!$D$27)/$K158) -> 14.92986239 | J158: ='Dry Canola'!$B$9*(1-'Dry Canola'!$E$9)*$C158 -> 9.2125 | K158: ='Dry Canola'!$B$9*'Dry Canola'!$E$9*$C158 -> 4.5375
A159: Dryland Canola | B159: Yes
A160: Dryland Cotton | B160: Yes | C160: ='Dry Cotton'!$A$3 -> Dryland Cotton
A161: Dryland Cotton | B161: Yes | E161: BE Price to Cover Variable Costs | G161: BE Price to Cover Total Costs
A162: Dryland Cotton | B162: Yes | C162: Yield | D162: LB | E162: Total | F162: Tenant | G162: Total | H162: Tenant | I162: Landlord
A163: Dryland Cotton | B163: Yes | C163: 0.75 | D163: ='Dry Cotton'!$B$9*$C163 -> 300 | E163: =('Dry Cotton'!F$50-D163/500*'Universal Input Prices'!$B$39/2000*Cottonseed_Price+(D163-D$165)/100*'Dry Cotton'!$D$31+(D163-D$165)/'Dry Cotton'!$B$11/100*'Dry Cotton'!$D$32)/D163 -> 1.084225413 | F163: =('Dry Cotton'!G$50-J163/500*'Universal Input Prices'!$B$39/2000*Cottonseed_Price+(J163-J$165)/100*'Dry Cotton'!$D$31+(J163-J$165)/'Dry Cotton'!$B$11/100*'Dry Cotton'!$D$32)/J163 -> 1.305257314 | G163: =('Dry Cotton'!F$64-D163/500*'Universal Input Prices'!$B$39/2000*Cottonseed_Price+(D163-D$165)/100*'Dry Cotton'!$D$31+(D163-D$165)/'Dry Cotton'!$B$11/100*'Dry Cotton'!$D$32)/D163 -> 1.247425413 | H163: =('Dry Cotton'!G$64-J163/500*'Universal Input Prices'!$B$39/2000*Cottonseed_Price+(J163-J$165)/100*'Dry Cotton'!$D$31+(J163-J$165)/'Dry Cotton'!$B$11/100*'Dry Cotton'!$D$32)/J163 -> 1.372720001 | I163: =IF($K163=0,"N/A",('Dry Cotton'!H$64-K163/500*'Universal Input Prices'!$B$39/2000*Cottonseed_Price+(K163-K$165)/100*'Dry Cotton'!$D$31+(K163-K$165)/'Dry Cotton'!$B$11/100*'Dry Cotton'!$D$32)/K163) -> 0.993039433 | J163: ='Dry Cotton'!$B$9*(1-'Dry Cotton'!$E$9)*$C163 -> 201 | K163: ='Dry Cotton'!$B$9*'Dry Cotton'!$E$9*$C163 -> 99
A164: Dryland Cotton | B164: Yes | C164: 0.9 | D164: ='Dry Cotton'!$B$9*$C164 -> 360 | E164: =('Dry Cotton'!F$50-D164/500*'Universal Input Prices'!$B$39/2000*Cottonseed_Price+(D164-D$165)/100*'Dry Cotton'!$D$31+(D164-D$165)/'Dry Cotton'!$B$11/100*'Dry Cotton'!$D$32)/D164 -> 0.9210236156 | F164: =('Dry Cotton'!G$50-J164/500*'Universal Input Prices'!$B$39/2000*Cottonseed_Price+(J164-J$165)/100*'Dry Cotton'!$D$31+(J164-J$165)/'Dry Cotton'!$B$11/100*'Dry Cotton'!$D$32)/J164 -> 1.105216866 | G164: =('Dry Cotton'!F$64-D164/500*'Universal Input Prices'!$B$39/2000*Cottonseed_Price+(D164-D$165)/100*'Dry Cotton'!$D$31+(D164-D$165)/'Dry Cotton'!$B$11/100*'Dry Cotton'!$D$32)/D164 -> 1.057023616 | H164: =('Dry Cotton'!G$64-J164/500*'Universal Input Prices'!$B$39/2000*Cottonseed_Price+(J164-J$165)/100*'Dry Cotton'!$D$31+(J164-J$165)/'Dry Cotton'!$B$11/100*'Dry Cotton'!$D$32)/J164 -> 1.161435772 | I164: =IF($K164=0,"N/A",('Dry Cotton'!H$64-K164/500*'Universal Input Prices'!$B$39/2000*Cottonseed_Price+(K164-K$165)/100*'Dry Cotton'!$D$31+(K164-K$165)/'Dry Cotton'!$B$11/100*'Dry Cotton'!$D$32)/K164) -> 0.8450352986 | J164: ='Dry Cotton'!$B$9*(1-'Dry Cotton'!$E$9)*$C164 -> 241.2 | K164: ='Dry Cotton'!$B$9*'Dry Cotton'!$E$9*$C164 -> 118.8
A165: Dryland Cotton | B165: Yes | C165: 1 | D165: ='Dry Cotton'!$B$9*$C165 -> 400 | E165: =('Dry Cotton'!F$50-D165/500*'Universal Input Prices'!$B$39/2000*Cottonseed_Price+(D165-D$165)/100*'Dry Cotton'!$D$31+(D165-D$165)/'Dry Cotton'!$B$11/100*'Dry Cotton'!$D$32)/D165 -> 0.8394227167 | F165: =('Dry Cotton'!G$50-J165/500*'Universal Input Prices'!$B$39/2000*Cottonseed_Price+(J165-J$165)/100*'Dry Cotton'!$D$31+(J165-J$165)/'Dry Cotton'!$B$11/100*'Dry Cotton'!$D$32)/J165 -> 1.005196642 | G165: =('Dry Cotton'!F$64-D165/500*'Universal Input Prices'!$B$39/2000*Cottonseed_Price+(D165-D$165)/100*'Dry Cotton'!$D$31+(D165-D$165)/'Dry Cotton'!$B$11/100*'Dry Cotton'!$D$32)/D165 -> 0.9618227167 | H165: =('Dry Cotton'!G$64-J165/500*'Universal Input Prices'!$B$39/2000*Cottonseed_Price+(J165-J$165)/100*'Dry Cotton'!$D$31+(J165-J$165)/'Dry Cotton'!$B$11/100*'Dry Cotton'!$D$32)/J165 -> 1.055793657 | I165: =IF($K165=0,"N/A",('Dry Cotton'!H$64-K165/500*'Universal Input Prices'!$B$39/2000*Cottonseed_Price+(K165-K$165)/100*'Dry Cotton'!$D$31+(K165-K$165)/'Dry Cotton'!$B$11/100*'Dry Cotton'!$D$32)/K165) -> 0.7710332314 | J165: ='Dry Cotton'!$B$9*(1-'Dry Cotton'!$E$9)*$C165 -> 268 | K165: ='Dry Cotton'!$B$9*'Dry Cotton'!$E$9*$C165 -> 132
A166: Dryland Cotton | B166: Yes | C166: 1.1 | D166: ='Dry Cotton'!$B$9*$C166 -> 440 | E166: =('Dry Cotton'!F$50-D166/500*'Universal Input Prices'!$B$39/2000*Cottonseed_Price+(D166-D$165)/100*'Dry Cotton'!$D$31+(D166-D$165)/'Dry Cotton'!$B$11/100*'Dry Cotton'!$D$32)/D166 -> 0.7726583449 | F166: =('Dry Cotton'!G$50-J166/500*'Universal Input Prices'!$B$39/2000*Cottonseed_Price+(J166-J$165)/100*'Dry Cotton'!$D$31+(J166-J$165)/'Dry Cotton'!$B$11/100*'Dry Cotton'!$D$32)/J166 -> 0.9233619136 | G166: =('Dry Cotton'!F$64-D166/500*'Universal Input Prices'!$B$39/2000*Cottonseed_Price+(D166-D$165)/100*'Dry Cotton'!$D$31+(D166-D$165)/'Dry Cotton'!$B$11/100*'Dry Cotton'!$D$32)/D166 -> 0.8839310722 | H166: =('Dry Cotton'!G$64-J166/500*'Universal Input Prices'!$B$39/2000*Cottonseed_Price+(J166-J$165)/100*'Dry Cotton'!$D$31+(J166-J$165)/'Dry Cotton'!$B$11/100*'Dry Cotton'!$D$32)/J166 -> 0.9693591999 | I166: =IF($K166=0,"N/A",('Dry Cotton'!H$64-K166/500*'Universal Input Prices'!$B$39/2000*Cottonseed_Price+(K166-K$165)/100*'Dry Cotton'!$D$31+(K166-K$165)/'Dry Cotton'!$B$11/100*'Dry Cotton'!$D$32)/K166) -> 0.7104860855 | J166: ='Dry Cotton'!$B$9*(1-'Dry Cotton'!$E$9)*$C166 -> 294.8 | K166: ='Dry Cotton'!$B$9*'Dry Cotton'!$E$9*$C166 -> 145.2
A167: Dryland Cotton | B167: =_xlfn.XLOOKUP(A167,PGM_ShowHide_Lookup,PGM_ShowHide_Return,"") -> Yes | C167: 1.25 | D167: ='Dry Cotton'!$B$9*$C167 -> 500 | E167: =('Dry Cotton'!F$50-D167/500*'Universal Input Prices'!$B$39/2000*Cottonseed_Price+(D167-D$165)/100*'Dry Cotton'!$D$31+(D167-D$165)/'Dry Cotton'!$B$11/100*'Dry Cotton'!$D$32)/D167 -> 0.6925410987 | F167: =('Dry Cotton'!G$50-J167/500*'Universal Input Prices'!$B$39/2000*Cottonseed_Price+(J167-J$165)/100*'Dry Cotton'!$D$31+(J167-J$165)/'Dry Cotton'!$B$11/100*'Dry Cotton'!$D$32)/J167 -> 0.8251602392 | G167: =('Dry Cotton'!F$64-D167/500*'Universal Input Prices'!$B$39/2000*Cottonseed_Price+(D167-D$165)/100*'Dry Cotton'!$D$31+(D167-D$165)/'Dry Cotton'!$B$11/100*'Dry Cotton'!$D$32)/D167 -> 0.7904610987 | H167: =('Dry Cotton'!G$64-J167/500*'Universal Input Prices'!$B$39/2000*Cottonseed_Price+(J167-J$165)/100*'Dry Cotton'!$D$31+(J167-J$165)/'Dry Cotton'!$B$11/100*'Dry Cotton'!$D$32)/J167 -> 0.8656378511 | I167: =IF($K167=0,"N/A",('Dry Cotton'!H$64-K167/500*'Universal Input Prices'!$B$39/2000*Cottonseed_Price+(K167-K$165)/100*'Dry Cotton'!$D$31+(K167-K$165)/'Dry Cotton'!$B$11/100*'Dry Cotton'!$D$32)/K167) -> 0.6378295104 | J167: ='Dry Cotton'!$B$9*(1-'Dry Cotton'!$E$9)*$C167 -> 335 | K167: ='Dry Cotton'!$B$9*'Dry Cotton'!$E$9*$C167 -> 165
A168: Dryland Cotton | B168: Yes
A169: Dryland Sorghum | B169: Yes | C169: ='Dry Sorghum'!$A$3 -> Dryland Sorghum
A170: Dryland Sorghum | B170: Yes | E170: BE Price to Cover Variable Costs | G170: BE Price to Cover Total Costs
A171: Dryland Sorghum | B171: Yes | C171: Yield | D171: CWT | E171: Total | F171: Tenant | G171: Total | H171: Tenant | I171: Landlord
A172: Dryland Sorghum | B172: Yes | C172: 0.75 | D172: ='Dry Sorghum'!$B$9*$C172 -> 18.75 | E172: =('Dry Sorghum'!$F$43-'Irr Sorghum'!$F$10+($D172-D$174)*'Dry Sorghum'!$D$25)/$D172 -> 11.6162398 | F172: =('Dry Sorghum'!$G$43-'Irr Sorghum'!$F$10+($J172-J$174)*'Dry Sorghum'!$D$25)/$J172 -> 13.36206029 | G172: =('Dry Sorghum'!$F$57-'Irr Sorghum'!$F$10+($D172-D$174)*'Dry Sorghum'!$D$25)/$D172 -> 13.99597313 | H172: =('Dry Sorghum'!$G$57-'Irr Sorghum'!$F$10+($J172-J$174)*'Dry Sorghum'!$D$25)/$J172 -> 14.24962248 | I172: =IF($K172=0, "N/A", ('Dry Sorghum'!$H$57-'Irr Sorghum'!$F$10+($K172-K$174)*'Dry Sorghum'!$D$25)/$K172) -> 13.4809881 | J172: ='Dry Sorghum'!$B$9*(1-'Dry Sorghum'!$E$9)*$C172 -> 12.5625 | K172: ='Dry Sorghum'!$B$9*'Dry Sorghum'!$E$9*$C172 -> 6.1875
A173: Dryland Sorghum | B173: Yes | C173: 0.9 | D173: ='Dry Sorghum'!$B$9*$C173 -> 22.5 | E173: =('Dry Sorghum'!$F$43-'Irr Sorghum'!$F$10+($D173-D$174)*'Dry Sorghum'!$D$25)/$D173 -> 9.738533166 | F173: =('Dry Sorghum'!$G$43-'Irr Sorghum'!$F$10+($J173-J$174)*'Dry Sorghum'!$D$25)/$J173 -> 11.19338357 | G173: =('Dry Sorghum'!$F$57-'Irr Sorghum'!$F$10+($D173-D$174)*'Dry Sorghum'!$D$25)/$D173 -> 11.72164428 | H173: =('Dry Sorghum'!$G$57-'Irr Sorghum'!$F$10+($J173-J$174)*'Dry Sorghum'!$D$25)/$J173 -> 11.93301873 | I173: =IF($K173=0, "N/A", ('Dry Sorghum'!$H$57-'Irr Sorghum'!$F$10+($K173-K$174)*'Dry Sorghum'!$D$25)/$K173) -> 11.29249009 | J173: ='Dry Sorghum'!$B$9*(1-'Dry Sorghum'!$E$9)*$C173 -> 15.075 | K173: ='Dry Sorghum'!$B$9*'Dry Sorghum'!$E$9*$C173 -> 7.425
A174: Dryland Sorghum | B174: Yes | C174: 1 | D174: ='Dry Sorghum'!$B$9*$C174 -> 25 | E174: =('Dry Sorghum'!$F$43-'Irr Sorghum'!$F$10+($D174-D$174)*'Dry Sorghum'!$D$25)/$D174 -> 8.79967985 | F174: =('Dry Sorghum'!$G$43-'Irr Sorghum'!$F$10+($J174-J$174)*'Dry Sorghum'!$D$25)/$J174 -> 10.10904521 | G174: =('Dry Sorghum'!$F$57-'Irr Sorghum'!$F$10+($D174-D$174)*'Dry Sorghum'!$D$25)/$D174 -> 10.58447985 | H174: =('Dry Sorghum'!$G$57-'Irr Sorghum'!$F$10+($J174-J$174)*'Dry Sorghum'!$D$25)/$J174 -> 10.77471686 | I174: =IF($K174=0, "N/A", ('Dry Sorghum'!$H$57-'Irr Sorghum'!$F$10+($K174-K$174)*'Dry Sorghum'!$D$25)/$K174) -> 10.19824108 | J174: ='Dry Sorghum'!$B$9*(1-'Dry Sorghum'!$E$9)*$C174 -> 16.75 | K174: ='Dry Sorghum'!$B$9*'Dry Sorghum'!$E$9*$C174 -> 8.25
A175: Dryland Sorghum | B175: Yes | C175: 1.1 | D175: ='Dry Sorghum'!$B$9*$C175 -> 27.5 | E175: =('Dry Sorghum'!$F$43-'Irr Sorghum'!$F$10+($D175-D$174)*'Dry Sorghum'!$D$25)/$D175 -> 8.031527136 | F175: =('Dry Sorghum'!$G$43-'Irr Sorghum'!$F$10+($J175-J$174)*'Dry Sorghum'!$D$25)/$J175 -> 9.221859286 | G175: =('Dry Sorghum'!$F$57-'Irr Sorghum'!$F$10+($D175-D$174)*'Dry Sorghum'!$D$25)/$D175 -> 9.65407259 | H175: =('Dry Sorghum'!$G$57-'Irr Sorghum'!$F$10+($J175-J$174)*'Dry Sorghum'!$D$25)/$J175 -> 9.827015324 | I175: =IF($K175=0, "N/A", ('Dry Sorghum'!$H$57-'Irr Sorghum'!$F$10+($K175-K$174)*'Dry Sorghum'!$D$25)/$K175) -> 9.302946434 | J175: ='Dry Sorghum'!$B$9*(1-'Dry Sorghum'!$E$9)*$C175 -> 18.425 | K175: ='Dry Sorghum'!$B$9*'Dry Sorghum'!$E$9*$C175 -> 9.075
A176: Dryland Sorghum | B176: Yes | C176: 1.25 | D176: ='Dry Sorghum'!$B$9*$C176 -> 31.25 | E176: =('Dry Sorghum'!$F$43-'Irr Sorghum'!$F$10+($D176-D$174)*'Dry Sorghum'!$D$25)/$D176 -> 7.10974388 | F176: =('Dry Sorghum'!$G$43-'Irr Sorghum'!$F$10+($J176-J$174)*'Dry Sorghum'!$D$25)/$J176 -> 8.157236172 | G176: =('Dry Sorghum'!$F$57-'Irr Sorghum'!$F$10+($D176-D$174)*'Dry Sorghum'!$D$25)/$D176 -> 8.53758388 | H176: =('Dry Sorghum'!$G$57-'Irr Sorghum'!$F$10+($J176-J$174)*'Dry Sorghum'!$D$25)/$J176 -> 8.689773485 | I176: =IF($K176=0, "N/A", ('Dry Sorghum'!$H$57-'Irr Sorghum'!$F$10+($K176-K$174)*'Dry Sorghum'!$D$25)/$K176) -> 8.228592862 | J176: ='Dry Sorghum'!$B$9*(1-'Dry Sorghum'!$E$9)*$C176 -> 20.9375 | K176: ='Dry Sorghum'!$B$9*'Dry Sorghum'!$E$9*$C176 -> 10.3125
A177: Dryland Sorghum | B177: Yes
A178: Dryland Sorghum Sudangrass | B178: Yes | C178: ='Dry Sorghum Sudangrass'!$A$3 -> Dryland Sorghum Sudangrass
A179: Dryland Sorghum Sudangrass | B179: Yes | E179: BE Price to Cover Variable Costs | G179: BE Price to Cover Total Costs
A180: Dryland Sorghum Sudangrass | B180: Yes | C180: Yield | D180: LB | E180: Total | F180: Tenant | G180: Total | H180: Tenant | I180: Landlord
A181: Dryland Sorghum Sudangrass | B181: Yes | C181: 0.75 | D181: ='Dry Sorghum Sudangrass'!$B$9*$C181 -> 252 | E181: =('Dry Sorghum Sudangrass'!$F$42+($D181-D$183)*'Dry Sorghum Sudangrass'!$D$24)/$D181 -> 0.5379666873 | F181: =('Dry Sorghum Sudangrass'!$G$42+($J181-J$183)*'Dry Sorghum Sudangrass'!$D$24)/$J181 -> 0.6043583158 | G181: =('Dry Sorghum Sudangrass'!$F$56+($D181-D$183)*'Dry Sorghum Sudangrass'!$D$24)/$D181 -> 0.7128476397 | H181: =('Dry Sorghum Sudangrass'!$G$56+($J181-J$183)*'Dry Sorghum Sudangrass'!$D$24)/$J181 -> 0.6603284651 | I181: =IF($K181=0, "N/A", ('Dry Sorghum Sudangrass'!$H$56+($K181-K$183)*'Dry Sorghum Sudangrass'!$D$24)/$K181) -> 0.8194774789 | J181: ='Dry Sorghum Sudangrass'!$B$9*(1-'Dry Sorghum Sudangrass'!$E$9)*$C181 -> 168.84 | K181: ='Dry Sorghum Sudangrass'!$B$9*'Dry Sorghum Sudangrass'!$E$9*$C181 -> 83.16
A182: Dryland Sorghum Sudangrass | B182: Yes | C182: 0.9 | D182: ='Dry Sorghum Sudangrass'!$B$9*$C182 -> 302.4 | E182: =('Dry Sorghum Sudangrass'!$F$42+($D182-D$183)*'Dry Sorghum Sudangrass'!$D$24)/$D182 -> 0.4483055727 | F182: =('Dry Sorghum Sudangrass'!$G$42+($J182-J$183)*'Dry Sorghum Sudangrass'!$D$24)/$J182 -> 0.5036319299 | G182: =('Dry Sorghum Sudangrass'!$F$56+($D182-D$183)*'Dry Sorghum Sudangrass'!$D$24)/$D182 -> 0.5940396997 | H182: =('Dry Sorghum Sudangrass'!$G$56+($J182-J$183)*'Dry Sorghum Sudangrass'!$D$24)/$J182 -> 0.5502737209 | I182: =IF($K182=0, "N/A", ('Dry Sorghum Sudangrass'!$H$56+($K182-K$183)*'Dry Sorghum Sudangrass'!$D$24)/$K182) -> 0.6828978991 | J182: ='Dry Sorghum Sudangrass'!$B$9*(1-'Dry Sorghum Sudangrass'!$E$9)*$C182 -> 202.608 | K182: ='Dry Sorghum Sudangrass'!$B$9*'Dry Sorghum Sudangrass'!$E$9*$C182 -> 99.792
A183: Dryland Sorghum Sudangrass | B183: Yes | C183: 1 | D183: ='Dry Sorghum Sudangrass'!$B$9*$C183 -> 336 | E183: =('Dry Sorghum Sudangrass'!$F$42+($D183-D$183)*'Dry Sorghum Sudangrass'!$D$24)/$D183 -> 0.4034750155 | F183: =('Dry Sorghum Sudangrass'!$G$42+($J183-J$183)*'Dry Sorghum Sudangrass'!$D$24)/$J183 -> 0.4532687369 | G183: =('Dry Sorghum Sudangrass'!$F$56+($D183-D$183)*'Dry Sorghum Sudangrass'!$D$24)/$D183 -> 0.5346357297 | H183: =('Dry Sorghum Sudangrass'!$G$56+($J183-J$183)*'Dry Sorghum Sudangrass'!$D$24)/$J183 -> 0.4952463488 | I183: =IF($K183=0, "N/A", ('Dry Sorghum Sudangrass'!$H$56+($K183-K$183)*'Dry Sorghum Sudangrass'!$D$24)/$K183) -> 0.6146081092 | J183: ='Dry Sorghum Sudangrass'!$B$9*(1-'Dry Sorghum Sudangrass'!$E$9)*$C183 -> 225.12 | K183: ='Dry Sorghum Sudangrass'!$B$9*'Dry Sorghum Sudangrass'!$E$9*$C183 -> 110.88
A184: Dryland Sorghum Sudangrass | B184: Yes | C184: 1.1 | D184: ='Dry Sorghum Sudangrass'!$B$9*$C184 -> 369.6 | E184: =('Dry Sorghum Sudangrass'!$F$42+($D184-D$183)*'Dry Sorghum Sudangrass'!$D$24)/$D184 -> 0.3667954686 | F184: =('Dry Sorghum Sudangrass'!$G$42+($J184-J$183)*'Dry Sorghum Sudangrass'!$D$24)/$J184 -> 0.4120624881 | G184: =('Dry Sorghum Sudangrass'!$F$56+($D184-D$183)*'Dry Sorghum Sudangrass'!$D$24)/$D184 -> 0.4860324816 | H184: =('Dry Sorghum Sudangrass'!$G$56+($J184-J$183)*'Dry Sorghum Sudangrass'!$D$24)/$J184 -> 0.4502239535 | I184: =IF($K184=0, "N/A", ('Dry Sorghum Sudangrass'!$H$56+($K184-K$183)*'Dry Sorghum Sudangrass'!$D$24)/$K184) -> 0.5587346447 | J184: ='Dry Sorghum Sudangrass'!$B$9*(1-'Dry Sorghum Sudangrass'!$E$9)*$C184 -> 247.632 | K184: ='Dry Sorghum Sudangrass'!$B$9*'Dry Sorghum Sudangrass'!$E$9*$C184 -> 121.968
A185: Dryland Sorghum Sudangrass | B185: Yes | C185: 1.25 | D185: ='Dry Sorghum Sudangrass'!$B$9*$C185 -> 420 | E185: =('Dry Sorghum Sudangrass'!$F$42+($D185-D$183)*'Dry Sorghum Sudangrass'!$D$24)/$D185 -> 0.3227800124 | F185: =('Dry Sorghum Sudangrass'!$G$42+($J185-J$183)*'Dry Sorghum Sudangrass'!$D$24)/$J185 -> 0.3626149895 | G185: =('Dry Sorghum Sudangrass'!$F$56+($D185-D$183)*'Dry Sorghum Sudangrass'!$D$24)/$D185 -> 0.4277085838 | H185: =('Dry Sorghum Sudangrass'!$G$56+($J185-J$183)*'Dry Sorghum Sudangrass'!$D$24)/$J185 -> 0.3961970791 | I185: =IF($K185=0, "N/A", ('Dry Sorghum Sudangrass'!$H$56+($K185-K$183)*'Dry Sorghum Sudangrass'!$D$24)/$K185) -> 0.4916864874 | J185: ='Dry Sorghum Sudangrass'!$B$9*(1-'Dry Sorghum Sudangrass'!$E$9)*$C185 -> 281.4 | K185: ='Dry Sorghum Sudangrass'!$B$9*'Dry Sorghum Sudangrass'!$E$9*$C185 -> 138.6
A186: Dryland Sorghum Sudangrass | B186: Yes
A187: Dryland Sunflowers-Oilseed | B187: Yes | C187: ='Dry Sunflowers-Oilseed'!$A$3 -> Dryland Sunflowers-Oilseed
A188: Dryland Sunflowers-Oilseed | B188: Yes | E188: BE Price to Cover Variable Costs | G188: BE Price to Cover Total Costs
A189: Dryland Sunflowers-Oilseed | B189: Yes | C189: Yield | D189: CWT | E189: Total | F189: Tenant | G189: Total | H189: Tenant | I189: Landlord
A190: Dryland Sunflowers-Oilseed | B190: Yes | C190: 0.75 | D190: ='Dry Sunflowers-Oilseed'!$B$9*$C190 -> 7.5 | E190: =('Dry Sunflowers-Oilseed'!$F$44+($D190-D$192)*'Dry Sunflowers-Oilseed'!$D$25)/$D190 -> 29.21939766 | F190: =('Dry Sunflowers-Oilseed'!$G$44+($J190-J$192)*'Dry Sunflowers-Oilseed'!$D$25)/$J190 -> 36.62635332 | G190: =('Dry Sunflowers-Oilseed'!$F$58+($D190-D$192)*'Dry Sunflowers-Oilseed'!$D$25)/$D190 -> 34.86073099 | H190: =('Dry Sunflowers-Oilseed'!$G$58+($J190-J$192)*'Dry Sunflowers-Oilseed'!$D$25)/$J190 -> 38.51690058 | I190: =IF($K190=0, "N/A", ('Dry Sunflowers-Oilseed'!$H$58+($K190-K$192)*'Dry Sunflowers-Oilseed'!$D$25)/$K190) -> 27.4375988 | J190: ='Dry Sunflowers-Oilseed'!$B$9*(1-'Dry Sunflowers-Oilseed'!$E$9)*$C190 -> 5.025 | K190: ='Dry Sunflowers-Oilseed'!$B$9*'Dry Sunflowers-Oilseed'!$E$9*$C190 -> 2.475
A191: Dryland Sunflowers-Oilseed | B191: Yes | C191: 0.9 | D191: ='Dry Sunflowers-Oilseed'!$B$9*$C191 -> 9 | E191: =('Dry Sunflowers-Oilseed'!$F$44+($D191-D$192)*'Dry Sunflowers-Oilseed'!$D$25)/$D191 -> 24.46616472 | F191: =('Dry Sunflowers-Oilseed'!$G$44+($J191-J$192)*'Dry Sunflowers-Oilseed'!$D$25)/$J191 -> 30.63862777 | G191: =('Dry Sunflowers-Oilseed'!$F$58+($D191-D$192)*'Dry Sunflowers-Oilseed'!$D$25)/$D191 -> 29.16727583 | H191: =('Dry Sunflowers-Oilseed'!$G$58+($J191-J$192)*'Dry Sunflowers-Oilseed'!$D$25)/$J191 -> 32.21408382 | I191: =IF($K191=0, "N/A", ('Dry Sunflowers-Oilseed'!$H$58+($K191-K$192)*'Dry Sunflowers-Oilseed'!$D$25)/$K191) -> 22.98133233 | J191: ='Dry Sunflowers-Oilseed'!$B$9*(1-'Dry Sunflowers-Oilseed'!$E$9)*$C191 -> 6.03 | K191: ='Dry Sunflowers-Oilseed'!$B$9*'Dry Sunflowers-Oilseed'!$E$9*$C191 -> 2.97
A192: Dryland Sunflowers-Oilseed | B192: Yes | C192: 1 | D192: ='Dry Sunflowers-Oilseed'!$B$9*$C192 -> 10 | E192: =('Dry Sunflowers-Oilseed'!$F$44+($D192-D$192)*'Dry Sunflowers-Oilseed'!$D$25)/$D192 -> 22.08954825 | F192: =('Dry Sunflowers-Oilseed'!$G$44+($J192-J$192)*'Dry Sunflowers-Oilseed'!$D$25)/$J192 -> 27.64476499 | G192: =('Dry Sunflowers-Oilseed'!$F$58+($D192-D$192)*'Dry Sunflowers-Oilseed'!$D$25)/$D192 -> 26.32054825 | H192: =('Dry Sunflowers-Oilseed'!$G$58+($J192-J$192)*'Dry Sunflowers-Oilseed'!$D$25)/$J192 -> 29.06267544 | I192: =IF($K192=0, "N/A", ('Dry Sunflowers-Oilseed'!$H$58+($K192-K$192)*'Dry Sunflowers-Oilseed'!$D$25)/$K192) -> 20.7531991 | J192: ='Dry Sunflowers-Oilseed'!$B$9*(1-'Dry Sunflowers-Oilseed'!$E$9)*$C192 -> 6.7 | K192: ='Dry Sunflowers-Oilseed'!$B$9*'Dry Sunflowers-Oilseed'!$E$9*$C192 -> 3.3
A193: Dryland Sunflowers-Oilseed | B193: Yes | C193: 1.1 | D193: ='Dry Sunflowers-Oilseed'!$B$9*$C193 -> 11 | E193: =('Dry Sunflowers-Oilseed'!$F$44+($D193-D$192)*'Dry Sunflowers-Oilseed'!$D$25)/$D193 -> 20.14504386 | F193: =('Dry Sunflowers-Oilseed'!$G$44+($J193-J$192)*'Dry Sunflowers-Oilseed'!$D$25)/$J193 -> 25.1952409 | G193: =('Dry Sunflowers-Oilseed'!$F$58+($D193-D$192)*'Dry Sunflowers-Oilseed'!$D$25)/$D193 -> 23.9914075 | H193: =('Dry Sunflowers-Oilseed'!$G$58+($J193-J$192)*'Dry Sunflowers-Oilseed'!$D$25)/$J193 -> 26.4842504 | I193: =IF($K193=0, "N/A", ('Dry Sunflowers-Oilseed'!$H$58+($K193-K$192)*'Dry Sunflowers-Oilseed'!$D$25)/$K193) -> 18.930181 | J193: ='Dry Sunflowers-Oilseed'!$B$9*(1-'Dry Sunflowers-Oilseed'!$E$9)*$C193 -> 7.37 | K193: ='Dry Sunflowers-Oilseed'!$B$9*'Dry Sunflowers-Oilseed'!$E$9*$C193 -> 3.63
A194: Dryland Sunflowers-Oilseed | B194: Yes | C194: 1.25 | D194: ='Dry Sunflowers-Oilseed'!$B$9*$C194 -> 12.5 | E194: =('Dry Sunflowers-Oilseed'!$F$44+($D194-D$192)*'Dry Sunflowers-Oilseed'!$D$25)/$D194 -> 17.8116386 | F194: =('Dry Sunflowers-Oilseed'!$G$44+($J194-J$192)*'Dry Sunflowers-Oilseed'!$D$25)/$J194 -> 22.25581199 | G194: =('Dry Sunflowers-Oilseed'!$F$58+($D194-D$192)*'Dry Sunflowers-Oilseed'!$D$25)/$D194 -> 21.1964386 | H194: =('Dry Sunflowers-Oilseed'!$G$58+($J194-J$192)*'Dry Sunflowers-Oilseed'!$D$25)/$J194 -> 23.39014035 | I194: =IF($K194=0, "N/A", ('Dry Sunflowers-Oilseed'!$H$58+($K194-K$192)*'Dry Sunflowers-Oilseed'!$D$25)/$K194) -> 16.74255928 | J194: ='Dry Sunflowers-Oilseed'!$B$9*(1-'Dry Sunflowers-Oilseed'!$E$9)*$C194 -> 8.375 | K194: ='Dry Sunflowers-Oilseed'!$B$9*'Dry Sunflowers-Oilseed'!$E$9*$C194 -> 4.125
A195: Dryland Sunflowers-Oilseed | B195: Yes
A196: Dryland Wheat | B196: Yes | C196: ='Dry Wheat'!$A$3 -> Dryland Wheat
A197: Dryland Wheat | B197: Yes | E197: BE Price to Cover Variable Costs | G197: BE Price to Cover Total Costs
A198: Dryland Wheat | B198: Yes | C198: Yield | D198: BU | E198: Total | F198: Tenant | G198: Total | H198: Tenant | I198: Landlord
A199: Dryland Wheat | B199: Yes | C199: 0.75 | D199: ='Dry Wheat'!$B$9*$C199 -> 15 | E199: =('Dry Wheat'!$F$44+($D199-D$201)*'Dry Wheat'!$D$26)/$D199 -> 9.591937608 | F199: =('Dry Wheat'!$G$44+($J199-J$201)*'Dry Wheat'!$D$26)/$J199 -> 12.074519 | G199: =('Dry Wheat'!$F$58+($D199-D$201)*'Dry Wheat'!$D$26)/$D199 -> 12.85860427 | H199: =('Dry Wheat'!$G$58+($J199-J$201)*'Dry Wheat'!$D$26)/$J199 -> 13.33322547 | I199: =IF($K199=0, "N/A", ('Dry Wheat'!$H$58+($K199-K$201)*'Dry Wheat'!$D$26)/$K199) -> 11.89497943 | J199: ='Dry Wheat'!$B$9*(1-'Dry Wheat'!$E$9)*$C199 -> 10.05 | K199: ='Dry Wheat'!$B$9*'Dry Wheat'!$E$9*$C199 -> 4.95
A200: Dryland Wheat | B200: Yes | C200: 0.9 | D200: ='Dry Wheat'!$B$9*$C200 -> 18 | E200: =('Dry Wheat'!$F$44+($D200-D$201)*'Dry Wheat'!$D$26)/$D200 -> 8.051614673 | F200: =('Dry Wheat'!$G$44+($J200-J$201)*'Dry Wheat'!$D$26)/$J200 -> 10.1204325 | G200: =('Dry Wheat'!$F$58+($D200-D$201)*'Dry Wheat'!$D$26)/$D200 -> 10.7738369 | H200: =('Dry Wheat'!$G$58+($J200-J$201)*'Dry Wheat'!$D$26)/$J200 -> 11.16935456 | I200: =IF($K200=0, "N/A", ('Dry Wheat'!$H$58+($K200-K$201)*'Dry Wheat'!$D$26)/$K200) -> 9.97081619 | J200: ='Dry Wheat'!$B$9*(1-'Dry Wheat'!$E$9)*$C200 -> 12.06 | K200: ='Dry Wheat'!$B$9*'Dry Wheat'!$E$9*$C200 -> 5.94
A201: Dryland Wheat | B201: Yes | C201: 1 | D201: ='Dry Wheat'!$B$9*$C201 -> 20 | E201: =('Dry Wheat'!$F$44+($D201-D$201)*'Dry Wheat'!$D$26)/$D201 -> 7.281453206 | F201: =('Dry Wheat'!$G$44+($J201-J$201)*'Dry Wheat'!$D$26)/$J201 -> 9.14338925 | G201: =('Dry Wheat'!$F$58+($D201-D$201)*'Dry Wheat'!$D$26)/$D201 -> 9.731453206 | H201: =('Dry Wheat'!$G$58+($J201-J$201)*'Dry Wheat'!$D$26)/$J201 -> 10.0874191 | I201: =IF($K201=0, "N/A", ('Dry Wheat'!$H$58+($K201-K$201)*'Dry Wheat'!$D$26)/$K201) -> 9.008734571 | J201: ='Dry Wheat'!$B$9*(1-'Dry Wheat'!$E$9)*$C201 -> 13.4 | K201: ='Dry Wheat'!$B$9*'Dry Wheat'!$E$9*$C201 -> 6.6
A202: Dryland Wheat | B202: Yes | C202: 1.1 | D202: ='Dry Wheat'!$B$9*$C202 -> 22 | E202: =('Dry Wheat'!$F$44+($D202-D$201)*'Dry Wheat'!$D$26)/$D202 -> 6.651321096 | F202: =('Dry Wheat'!$G$44+($J202-J$201)*'Dry Wheat'!$D$26)/$J202 -> 8.343990227 | G202: =('Dry Wheat'!$F$58+($D202-D$201)*'Dry Wheat'!$D$26)/$D202 -> 8.878593823 | H202: =('Dry Wheat'!$G$58+($J202-J$201)*'Dry Wheat'!$D$26)/$J202 -> 9.202199182 | I202: =IF($K202=0, "N/A", ('Dry Wheat'!$H$58+($K202-K$201)*'Dry Wheat'!$D$26)/$K202) -> 8.221576883 | J202: ='Dry Wheat'!$B$9*(1-'Dry Wheat'!$E$9)*$C202 -> 14.74 | K202: ='Dry Wheat'!$B$9*'Dry Wheat'!$E$9*$C202 -> 7.26
A203: Dryland Wheat | B203: Yes | C203: 1.25 | D203: ='Dry Wheat'!$B$9*$C203 -> 25 | E203: =('Dry Wheat'!$F$44+($D203-D$201)*'Dry Wheat'!$D$26)/$D203 -> 5.895162565 | F203: =('Dry Wheat'!$G$44+($J203-J$201)*'Dry Wheat'!$D$26)/$J203 -> 7.3847114 | G203: =('Dry Wheat'!$F$58+($D203-D$201)*'Dry Wheat'!$D$26)/$D203 -> 7.855162565 | H203: =('Dry Wheat'!$G$58+($J203-J$201)*'Dry Wheat'!$D$26)/$J203 -> 8.13993528 | I203: =IF($K203=0, "N/A", ('Dry Wheat'!$H$58+($K203-K$201)*'Dry Wheat'!$D$26)/$K203) -> 7.276987657 | J203: ='Dry Wheat'!$B$9*(1-'Dry Wheat'!$E$9)*$C203 -> 16.75 | K203: ='Dry Wheat'!$B$9*'Dry Wheat'!$E$9*$C203 -> 8.25
... 9 more rows

Sheet Comparative Returns
A5: HIDE IF | E5: Tenant | F5: Landlord | H5: Tenant | I5: Landlord | K5: Tenant | L5: Landlord | N5: Tenant | O5: Landlord | U5: Tenant | V5: Landlord
C6: =_xlfn.XLOOKUP(C5,PGM_ShowHide_Lookup,PGM_ShowHide_Return,"") ->  | E6: Yes | F6: Yes | H6: Yes | I6: Yes | K6: Yes | L6: Yes | N6: Yes | O6: Yes | U6: Yes | V6: Yes
C7: Comparative Returns per acre | D7: Total Revenue | G7: Total Variable Costs | J7: Return Over Variable Costs | M7: Total Costs | Q7: Return Over Variable Costs per Acre-Inch Applied | T7: Return Over Total Costs
A8: PARAMETER | B8: DISPLAY? | D8: Total | E8: Tenant | F8: Landlord | G8: Total | H8: Tenant | I8: Landlord | J8: Total | K8: Tenant | L8: Landlord | M8: Total | N8: Tenant | O8: Landlord | P8: ac-in | Q8: Total | R8: Tenant | S8: Landlord | T8: Total | U8: Tenant | V8: Landlord
A9: Irrigated Alfalfa | B9: =_xlfn.XLOOKUP(A9,PGM_ShowHide_Lookup,PGM_ShowHide_Return,"") -> Yes | C9: ='Irr Alfalfa'!A3 -> Irrigated Alfalfa | D9: ='Irr Alfalfa'!F$12 -> 1375 | E9: ='Irr Alfalfa'!G$12 -> 921.25 | F9: ='Irr Alfalfa'!H$12 -> 453.75 | G9: ='Irr Alfalfa'!F$48 -> 729.3440512 | H9: ='Irr Alfalfa'!G$48 -> 649.7769373 | I9: ='Irr Alfalfa'!H$48 -> 79.56711384 | J9: =D9-G9 -> 645.6559488 | K9: =E9-H9 -> 271.4730627 | L9: =F9-I9 -> 374.1828862 | M9: ='Irr Alfalfa'!F$63 -> 1154.464051 | N9: ='Irr Alfalfa'!G$63 -> 874.8969373 | O9: ='Irr Alfalfa'!H$63 -> 279.5671138 | P9: ='Irr Alfalfa'!B37 -> 24 | Q9: =IF($P9=0,"-",J9/$P9) -> 26.9023312 | R9: =IF($P9=0,"-",K9/$P9) -> 11.31137761 | S9: =IF($P9=0,"-",L9/$P9) -> 15.59095359 | T9: =D9-M9 -> 220.5359488 | U9: =E9-N9 -> 46.35306266 | V9: =F9-O9 -> 174.1828862
A10: Irrigated Canola | B10: Yes | C10: ='Irr Canola'!$A$3 -> Irrigated Canola | D10: ='Irr Canola'!F$12 -> 396 | E10: ='Irr Canola'!G$12 -> 265.32 | F10: ='Irr Canola'!H$12 -> 130.68 | G10: ='Irr Canola'!F$49 -> 346.4533255 | H10: ='Irr Canola'!G$49 -> 285.993625 | I10: ='Irr Canola'!H$49 -> 60.45970053 | J10: 49.54667452 | K10: -20.67362495 | L10: 70.22029947 | M10: ='Irr Canola'!F$63 -> 561.6833255 | N10: ='Irr Canola'!G$63 -> 370.543625 | O10: ='Irr Canola'!H$63 -> 191.1397005 | P10: ='Irr Canola'!B38 -> 10 | Q10: 4.954667452 | R10: -2.067362495 | S10: 7.022029947 | T10: -165.6833255 | U10: -105.223625 | V10: -60.45970053
A11: Irrigated Corn | B11: Yes | C11: ='Irr Corn'!$A$3 -> Irrigated Corn | D11: ='Irr Corn'!F$12 -> 1080 | E11: ='Irr Corn'!G$12 -> 723.6 | F11: ='Irr Corn'!H$12 -> 356.4 | G11: ='Irr Corn'!F$47 -> 893.7537391 | H11: ='Irr Corn'!G$47 -> 711.6099814 | I11: ='Irr Corn'!H$47 -> 188.6030486 | J11: 186.2462609 | K11: 11.99001861 | L11: 167.7969514 | M11: ='Irr Corn'!F$61 -> 1211.903739 | N11: ='Irr Corn'!G$61 -> 825.5899814 | O11: ='Irr Corn'!H$61 -> 392.7730486 | P11: ='Irr Corn'!B36 -> 22 | Q11: 8.465739133 | R11: 0.5450008461 | S11: 7.627134156 | T11: -131.9037391 | U11: -101.9899814 | V11: -36.37304857
A12: Irrigated Corn Silage | B12: Yes | C12: ='Irr Corn Silage'!$A$3 -> Irrigated Corn Silage | D12: ='Irr Corn Silage'!F$12 -> 1431 | E12: ='Irr Corn Silage'!G$12 -> 958.77 | F12: ='Irr Corn Silage'!H$12 -> 472.23 | G12: ='Irr Corn Silage'!F$47 -> 1124.732088 | H12: ='Irr Corn Silage'!G$47 -> 970.9894069 | I12: ='Irr Corn Silage'!H$47 -> 153.7426811 | J12: 306.267912 | K12: -12.21940689 | L12: 318.4873189 | M12: ='Irr Corn Silage'!F$61 -> 1446.472088 | N12: ='Irr Corn Silage'!G$61 -> 1085.269407 | O12: ='Irr Corn Silage'!H$61 -> 361.2026811 | P12: ='Irr Corn Silage'!B36 -> 20 | Q12: 15.3133956 | R12: -0.6109703443 | S12: 15.92436595 | T12: -15.47208798 | U12: -126.4994069 | V12: 111.0273189
A13: Irrigated Cotton | B13: Yes | C13: ='Irr Cotton'!$A$3 -> Irrigated Cotton | D13: ='Irr Cotton'!F$14 -> 1076.5625 | E13: ='Irr Cotton'!G$14 -> 1010.046875 | F13: ='Irr Cotton'!H$14 -> 66.515625 | G13: ='Irr Cotton'!F$53 -> 935.8000807 | H13: ='Irr Cotton'!G$53 -> 744.1777881 | I13: ='Irr Cotton'!H$53 -> 191.6222926 | J13: 140.7624193 | K13: 265.8690869 | L13: -125.1066676 | M13: ='Irr Cotton'!F$67 -> 1153.288081 | N13: ='Irr Cotton'!G$67 -> 830.8657881 | O13: ='Irr Cotton'!H$67 -> 322.4222926 | P13: ='Irr Cotton'!B42 -> 12 | Q13: 11.73020161 | R13: 22.15575724 | S13: -10.42555563 | T13: -76.72558067 | U13: 179.1810869 | V13: -255.9066676
A14: Irrigated Peanuts | B14: Yes | C14: ='Irr Peanuts'!$A$3 -> Irrigated Peanuts | D14: ='Irr Peanuts'!F$12 -> 1237.5 | E14: ='Irr Peanuts'!G$12 -> 829.125 | F14: ='Irr Peanuts'!H$12 -> 408.375 | G14: ='Irr Peanuts'!F$51 -> 901.9552207 | H14: ='Irr Peanuts'!G$51 -> 756.6317506 | I14: ='Irr Peanuts'!H$51 -> 145.3234701 | J14: 335.5447793 | K14: 72.4932494 | L14: 263.0515299 | M14: ='Irr Peanuts'!F$65 -> 1156.095221 | N14: ='Irr Peanuts'!G$65 -> 876.8317506 | O14: ='Irr Peanuts'!H$65 -> 279.2634701 | P14: ='Irr Peanuts'!B40 -> 21 | Q14: 15.97832282 | R14: 3.452059495 | S14: 12.52626333 | T14: 81.40477931 | U14: -47.7067506 | V14: 129.1115299
A15: Irrigated Sorghum | B15: Yes | C15: ='Irr Sorghum'!$A$3 -> Irrigated Sorghum | D15: ='Irr Sorghum'!F$12 -> 455.7 | E15: ='Irr Sorghum'!G$12 -> 305.319 | F15: ='Irr Sorghum'!H$12 -> 150.381 | G15: ='Irr Sorghum'!F$46 -> 440.2298262 | H15: ='Irr Sorghum'!G$46 -> 343.8228511 | I15: ='Irr Sorghum'!H$46 -> 96.40697511 | J15: 15.47017378 | K15: -38.50385111 | L15: 53.97402489 | M15: ='Irr Sorghum'!F$60 -> 680.1998262 | N15: ='Irr Sorghum'!G$60 -> 454.4728511 | O15: ='Irr Sorghum'!H$60 -> 225.7269751 | P15: ='Irr Sorghum'!B35 -> 10 | Q15: 1.547017378 | R15: -3.850385111 | S15: 5.397402489 | T15: -224.4998262 | U15: -149.1538511 | V15: -75.34597511
A16: Irrigated Sorghum Seed | B16: Yes | C16: ='Irr Sorghum Seed'!$A$3 -> Irrigated Sorghum Seed | D16: ='Irr Sorghum Seed'!F$12 -> 967.5 | E16: ='Irr Sorghum Seed'!G$12 -> 648.225 | F16: ='Irr Sorghum Seed'!H$12 -> 319.275 | G16: ='Irr Sorghum Seed'!F$46 -> 480.3712392 | H16: ='Irr Sorghum Seed'!G$46 -> 369.8681852 | I16: ='Irr Sorghum Seed'!H$46 -> 110.503054 | J16: 487.1287608 | K16: 278.3568148 | L16: 208.771946 | M16: ='Irr Sorghum Seed'!F$60 -> 709.1112392 | N16: ='Irr Sorghum Seed'!G$60 -> 469.2881852 | O16: ='Irr Sorghum Seed'!H$60 -> 239.823054 | P16: ='Irr Sorghum Seed'!B35 -> 16 | Q16: 30.44554755 | R16: 17.39730092 | S16: 13.04824663 | T16: 258.3887608 | U16: 178.9368148 | V16: 79.45194605
A17: Irrigated Sorghum Silage | B17: Yes | C17: ='Irr Sorghum Silage'!$A$3 -> Irrigated Sorghum Silage | D17: ='Irr Sorghum Silage'!F$12 -> 920 | E17: ='Irr Sorghum Silage'!G$12 -> 616.4 | F17: ='Irr Sorghum Silage'!H$12 -> 303.6 | G17: ='Irr Sorghum Silage'!F$46 -> 687.1592726 | H17: ='Irr Sorghum Silage'!G$46 -> 592.1607792 | I17: ='Irr Sorghum Silage'!H$46 -> 94.99849341 | J17: 232.8407274 | K17: 24.23922079 | L17: 208.6015066 | M17: ='Irr Sorghum Silage'!F$60 -> 912.1892726 | N17: ='Irr Sorghum Silage'!G$60 -> 687.6507792 | O17: ='Irr Sorghum Silage'!H$60 -> 224.5384934 | P17: ='Irr Sorghum Silage'!B35 -> 14 | Q17: 16.63148053 | R17: 1.731372914 | S17: 14.90010761 | T17: 7.810727381 | U17: -71.25077921 | V17: 79.06150659
A18: Irrigated Sorghum Sudangrass | B18: Yes | C18: ='Irr Sorghum Sudangrass'!$A$3 -> Irrigated Sorghum Sudangrass | D18: ='Irr Sorghum Sudangrass'!F$12 -> 600 | E18: ='Irr Sorghum Sudangrass'!G$12 -> 402 | F18: ='Irr Sorghum Sudangrass'!H$12 -> 198 | G18: ='Irr Sorghum Sudangrass'!F$46 -> 325.1138981 | H18: ='Irr Sorghum Sudangrass'!G$46 -> 247.0119595 | I18: ='Irr Sorghum Sudangrass'!H$46 -> 78.10193864 | J18: 274.8861019 | K18: 154.9880405 | L18: 119.8980614 | M18: ='Irr Sorghum Sudangrass'!F$60 -> 537.8538981 | N18: ='Irr Sorghum Sudangrass'!G$60 -> 329.6319595 | O18: ='Irr Sorghum Sudangrass'!H$60 -> 208.2219386 | P18: ='Irr Sorghum Sudangrass'!B35 -> 9 | Q18: 30.54290021 | R18: 17.22089339 | S18: 13.32200682 | T18: 62.1461019 | U18: 72.36804054 | V18: -10.22193864
A19: Irrigated Soybeans | B19: Yes | C19: ='Irr Soybeans'!$A$3 -> Irrigated Soybeans | D19: ='Irr Soybeans'!F$12 -> 534 | E19: ='Irr Soybeans'!G$12 -> 357.78 | F19: ='Irr Soybeans'!H$12 -> 176.22 | G19: ='Irr Soybeans'!F$49 -> 449.2122922 | H19: ='Irr Soybeans'!G$49 -> 381.1966811 | I19: ='Irr Soybeans'!H$49 -> 68.01561114 | J19: 84.7877078 | K19: -23.41668106 | L19: 108.2043889 | M19: ='Irr Soybeans'!F$63 -> 675.5122922 | N19: ='Irr Soybeans'!G$63 -> 479.5766811 | O19: ='Irr Soybeans'!H$63 -> 195.9356111 | P19: ='Irr Soybeans'!B38 -> 14 | Q19: 6.056264843 | R19: -1.672620076 | S19: 7.728884919 | T19: -141.5122922 | U19: -121.7966811 | V19: -19.71561114
A20: Irrigated Sunflowers-Confectionary | B20: Yes | C20: ='Irr Sunflowers-Confection'!$A$3 -> Irrigated Sunflowers-Confectionary | D20: ='Irr Sunflowers-Confection'!F$13 -> 495 | E20: ='Irr Sunflowers-Confection'!G$13 -> 331.65 | F20: ='Irr Sunflowers-Confection'!H$13 -> 163.35 | G20: ='Irr Sunflowers-Confection'!F$49 -> 380.2137199 | H20: ='Irr Sunflowers-Confection'!G$49 -> 315.5471003 | I20: ='Irr Sunflowers-Confection'!H$49 -> 64.66661966 | J20: 114.7862801 | K20: 16.10289974 | L20: 98.68338034 | M20: ='Irr Sunflowers-Confection'!F$63 -> 588.4137199 | N20: ='Irr Sunflowers-Confection'!G$63 -> 395.9371003 | O20: ='Irr Sunflowers-Confection'!H$63 -> 192.4766197 | P20: ='Irr Sunflowers-Confection'!B38 -> 7 | Q20: 16.39804001 | R20: 2.300414249 | S20: 14.09762576 | T20: -93.41371992 | U20: -64.28710026 | V20: -29.12661966
A21: Irrigated Sunflowers-Oilseed | B21: Yes | C21: ='Irr Sunflowers-Oilseed'!$A$3 -> Irrigated Sunflowers-Oilseed | D21: ='Irr Sunflowers-Oilseed'!F$12 -> 450 | E21: ='Irr Sunflowers-Oilseed'!G$12 -> 301.5 | F21: ='Irr Sunflowers-Oilseed'!H$12 -> 148.5 | G21: ='Irr Sunflowers-Oilseed'!F$48 -> 381.1056054 | H21: ='Irr Sunflowers-Oilseed'!G$48 -> 297.1409983 | I21: ='Irr Sunflowers-Oilseed'!H$48 -> 83.96460716 | J21: 68.89439458 | K21: 4.359001741 | L21: 64.53539284 | M21: ='Irr Sunflowers-Oilseed'!F$62 -> 589.3056054 | N21: ='Irr Sunflowers-Oilseed'!G$62 -> 377.5309983 | O21: ='Irr Sunflowers-Oilseed'!H$62 -> 211.7746072 | P21: ='Irr Sunflowers-Oilseed'!B37 -> 7 | Q21: 9.842056369 | R21: 0.6227145344 | S21: 9.219341835 | T21: -139.3056054 | U21: -76.03099826 | V21: -63.27460716
A22: Irrigated Triticale Silage | B22: Yes | C22: ='Irr Triticale Silage'!$A$3 -> Irrigated Triticale Silage | D22: ='Irr Triticale Silage'!F$12 -> 460 | E22: ='Irr Triticale Silage'!G$12 -> 308.2 | F22: ='Irr Triticale Silage'!H$12 -> 151.8 | G22: ='Irr Triticale Silage'!F$46 -> 392.8796466 | H22: ='Irr Triticale Silage'!G$46 -> 343.2112137 | I22: ='Irr Triticale Silage'!H$46 -> 49.66843281 | J22: =D22-G22 -> 67.12035344 | K22: =E22-H22 -> -35.01121375 | L22: =F22-I22 -> 102.1315672 | M22: ='Irr Triticale Silage'!F$60 -> 610.0996466 | N22: ='Irr Triticale Silage'!G$60 -> 430.3112137 | O22: ='Irr Triticale Silage'!H$60 -> 179.7884328 | P22: ='Irr Sorghum Sudangrass'!B36 -> 48.49 | Q22: =IF($P22=0,"-",J22/$P22) -> 1.384210217 | R22: =IF($P22=0,"-",K22/$P22) -> -0.7220295679 | S22: =IF($P22=0,"-",L22/$P22) -> 2.106239785 | T22: =D22-M22 -> -150.0996466 | U22: =E22-N22 -> -122.1112137 | V22: =F22-O22 -> -27.98843281
A23: Irrigated Wheat | B23: Yes | C23: ='Irr Wheat'!$A$3 -> Irrigated Wheat | D23: ='Irr Wheat'!F$13 -> 362 | E23: ='Irr Wheat'!G$13 -> 242.54 | F23: ='Irr Wheat'!H$13 -> 119.46 | G23: ='Irr Wheat'!F$47 -> 329.7113755 | H23: ='Irr Wheat'!G$47 -> 270.9560986 | I23: ='Irr Wheat'!H$47 -> 58.75527693 | J23: 32.28862452 | K23: -28.41609855 | L23: 60.70472307 | M23: ='Irr Wheat'!F$61 -> 546.9313755 | N23: ='Irr Wheat'!G$61 -> 358.0560986 | O23: ='Irr Wheat'!H$61 -> 188.8752769 | P23: ='Irr Wheat'!B36 -> 10 | Q23: 3.228862452 | R23: -2.841609855 | S23: 6.070472307 | T23: -184.9313755 | U23: -115.5160986 | V23: -69.41527693
A24: Irrigated Other Crop | B24: Yes | C24: ='Irr Other Crop'!$A$3 -> Irrigated Other Crop | D24: ='Irr Other Crop'!F$12 -> 0 | E24: ='Irr Other Crop'!G$12 -> 0 | F24: ='Irr Other Crop'!H$12 -> 0 | G24: ='Irr Other Crop'!F$48 -> 0 | H24: ='Irr Other Crop'!G$48 -> 0 | I24: ='Irr Other Crop'!H$48 -> 0 | J24: 0 | K24: 0 | L24: 0 | M24: ='Irr Other Crop'!F$62 -> 0 | N24: ='Irr Other Crop'!G$62 -> 0 | O24: ='Irr Other Crop'!H$62 -> 0 | P24: ='Irr Other Crop'!B37 -> 0 | Q24: =IF($P24=0,"-",J24/$P24) -> - | R24: - | S24: - | T24: 0 | U24: 0 | V24: 0
A25: Dryland Canola | B25: Yes | C25: ='Dry Canola'!$A$3 -> Dryland Canola | D25: ='Dry Canola'!F$12 -> 198 | E25: ='Dry Canola'!G$12 -> 132.66 | F25: ='Dry Canola'!H$12 -> 65.34 | G25: ='Dry Canola'!F$45 -> 196.7238135 | H25: ='Dry Canola'!G$45 -> 165.9648129 | I25: ='Dry Canola'!H$45 -> 30.75900057 | J25: 1.276186511 | K25: -33.30481292 | L25: 34.58099943 | M25: ='Dry Canola'!F$59 -> 245.7238135 | N25: ='Dry Canola'!G$59 -> 178.6148129 | O25: ='Dry Canola'!H$59 -> 67.10900057 | P25: ='Dry Canola'!#REF! ->  | R25: - | S25: - | T25: -47.72381349 | U25: -45.95481292 | V25: -1.769000574
A26: Dryland Cotton | B26: Yes | C26: ='Dry Cotton'!$A$3 -> Dryland Cotton | D26: ='Dry Cotton'!F$14 -> 344.5 | E26: ='Dry Cotton'!G$14 -> 230.815 | F26: ='Dry Cotton'!H$14 -> 113.685 | G26: ='Dry Cotton'!F$50 -> 400.2690867 | H26: ='Dry Cotton'!G$50 -> 312.6077001 | I26: ='Dry Cotton'!H$50 -> 87.66138654 | J26: -55.76908669 | K26: -81.79270015 | L26: 26.02361346 | M26: ='Dry Cotton'!F$64 -> 449.2290867 | N26: ='Dry Cotton'!G$64 -> 326.1677001 | O26: ='Dry Cotton'!H$64 -> 123.0613865 | P26: ='Dry Cotton'!#REF! ->  | R26: - | S26: - | T26: -104.7290867 | U26: -95.35270015 | V26: -9.376386543
A27: Dryland Sorghum | B27: Yes | C27: ='Dry Sorghum'!$A$3 -> Dryland Sorghum | D27: ='Dry Sorghum'!F$12 -> 183.75 | E27: ='Dry Sorghum'!G$12 -> 123.1125 | F27: ='Dry Sorghum'!H$12 -> 60.6375 | G27: ='Dry Sorghum'!F$43 -> 219.9919962 | H27: ='Dry Sorghum'!G$43 -> 169.3265073 | I27: ='Dry Sorghum'!H$43 -> 50.66548889 | J27: -36.24199624 | K27: -46.21400735 | L27: 9.972011112 | M27: ='Dry Sorghum'!F$57 -> 264.6119962 | N27: ='Dry Sorghum'!G$57 -> 180.4765073 | O27: ='Dry Sorghum'!H$57 -> 84.13548889 | P27: ='Dry Sorghum'!#REF! ->  | R27: - | S27: - | T27: -80.86199624 | U27: -57.36400735 | V27: -23.49798889
A28: Dryland Sorghum Sudangrass | B28: Yes | C28: ='Dry Sorghum Sudangrass'!$A$3 -> Dryland Sorghum Sudangrass | D28: ='Dry Sorghum Sudangrass'!F$12 -> 252 | E28: ='Dry Sorghum Sudangrass'!G$12 -> 168.84 | F28: ='Dry Sorghum Sudangrass'!H$12 -> 83.16 | G28: ='Dry Sorghum Sudangrass'!F$42 -> 135.5676052 | H28: ='Dry Sorghum Sudangrass'!G$42 -> 102.039858 | I28: ='Dry Sorghum Sudangrass'!H$42 -> 33.52774715 | J28: 116.4323948 | K28: 66.80014195 | L28: 49.63225285 | M28: ='Dry Sorghum Sudangrass'!F$56 -> 179.6376052 | N28: ='Dry Sorghum Sudangrass'!G$56 -> 111.489858 | O28: ='Dry Sorghum Sudangrass'!H$56 -> 68.14774715 | P28: ='Dry Sorghum Sudangrass'!#REF! ->  | R28: - | S28: - | T28: 72.3623948 | U28: 57.35014195 | V28: 15.01225285
A29: Dryland Sunflowers-Oilseed | B29: Yes | C29: ='Dry Sunflowers-Oilseed'!$A$3 -> Dryland Sunflowers-Oilseed | D29: ='Dry Sunflowers-Oilseed'!F$12 -> 225 | E29: ='Dry Sunflowers-Oilseed'!G$12 -> 150.75 | F29: ='Dry Sunflowers-Oilseed'!H$12 -> 74.25 | G29: ='Dry Sunflowers-Oilseed'!F$44 -> 220.8954825 | H29: ='Dry Sunflowers-Oilseed'!G$44 -> 185.2199254 | I29: ='Dry Sunflowers-Oilseed'!H$44 -> 35.67555702 | J29: 4.104517547 | K29: -34.46992543 | L29: 38.57444298 | M29: ='Dry Sunflowers-Oilseed'!F$58 -> 263.2054825 | N29: ='Dry Sunflowers-Oilseed'!G$58 -> 194.7199254 | O29: ='Dry Sunflowers-Oilseed'!H$58 -> 68.48555702 | P29: ='Dry Sunflowers-Oilseed'!#REF! ->  | R29: - | S29: - | T29: -38.20548245 | U29: -43.96992543 | V29: 5.76444298
A30: Dryland Wheat | B30: Yes | C30: ='Dry Wheat'!$A$3 -> Dryland Wheat | D30: ='Dry Wheat'!F$13 -> 158.75 | E30: ='Dry Wheat'!G$13 -> 106.3625 | F30: ='Dry Wheat'!H$13 -> 52.3875 | G30: ='Dry Wheat'!F$44 -> 145.6290641 | H30: ='Dry Wheat'!G$44 -> 122.5214159 | I30: ='Dry Wheat'!H$44 -> 23.10764817 | J30: 13.12093588 | K30: -16.15891595 | L30: 29.27985183 | M30: ='Dry Wheat'!F$58 -> 194.6290641 | N30: ='Dry Wheat'!G$58 -> 135.1714159 | O30: ='Dry Wheat'!H$58 -> 59.45764817 | P30: ='Dry Wheat'!#REF! ->  | R30: - | S30: - | T30: -35.87906412 | U30: -28.80891595 | V30: -7.070148171
A31: Dryland Other Crop | B31: Yes | C31: ='Dry Other Crop'!$A$3 -> Dryland Other Crop | D31: ='Dry Other Crop'!F$12 -> 0 | E31: ='Dry Other Crop'!G$12 -> 0 | F31: ='Dry Other Crop'!H$12 -> 0 | G31: ='Dry Other Crop'!F$44 -> 0 | H31: ='Dry Other Crop'!G$44 -> 0 | I31: ='Dry Other Crop'!H$44 -> 0 | J31: 0 | K31: 0 | L31: 0 | M31: ='Dry Other Crop'!F$58 -> 0 | N31: ='Dry Other Crop'!G$58 -> 0 | O31: ='Dry Other Crop'!H$58 -> 0 | P31: ='Dry Other Crop'!#REF! ->  | R31: - | S31: - | T31: 0 | U31: 0 | V31: 0
C33: Breakeven yields per acre | G33: Break-Even Yield to Cover Variable Costs | J33: Break-Even Yield to Cover Total Costs
D34: Price | E34: unit | G34: Total | H34: Tenant | I34: Landlord | J34: Total | K34: Tenant | L34: Landlord
A35: Irrigated Alfalfa | B35: =_xlfn.XLOOKUP(A35,PGM_ShowHide_Lookup,PGM_ShowHide_Return,"") -> Yes | C35: ='Irr Alfalfa'!$A$3 -> Irrigated Alfalfa | D35: ='Irr Alfalfa'!$D$9 -> 250 | E35: ='Irr Alfalfa'!$C$9 -> ton | G35: =IF($D35=0, 0, G9/$D35) -> 2.917376205 | H35: =IF($D35=0, 0, IF('Irr Alfalfa'!$E$9=0,0,H9/$D35/(1-'Irr Alfalfa'!$E$9))) -> 3.879265298 | I35: =IF($D35=0, 0, IF('Irr Alfalfa'!$E$9=0,0,I9/$D35/('Irr Alfalfa'!$E$9))) -> 0.9644498647 | J35: =IF($D35=0, 0, M9/$D35) -> 4.617856205 | K35: =IF($D35=0, 0, IF('Irr Alfalfa'!$E$9=0,0,N9/$D35/(1-'Irr Alfalfa'!$E$9))) -> 5.223265298 | L35: =IF($D35=0, 0, IF('Irr Alfalfa'!$E$9=0,0,O9/$D35/('Irr Alfalfa'!$E$9))) -> 3.388692289
A36: Irrigated Canola | B36: Yes | C36: ='Irr Canola'!$A$3 -> Irrigated Canola | D36: ='Irr Canola'!$D$9 -> 18 | E36: ='Irr Canola'!$C$9 -> cwt | G36: =IF($D36=0, 0, G10/$D36) -> 19.24740697 | H36: =IF($D36=0, 0, IF('Irr Canola'!$E$9=0,0,H10/$D36/(1-'Irr Canola'!$E$9))) -> 23.71423092 | I36: =IF($D36=0, 0, IF('Irr Canola'!$E$9=0,0,I10/$D36/('Irr Canola'!$E$9))) -> 10.17840076 | J36: =IF($D36=0, 0, M10/$D36) -> 31.20462919 | K36: =IF($D36=0, 0, IF('Irr Canola'!$E$9=0,0,N10/$D36/(1-'Irr Canola'!$E$9))) -> 30.72501036 | L36: =IF($D36=0, 0, IF('Irr Canola'!$E$9=0,0,O10/$D36/('Irr Canola'!$E$9))) -> 32.17840076
A37: Irrigated Corn | B37: Yes | C37: ='Irr Corn'!$A$3 -> Irrigated Corn | D37: ='Irr Corn'!$D$9 -> 4.8 | E37: ='Irr Corn'!$C$9 -> bu | G37: =IF($D37=0, 0, G11/$D37) -> 186.1986956 | H37: =IF($D37=0, 0, IF('Irr Corn'!$E$9=0,0,H11/$D37/(1-'Irr Corn'!$E$9))) -> 221.2717604 | I37: =IF($D37=0, 0, IF('Irr Corn'!$E$9=0,0,I11/$D37/('Irr Corn'!$E$9))) -> 119.0675812 | J37: =IF($D37=0, 0, M11/$D37) -> 252.4799456 | K37: =IF($D37=0, 0, IF('Irr Corn'!$E$9=0,0,N11/$D37/(1-'Irr Corn'!$E$9))) -> 256.7133027 | L37: =IF($D37=0, 0, IF('Irr Corn'!$E$9=0,0,O11/$D37/('Irr Corn'!$E$9))) -> 247.9627832
A38: Irrigated Corn Silage | B38: Yes | C38: ='Irr Corn Silage'!$A$3 -> Irrigated Corn Silage | D38: ='Irr Corn Silage'!$D$9 -> 53 | E38: ='Irr Corn Silage'!$C$9 -> ton | G38: =IF($D38=0, 0, G12/$D38) -> 21.22136015 | H38: =IF($D38=0, 0, IF('Irr Corn Silage'!$E$9=0,0,H12/$D38/(1-'Irr Corn Silage'!$E$9))) -> 27.34411171 | I38: =IF($D38=0, 0, IF('Irr Corn Silage'!$E$9=0,0,I12/$D38/('Irr Corn Silage'!$E$9))) -> 8.790319102 | J38: =IF($D38=0, 0, M12/$D38) -> 27.29192619 | K38: =IF($D38=0, 0, IF('Irr Corn Silage'!$E$9=0,0,N12/$D38/(1-'Irr Corn Silage'!$E$9))) -> 30.56236009 | L38: =IF($D38=0, 0, IF('Irr Corn Silage'!$E$9=0,0,O12/$D38/('Irr Corn Silage'!$E$9))) -> 20.65195432
A39: Irrigated Cotton | B39: Yes | C39: ='Irr Cotton'!$A$3 -> Irrigated Cotton | D39: ='Irr Cotton'!$D$9 -> 0.7 | E39: ='Irr Cotton'!$C$9 -> lb | G39: =IF($D39=0, 0, G13/($D39+Cottonseed_Price/2000*'Universal Input Prices'!$B$39/500)) -> 1086.560326 | H39: =IF($D39=0, 0, IF('Irr Cotton'!$E$9=0,0,H13/($D39+Cottonseed_Price/2000*'Universal Input Prices'!$B$39/500)/(1-'Irr Cotton'!$E$9))) -> 0 | I39: =IF($D39=0, 0, IF('Irr Cotton'!$E$9=0,0,I13/($D39+Cottonseed_Price/2000*'Universal Input Prices'!$B$39/500)/('Irr Cotton'!$E$9))) -> 0 | J39: =IF($D39=0, 0, M13/($D39+Cottonseed_Price/2000*'Universal Input Prices'!$B$39/500)) -> 1339.086306 | K39: =IF($D39=0, 0, IF('Irr Cotton'!$E$9=0,0,N13/($D39+Cottonseed_Price/2000*'Universal Input Prices'!$B$39/500)/(1-'Irr Cotton'!$E$9))) -> 0 | L39: =IF($D39=0, 0, IF('Irr Cotton'!$E$9=0,0,O13/($D39+Cottonseed_Price/2000*'Universal Input Prices'!$B$39/500)/('Irr Cotton'!$E$9))) -> 0
A40: Irrigated Peanuts | B40: Yes | C40: ='Irr Peanuts'!$A$3 -> Irrigated Peanuts | D40: ='Irr Peanuts'!$D$9 -> 550 | E40: ='Irr Peanuts'!$C$9 -> ton | G40: =IF($D40=0, 0, G14/$D40) -> 1.639918583 | H40: =IF($D40=0, 0, IF('Irr Peanuts'!$E$9=0,0,H14/$D40/(1-'Irr Peanuts'!$E$9))) -> 2.053274764 | I40: =IF($D40=0, 0, IF('Irr Peanuts'!$E$9=0,0,I14/$D40/('Irr Peanuts'!$E$9))) -> 0.800680276 | J40: =IF($D40=0, 0, M14/$D40) -> 2.10199131 | K40: =IF($D40=0, 0, IF('Irr Peanuts'!$E$9=0,0,N14/$D40/(1-'Irr Peanuts'!$E$9))) -> 2.37946201 | L40: =IF($D40=0, 0, IF('Irr Peanuts'!$E$9=0,0,O14/$D40/('Irr Peanuts'!$E$9))) -> 1.538641708
A41: Irrigated Sorghum | B41: Yes | C41: ='Irr Sorghum'!$A$3 -> Irrigated Sorghum | D41: ='Irr Sorghum'!$D$9 -> 7.35 | E41: ='Irr Sorghum'!$C$9 -> cwt | G41: =IF($D41=0, 0, (G15-'Irr Sorghum'!$F$10)/$D41) -> 59.89521445 | H41: =IF($D41=0, 0, IF('Irr Sorghum'!$E$9=0,0,(H15-'Irr Sorghum'!$F$10)/$D41/(1-'Irr Sorghum'!$E$9))) -> 69.81883462 | I41: =IF($D41=0, 0, IF('Irr Sorghum'!$E$9=0,0,(I15-'Irr Sorghum'!$F$10)/$D41/('Irr Sorghum'!$E$9))) -> 39.74725834 | J41: =IF($D41=0, 0, (M15-'Irr Sorghum'!$F$10)/$D41) -> 92.54419404 | K41: =IF($D41=0, 0, IF('Irr Sorghum'!$E$9=0,0,(N15-'Irr Sorghum'!$F$10)/$D41/(1-'Irr Sorghum'!$E$9))) -> 92.28812085 | L41: =IF($D41=0, 0, IF('Irr Sorghum'!$E$9=0,0,(O15-'Irr Sorghum'!$F$10)/$D41/('Irr Sorghum'!$E$9))) -> 93.06410023
A42: Irrigated Sorghum Seed | B42: Yes | C42: ='Irr Sorghum Seed'!$A$3 -> Irrigated Sorghum Seed | D42: ='Irr Sorghum Seed'!$D$9 -> 21.5 | E42: ='Irr Sorghum Seed'!$C$9 -> cwt | G42: =IF($D42=0, 0, (G16-'Irr Sorghum Seed'!$F$10)/$D42) -> 22.34284833 | H42: =IF($D42=0, 0, IF('Irr Sorghum Seed'!$E$9=0,0,(H16-'Irr Sorghum Seed'!$F$10)/$D42/(1-'Irr Sorghum Seed'!$E$9))) -> 25.67637523 | I42: =IF($D42=0, 0, IF('Irr Sorghum Seed'!$E$9=0,0,(I16-'Irr Sorghum Seed'!$F$10)/$D42/('Irr Sorghum Seed'!$E$9))) -> 15.57477857 | J42: =IF($D42=0, 0, (M16-'Irr Sorghum Seed'!$F$10)/$D42) -> 32.9819181 | K42: =IF($D42=0, 0, IF('Irr Sorghum Seed'!$E$9=0,0,(N16-'Irr Sorghum Seed'!$F$10)/$D42/(1-'Irr Sorghum Seed'!$E$9))) -> 32.57814545 | L42: =IF($D42=0, 0, IF('Irr Sorghum Seed'!$E$9=0,0,(O16-'Irr Sorghum Seed'!$F$10)/$D42/('Irr Sorghum Seed'!$E$9))) -> 33.80169894
A43: Irrigated Sorghum Silage | B43: Yes | C43: ='Irr Sorghum Silage'!$A$3 -> Irrigated Sorghum Silage | D43: ='Irr Sorghum Silage'!$D$9 -> 46 | E43: ='Irr Sorghum Silage'!$C$9 -> ton | G43: =IF($D43=0, 0, G17/$D43) -> 14.93824506 | H43: =IF($D43=0, 0, IF('Irr Sorghum Silage'!$E$9=0,0,H17/$D43/(1-'Irr Sorghum Silage'!$E$9))) -> 19.21352301 | I43: =IF($D43=0, 0, IF('Irr Sorghum Silage'!$E$9=0,0,I17/$D43/('Irr Sorghum Silage'!$E$9))) -> 6.258135271 | J43: =IF($D43=0, 0, M17/$D43) -> 19.83020158 | K43: =IF($D43=0, 0, IF('Irr Sorghum Silage'!$E$9=0,0,N17/$D43/(1-'Irr Sorghum Silage'!$E$9))) -> 22.3118358 | L43: =IF($D43=0, 0, IF('Irr Sorghum Silage'!$E$9=0,0,O17/$D43/('Irr Sorghum Silage'!$E$9))) -> 14.79173211
A44: Irrigated Sorghum Sudangrass | B44: Yes | C44: ='Irr Sorghum Sudangrass'!$A$3 -> Irrigated Sorghum Sudangrass | D44: ='Irr Sorghum Sudangrass'!$D$9 -> 0.75 | E44: ='Irr Sorghum Sudangrass'!$C$9 -> lb | G44: 433.4851975 | H44: =IF($D44=0, 0, IF('Irr Sorghum Sudangrass'!$E$9=0,0,H18/$D44/(1-'Irr Sorghum Sudangrass'!$E$9))) -> 491.5660885 | I44: =IF($D44=0, 0, IF('Irr Sorghum Sudangrass'!$E$9=0,0,I18/$D44/('Irr Sorghum Sudangrass'!$E$9))) -> 315.5633885 | J44: 717.1385308 | K44: =IF($D44=0, 0, IF('Irr Sorghum Sudangrass'!$E$9=0,0,N18/$D44/(1-'Irr Sorghum Sudangrass'!$E$9))) -> 655.9839989 | L44: =IF($D44=0, 0, IF('Irr Sorghum Sudangrass'!$E$9=0,0,O18/$D44/('Irr Sorghum Sudangrass'!$E$9))) -> 841.3007622
A45: Irrigated Soybeans | B45: Yes | C45: ='Irr Soybeans'!$A$3 -> Irrigated Soybeans | D45: ='Irr Soybeans'!$D$9 -> 8.9 | E45: ='Irr Soybeans'!$C$9 -> bu | G45: 50.47329126 | H45: =IF($D45=0, 0, IF('Irr Soybeans'!$E$9=0,0,H19/$D45/(1-'Irr Soybeans'!$E$9))) -> 63.92699666 | I45: =IF($D45=0, 0, IF('Irr Soybeans'!$E$9=0,0,I19/$D45/('Irr Soybeans'!$E$9))) -> 23.15819242 | J45: 75.90025755 | K45: =IF($D45=0, 0, IF('Irr Soybeans'!$E$9=0,0,N19/$D45/(1-'Irr Soybeans'!$E$9))) -> 80.4254035 | L45: =IF($D45=0, 0, IF('Irr Soybeans'!$E$9=0,0,O19/$D45/('Irr Soybeans'!$E$9))) -> 66.71284002
A46: Irrigated Sunflowers-Confectionary | B46: Yes | C46: ='Irr Sunflowers-Confection'!$A$3 -> Irrigated Sunflowers-Confectionary | D46: ='Irr Sunflowers-Confection'!$D$9 -> 27.5 | E46: ='Irr Sunflowers-Confection'!$C$9 -> cwt | G46: 13.82595345 | H46: =IF($D46=0, 0, IF('Irr Sunflowers-Confection'!$E$9=0,0,H20/$D46/(1-'Irr Sunflowers-Confection'!$E$9))) -> 17.12602986 | I46: =IF($D46=0, 0, IF('Irr Sunflowers-Confection'!$E$9=0,0,I20/$D46/('Irr Sunflowers-Confection'!$E$9))) -> 7.125798309 | J46: 21.39686254 | K46: =IF($D46=0, 0, IF('Irr Sunflowers-Confection'!$E$9=0,0,N20/$D46/(1-'Irr Sunflowers-Confection'!$E$9))) -> 21.48912349 | L46: =IF($D46=0, 0, IF('Irr Sunflowers-Confection'!$E$9=0,0,O20/$D46/('Irr Sunflowers-Confection'!$E$9))) -> 21.20954487
A47: Irrigated Sunflowers-Oilseed | B47: Yes | C47: ='Irr Sunflowers-Oilseed'!$A$3 -> Irrigated Sunflowers-Oilseed | D47: ='Irr Sunflowers-Oilseed'!$D$9 -> 22.5 | E47: ='Irr Sunflowers-Oilseed'!$C$9 -> cwt | G47: 16.93802691 | H47: =IF($D47=0, 0, IF('Irr Sunflowers-Oilseed'!$E$9=0,0,H21/$D47/(1-'Irr Sunflowers-Oilseed'!$E$9))) -> 19.71084566 | I47: =IF($D47=0, 0, IF('Irr Sunflowers-Oilseed'!$E$9=0,0,I21/$D47/('Irr Sunflowers-Oilseed'!$E$9))) -> 11.3083646 | J47: 26.19136024 | K47: =IF($D47=0, 0, IF('Irr Sunflowers-Oilseed'!$E$9=0,0,N21/$D47/(1-'Irr Sunflowers-Oilseed'!$E$9))) -> 25.04351564 | L47: =IF($D47=0, 0, IF('Irr Sunflowers-Oilseed'!$E$9=0,0,O21/$D47/('Irr Sunflowers-Oilseed'!$E$9))) -> 28.52183261
A48: Irrigated Triticale Silage | B48: Yes | C48: ='Irr Triticale Silage'!$A$3 -> Irrigated Triticale Silage | D48: ='Irr Triticale Silage'!$D$9 -> 46 | E48: ='Irr Triticale Silage'!$C$9 -> ton | G48: 8.540861882 | H48: =IF($D48=0, 0, IF('Irr Triticale Silage'!$E$9=0,0,H22/$D48/(1-'Irr Triticale Silage'!$E$9))) -> 11.13599006 | I48: =IF($D48=0, 0, IF('Irr Triticale Silage'!$E$9=0,0,I22/$D48/('Irr Triticale Silage'!$E$9))) -> 3.271965271 | J48: 13.26303579 | K48: =IF($D48=0, 0, IF('Irr Triticale Silage'!$E$9=0,0,N22/$D48/(1-'Irr Triticale Silage'!$E$9))) -> 13.96207702 | L48: =IF($D48=0, 0, IF('Irr Triticale Silage'!$E$9=0,0,O22/$D48/('Irr Triticale Silage'!$E$9))) -> 11.84377028
A49: Irrigated Wheat | B49: Yes | C49: ='Irr Wheat'!$A$3 -> Irrigated Wheat | D49: ='Irr Wheat'!$D$9 -> 5.2 | E49: ='Irr Wheat'!$C$9 -> bu | G49: =IF($D49=0, 0, (G23-'Irr Wheat'!$F$10)/$D49) -> 43.79064913 | H49: =IF($D49=0, 0, IF('Irr Wheat'!$E$9=0,0,(H23-'Irr Wheat'!$G$10)/$D49/(1-'Irr Wheat'!$E$9))) -> 58.15617065 | I49: =IF($D49=0, 0, IF('Irr Wheat'!$E$9=0,0,(I23-'Irr Wheat'!$H$10)/$D49/('Irr Wheat'!$E$9))) -> 14.62428725 | J49: =IF($D49=0, 0, (M23-'Irr Wheat'!$F$10)/$D49) -> 85.56372605 | K49: =IF($D49=0, 0, IF('Irr Wheat'!$E$9=0,0,(N23-'Irr Wheat'!$G$10)/$D49/(1-'Irr Wheat'!$E$9))) -> 83.15617065 | L49: =IF($D49=0, 0, IF('Irr Wheat'!$E$9=0,0,(O23-'Irr Wheat'!$H$10)/$D49/('Irr Wheat'!$E$9))) -> 90.45179308
A50: Irrigated Other Crop | B50: Yes | C50: ='Irr Other Crop'!$A$3 -> Irrigated Other Crop | D50: ='Irr Other Crop'!$D$9 -> 0 | E50: ='Irr Other Crop'!$C$9 -> unit | G50: =IF($D50=0, 0, (G24-'Irr Other Crop'!$F$10)/$D50) -> 0 | H50: =IF($D50=0, 0, IF('Irr Other Crop'!$E$9=0,0,(H24-'Irr Other Crop'!$G$10)/$D50/(1-'Irr Other Crop'!$E$9))) -> 0 | I50: =IF($D50=0, 0, IF('Irr Other Crop'!$E$9=0,0,(I24-'Irr Other Crop'!$H$10)/$D50/('Irr Other Crop'!$E$9))) -> 0 | J50: =IF($D50=0, 0, (M24-'Irr Other Crop'!$F$10)/$D50) -> 0 | K50: =IF($D50=0, 0, IF('Irr Other Crop'!$E$9=0,0,(N24-'Irr Other Crop'!$G$10)/$D50/(1-'Irr Other Crop'!$E$9))) -> 0 | L50: =IF($D50=0, 0, IF('Irr Other Crop'!$E$9=0,0,(O24-'Irr Other Crop'!$H$10)/$D50/('Irr Other Crop'!$E$9))) -> 0
A51: Dryland Canola | B51: Yes | C51: ='Dry Canola'!$A$3 -> Dryland Canola | D51: ='Dry Canola'!$D$9 -> 18 | E51: ='Dry Canola'!$C$9 -> cwt | G51: =IF($D51=0, 0, G25/$D51) -> 10.92910075 | H51: =IF($D51=0, 0, IF('Dry Canola'!$E$9=0,0,H25/$D51/(1-'Dry Canola'!$E$9))) -> 13.76159311 | I51: =IF($D51=0, 0, IF('Dry Canola'!$E$9=0,0,I25/$D51/('Dry Canola'!$E$9))) -> 5.178282925 | J51: =IF($D51=0, 0, M25/$D51) -> 13.65132297 | K51: =IF($D51=0, 0, IF('Dry Canola'!$E$9=0,0,N25/$D51/(1-'Dry Canola'!$E$9))) -> 14.81051517 | L51: =IF($D51=0, 0, IF('Dry Canola'!$E$9=0,0,O25/$D51/('Dry Canola'!$E$9))) -> 11.29781154
A52: Dryland Cotton | B52: Yes | C52: ='Dry Cotton'!$A$3 -> Dryland Cotton | D52: ='Dry Cotton'!$D$9 -> 0.7 | E52: ='Dry Cotton'!$C$9 -> lb | G52: =IF($D52=0, 0, G26/($D52+Cottonseed_Price/2000*'Universal Input Prices'!$B$39/500)) -> 464.7536565 | H52: =IF($D52=0, 0, IF('Dry Cotton'!$E$9=0,0,H26/($D52+Cottonseed_Price/2000*'Universal Input Prices'!$B$39/500)/(1-'Dry Cotton'!$E$9))) -> 541.7459007 | I52: =IF($D52=0, 0, IF('Dry Cotton'!$E$9=0,0,I26/($D52+Cottonseed_Price/2000*'Universal Input Prices'!$B$39/500)/('Dry Cotton'!$E$9))) -> 308.43607 | J52: =IF($D52=0, 0, M26/($D52+Cottonseed_Price/2000*'Universal Input Prices'!$B$39/500)) -> 521.6012618 | K52: =IF($D52=0, 0, IF('Dry Cotton'!$E$9=0,0,N26/($D52+Cottonseed_Price/2000*'Universal Input Prices'!$B$39/500)/(1-'Dry Cotton'!$E$9))) -> 565.24524 | L52: =IF($D52=0, 0, IF('Dry Cotton'!$E$9=0,0,O26/($D52+Cottonseed_Price/2000*'Universal Input Prices'!$B$39/500)/('Dry Cotton'!$E$9))) -> 432.9907606
A53: Dryland Sorghum | B53: Yes | C53: ='Dry Sorghum'!$A$3 -> Dryland Sorghum | D53: ='Dry Sorghum'!$D$9 -> 7.35 | E53: ='Dry Sorghum'!$C$9 -> cwt | G53: =IF($D53=0, 0, (G27-'Dry Sorghum'!$F$10)/$D53) -> 29.93088384 | H53: =IF($D53=0, 0, IF('Dry Sorghum'!$E$9=0,0,(H27-'Dry Sorghum'!$F$10)/$D53/(1-'Dry Sorghum'!$E$9))) -> 34.38450753 | I53: =IF($D53=0, 0, IF('Dry Sorghum'!$E$9=0,0,(I27-'Dry Sorghum'!$F$10)/$D53/('Dry Sorghum'!$E$9))) -> 20.88867816 | J53: =IF($D53=0, 0, (M27-'Dry Sorghum'!$F$10)/$D53) -> 36.00163214 | K53: =IF($D53=0, 0, IF('Dry Sorghum'!$E$9=0,0,(N27-'Dry Sorghum'!$F$10)/$D53/(1-'Dry Sorghum'!$E$9))) -> 36.64869679 | L53: =IF($D53=0, 0, IF('Dry Sorghum'!$E$9=0,0,(O27-'Dry Sorghum'!$F$10)/$D53/('Dry Sorghum'!$E$9))) -> 34.68789482
A54: Dryland Sorghum Sudangrass | B54: Yes | C54: ='Dry Sorghum Sudangrass'!$A$3 -> Dryland Sorghum Sudangrass | D54: ='Dry Sorghum Sudangrass'!$D$9 -> 0.75 | E54: ='Dry Sorghum Sudangrass'!$C$9 -> lb | G54: =IF($D54=0, 0, G28/$D54) -> 180.7568069 | H54: =IF($D54=0, 0, IF('Dry Sorghum Sudangrass'!$E$9=0,0,H28/$D54/(1-'Dry Sorghum Sudangrass'!$E$9))) -> 203.0643941 | I54: =IF($D54=0, 0, IF('Dry Sorghum Sudangrass'!$E$9=0,0,I28/$D54/('Dry Sorghum Sudangrass'!$E$9))) -> 135.465645 | J54: =IF($D54=0, 0, M28/$D54) -> 239.5168069 | K54: =IF($D54=0, 0, IF('Dry Sorghum Sudangrass'!$E$9=0,0,N28/$D54/(1-'Dry Sorghum Sudangrass'!$E$9))) -> 221.8703643 | L54: =IF($D54=0, 0, IF('Dry Sorghum Sudangrass'!$E$9=0,0,O28/$D54/('Dry Sorghum Sudangrass'!$E$9))) -> 275.3444329
A55: Dryland Sunflowers-Oilseed | B55: Yes | C55: ='Dry Sunflowers-Oilseed'!$A$3 -> Dryland Sunflowers-Oilseed | D55: ='Dry Sunflowers-Oilseed'!$D$9 -> 22.5 | E55: ='Dry Sunflowers-Oilseed'!$C$9 -> cwt | G55: =IF($D55=0, 0, G29/$D55) -> 9.817576998 | H55: =IF($D55=0, 0, IF('Dry Sunflowers-Oilseed'!$E$9=0,0,H29/$D55/(1-'Dry Sunflowers-Oilseed'!$E$9))) -> 12.28656222 | I55: =IF($D55=0, 0, IF('Dry Sunflowers-Oilseed'!$E$9=0,0,I29/$D55/('Dry Sunflowers-Oilseed'!$E$9))) -> 4.804788824 | J55: =IF($D55=0, 0, M29/$D55) -> 11.69802144 | K55: =IF($D55=0, 0, IF('Dry Sunflowers-Oilseed'!$E$9=0,0,N29/$D55/(1-'Dry Sunflowers-Oilseed'!$E$9))) -> 12.91674464 | L55: =IF($D55=0, 0, IF('Dry Sunflowers-Oilseed'!$E$9=0,0,O29/$D55/('Dry Sunflowers-Oilseed'!$E$9))) -> 9.223644043
A56: Dryland Wheat | B56: Yes | C56: ='Dry Wheat'!$A$3 -> Dryland Wheat | D56: ='Dry Wheat'!$D$9 -> 5.2 | E56: ='Dry Wheat'!$C$9 -> bu | G56: =IF($D56=0, 0, (G30-'Dry Wheat'!$F$10)/$D56) -> 17.4767431 | H56: =IF($D56=0, 0, IF('Dry Wheat'!$E$9=0,0,(H30-'Dry Wheat'!$G$10)/$D56/(1-'Dry Wheat'!$E$9))) -> 24.63803558 | I56: =IF($D56=0, 0, IF('Dry Wheat'!$E$9=0,0,(I30-'Dry Wheat'!$H$10)/$D56/('Dry Wheat'!$E$9))) -> 2.937149284 | J56: =IF($D56=0, 0, (M30-'Dry Wheat'!$F$10)/$D56) -> 26.89982002 | K56: =IF($D56=0, 0, IF('Dry Wheat'!$E$9=0,0,(N30-'Dry Wheat'!$G$10)/$D56/(1-'Dry Wheat'!$E$9))) -> 28.26891962 | L56: =IF($D56=0, 0, IF('Dry Wheat'!$E$9=0,0,(O30-'Dry Wheat'!$H$10)/$D56/('Dry Wheat'!$E$9))) -> 24.12013297
A57: Dryland Other Crop | B57: Yes | C57: ='Dry Other Crop'!$A$3 -> Dryland Other Crop | D57: ='Dry Other Crop'!$D$9 -> 0 | E57: ='Dry Other Crop'!$C$9 -> unit | G57: =IF($D57=0, 0, (G31-'Dry Other Crop'!$F$10)/$D57) -> 0 | H57: =IF($D57=0, 0, IF('Dry Other Crop'!$E$9=0,0,(H31-'Dry Other Crop'!$G$10)/$D57/(1-'Dry Other Crop'!$E$9))) -> 0 | I57: =IF($D57=0, 0, IF('Dry Other Crop'!$E$9=0,0,(I31-'Dry Other Crop'!$H$10)/$D57/('Dry Other Crop'!$E$9))) -> 0 | J57: =IF($D57=0, 0, (M31-'Dry Other Crop'!$F$10)/$D57) -> 0 | K57: =IF($D57=0, 0, IF('Dry Other Crop'!$E$9=0,0,(N31-'Dry Other Crop'!$G$10)/$D57/(1-'Dry Other Crop'!$E$9))) -> 0 | L57: =IF($D57=0, 0, IF('Dry Other Crop'!$E$9=0,0,(O31-'Dry Other Crop'!$H$10)/$D57/('Dry Other Crop'!$E$9))) -> 0

Sheet Irrigation Analysis
A2: HIDE IF | I2: Dryland Canola | J2: Dryland Cotton | K2: Dryland Sorghum | L2: Dryland Sorghum Sudangrass | M2: Dryland Sunflowers-Oilseed | N2: Dryland Wheat | O2: Dryland Other Crop | P2: Dryland Canola | Q2: Dryland Cotton | R2: Dryland Sorghum | S2: Dryland Sorghum Sudangrass | T2: Irrigated Sunflowers-Oilseed | U2: Dryland Wheat | V2: Dryland Other Crop
C3: =_xlfn.XLOOKUP(C2,PGM_ShowHide_Lookup,PGM_ShowHide_Return,"") ->  | I3: Yes | J3: Yes | K3: Yes | L3: Yes | M3: Yes | N3: Yes | O3: Yes | P3: Yes | Q3: Yes | R3: Yes | S3: Yes | T3: Yes | U3: Yes | V3: Yes
C4: Irrigation Analysis
C5: Farm Name | D5: ABC Farm
C6: Total Well GPM to Pivot | D6: 500
C7: Acres Available for Irrigation | D7: 120
C8: Minimum Planting Circle Size | D8: 0.3333333333
C9: Allowed Inches per Gross Acre | D9: 22
C10: Gross Acres | D10: 160
P11: Total ROVC at Various Irrigated and Dryland Combinations
A12: PARAMETER | B12: DISPLAY? | C12: Commodity | D12: Maximum Irr Acreage | E12: Remaining Acres | F12: ROVC/ Acre | G12: ROVC/ Ac-In | H12: ROVC (Irr. Land) | I12: =$C29 -> Dryland Canola | J12: =C30 -> Dryland Cotton | K12: =C31 -> Dryland Sorghum | L12: =C32 -> Dryland Sorghum Sudangrass | M12: =C33 -> Dryland Sunflowers-Oilseed | N12: =C34 -> Dryland Wheat | O12: =C35 -> Dryland Other Crop | P12: With Dryland Canola | Q12: With Dryland Cotton | R12: With Dryland Sorghum | S12: With Dryland Sorg. Sudangrass | T12: With Dryland Sunfl.-Oils. | U12: With Dryland Wheat | V12: With Dryland Other Crop | W12: Crop GPM per acre | X12: Normal GPM/Acre by Crop | Y12: Limited Max Irr Acreage
A13: Irrigated Alfalfa | B13: =_xlfn.XLOOKUP(A13,PGM_ShowHide_Lookup,PGM_ShowHide_Return,"") -> Yes | C13: ='Irr Alfalfa'!$A$3 -> Irrigated Alfalfa | D13: =IF((Y13)>$D$7,$D$7,IF($D$8="None",(Y13),FLOOR((Y13),($D$7*$D$8)))) -> 40 | E13: =$D$7-D13 -> 80 | F13: ='Comparative Returns'!J9 -> 645.6559488 | G13: ='Comparative Returns'!Q9 -> 26.9023312 | H13: =IF(SUBTOTAL(102,$F13)=1,F13*D13,"-") -> 25826.23795 | I13: =E13*$F$29 -> 102.0949209 | J13: =E13*$F$30 -> -4461.526935 | K13: =E13*$F$31 -> -2899.359699 | L13: =E13*$F$32 -> 9314.591584 | M13: =E13*$F$33 -> 328.3614038 | N13: =E13*$F$34 -> 1049.674871 | O13: =E13*$F$35 -> 0 | P13: =IF(SUBTOTAL(102,$F13,$F$29)=2,IF($H13=($H13+I13),"-",($H13+I13)),"-") -> 25928.33287 | Q13: =IF(SUBTOTAL(102,$F13,$F$30)=2,IF($H13=($H13+J13),"-",($H13+J13)),"-") -> 21364.71102 | R13: =IF(SUBTOTAL(102,$F13,$F$31)=2,IF($H13=($H13+K13),"-",($H13+K13)),"-") -> 22926.87825 | S13: =IF(SUBTOTAL(102,$F13,$F$32)=2,IF($H13=($H13+L13),"-",($H13+L13)),"-") -> 35140.82954 | T13: =IF(SUBTOTAL(102,$F13,$F$33)=2,IF($H13=($H13+M13),"-",($H13+M13)),"-") -> 26154.59936 | U13: =IF(SUBTOTAL(102,$F13,$F$34)=2,IF($H13=($H13+N13),"-",($H13+N13)),"-") -> 26875.91282 | V13: =IF(SUBTOTAL(102,$F13,$F$35)=2,IF($H13=($H13+O13),"-",($H13+O13)),"-") -> - | W13: =Alfalfa_GPM -> 8.000115963 | X13: 7 to 8 | Y13: =IF(Alfalfa_Inches=0,0,MIN(IF(W13=0,0,MIN($D$7,$D$6/W13)),$D$9*$D$10/Alfalfa_Inches)) -> 62.49909406
A14: Irrigated Canola | B14: =_xlfn.XLOOKUP(A14,PGM_ShowHide_Lookup,PGM_ShowHide_Return,"") -> Yes | C14: ='Irr Canola'!$A$3 -> Irrigated Canola | D14: 120 | E14: =$D$7-D14 -> 0 | F14: ='Comparative Returns'!J10 -> 49.54667452 | G14: ='Comparative Returns'!Q10 -> 4.954667452 | H14: =IF(SUBTOTAL(102,$F14)=1,F14*D14,"-") -> 5945.600942 | I14: 0 | J14: 0 | K14: 0 | L14: 0 | M14: 0 | N14: 0 | O14: 0 | P14: - | Q14: - | R14: - | S14: - | T14: - | U14: - | V14: - | W14: =Canola_GPM -> 2.000099703 | X14: 2 to 3.5 | Y14: =IF(Canola_Inches=0,0,MIN(IF(W14=0,0,MIN($D$7,$D$6/W14)),$D$9*$D$10/Canola_Inches)) -> 120
A15: Irrigated Corn | B15: Yes | C15: ='Irr Corn'!$A$3 -> Irrigated Corn | D15: 80 | E15: 40 | F15: ='Comparative Returns'!J11 -> 186.2462609 | G15: ='Comparative Returns'!Q11 -> 8.465739133 | H15: 14899.70087 | I15: 51.04746043 | J15: -2230.763468 | K15: -1449.67985 | L15: 4657.295792 | M15: 164.1807019 | N15: 524.8374354 | O15: 0 | P15: 14950.74833 | Q15: 12668.93741 | R15: 13450.02102 | S15: 19556.99667 | T15: 15063.88158 | U15: 15424.53831 | V15: - | W15: =Corn_GPM -> 6.000183396 | X15: 4.5 to 7 | Y15: =IF(Corn_Inches=0,0,MIN(IF(W15=0,0,MIN($D$7,$D$6/W15)),$D$9*$D$10/Corn_Inches)) -> 83.33078624
A16: Irrigated Corn Silage | B16: Yes | C16: ='Irr Corn Silage'!$A$3 -> Irrigated Corn Silage | D16: 80 | E16: 40 | F16: ='Comparative Returns'!J12 -> 306.267912 | G16: ='Comparative Returns'!Q12 -> 15.3133956 | H16: 24501.43296 | I16: 51.04746043 | J16: -2230.763468 | K16: -1449.67985 | L16: 4657.295792 | M16: 164.1807019 | N16: 524.8374354 | O16: 0 | P16: 24552.48042 | Q16: 22270.66949 | R16: 23051.75311 | S16: 29158.72875 | T16: 24665.61366 | U16: 25026.2704 | V16: - | W16: =Corn_Silage_GPM -> 5.999662743 | X16: 4.5 to 7 | Y16: =IF(Corn_Silage_Inches=0,0,MIN(IF(W16=0,0,MIN($D$7,$D$6/W16)),$D$9*$D$10/Corn_Silage_Inches)) -> 83.33801773
A17: Irrigated Cotton | B17: Yes | C17: ='Irr Cotton'!$A$3 -> Irrigated Cotton | D17: 120 | E17: 0 | F17: ='Comparative Returns'!J13 -> 140.7624193 | G17: ='Comparative Returns'!Q13 -> 11.73020161 | H17: 16891.49032 | I17: 0 | J17: 0 | K17: 0 | L17: 0 | M17: 0 | N17: 0 | O17: 0 | P17: - | Q17: - | R17: - | S17: - | T17: - | U17: - | V17: - | W17: =Cotton_GPM -> 2.999910911 | X17: 2 to 3.5 | Y17: =IF(Cotton_Inches=0,0,MIN(IF(W17=0,0,MIN($D$7,$D$6/W17)),$D$9*$D$10/Cotton_Inches)) -> 120
A18: Irrigated Peanuts | B18: Yes | C18: ='Irr Peanuts'!$A$3 -> Irrigated Peanuts | D18: 80 | E18: 40 | F18: ='Comparative Returns'!J14 -> 335.5447793 | G18: ='Comparative Returns'!Q14 -> 15.97832282 | H18: 26843.58234 | I18: 51.04746043 | J18: -2230.763468 | K18: -1449.67985 | L18: 4657.295792 | M18: 164.1807019 | N18: 524.8374354 | O18: 0 | P18: 26894.62981 | Q18: 24612.81888 | R18: 25393.9025 | S18: 31500.87814 | T18: 27007.76305 | U18: 27368.41978 | V18: - | W18: =Peanuts_GPM -> 4.999946212 | X18: 4.5 to 6 | Y18: =IF(Peanuts_Inches=0,0,MIN(IF(W18=0,0,MIN($D$7,$D$6/W18)),$D$9*$D$10/Peanuts_Inches)) -> 100.0010758
A19: Irrigated Sorghum | B19: Yes | C19: ='Irr Sorghum'!$A$3 -> Irrigated Sorghum | D19: 120 | E19: 0 | F19: ='Comparative Returns'!J15 -> 15.47017378 | G19: ='Comparative Returns'!Q15 -> 1.547017378 | H19: 1856.420854 | I19: 0 | J19: 0 | K19: 0 | L19: 0 | M19: 0 | N19: 0 | O19: 0 | P19: - | Q19: - | R19: - | S19: - | T19: - | U19: - | V19: - | W19: =Sorghum_GPM -> 2.499925759 | X19: 3.5 to 4.5 | Y19: =IF(Sorghum_Inches=0,0,MIN(IF(W19=0,0,MIN($D$7,$D$6/W19)),$D$9*$D$10/Sorghum_Inches)) -> 120
A20: Irrigated Sorghum Seed | B20: Yes | C20: ='Irr Sorghum Seed'!$A$3 -> Irrigated Sorghum Seed | D20: 120 | E20: 0 | F20: ='Comparative Returns'!J16 -> 487.1287608 | G20: ='Comparative Returns'!Q16 -> 30.44554755 | H20: 58455.4513 | I20: 0 | J20: 0 | K20: 0 | L20: 0 | M20: 0 | N20: 0 | O20: 0 | P20: - | Q20: - | R20: - | S20: - | T20: - | U20: - | V20: - | W20: =Sorghum_Seed_GPM -> 3.076800326 | X20: 3.5 to 4.5 | Y20: =IF(Sorghum_Seed_Inches=0,0,MIN(IF(W20=0,0,MIN($D$7,$D$6/W20)),$D$9*$D$10/Sorghum_Seed_Inches)) -> 120
A21: Irrigated Sorghum Silage | B21: Yes | C21: ='Irr Sorghum Silage'!$A$3 -> Irrigated Sorghum Silage | D21: 120 | E21: 0 | F21: ='Comparative Returns'!J17 -> 232.8407274 | G21: ='Comparative Returns'!Q17 -> 16.63148053 | H21: 27940.88729 | I21: 0 | J21: 0 | K21: 0 | L21: 0 | M21: 0 | N21: 0 | O21: 0 | P21: - | Q21: - | R21: - | S21: - | T21: - | U21: - | V21: - | W21: =Sorghum_Silage_GPM -> 3.769234152 | X21: 3.5 to 4.5 | Y21: =IF(Sorghum_Silage_Inches=0,0,MIN(IF(W21=0,0,MIN($D$7,$D$6/W21)),$D$9*$D$10/Sorghum_Silage_Inches)) -> 120
A22: Irrigated Sorghum Sudangrass | B22: Yes | C22: ='Irr Sorghum Sudangrass'!$A$3 -> Irrigated Sorghum Sudangrass | D22: 120 | E22: 0 | F22: ='Comparative Returns'!J18 -> 274.8861019 | G22: ='Comparative Returns'!Q18 -> 30.54290021 | H22: 32986.33223 | I22: 0 | J22: 0 | K22: 0 | L22: 0 | M22: 0 | N22: 0 | O22: 0 | P22: - | Q22: - | R22: - | S22: - | T22: - | U22: - | V22: - | W22: =Sorghum_Sudan_GPM -> 3.499947618 | X22: 3.5 to 4.5 | Y22: =IF(Sorghum_Sudan_Inches=0,0,MIN(IF(W22=0,0,MIN($D$7,$D$6/W22)),$D$9*$D$10/Sorghum_Sudan_Inches)) -> 120
A23: Irrigated Soybeans | B23: Yes | C23: ='Irr Soybeans'!$A$3 -> Irrigated Soybeans | D23: 120 | E23: 0 | F23: ='Comparative Returns'!J19 -> 84.7877078 | G23: ='Comparative Returns'!Q19 -> 6.056264843 | H23: 10174.52494 | I23: 0 | J23: 0 | K23: 0 | L23: 0 | M23: 0 | N23: 0 | O23: 0 | P23: - | Q23: - | R23: - | S23: - | T23: - | U23: - | V23: - | W23: =Soybeans_GPM -> 3.889174425 | X23: 4.5 to 6 | Y23: =IF(Soybeans_Inches=0,0,MIN(IF(W23=0,0,MIN($D$7,$D$6/W23)),$D$9*$D$10/Soybeans_Inches)) -> 120
A24: Irrigated Sunflowers-Confectionary | B24: Yes | C24: ='Irr Sunflowers-Confection'!$A$3 -> Irrigated Sunflowers-Confectionary | D24: 120 | E24: 0 | F24: ='Comparative Returns'!J20 -> 114.7862801 | G24: ='Comparative Returns'!Q20 -> 16.39804001 | H24: 13774.35361 | I24: 0 | J24: 0 | K24: 0 | L24: 0 | M24: 0 | N24: 0 | O24: 0 | P24: - | Q24: - | R24: - | S24: - | T24: - | U24: - | V24: - | W24: =Sunflowers_Conf_GPM -> 1.999978485 | X24: 2 to 3.5 | Y24: =IF(Sunflowers_Conf_Inches=0,0,MIN(IF(W24=0,0,MIN($D$7,$D$6/W24)),$D$9*$D$10/Sunflowers_Conf_Inches)) -> 120
A25: Irrigated Sunflowers-Oilseed | B25: Yes | C25: ='Irr Sunflowers-Oilseed'!$A$3 -> Irrigated Sunflowers-Oilseed | D25: 120 | E25: 0 | F25: ='Comparative Returns'!J21 -> 68.89439458 | G25: ='Comparative Returns'!Q21 -> 9.842056369 | H25: 8267.32735 | I25: 0 | J25: 0 | K25: 0 | L25: 0 | M25: 0 | N25: 0 | O25: 0 | P25: - | Q25: - | R25: - | S25: - | T25: - | U25: - | V25: - | W25: =Sunflowers_Oil_GPM -> 1.999978485 | X25: 2 to 3.5 | Y25: =IF(Sunflowers_Oil_Inches=0,0,MIN(IF(W25=0,0,MIN($D$7,$D$6/W25)),$D$9*$D$10/Sunflowers_Oil_Inches)) -> 120
A26: Irrigated Triticale Silage | B26: Yes | C26: ='Irr Triticale Silage'!$A$3 -> Irrigated Triticale Silage | D26: 120 | E26: =$D$7-D26 -> 0 | F26: ='Comparative Returns'!J22 -> 67.12035344 | G26: ='Comparative Returns'!Q22 -> 1.384210217 | H26: =IF(SUBTOTAL(102,$F26)=1,F26*D26,"-") -> 8054.442413 | I26: =E26*$F$29 -> 0 | J26: =E26*$F$30 -> 0 | K26: =E26*$F$31 -> 0 | L26: =E26*$F$32 -> 0 | M26: =E26*$F$33 -> 0 | N26: =E26*$F$34 -> 0 | O26: =E26*$F$35 -> 0 | P26: - | Q26: - | R26: - | S26: - | T26: - | U26: - | V26: - | W26: =Triticale_Silage_GPM -> 3.23077213 | X26: 3.5 to 4.5 | Y26: =IF(Triticale_Silage_Inches=0,0,MIN(IF(W26=0,0,MIN($D$7,$D$6/W26)),$D$9*$D$10/Triticale_Silage_Inches)) -> 120
A27: Irrigated Wheat | B27: Yes | C27: ='Irr Wheat'!$A$3 -> Irrigated Wheat | D27: 120 | E27: 0 | F27: ='Comparative Returns'!J23 -> 32.28862452 | G27: ='Comparative Returns'!Q23 -> 3.228862452 | H27: 3874.634942 | I27: =E27*$F$29 -> 0 | J27: =E27*$F$30 -> 0 | K27: =E27*$F$31 -> 0 | L27: =E27*$F$32 -> 0 | M27: =E27*$F$33 -> 0 | N27: =E27*$F$34 -> 0 | O27: =E27*$F$35 -> 0 | P27: - | Q27: - | R27: - | S27: - | T27: - | U27: - | V27: - | W27: =Wheat_GPM -> 2.666799604 | X27: 3.5 to 4.5 | Y27: =IF(Wheat_Inches=0,0,MIN(IF(W27=0,0,MIN($D$7,$D$6/W27)),$D$9*$D$10/Wheat_Inches)) -> 120
A28: Irrigated Other Crop | B28: Yes | C28: ='Irr Other Crop'!$A$3 -> Irrigated Other Crop | D28: 0 | E28: 120 | F28: ='Comparative Returns'!J24 -> 0 | G28: ='Comparative Returns'!Q24 -> - | H28: 0 | I28: =E28*$F$29 -> 153.1423813 | J28: =E28*$F$30 -> -6692.290403 | K28: =E28*$F$31 -> -4349.039549 | L28: =E28*$F$32 -> 13971.88738 | M28: =E28*$F$33 -> 492.5421056 | N28: =E28*$F$34 -> 1574.512306 | O28: =E28*$F$35 -> 0 | P28: 153.1423813 | Q28: -6692.290403 | R28: -4349.039549 | S28: 13971.88738 | T28: 492.5421056 | U28: 1574.512306 | V28: - | W28: =Other_GPM -> 0 | X28: 2 to 8 | Y28: =IF(Other_Inches=0,0,MIN(IF(W28=0,0,MIN($D$7,$D$6/W28)),$D$9*$D$10/Other_Inches)) -> 0
A29: Dryland Canola | B29: Yes | C29: ='Dry Canola'!$A$3 -> Dryland Canola | D29: - | E29: - | F29: ='Comparative Returns'!J25 -> 1.276186511 | G29: - | W29: -
A30: Dryland Cotton | B30: Yes | C30: ='Dry Cotton'!$A$3 -> Dryland Cotton | D30: - | E30: - | F30: ='Comparative Returns'!J26 -> -55.76908669 | G30: - | W30: - | X30: Min Planting Circle Size
A31: Dryland Sorghum | B31: Yes | C31: ='Dry Sorghum'!$A$3 -> Dryland Sorghum | D31: - | E31: - | F31: ='Comparative Returns'!J27 -> -36.24199624 | G31: - | W31: - | X31: None
A32: Dryland Sorghum Sudangrass | B32: Yes | C32: ='Dry Sorghum Sudangrass'!$A$3 -> Dryland Sorghum Sudangrass | D32: - | E32: - | F32: ='Comparative Returns'!J28 -> 116.4323948 | G32: - | W32: - | X32: 0.25
A33: Dryland Sunflowers-Oilseed | B33: Yes | C33: ='Dry Sunflowers-Oilseed'!$A$3 -> Dryland Sunflowers-Oilseed | D33: - | E33: - | F33: ='Comparative Returns'!J29 -> 4.104517547 | G33: - | W33: - | X33: =1/3 -> 0.3333333333
A34: Dryland Wheat | B34: Yes | C34: ='Dry Wheat'!$A$3 -> Dryland Wheat | D34: - | E34: - | F34: ='Comparative Returns'!J30 -> 13.12093588 | G34: - | W34: - | X34: 0.5
A35: Dryland Other Crop | B35: Yes | C35: ='Dry Other Crop'!$A$3 -> Dryland Other Crop | D35: - | E35: - | F35: ='Comparative Returns'!J31 -> 0 | G35: - | W35: -
C37: Instructions

Sheet Graphs
A2: Irrigation Analysis Graphs

Sheet PROGRAMMER (hidden)
A3: PROGRAMMING & MAINTENANCE
A4: The automation in this spreadsheet depends on a few key parameters. This tab can be used to easily update those parameters so the spreadsheet continues to function as changes are made.
A6: Hiding Rows/Columns within Key Worksheets | L6: Include in Analysis?
L7: Yes
L8: No
L9: Yes
L10: No
L11: Yes
L12: No
L13: Yes
L14: No
L15: Yes
A16: Hiding Unused Worksheets | L16: No
A17: The following section governs the mechanics to show/hide worksheets based on the crops selected by the user. | L17: Yes
L18: No
A19: Make Sure | L19: Yes
A20: A) The 'Parameter' column, below, includes all of the selection critieria from the 'Menu' worksheet. These should be populated via formula/reference, so that changes to the 'Menu' page are accurately reflected here. | L20: No
A21: B) The names of the worksheets exactly match the values in the 'Hides Worksheet' column, below. | L21: Yes
A22: C) The cells for users to input their selection on the 'Menu' worksheet are assigned a Defined Name. This name should match the name of the corresponding worksheet for each crop, without spaces or hyphens. | L22: No
A24: Show/Hide Mechanics | L24: Yes
A25: This table drives the show/hide mechanics of the workbook. It defines… A) The list of drop-down parameters users can select throughout the crop pages. B) The worksheet that should be displayed/hidden based on those parameters. C) Whether or not a particular worksheet should be hidden based on the current values in the workbook. | L25: No
A26: Parameter | B26: Hides Worksheet | C26: Defined Name to Inspect | D26: Display | F26: Errors | L26: Yes
A27: =Menu!B5 -> Irrigated Alfalfa | B27: Irr Alfalfa | C27: =IF(T_ShowHideMechanics[[#This Row],[Hides Worksheet]]<>"",SUBSTITUTE(SUBSTITUTE(T_ShowHideMechanics[[#This Row],[Hides Worksheet]], " ",""),"-",""),"") -> IrrAlfalfa | D27: =IF(T_ShowHideMechanics[[#This Row],[Hides Worksheet]]<>"",INDIRECT(T_ShowHideMechanics[[#This Row],[Defined Name to Inspect]]),"") -> Yes | F27: TO DO: Implement automated inspection to identify issues with how things are named / listed. | L27: No
A28: =Menu!B6 -> Irrigated Canola | B28: Irr Canola | C28: =IF(T_ShowHideMechanics[[#This Row],[Hides Worksheet]]<>"",SUBSTITUTE(SUBSTITUTE(T_ShowHideMechanics[[#This Row],[Hides Worksheet]], " ",""),"-",""),"") -> IrrCanola | D28: =IF(T_ShowHideMechanics[[#This Row],[Hides Worksheet]]<>"",INDIRECT(T_ShowHideMechanics[[#This Row],[Defined Name to Inspect]]),"") -> Yes | L28: Yes
A29: =Menu!B7 -> Irrigated Corn | B29: Irr Corn | C29: =IF(T_ShowHideMechanics[[#This Row],[Hides Worksheet]]<>"",SUBSTITUTE(SUBSTITUTE(T_ShowHideMechanics[[#This Row],[Hides Worksheet]], " ",""),"-",""),"") -> IrrCorn | D29: =IF(T_ShowHideMechanics[[#This Row],[Hides Worksheet]]<>"",INDIRECT(T_ShowHideMechanics[[#This Row],[Defined Name to Inspect]]),"") -> Yes | F29: "Hides Worksheet" Column: Values highlighted in red do not match the name of an existing workbook. Please correct these entries. | L29: No
A30: =Menu!B8 -> Irrigated Corn Silage | B30: Irr Corn Silage | C30: =IF(T_ShowHideMechanics[[#This Row],[Hides Worksheet]]<>"",SUBSTITUTE(SUBSTITUTE(T_ShowHideMechanics[[#This Row],[Hides Worksheet]], " ",""),"-",""),"") -> IrrCornSilage | D30: =IF(T_ShowHideMechanics[[#This Row],[Hides Worksheet]]<>"",INDIRECT(T_ShowHideMechanics[[#This Row],[Defined Name to Inspect]]),"") -> Yes | L30: Yes
A31: =Menu!B9 -> Irrigated Cotton | B31: Irr Cotton | C31: =IF(T_ShowHideMechanics[[#This Row],[Hides Worksheet]]<>"",SUBSTITUTE(SUBSTITUTE(T_ShowHideMechanics[[#This Row],[Hides Worksheet]], " ",""),"-",""),"") -> IrrCotton | D31: =IF(T_ShowHideMechanics[[#This Row],[Hides Worksheet]]<>"",INDIRECT(T_ShowHideMechanics[[#This Row],[Defined Name to Inspect]]),"") -> Yes
A32: =Menu!B10 -> Irrigated Peanuts | B32: Irr Peanuts | C32: =IF(T_ShowHideMechanics[[#This Row],[Hides Worksheet]]<>"",SUBSTITUTE(SUBSTITUTE(T_ShowHideMechanics[[#This Row],[Hides Worksheet]], " ",""),"-",""),"") -> IrrPeanuts | D32: =IF(T_ShowHideMechanics[[#This Row],[Hides Worksheet]]<>"",INDIRECT(T_ShowHideMechanics[[#This Row],[Defined Name to Inspect]]),"") -> Yes | L32: Include in Analysis?
A33: =Menu!B11 -> Irrigated Sorghum | B33: Irr Sorghum | C33: =IF(T_ShowHideMechanics[[#This Row],[Hides Worksheet]]<>"",SUBSTITUTE(SUBSTITUTE(T_ShowHideMechanics[[#This Row],[Hides Worksheet]], " ",""),"-",""),"") -> IrrSorghum | D33: =IF(T_ShowHideMechanics[[#This Row],[Hides Worksheet]]<>"",INDIRECT(T_ShowHideMechanics[[#This Row],[Defined Name to Inspect]]),"") -> Yes | F33: "Defined Names To Inspect" Column: Values highlighted in red do not match an existing Defined Name. | L33: Yes
A34: =Menu!B12 -> Irrigated Sorghum Seed | B34: Irr Sorghum Seed | C34: =IF(T_ShowHideMechanics[[#This Row],[Hides Worksheet]]<>"",SUBSTITUTE(SUBSTITUTE(T_ShowHideMechanics[[#This Row],[Hides Worksheet]], " ",""),"-",""),"") -> IrrSorghumSeed | D34: =IF(T_ShowHideMechanics[[#This Row],[Hides Worksheet]]<>"",INDIRECT(T_ShowHideMechanics[[#This Row],[Defined Name to Inspect]]),"") -> Yes | L34: No
A35: =Menu!B13 -> Irrigated Sorghum Silage | B35: Irr Sorghum Silage | C35: =IF(T_ShowHideMechanics[[#This Row],[Hides Worksheet]]<>"",SUBSTITUTE(SUBSTITUTE(T_ShowHideMechanics[[#This Row],[Hides Worksheet]], " ",""),"-",""),"") -> IrrSorghumSilage | D35: =IF(T_ShowHideMechanics[[#This Row],[Hides Worksheet]]<>"",INDIRECT(T_ShowHideMechanics[[#This Row],[Defined Name to Inspect]]),"") -> Yes
A36: =Menu!B14 -> Irrigated Sorghum Sudangrass | B36: Irr Sorghum Sudangrass | C36: =IF(T_ShowHideMechanics[[#This Row],[Hides Worksheet]]<>"",SUBSTITUTE(SUBSTITUTE(T_ShowHideMechanics[[#This Row],[Hides Worksheet]], " ",""),"-",""),"") -> IrrSorghumSudangrass | D36: =IF(T_ShowHideMechanics[[#This Row],[Hides Worksheet]]<>"",INDIRECT(T_ShowHideMechanics[[#This Row],[Defined Name to Inspect]]),"") -> Yes
A37: =Menu!B15 -> Irrigated Soybeans | B37: Irr Soybeans | C37: =IF(T_ShowHideMechanics[[#This Row],[Hides Worksheet]]<>"",SUBSTITUTE(SUBSTITUTE(T_ShowHideMechanics[[#This Row],[Hides Worksheet]], " ",""),"-",""),"") -> IrrSoybeans | D37: =IF(T_ShowHideMechanics[[#This Row],[Hides Worksheet]]<>"",INDIRECT(T_ShowHideMechanics[[#This Row],[Defined Name to Inspect]]),"") -> Yes
